Workbook

Sheet Index
A1: =Inputs!$D$6&" - Introduction and Index" -> Força Açoreana, S.A.: Azores PV & BESS (Pico) - Introduction and Index
B4: Overview | I4: Worksheet Navigation
B6: Project Name: | D6: Azores Photovoltaic Energy Venture | J6: Inputs | L6: Inputs | P6: Summary | R6: Project Summary Information | S6: Calculations | U6: Production Calculations
B7: Project Developer: | D7: Força Açoreana, S.A. | L7: General | R7: Key Project Information | U7: Electricity Production
B8: Location: | D8: =Inputs!D7 -> Lajes do Pico, Pico, Acores, Portugal | L8: Timing | R8: Sources and Uses
B9: Projections by: | D9: R. Bercuvitz | F9: rbercuvitz@bell.net | L9: Electricity Production | R9: Financial Metrics
L10: Revenues | R10: Key Dates
L11: Capital Expenses Monthly Breakdown | R11: Error Checks | S11: Calculations | U11: Debt
L12: Reserve Accounts | R12: Summary Financials | U12: Subordinated Debt
L13: Financing | R13: Project Spend Curve (chart) | U13: Senior Debt
L14: Depreciation and Tax | R14: Debt Service Coverage (chart) | U14: Amortization Table
R15: Senior Debt Amortization (chart) | U15: Debt Covenants
R16: Equity Cash Flow (chart)
L17: Cell Style Guide | U17: Equity
J18: 1234 | L18: Input (project-specific) | P18: Timeline | R18: Project Timeline | U18: Equity Drawdown Detail
J19: 1234 | L19: Input reference from another sheet | R19: Timeline | U19: Dividend Detail
J20: 1234 | L20: Calculation | U20: IRR Calculation
J21: 1234 | L21: Sum or Max Reference Calculation | P21: AFS | R21: Annual Financial Statements
J22: OK | L22: Positive Error Check Result | R22: Income Statement | U22: Startup Costs
J23: NO | L23: Negative Error Check Result | R23: Balance Sheet | U23: Startup Costs
R24: Cash Flow Statement
R25: Cash Waterfall | U25: Capital Expenses
U26: Capital Expense Detail & Assumptions
P27: QFS | R27: Quarterly Financial Statements | U27: Construction Labor
R28: Income Statement
R29: Balance Sheet | U29: Revenues
R30: Cash Flow Statement | U30: Revenue Calculations (Electricity)
R31: Cash Waterfall
U32: Operating Expenses
P33: MFS | R33: Monthly Financial Statements | U33: Operating Expenses
R34: Income Statement | U34: Payroll and Staffing
R35: Balance Sheet | U35: Monthly Expenses
R36: Cash Flow Statement
R37: Cash Waterfall | U37: Other Calculations
U38: Flags and Timing
U39: Indexation Factors
U40: Uses of Funds
U41: Sources of Funds
U42: Working Capital
U43: Depreciation
U44: Taxes
U45: Retained Earnings

Sheet AFS
A1: =Inputs!$D$6&" - Annual Financial Statements" -> Força Açoreana, S.A.: Azores PV & BESS (Pico) - Annual Financial Statements
C2: Year | D2: 2028-2045 | E2: 2045-2053 | H2: 2028-2053 | I2: =YEAR(I3) -> 2026 | J2: =YEAR(J3) -> 2027 | K2: 2028 | L2: 2029 | M2: 2030 | N2: 2031 | O2: 2032 | P2: 2033 | Q2: 2034 | R2: 2035 | S2: 2036 | T2: 2037 | U2: 2038 | V2: 2039 | W2: 2040 | X2: 2041 | Y2: 2042 | Z2: 2043 | AA2: 2044 | AB2: 2045 | AC2: 2046 | AD2: 2047 | AE2: 2048 | AF2: 2049 | AG2: 2050 | AH2: 2051 | AI2: 2052 | AJ2: 2053
C3: Period End | D3: 17.5 Years | E3: 7.5 Years | H3: 2053-06-30 | I3: 2026-12-31 | J3: =I3+365 -> 2027-12-31 | K3: =J3+365 -> 2028-12-30 | L3: =K3+366 -> 2029-12-31 | M3: =L3+365 -> 2030-12-31 | N3: 2031-12-31 | O3: 2032-12-30 | P3: =O3+366 -> 2033-12-31 | Q3: 2034-12-31 | R3: 2035-12-31 | S3: 2036-12-30 | T3: =S3+366 -> 2037-12-31 | U3: 2038-12-31 | V3: 2039-12-31 | W3: 2040-12-30 | X3: =W3+366 -> 2041-12-31 | Y3: 2042-12-31 | Z3: 2043-12-31 | AA3: 2044-12-30 | AB3: =AA3+366 -> 2045-12-31 | AC3: 2046-12-31 | AD3: 2047-12-31 | AE3: 2048-12-30 | AF3: =AE3+366 -> 2049-12-31 | AG3: 2050-12-31 | AH3: 2051-12-31 | AI3: 2052-12-30 | AJ3: =AI3+182 -> 2053-06-30
A4: · | B4: Income Statement | F4: Unit
A5: =Summary!$C$49 -> NO
C6: =Calculations!C351 -> Revenues | H6: Project Lifetime
C7: Electricity Produced | D7: =SUM(K7:AA7)+AB7/2 -> 232821751.7 | E7: =H7-D7 -> 96600471.89 | F7: Kwh | H7: =SUM(I7:AT7) -> 329422223.6 | I7: =SUMIF(Calculations!$I$8:$QJ$8, I$2, Calculations!$I210:$QJ210) -> 0 | J7: =SUMIF(Calculations!$I$8:$QJ$8, J$2, Calculations!$I210:$QJ210) -> 0 | K7: =SUMIF(Calculations!$I$8:$QJ$8, K$2, Calculations!$I215:$QJ215) -> 7376198.146 | L7: =SUMIF(Calculations!$I$8:$QJ$8, L$2, Calculations!$I215:$QJ215) -> 14737145.46 | M7: =SUMIF(Calculations!$I$8:$QJ$8, M$2, Calculations!$I215:$QJ215) -> 14603226.67 | N7: =SUMIF(Calculations!$I$8:$QJ$8, N$2, Calculations!$I215:$QJ215) -> 14457861.86 | O7: =SUMIF(Calculations!$I$8:$QJ$8, O$2, Calculations!$I215:$QJ215) -> 14313944.06 | P7: =SUMIF(Calculations!$I$8:$QJ$8, P$2, Calculations!$I215:$QJ215) -> 14171458.86 | Q7: =SUMIF(Calculations!$I$8:$QJ$8, Q$2, Calculations!$I215:$QJ215) -> 14030391.99 | R7: =SUMIF(Calculations!$I$8:$QJ$8, R$2, Calculations!$I215:$QJ215) -> 13890729.35 | S7: =SUMIF(Calculations!$I$8:$QJ$8, S$2, Calculations!$I215:$QJ215) -> 13752456.95 | T7: =SUMIF(Calculations!$I$8:$QJ$8, T$2, Calculations!$I215:$QJ215) -> 13615560.95 | U7: =SUMIF(Calculations!$I$8:$QJ$8, U$2, Calculations!$I215:$QJ215) -> 13480027.66 | V7: =SUMIF(Calculations!$I$8:$QJ$8, V$2, Calculations!$I215:$QJ215) -> 13345843.5 | W7: =SUMIF(Calculations!$I$8:$QJ$8, W$2, Calculations!$I215:$QJ215) -> 13212995.06 | X7: =SUMIF(Calculations!$I$8:$QJ$8, X$2, Calculations!$I215:$QJ215) -> 13081469.02 | Y7: =SUMIF(Calculations!$I$8:$QJ$8, Y$2, Calculations!$I215:$QJ215) -> 12951252.24 | Z7: =SUMIF(Calculations!$I$8:$QJ$8, Z$2, Calculations!$I215:$QJ215) -> 12822331.67 | AA7: =SUMIF(Calculations!$I$8:$QJ$8, AA$2, Calculations!$I215:$QJ215) -> 12694694.41 | AB7: =SUMIF(Calculations!$I$8:$QJ$8, AB$2, Calculations!$I215:$QJ215) -> 12568327.7 | AC7: =SUMIF(Calculations!$I$8:$QJ$8, AC$2, Calculations!$I215:$QJ215) -> 12443218.87 | AD7: =SUMIF(Calculations!$I$8:$QJ$8, AD$2, Calculations!$I215:$QJ215) -> 12319355.41 | AE7: =SUMIF(Calculations!$I$8:$QJ$8, AE$2, Calculations!$I215:$QJ215) -> 12196724.93 | AF7: =SUMIF(Calculations!$I$8:$QJ$8, AF$2, Calculations!$I215:$QJ215) -> 12075315.15 | AG7: =SUMIF(Calculations!$I$8:$QJ$8, AG$2, Calculations!$I215:$QJ215) -> 11955113.92 | AH7: =SUMIF(Calculations!$I$8:$QJ$8, AH$2, Calculations!$I215:$QJ215) -> 11836109.2 | AI7: =SUMIF(Calculations!$I$8:$QJ$8, AI$2, Calculations!$I215:$QJ215) -> 11718289.09 | AJ7: =SUMIF(Calculations!$I$8:$QJ$8, AJ$2, Calculations!$I215:$QJ215) -> 5772181.462
C8: Electricity Sold | D8: =SUM(K8:AA8)+AB8/2 -> 245435338.3 | E8: =H8-D8 -> 111545379.5 | F8: Kwh | H8: =SUM(I8:AT8) -> 356980717.8 | I8: =SUMIF(Calculations!$I$8:$QJ$8, I$2, Calculations!$I215:$QJ215) -> 0 | J8: =SUMIF(Calculations!$I$8:$QJ$8, J$2, Calculations!$I215:$QJ215) -> 0 | K8: =SUMIF(Calculations!$I$8:$QJ$8, K$2, Calculations!$I218:$QJ218)+SUMIF(Calculations!$I$8:$QJ$8, K$2, Calculations!$I225:$QJ225) -> 7672417.082 | L8: =SUMIF(Calculations!$I$8:$QJ$8, L$2, Calculations!$I218:$QJ218)+SUMIF(Calculations!$I$8:$QJ$8, L$2, Calculations!$I225:$QJ225) -> 14234833.73 | M8: =SUMIF(Calculations!$I$8:$QJ$8, M$2, Calculations!$I218:$QJ218)+SUMIF(Calculations!$I$8:$QJ$8, M$2, Calculations!$I225:$QJ225) -> 14283785.96 | N8: =SUMIF(Calculations!$I$8:$QJ$8, N$2, Calculations!$I218:$QJ218)+SUMIF(Calculations!$I$8:$QJ$8, N$2, Calculations!$I225:$QJ225) -> 14323847.29 | O8: =SUMIF(Calculations!$I$8:$QJ$8, O$2, Calculations!$I218:$QJ218)+SUMIF(Calculations!$I$8:$QJ$8, O$2, Calculations!$I225:$QJ225) -> 14371449.32 | P8: =SUMIF(Calculations!$I$8:$QJ$8, P$2, Calculations!$I218:$QJ218)+SUMIF(Calculations!$I$8:$QJ$8, P$2, Calculations!$I225:$QJ225) -> 14394388.82 | Q8: =SUMIF(Calculations!$I$8:$QJ$8, Q$2, Calculations!$I218:$QJ218)+SUMIF(Calculations!$I$8:$QJ$8, Q$2, Calculations!$I225:$QJ225) -> 14421644.62 | R8: =SUMIF(Calculations!$I$8:$QJ$8, R$2, Calculations!$I218:$QJ218)+SUMIF(Calculations!$I$8:$QJ$8, R$2, Calculations!$I225:$QJ225) -> 14435186.91 | S8: =SUMIF(Calculations!$I$8:$QJ$8, S$2, Calculations!$I218:$QJ218)+SUMIF(Calculations!$I$8:$QJ$8, S$2, Calculations!$I225:$QJ225) -> 14469526.79 | T8: =SUMIF(Calculations!$I$8:$QJ$8, T$2, Calculations!$I218:$QJ218)+SUMIF(Calculations!$I$8:$QJ$8, T$2, Calculations!$I225:$QJ225) -> 14470393.63 | U8: =SUMIF(Calculations!$I$8:$QJ$8, U$2, Calculations!$I218:$QJ218)+SUMIF(Calculations!$I$8:$QJ$8, U$2, Calculations!$I225:$QJ225) -> 14475720.74 | V8: =SUMIF(Calculations!$I$8:$QJ$8, V$2, Calculations!$I218:$QJ218)+SUMIF(Calculations!$I$8:$QJ$8, V$2, Calculations!$I225:$QJ225) -> 14482533.48 | W8: =SUMIF(Calculations!$I$8:$QJ$8, W$2, Calculations!$I218:$QJ218)+SUMIF(Calculations!$I$8:$QJ$8, W$2, Calculations!$I225:$QJ225) -> 14497833.78 | X8: =SUMIF(Calculations!$I$8:$QJ$8, X$2, Calculations!$I218:$QJ218)+SUMIF(Calculations!$I$8:$QJ$8, X$2, Calculations!$I225:$QJ225) -> 14467794.85 | Y8: =SUMIF(Calculations!$I$8:$QJ$8, Y$2, Calculations!$I218:$QJ218)+SUMIF(Calculations!$I$8:$QJ$8, Y$2, Calculations!$I225:$QJ225) -> 14449298.55 | Z8: =SUMIF(Calculations!$I$8:$QJ$8, Z$2, Calculations!$I218:$QJ218)+SUMIF(Calculations!$I$8:$QJ$8, Z$2, Calculations!$I225:$QJ225) -> 14424816.67 | AA8: =SUMIF(Calculations!$I$8:$QJ$8, AA$2, Calculations!$I218:$QJ218)+SUMIF(Calculations!$I$8:$QJ$8, AA$2, Calculations!$I225:$QJ225) -> 14389108.95 | AB8: =SUMIF(Calculations!$I$8:$QJ$8, AB$2, Calculations!$I218:$QJ218)+SUMIF(Calculations!$I$8:$QJ$8, AB$2, Calculations!$I225:$QJ225) -> 14341514.19 | AC8: =SUMIF(Calculations!$I$8:$QJ$8, AC$2, Calculations!$I218:$QJ218)+SUMIF(Calculations!$I$8:$QJ$8, AC$2, Calculations!$I225:$QJ225) -> 14279316.28 | AD8: =SUMIF(Calculations!$I$8:$QJ$8, AD$2, Calculations!$I218:$QJ218)+SUMIF(Calculations!$I$8:$QJ$8, AD$2, Calculations!$I225:$QJ225) -> 14199413.79 | AE8: =SUMIF(Calculations!$I$8:$QJ$8, AE$2, Calculations!$I218:$QJ218)+SUMIF(Calculations!$I$8:$QJ$8, AE$2, Calculations!$I225:$QJ225) -> 14091236.43 | AF8: =SUMIF(Calculations!$I$8:$QJ$8, AF$2, Calculations!$I218:$QJ218)+SUMIF(Calculations!$I$8:$QJ$8, AF$2, Calculations!$I225:$QJ225) -> 13965204.54 | AG8: =SUMIF(Calculations!$I$8:$QJ$8, AG$2, Calculations!$I218:$QJ218)+SUMIF(Calculations!$I$8:$QJ$8, AG$2, Calculations!$I225:$QJ225) -> 13839289.47 | AH8: =SUMIF(Calculations!$I$8:$QJ$8, AH$2, Calculations!$I218:$QJ218)+SUMIF(Calculations!$I$8:$QJ$8, AH$2, Calculations!$I225:$QJ225) -> 13714825.3 | AI8: =SUMIF(Calculations!$I$8:$QJ$8, AI$2, Calculations!$I218:$QJ218)+SUMIF(Calculations!$I$8:$QJ$8, AI$2, Calculations!$I225:$QJ225) -> 13597001.33 | AJ8: =SUMIF(Calculations!$I$8:$QJ$8, AJ$2, Calculations!$I218:$QJ218)+SUMIF(Calculations!$I$8:$QJ$8, AJ$2, Calculations!$I225:$QJ225) -> 6688335.258
C9: Average PPA Price | D9: =(D13-D12)/D8 -> 0.15399 | E9: =(E13-E12)/E8 -> 0.15399 | H9: =(H13-H12)/H8 -> 0.15399 | K9: =(K13-K12)/K8 -> 0.15399 | L9: 0.15399 | M9: 0.15399 | N9: 0.15399 | O9: 0.15399 | P9: 0.15399 | Q9: 0.15399 | R9: 0.15399 | S9: 0.15399 | T9: 0.15399 | U9: 0.15399 | V9: 0.15399 | W9: 0.15399 | X9: 0.15399 | Y9: 0.15399 | Z9: 0.15399 | AA9: 0.15399 | AB9: 0.15399 | AC9: 0.15399 | AD9: 0.15399 | AE9: 0.15399 | AF9: 0.15399 | AG9: 0.15399 | AH9: 0.15399 | AI9: 0.15399 | AJ9: 0.15399
C10: =Calculations!C352 -> Production Sold | D10: =SUM(K10:AA10)+AB10/2 -> 30510492.49 | E10: =H10-D10 -> 14316682.89 | F10: EUR | H10: =SUM(I10:AT10) -> 44827175.39 | I10: =SUMIF(Calculations!$I$8:$QJ$8, I$2, Calculations!$I352:$QJ352) -> 0 | J10: =SUMIF(Calculations!$I$8:$QJ$8, J$2, Calculations!$I352:$QJ352) -> 0 | K10: =SUMIF(Calculations!$I$8:$QJ$8, K$2, Calculations!$I229:$QJ229) -> 943319.6364 | L10: =SUMIF(Calculations!$I$8:$QJ$8, L$2, Calculations!$I229:$QJ229) -> 1714243.279 | M10: =SUMIF(Calculations!$I$8:$QJ$8, M$2, Calculations!$I229:$QJ229) -> 1728472.806 | N10: =SUMIF(Calculations!$I$8:$QJ$8, N$2, Calculations!$I229:$QJ229) -> 1741493.105 | O10: =SUMIF(Calculations!$I$8:$QJ$8, O$2, Calculations!$I229:$QJ229) -> 1754686.948 | P10: =SUMIF(Calculations!$I$8:$QJ$8, P$2, Calculations!$I229:$QJ229) -> 1765556.319 | Q10: =SUMIF(Calculations!$I$8:$QJ$8, Q$2, Calculations!$I229:$QJ229) -> 1775810.961 | R10: =SUMIF(Calculations!$I$8:$QJ$8, R$2, Calculations!$I229:$QJ229) -> 1786243.162 | S10: =SUMIF(Calculations!$I$8:$QJ$8, S$2, Calculations!$I229:$QJ229) -> 1796853.953 | T10: =SUMIF(Calculations!$I$8:$QJ$8, T$2, Calculations!$I229:$QJ229) -> 1804313.134 | U10: =SUMIF(Calculations!$I$8:$QJ$8, U$2, Calculations!$I229:$QJ229) -> 1811238.828 | V10: =SUMIF(Calculations!$I$8:$QJ$8, V$2, Calculations!$I229:$QJ229) -> 1818346.226 | W10: =SUMIF(Calculations!$I$8:$QJ$8, W$2, Calculations!$I229:$QJ229) -> 1825636.025 | X10: =SUMIF(Calculations!$I$8:$QJ$8, X$2, Calculations!$I229:$QJ229) -> 1829088.906 | Y10: =SUMIF(Calculations!$I$8:$QJ$8, Y$2, Calculations!$I229:$QJ229) -> 1832085.831 | Z10: =SUMIF(Calculations!$I$8:$QJ$8, Z$2, Calculations!$I229:$QJ229) -> 1834040.303 | AA10: =SUMIF(Calculations!$I$8:$QJ$8, AA$2, Calculations!$I229:$QJ229) -> 1832995.312 | AB10: =SUMIF(Calculations!$I$8:$QJ$8, AB$2, Calculations!$I229:$QJ229) -> 1832135.525 | AC10: =SUMIF(Calculations!$I$8:$QJ$8, AC$2, Calculations!$I229:$QJ229) -> 1827723.14 | AD10: =SUMIF(Calculations!$I$8:$QJ$8, AD$2, Calculations!$I229:$QJ229) -> 1820347.239 | AE10: =SUMIF(Calculations!$I$8:$QJ$8, AE$2, Calculations!$I229:$QJ229) -> 1807225.537 | AF10: =SUMIF(Calculations!$I$8:$QJ$8, AF$2, Calculations!$I229:$QJ229) -> 1793212.796 | AG10: =SUMIF(Calculations!$I$8:$QJ$8, AG$2, Calculations!$I229:$QJ229) -> 1778115.266 | AH10: =SUMIF(Calculations!$I$8:$QJ$8, AH$2, Calculations!$I229:$QJ229) -> 1763200.437 | AI10: =SUMIF(Calculations!$I$8:$QJ$8, AI$2, Calculations!$I229:$QJ229) -> 1748320.215 | AJ10: =SUMIF(Calculations!$I$8:$QJ$8, AJ$2, Calculations!$I229:$QJ229) -> 862470.497
C11: Storage Sold | D11: 7284095.246 | E11: 2860190.097 | F11: EUR | H11: 10144285.34 | I11: =SUMIF(Calculations!$I$8:$QJ$8, I$2, Calculations!$I353:$QJ353) -> 0 | J11: =SUMIF(Calculations!$I$8:$QJ$8, J$2, Calculations!$I353:$QJ353) -> 0 | K11: =SUMIF(Calculations!$I$8:$QJ$8, K$2, Calculations!$I230:$QJ230) -> 238155.8701 | L11: =SUMIF(Calculations!$I$8:$QJ$8, L$2, Calculations!$I230:$QJ230) -> 477778.7676 | M11: =SUMIF(Calculations!$I$8:$QJ$8, M$2, Calculations!$I230:$QJ230) -> 471087.3942 | N11: =SUMIF(Calculations!$I$8:$QJ$8, N$2, Calculations!$I230:$QJ230) -> 464236.1392 | O11: =SUMIF(Calculations!$I$8:$QJ$8, O$2, Calculations!$I230:$QJ230) -> 458372.5329 | P11: =SUMIF(Calculations!$I$8:$QJ$8, P$2, Calculations!$I230:$QJ230) -> 451035.6158 | Q11: =SUMIF(Calculations!$I$8:$QJ$8, Q$2, Calculations!$I230:$QJ230) -> 444978.0946 | R11: =SUMIF(Calculations!$I$8:$QJ$8, R$2, Calculations!$I230:$QJ230) -> 436631.2703 | S11: =SUMIF(Calculations!$I$8:$QJ$8, S$2, Calculations!$I230:$QJ230) -> 431308.4783 | T11: =SUMIF(Calculations!$I$8:$QJ$8, T$2, Calculations!$I230:$QJ230) -> 423982.7818 | U11: =SUMIF(Calculations!$I$8:$QJ$8, U$2, Calculations!$I230:$QJ230) -> 417877.4085 | V11: =SUMIF(Calculations!$I$8:$QJ$8, V$2, Calculations!$I230:$QJ230) -> 411819.1044 | W11: =SUMIF(Calculations!$I$8:$QJ$8, W$2, Calculations!$I230:$QJ230) -> 406885.3987 | X11: =SUMIF(Calculations!$I$8:$QJ$8, X$2, Calculations!$I230:$QJ230) -> 398806.824 | Y11: =SUMIF(Calculations!$I$8:$QJ$8, Y$2, Calculations!$I230:$QJ230) -> 392961.6526 | Z11: =SUMIF(Calculations!$I$8:$QJ$8, Z$2, Calculations!$I230:$QJ230) -> 387237.2157 | AA11: =SUMIF(Calculations!$I$8:$QJ$8, AA$2, Calculations!$I230:$QJ230) -> 382783.575 | AB11: =SUMIF(Calculations!$I$8:$QJ$8, AB$2, Calculations!$I230:$QJ230) -> 376314.245 | AC11: =SUMIF(Calculations!$I$8:$QJ$8, AC$2, Calculations!$I230:$QJ230) -> 371148.7735 | AD11: =SUMIF(Calculations!$I$8:$QJ$8, AD$2, Calculations!$I230:$QJ230) -> 366220.4911 | AE11: =SUMIF(Calculations!$I$8:$QJ$8, AE$2, Calculations!$I230:$QJ230) -> 362683.9601 | AF11: =SUMIF(Calculations!$I$8:$QJ$8, AF$2, Calculations!$I230:$QJ230) -> 357289.0511 | AG11: =SUMIF(Calculations!$I$8:$QJ$8, AG$2, Calculations!$I230:$QJ230) -> 352996.9196 | AH11: =SUMIF(Calculations!$I$8:$QJ$8, AH$2, Calculations!$I230:$QJ230) -> 348745.5109 | AI11: =SUMIF(Calculations!$I$8:$QJ$8, AI$2, Calculations!$I230:$QJ230) -> 345482.0189 | AJ11: =SUMIF(Calculations!$I$8:$QJ$8, AJ$2, Calculations!$I230:$QJ230) -> 167466.2494
E12: 0
C13: Gross Revenues | D13: 37794587.74 | E13: 17176872.99 | F13: =Calculations!E355 -> EUR | H13: 54971460.73 | I13: =I10+I11+I12 -> 0 | J13: 0 | K13: 1181475.506 | L13: 2192022.047 | M13: 2199560.2 | N13: 2205729.245 | O13: 2213059.48 | P13: 2216591.935 | Q13: 2220789.055 | R13: 2222874.432 | S13: 2228162.431 | T13: 2228295.916 | U13: 2229116.237 | V13: 2230165.33 | W13: 2232521.424 | X13: 2227895.73 | Y13: 2225047.483 | Z13: 2221277.518 | AA13: 2215778.887 | AB13: 2208449.77 | AC13: 2198871.914 | AD13: 2186567.73 | AE13: 2169909.497 | AF13: 2150501.847 | AG13: 2131112.186 | AH13: 2111945.948 | AI13: 2093802.234 | AJ13: 1029936.746
C14: less: Cost of Goods Sold | D14: -3740493.089 | E14: =H14-D14 -> -2673108.118 | F14: =Calculations!E355 -> EUR | H14: =SUM(I14:AT14) -> -6413601.207 | I14: =SUMIF(Calculations!$I$8:$QJ$8, I$2, Calculations!$I231:$QJ232) -> 0 | J14: =SUMIF(Calculations!$I$8:$QJ$8, J$2, Calculations!$I231:$QJ232) -> 0 | K14: =SUMIF(Calculations!$I$8:$QJ$8, K$2, Calculations!$I354:$QJ354) -> -109371.4352 | L14: =SUMIF(Calculations!$I$8:$QJ$8, L$2, Calculations!$I354:$QJ354) -> -124204.2606 | M14: =SUMIF(Calculations!$I$8:$QJ$8, M$2, Calculations!$I354:$QJ354) -> -131517.9079 | N14: =SUMIF(Calculations!$I$8:$QJ$8, N$2, Calculations!$I354:$QJ354) -> -140750.8872 | O14: =SUMIF(Calculations!$I$8:$QJ$8, O$2, Calculations!$I354:$QJ354) -> -153280.8208 | P14: =SUMIF(Calculations!$I$8:$QJ$8, P$2, Calculations!$I354:$QJ354) -> -164674.1053 | Q14: =SUMIF(Calculations!$I$8:$QJ$8, Q$2, Calculations!$I354:$QJ354) -> -176749.5011 | R14: =SUMIF(Calculations!$I$8:$QJ$8, R$2, Calculations!$I354:$QJ354) -> -191657.8544 | S14: =SUMIF(Calculations!$I$8:$QJ$8, S$2, Calculations!$I354:$QJ354) -> -210239.1086 | T14: =SUMIF(Calculations!$I$8:$QJ$8, T$2, Calculations!$I354:$QJ354) -> -223901.3663 | U14: =SUMIF(Calculations!$I$8:$QJ$8, U$2, Calculations!$I354:$QJ354) -> -238259.9854 | V14: =SUMIF(Calculations!$I$8:$QJ$8, V$2, Calculations!$I354:$QJ354) -> -252643.1798 | W14: =SUMIF(Calculations!$I$8:$QJ$8, W$2, Calculations!$I354:$QJ354) -> -268217.1054 | X14: =SUMIF(Calculations!$I$8:$QJ$8, X$2, Calculations!$I354:$QJ354) -> -279355.1759 | Y14: =SUMIF(Calculations!$I$8:$QJ$8, Y$2, Calculations!$I354:$QJ354) -> -292551.1267 | Z14: =SUMIF(Calculations!$I$8:$QJ$8, Z$2, Calculations!$I354:$QJ354) -> -304851.2479 | AA14: =SUMIF(Calculations!$I$8:$QJ$8, AA$2, Calculations!$I354:$QJ354) -> -315897.8869 | AB14: =SUMIF(Calculations!$I$8:$QJ$8, AB$2, Calculations!$I354:$QJ354) -> -324740.2665 | AC14: =SUMIF(Calculations!$I$8:$QJ$8, AC$2, Calculations!$I354:$QJ354) -> -331913.7118 | AD14: =SUMIF(Calculations!$I$8:$QJ$8, AD$2, Calculations!$I354:$QJ354) -> -336745.2983 | AE14: =SUMIF(Calculations!$I$8:$QJ$8, AE$2, Calculations!$I354:$QJ354) -> -338210.0732 | AF14: =SUMIF(Calculations!$I$8:$QJ$8, AF$2, Calculations!$I354:$QJ354) -> -336750.7102 | AG14: =SUMIF(Calculations!$I$8:$QJ$8, AG$2, Calculations!$I354:$QJ354) -> -335445.3966 | AH14: =SUMIF(Calculations!$I$8:$QJ$8, AH$2, Calculations!$I354:$QJ354) -> -334177.548 | AI14: =SUMIF(Calculations!$I$8:$QJ$8, AI$2, Calculations!$I354:$QJ354) -> -333868.3553 | AJ14: =SUMIF(Calculations!$I$8:$QJ$8, AJ$2, Calculations!$I354:$QJ354) -> -163626.8917
C15: =Calculations!C356 -> less: Operating Expenses | D15: -9770993.518 | E15: -5975433.023 | F15: =Calculations!E356 -> EUR | H15: -15746426.54 | I15: =SUMIF(Calculations!$I$8:$QJ$8, I$2, Calculations!$I356:$QJ356) -> 0 | J15: =SUMIF(Calculations!$I$8:$QJ$8, J$2, Calculations!$I356:$QJ356) -> 0 | K15: =SUMIF(Calculations!$I$8:$QJ$8, K$2, Calculations!$I356:$QJ356) -> -279077.8127 | L15: =SUMIF(Calculations!$I$8:$QJ$8, L$2, Calculations!$I356:$QJ356) -> -548028.0323 | M15: =SUMIF(Calculations!$I$8:$QJ$8, M$2, Calculations!$I356:$QJ356) -> -560968.2759 | N15: =SUMIF(Calculations!$I$8:$QJ$8, N$2, Calculations!$I356:$QJ356) -> -562891.1445 | O15: =SUMIF(Calculations!$I$8:$QJ$8, O$2, Calculations!$I356:$QJ356) -> -566559.4727 | P15: =SUMIF(Calculations!$I$8:$QJ$8, P$2, Calculations!$I356:$QJ356) -> -568248.2797 | Q15: =SUMIF(Calculations!$I$8:$QJ$8, Q$2, Calculations!$I356:$QJ356) -> -570227.4238 | R15: =SUMIF(Calculations!$I$8:$QJ$8, R$2, Calculations!$I356:$QJ356) -> -572161.0916 | S15: =SUMIF(Calculations!$I$8:$QJ$8, S$2, Calculations!$I356:$QJ356) -> -574378.6783 | T15: =SUMIF(Calculations!$I$8:$QJ$8, T$2, Calculations!$I356:$QJ356) -> -576170.5342 | U15: =SUMIF(Calculations!$I$8:$QJ$8, U$2, Calculations!$I356:$QJ356) -> -578258.2959 | V15: =SUMIF(Calculations!$I$8:$QJ$8, V$2, Calculations!$I356:$QJ356) -> -580409.1047 | W15: =SUMIF(Calculations!$I$8:$QJ$8, W$2, Calculations!$I356:$QJ356) -> -582861.2473 | X15: =SUMIF(Calculations!$I$8:$QJ$8, X$2, Calculations!$I356:$QJ356) -> -584847.2771 | Y15: =SUMIF(Calculations!$I$8:$QJ$8, Y$2, Calculations!$I356:$QJ356) -> -587129.7664 | Z15: =SUMIF(Calculations!$I$8:$QJ$8, Z$2, Calculations!$I356:$QJ356) -> -589476.8222 | AA15: =SUMIF(Calculations!$I$8:$QJ$8, AA$2, Calculations!$I356:$QJ356) -> -592119.657 | AB15: =SUMIF(Calculations!$I$8:$QJ$8, AB$2, Calculations!$I356:$QJ356) -> -594361.204 | AC15: =SUMIF(Calculations!$I$8:$QJ$8, AC$2, Calculations!$I356:$QJ356) -> -596899.8149 | AD15: =SUMIF(Calculations!$I$8:$QJ$8, AD$2, Calculations!$I356:$QJ356) -> -599502.5773 | AE15: =SUMIF(Calculations!$I$8:$QJ$8, AE$2, Calculations!$I356:$QJ356) -> -602397.8031 | AF15: =SUMIF(Calculations!$I$8:$QJ$8, AF$2, Calculations!$I356:$QJ356) -> -604894.8588 | AG15: =SUMIF(Calculations!$I$8:$QJ$8, AG$2, Calculations!$I356:$QJ356) -> -607705.1293 | AH15: =SUMIF(Calculations!$I$8:$QJ$8, AH$2, Calculations!$I356:$QJ356) -> -610598.4179 | AI15: =SUMIF(Calculations!$I$8:$QJ$8, AI$2, Calculations!$I356:$QJ356) -> -613812.8365 | AJ15: =SUMIF(Calculations!$I$8:$QJ$8, AJ$2, Calculations!$I356:$QJ356) -> -1442440.983
C16: =Calculations!C357 -> EBITDA | D16: 24283101.13 | E16: 8528331.846 | F16: =Calculations!E357 -> EUR | H16: 32811432.98 | I16: =SUM(I13:I15) -> 0 | J16: 0 | K16: 793026.2585 | L16: 1519789.754 | M16: 1507074.016 | N16: 1502087.213 | O16: 1493219.187 | P16: 1483669.55 | Q16: 1473812.13 | R16: 1459055.486 | S16: 1443544.644 | T16: 1428224.015 | U16: 1412597.955 | V16: 1397113.046 | W16: 1381443.071 | X16: 1363693.277 | Y16: 1345366.59 | Z16: 1326949.448 | AA16: 1307761.343 | AB16: 1289348.299 | AC16: 1270058.387 | AD16: 1250319.855 | AE16: 1229301.621 | AF16: 1208856.278 | AG16: 1187961.66 | AH16: 1167169.982 | AI16: 1146121.042 | AJ16: =SUM(AJ13:AJ15) -> -576131.1284
D17: 0 | E17: 0
C18: =Calculations!C359 -> less: Depreciation and Amortization | D18: -12482869.61 | E18: -2566958.212 | F18: =Calculations!E359 -> EUR | H18: =SUM(I18:AT18) -> -15049827.82 | I18: =SUMIF(Calculations!$I$8:$QJ$8, I$2, Calculations!$I359:$QJ359) -> 0 | J18: =SUMIF(Calculations!$I$8:$QJ$8, J$2, Calculations!$I359:$QJ359) -> 0 | K18: =SUMIF(Calculations!$I$8:$QJ$8, K$2, Calculations!$I359:$QJ359) -> -570727.6983 | L18: =SUMIF(Calculations!$I$8:$QJ$8, L$2, Calculations!$I359:$QJ359) -> -1141455.397 | M18: =SUMIF(Calculations!$I$8:$QJ$8, M$2, Calculations!$I359:$QJ359) -> -1141455.397 | N18: =SUMIF(Calculations!$I$8:$QJ$8, N$2, Calculations!$I359:$QJ359) -> -1141455.397 | O18: =SUMIF(Calculations!$I$8:$QJ$8, O$2, Calculations!$I359:$QJ359) -> -1141455.397 | P18: =SUMIF(Calculations!$I$8:$QJ$8, P$2, Calculations!$I359:$QJ359) -> -1125405.397 | Q18: =SUMIF(Calculations!$I$8:$QJ$8, Q$2, Calculations!$I359:$QJ359) -> -1109355.397 | R18: =SUMIF(Calculations!$I$8:$QJ$8, R$2, Calculations!$I359:$QJ359) -> -891018.2389 | S18: =SUMIF(Calculations!$I$8:$QJ$8, S$2, Calculations!$I359:$QJ359) -> -672681.0811 | T18: =SUMIF(Calculations!$I$8:$QJ$8, T$2, Calculations!$I359:$QJ359) -> -672681.0811 | U18: =SUMIF(Calculations!$I$8:$QJ$8, U$2, Calculations!$I359:$QJ359) -> -555303.2225 | V18: =SUMIF(Calculations!$I$8:$QJ$8, V$2, Calculations!$I359:$QJ359) -> -438365.3638 | W18: =SUMIF(Calculations!$I$8:$QJ$8, W$2, Calculations!$I359:$QJ359) -> -438365.3638 | X18: =SUMIF(Calculations!$I$8:$QJ$8, X$2, Calculations!$I359:$QJ359) -> -320698.9295 | Y18: =SUMIF(Calculations!$I$8:$QJ$8, Y$2, Calculations!$I359:$QJ359) -> -320698.9295 | Z18: =SUMIF(Calculations!$I$8:$QJ$8, Z$2, Calculations!$I359:$QJ359) -> -320698.9295 | AA18: =SUMIF(Calculations!$I$8:$QJ$8, AA$2, Calculations!$I359:$QJ359) -> -320698.9295 | AB18: =SUMIF(Calculations!$I$8:$QJ$8, AB$2, Calculations!$I359:$QJ359) -> -320698.9295 | AC18: =SUMIF(Calculations!$I$8:$QJ$8, AC$2, Calculations!$I359:$QJ359) -> -320881.1663 | AD18: =SUMIF(Calculations!$I$8:$QJ$8, AD$2, Calculations!$I359:$QJ359) -> -320881.1663 | AE18: =SUMIF(Calculations!$I$8:$QJ$8, AE$2, Calculations!$I359:$QJ359) -> -320881.1663 | AF18: =SUMIF(Calculations!$I$8:$QJ$8, AF$2, Calculations!$I359:$QJ359) -> -320881.1663 | AG18: =SUMIF(Calculations!$I$8:$QJ$8, AG$2, Calculations!$I359:$QJ359) -> -320881.1663 | AH18: =SUMIF(Calculations!$I$8:$QJ$8, AH$2, Calculations!$I359:$QJ359) -> -320881.1663 | AI18: =SUMIF(Calculations!$I$8:$QJ$8, AI$2, Calculations!$I359:$QJ359) -> -320881.1663 | AJ18: =SUMIF(Calculations!$I$8:$QJ$8, AJ$2, Calculations!$I359:$QJ359) -> -160440.5832
C19: =Calculations!C360 -> EBIT | D19: 11800231.52 | E19: 5961373.634 | F19: =Calculations!E360 -> EUR | H19: =SUM(I19:AT19) -> 17761605.16 | I19: =I16+I18 -> 0 | J19: =J16+J18 -> 0 | K19: 222298.5602 | L19: 378334.3572 | M19: 365618.6195 | N19: 360631.8163 | O19: 351763.7903 | P19: 358264.153 | Q19: 364456.7337 | R19: 568037.2476 | S19: 770863.563 | T19: 755542.934 | U19: 857294.7329 | V19: 958747.6821 | W19: 943077.7073 | X19: 1042994.347 | Y19: 1024667.661 | Z19: 1006250.519 | AA19: 987062.4139 | AB19: 968649.3699 | AC19: 949177.2209 | AD19: 929438.6883 | AE19: 908420.4545 | AF19: 887975.1114 | AG19: 867080.4936 | AH19: 846288.8158 | AI19: 825239.876 | AJ19: =AJ16+AJ18 -> -736571.7116
D20: 0 | E20: 0
C21: =Calculations!C362 -> less: Senior Debt Interest Expense | D21: -4648442.38 | E21: -18690.40029 | F21: =Calculations!E362 -> EUR | H21: =SUM(I21:AT21) -> -4667132.78 | I21: =SUMIF(Calculations!$I$8:$QJ$8, I$2, Calculations!$I362:$QJ362) -> 0 | J21: =SUMIF(Calculations!$I$8:$QJ$8, J$2, Calculations!$I362:$QJ362) -> 0 | K21: =SUMIF(Calculations!$I$8:$QJ$8, K$2, Calculations!$I362:$QJ362) -> -221998.9096 | L21: =SUMIF(Calculations!$I$8:$QJ$8, L$2, Calculations!$I362:$QJ362) -> -434150.6496 | M21: =SUMIF(Calculations!$I$8:$QJ$8, M$2, Calculations!$I362:$QJ362) -> -418117.8042 | N21: =SUMIF(Calculations!$I$8:$QJ$8, N$2, Calculations!$I362:$QJ362) -> -401180.5803 | O21: =SUMIF(Calculations!$I$8:$QJ$8, O$2, Calculations!$I362:$QJ362) -> -383287.9639 | P21: =SUMIF(Calculations!$I$8:$QJ$8, P$2, Calculations!$I362:$QJ362) -> -364386.0632 | Q21: =SUMIF(Calculations!$I$8:$QJ$8, Q$2, Calculations!$I362:$QJ362) -> -344417.9467 | R21: =SUMIF(Calculations!$I$8:$QJ$8, R$2, Calculations!$I362:$QJ362) -> -323323.4715 | S21: =SUMIF(Calculations!$I$8:$QJ$8, S$2, Calculations!$I362:$QJ362) -> -301039.1022 | T21: =SUMIF(Calculations!$I$8:$QJ$8, T$2, Calculations!$I362:$QJ362) -> -277497.7192 | U21: =SUMIF(Calculations!$I$8:$QJ$8, U$2, Calculations!$I362:$QJ362) -> -252628.4171 | V21: =SUMIF(Calculations!$I$8:$QJ$8, V$2, Calculations!$I362:$QJ362) -> -226356.291 | W21: =SUMIF(Calculations!$I$8:$QJ$8, W$2, Calculations!$I362:$QJ362) -> -198602.2104 | X21: =SUMIF(Calculations!$I$8:$QJ$8, X$2, Calculations!$I362:$QJ362) -> -169282.5815 | Y21: =SUMIF(Calculations!$I$8:$QJ$8, Y$2, Calculations!$I362:$QJ362) -> -138309.0951 | Z21: =SUMIF(Calculations!$I$8:$QJ$8, Z$2, Calculations!$I362:$QJ362) -> -105588.4606 | AA21: =SUMIF(Calculations!$I$8:$QJ$8, AA$2, Calculations!$I362:$QJ362) -> -71022.12513 | AB21: =SUMIF(Calculations!$I$8:$QJ$8, AB$2, Calculations!$I362:$QJ362) -> -34505.97662 | AC21: =SUMIF(Calculations!$I$8:$QJ$8, AC$2, Calculations!$I362:$QJ362) -> -1437.411985 | AD21: =SUMIF(Calculations!$I$8:$QJ$8, AD$2, Calculations!$I362:$QJ362) -> 0 | AE21: =SUMIF(Calculations!$I$8:$QJ$8, AE$2, Calculations!$I362:$QJ362) -> 0 | AF21: =SUMIF(Calculations!$I$8:$QJ$8, AF$2, Calculations!$I362:$QJ362) -> 0 | AG21: =SUMIF(Calculations!$I$8:$QJ$8, AG$2, Calculations!$I362:$QJ362) -> 0 | AH21: =SUMIF(Calculations!$I$8:$QJ$8, AH$2, Calculations!$I362:$QJ362) -> 0 | AI21: =SUMIF(Calculations!$I$8:$QJ$8, AI$2, Calculations!$I362:$QJ362) -> 0 | AJ21: =SUMIF(Calculations!$I$8:$QJ$8, AJ$2, Calculations!$I362:$QJ362) -> 0
C22: =Calculations!C363 -> less: Subordinated Debt Interest Expense | D22: -5876312.046 | E22: 831550.5374 | F22: =Calculations!E363 -> EUR | H22: =SUM(I22:AT22) -> -5044761.508 | I22: =SUMIF(Calculations!$I$8:$QJ$8, I$2, Calculations!$I363:$QJ363) -> 0 | J22: 0 | K22: =SUMIF(Calculations!$I$8:$QJ$8, K$2, Calculations!$I363:$QJ363) -> -243712.2762 | L22: =SUMIF(Calculations!$I$8:$QJ$8, L$2, Calculations!$I363:$QJ363) -> -480819.9208 | M22: =SUMIF(Calculations!$I$8:$QJ$8, M$2, Calculations!$I363:$QJ363) -> -471775.6461 | N22: =SUMIF(Calculations!$I$8:$QJ$8, N$2, Calculations!$I363:$QJ363) -> -461584.3309 | O22: =SUMIF(Calculations!$I$8:$QJ$8, O$2, Calculations!$I363:$QJ363) -> -450100.502 | P22: =SUMIF(Calculations!$I$8:$QJ$8, P$2, Calculations!$I363:$QJ363) -> -437160.236 | Q22: =SUMIF(Calculations!$I$8:$QJ$8, Q$2, Calculations!$I363:$QJ363) -> -422578.8205 | R22: =SUMIF(Calculations!$I$8:$QJ$8, R$2, Calculations!$I363:$QJ363) -> -406148.1165 | S22: =SUMIF(Calculations!$I$8:$QJ$8, S$2, Calculations!$I363:$QJ363) -> -387633.588 | T22: =SUMIF(Calculations!$I$8:$QJ$8, T$2, Calculations!$I363:$QJ363) -> -366770.9538 | U22: =SUMIF(Calculations!$I$8:$QJ$8, U$2, Calculations!$I363:$QJ363) -> -343262.4154 | V22: =SUMIF(Calculations!$I$8:$QJ$8, V$2, Calculations!$I363:$QJ363) -> -316772.4059 | W22: =SUMIF(Calculations!$I$8:$QJ$8, W$2, Calculations!$I363:$QJ363) -> -286922.8002 | X22: =SUMIF(Calculations!$I$8:$QJ$8, X$2, Calculations!$I363:$QJ363) -> -253287.5174 | Y22: =SUMIF(Calculations!$I$8:$QJ$8, Y$2, Calculations!$I363:$QJ363) -> -215386.4387 | Z22: =SUMIF(Calculations!$I$8:$QJ$8, Z$2, Calculations!$I363:$QJ363) -> -172678.5547 | AA22: =SUMIF(Calculations!$I$8:$QJ$8, AA$2, Calculations!$I363:$QJ363) -> -124554.2419 | AB22: =SUMIF(Calculations!$I$8:$QJ$8, AB$2, Calculations!$I363:$QJ363) -> -70326.56177 | AC22: =SUMIF(Calculations!$I$8:$QJ$8, AC$2, Calculations!$I363:$QJ363) -> -9221.45444 | AD22: =SUMIF(Calculations!$I$8:$QJ$8, AD$2, Calculations!$I363:$QJ363) -> 59633.30997 | AE22: =SUMIF(Calculations!$I$8:$QJ$8, AE$2, Calculations!$I363:$QJ363) -> 137220.5819 | AF22: =SUMIF(Calculations!$I$8:$QJ$8, AF$2, Calculations!$I363:$QJ363) -> 224647.862 | AG22: =SUMIF(Calculations!$I$8:$QJ$8, AG$2, Calculations!$I363:$QJ363) -> 323163.1096 | AH22: =SUMIF(Calculations!$I$8:$QJ$8, AH$2, Calculations!$I363:$QJ363) -> 131270.4092 | AI22: =SUMIF(Calculations!$I$8:$QJ$8, AI$2, Calculations!$I363:$QJ363) -> 0 | AJ22: =SUMIF(Calculations!$I$8:$QJ$8, AJ$2, Calculations!$I363:$QJ363) -> 0
C23: =Calculations!C364 -> add: Interest on Reserve Accounts | D23: 0 | E23: 0 | F23: =Calculations!E364 -> EUR | H23: =SUM(I23:AT23) -> 0 | I23: =SUMIF(Calculations!$I$8:$QJ$8, I$2, Calculations!$I364:$QJ364) -> 0 | J23: =SUMIF(Calculations!$I$8:$QJ$8, J$2, Calculations!$I364:$QJ364) -> 0 | K23: =SUMIF(Calculations!$I$8:$QJ$8, K$2, Calculations!$I364:$QJ364) -> 0 | L23: =SUMIF(Calculations!$I$8:$QJ$8, L$2, Calculations!$I364:$QJ364) -> 0 | M23: =SUMIF(Calculations!$I$8:$QJ$8, M$2, Calculations!$I364:$QJ364) -> 0 | N23: =SUMIF(Calculations!$I$8:$QJ$8, N$2, Calculations!$I364:$QJ364) -> 0 | O23: =SUMIF(Calculations!$I$8:$QJ$8, O$2, Calculations!$I364:$QJ364) -> 0 | P23: =SUMIF(Calculations!$I$8:$QJ$8, P$2, Calculations!$I364:$QJ364) -> 0 | Q23: =SUMIF(Calculations!$I$8:$QJ$8, Q$2, Calculations!$I364:$QJ364) -> 0 | R23: =SUMIF(Calculations!$I$8:$QJ$8, R$2, Calculations!$I364:$QJ364) -> 0 | S23: =SUMIF(Calculations!$I$8:$QJ$8, S$2, Calculations!$I364:$QJ364) -> 0 | T23: =SUMIF(Calculations!$I$8:$QJ$8, T$2, Calculations!$I364:$QJ364) -> 0 | U23: =SUMIF(Calculations!$I$8:$QJ$8, U$2, Calculations!$I364:$QJ364) -> 0 | V23: =SUMIF(Calculations!$I$8:$QJ$8, V$2, Calculations!$I364:$QJ364) -> 0 | W23: =SUMIF(Calculations!$I$8:$QJ$8, W$2, Calculations!$I364:$QJ364) -> 0 | X23: =SUMIF(Calculations!$I$8:$QJ$8, X$2, Calculations!$I364:$QJ364) -> 0 | Y23: =SUMIF(Calculations!$I$8:$QJ$8, Y$2, Calculations!$I364:$QJ364) -> 0 | Z23: =SUMIF(Calculations!$I$8:$QJ$8, Z$2, Calculations!$I364:$QJ364) -> 0 | AA23: =SUMIF(Calculations!$I$8:$QJ$8, AA$2, Calculations!$I364:$QJ364) -> 0 | AB23: =SUMIF(Calculations!$I$8:$QJ$8, AB$2, Calculations!$I364:$QJ364) -> 0 | AC23: =SUMIF(Calculations!$I$8:$QJ$8, AC$2, Calculations!$I364:$QJ364) -> 0 | AD23: =SUMIF(Calculations!$I$8:$QJ$8, AD$2, Calculations!$I364:$QJ364) -> 0 | AE23: =SUMIF(Calculations!$I$8:$QJ$8, AE$2, Calculations!$I364:$QJ364) -> 0 | AF23: =SUMIF(Calculations!$I$8:$QJ$8, AF$2, Calculations!$I364:$QJ364) -> 0 | AG23: =SUMIF(Calculations!$I$8:$QJ$8, AG$2, Calculations!$I364:$QJ364) -> 0 | AH23: =SUMIF(Calculations!$I$8:$QJ$8, AH$2, Calculations!$I364:$QJ364) -> 0 | AI23: =SUMIF(Calculations!$I$8:$QJ$8, AI$2, Calculations!$I364:$QJ364) -> 0 | AJ23: =SUMIF(Calculations!$I$8:$QJ$8, AJ$2, Calculations!$I364:$QJ364) -> 0
C24: =Calculations!C365 -> EBT | D24: 1275477.097 | E24: 6774233.771 | F24: =Calculations!E365 -> EUR | H24: =SUM(I24:AT24) -> 8049710.868 | I24: =I19+SUM(I21:I23) -> 0 | J24: 0 | K24: -243412.6256 | L24: -536636.2132 | M24: -524274.8308 | N24: -502133.095 | O24: -481624.6755 | P24: -443282.1462 | Q24: -402540.0335 | R24: -161434.3404 | S24: 82190.87289 | T24: 111274.261 | U24: 261403.9004 | V24: 415618.9852 | W24: 457552.6967 | X24: 620424.2483 | Y24: 670972.1267 | Z24: 727983.5034 | AA24: 791486.0468 | AB24: 863816.8315 | AC24: 938518.3545 | AD24: 989071.9983 | AE24: 1045641.036 | AF24: 1112622.973 | AG24: 1190243.603 | AH24: 977559.2251 | AI24: 825239.876 | AJ24: =AJ19+SUM(AJ21:AJ23) -> -736571.7116
D25: 0 | E25: 0
C26: =Calculations!C367 -> less: Taxes | D26: 0 | E26: -1133661.112 | F26: =Calculations!E367 -> EUR | H26: =SUM(I26:AT26) -> -1133661.112 | I26: =SUMIF(Calculations!$I$8:$QJ$8, I$2, Calculations!$I367:$QJ367) -> 0 | J26: =SUMIF(Calculations!$I$8:$QJ$8, J$2, Calculations!$I367:$QJ367) -> 0 | K26: =SUMIF(Calculations!$I$8:$QJ$8, K$2, Calculations!$I367:$QJ367) -> 0 | L26: =SUMIF(Calculations!$I$8:$QJ$8, L$2, Calculations!$I367:$QJ367) -> 0 | M26: =SUMIF(Calculations!$I$8:$QJ$8, M$2, Calculations!$I367:$QJ367) -> 0 | N26: =SUMIF(Calculations!$I$8:$QJ$8, N$2, Calculations!$I367:$QJ367) -> 0 | O26: =SUMIF(Calculations!$I$8:$QJ$8, O$2, Calculations!$I367:$QJ367) -> 0 | P26: =SUMIF(Calculations!$I$8:$QJ$8, P$2, Calculations!$I367:$QJ367) -> 0 | Q26: =SUMIF(Calculations!$I$8:$QJ$8, Q$2, Calculations!$I367:$QJ367) -> 0 | R26: =SUMIF(Calculations!$I$8:$QJ$8, R$2, Calculations!$I367:$QJ367) -> 0 | S26: =SUMIF(Calculations!$I$8:$QJ$8, S$2, Calculations!$I367:$QJ367) -> 0 | T26: =SUMIF(Calculations!$I$8:$QJ$8, T$2, Calculations!$I367:$QJ367) -> 0 | U26: =SUMIF(Calculations!$I$8:$QJ$8, U$2, Calculations!$I367:$QJ367) -> 0 | V26: =SUMIF(Calculations!$I$8:$QJ$8, V$2, Calculations!$I367:$QJ367) -> 0 | W26: =SUMIF(Calculations!$I$8:$QJ$8, W$2, Calculations!$I367:$QJ367) -> 0 | X26: =SUMIF(Calculations!$I$8:$QJ$8, X$2, Calculations!$I367:$QJ367) -> 0 | Y26: =SUMIF(Calculations!$I$8:$QJ$8, Y$2, Calculations!$I367:$QJ367) -> 0 | Z26: =SUMIF(Calculations!$I$8:$QJ$8, Z$2, Calculations!$I367:$QJ367) -> 0 | AA26: =SUMIF(Calculations!$I$8:$QJ$8, AA$2, Calculations!$I367:$QJ367) -> 0 | AB26: =SUMIF(Calculations!$I$8:$QJ$8, AB$2, Calculations!$I367:$QJ367) -> 0 | AC26: =SUMIF(Calculations!$I$8:$QJ$8, AC$2, Calculations!$I367:$QJ367) -> 0 | AD26: =SUMIF(Calculations!$I$8:$QJ$8, AD$2, Calculations!$I367:$QJ367) -> -143176.2513 | AE26: =SUMIF(Calculations!$I$8:$QJ$8, AE$2, Calculations!$I367:$QJ367) -> -189609.4787 | AF26: =SUMIF(Calculations!$I$8:$QJ$8, AF$2, Calculations!$I367:$QJ367) -> -200862.4442 | AG26: =SUMIF(Calculations!$I$8:$QJ$8, AG$2, Calculations!$I367:$QJ367) -> -213902.71 | AH26: =SUMIF(Calculations!$I$8:$QJ$8, AH$2, Calculations!$I367:$QJ367) -> -179210.9033 | AI26: =SUMIF(Calculations!$I$8:$QJ$8, AI$2, Calculations!$I367:$QJ367) -> -152741.5598 | AJ26: =SUMIF(Calculations!$I$8:$QJ$8, AJ$2, Calculations!$I367:$QJ367) -> -54157.76502
C27: =Calculations!C368 -> add: Change in Deferred Tax Asset | D27: 314691.9738 | E27: -142562.4087 | F27: =Calculations!E368 -> EUR | H27: =SUM(I27:AT27) -> 172129.5652 | I27: =SUMIF(Calculations!$I$8:$QJ$8, I$2, Calculations!$I368:$QJ368) -> 0 | J27: 0 | K27: =SUMIF(Calculations!$I$8:$QJ$8, K$2, Calculations!$I368:$QJ368) -> 76315.77884 | L27: =SUMIF(Calculations!$I$8:$QJ$8, L$2, Calculations!$I368:$QJ368) -> 160999.7993 | M27: =SUMIF(Calculations!$I$8:$QJ$8, M$2, Calculations!$I368:$QJ368) -> 158923.087 | N27: =SUMIF(Calculations!$I$8:$QJ$8, N$2, Calculations!$I368:$QJ368) -> 155203.2754 | O27: =SUMIF(Calculations!$I$8:$QJ$8, O$2, Calculations!$I368:$QJ368) -> 151757.8609 | P27: =SUMIF(Calculations!$I$8:$QJ$8, P$2, Calculations!$I368:$QJ368) -> 148012.716 | Q27: =SUMIF(Calculations!$I$8:$QJ$8, Q$2, Calculations!$I368:$QJ368) -> 143864.4411 | R27: =SUMIF(Calculations!$I$8:$QJ$8, R$2, Calculations!$I368:$QJ368) -> 140039.3272 | S27: =SUMIF(Calculations!$I$8:$QJ$8, S$2, Calculations!$I368:$QJ368) -> 135790.9338 | T27: =SUMIF(Calculations!$I$8:$QJ$8, T$2, Calculations!$I368:$QJ368) -> 130904.9246 | U27: =SUMIF(Calculations!$I$8:$QJ$8, U$2, Calculations!$I368:$QJ368) -> -5902.08559 | V27: =SUMIF(Calculations!$I$8:$QJ$8, V$2, Calculations!$I368:$QJ368) -> -143469.3706 | W27: =SUMIF(Calculations!$I$8:$QJ$8, W$2, Calculations!$I368:$QJ368) -> -150514.2342 | X27: =SUMIF(Calculations!$I$8:$QJ$8, X$2, Calculations!$I368:$QJ368) -> -158108.6939 | Y27: =SUMIF(Calculations!$I$8:$QJ$8, Y$2, Calculations!$I368:$QJ368) -> -166600.7375 | Z27: =SUMIF(Calculations!$I$8:$QJ$8, Z$2, Calculations!$I368:$QJ368) -> -176178.6487 | AA27: =SUMIF(Calculations!$I$8:$QJ$8, AA$2, Calculations!$I368:$QJ368) -> -186847.076 | AB27: =SUMIF(Calculations!$I$8:$QJ$8, AB$2, Calculations!$I368:$QJ368) -> -198998.6479 | AC27: =SUMIF(Calculations!$I$8:$QJ$8, AC$2, Calculations!$I368:$QJ368) -> -178263.0209 | AD27: =SUMIF(Calculations!$I$8:$QJ$8, AD$2, Calculations!$I368:$QJ368) -> -36929.629 | AE27: =SUMIF(Calculations!$I$8:$QJ$8, AE$2, Calculations!$I368:$QJ368) -> 0 | AF27: =SUMIF(Calculations!$I$8:$QJ$8, AF$2, Calculations!$I368:$QJ368) -> 0 | AG27: =SUMIF(Calculations!$I$8:$QJ$8, AG$2, Calculations!$I368:$QJ368) -> 0 | AH27: =SUMIF(Calculations!$I$8:$QJ$8, AH$2, Calculations!$I368:$QJ368) -> 1039.168874 | AI27: =SUMIF(Calculations!$I$8:$QJ$8, AI$2, Calculations!$I368:$QJ368) -> 159.4760428 | AJ27: =SUMIF(Calculations!$I$8:$QJ$8, AJ$2, Calculations!$I368:$QJ368) -> 170930.9203
C28: =Calculations!C369 -> Net Income / (Loss) | D28: 1590169.071 | E28: 5498010.25 | F28: =Calculations!E369 -> EUR | H28: =SUM(I28:AT28) -> 7088179.321 | I28: =I24+SUM(I26:I27) -> 0 | J28: =J24+SUM(J26:J27) -> 0 | K28: -167096.8468 | L28: -375636.4139 | M28: -365351.7438 | N28: -346929.8196 | O28: -329866.8145 | P28: -295269.4302 | Q28: -258675.5924 | R28: -21395.01327 | S28: 217981.8067 | T28: 242179.1857 | U28: 255501.8148 | V28: 272149.6146 | W28: 307038.4625 | X28: 462315.5544 | Y28: 504371.3893 | Z28: 551804.8547 | AA28: 604638.9708 | AB28: 664818.1837 | AC28: 760255.3336 | AD28: 808966.1179 | AE28: 856031.5577 | AF28: 911760.5293 | AG28: 976340.8932 | AH28: 799387.4906 | AI28: 672657.7922 | AJ28: =AJ24+SUM(AJ26:AJ27) -> -619798.5563
A30: · | B30: Balance Sheet | F30: Unit
B32: Current Assets
C33: =Calculations!C374 -> Unrestricted Cash | F33: =Calculations!E374 -> EUR | I33: =LOOKUP(I$3, Calculations!$I$4:$QJ$4, Calculations!$I374:$QJ374) -> 16869.93769 | J33: =LOOKUP(J$3, Calculations!$I$4:$QJ$4, Calculations!$I374:$QJ374) -> 21783.82304 | K33: =LOOKUP(K$3, Calculations!$I$4:$QJ$4, Calculations!$I374:$QJ374) -> 190889.718 | L33: =LOOKUP(L$3, Calculations!$I$4:$QJ$4, Calculations!$I374:$QJ374) -> 562084.4057 | M33: =LOOKUP(M$3, Calculations!$I$4:$QJ$4, Calculations!$I374:$QJ374) -> 800693.6336 | N33: =LOOKUP(N$3, Calculations!$I$4:$QJ$4, Calculations!$I374:$QJ374) -> 1034548.727 | O33: =LOOKUP(O$3, Calculations!$I$4:$QJ$4, Calculations!$I374:$QJ374) -> 1140988.589 | P33: =LOOKUP(P$3, Calculations!$I$4:$QJ$4, Calculations!$I374:$QJ374) -> 1474912.672 | Q33: =LOOKUP(Q$3, Calculations!$I$4:$QJ$4, Calculations!$I374:$QJ374) -> 1680432.655 | R33: =LOOKUP(R$3, Calculations!$I$4:$QJ$4, Calculations!$I374:$QJ374) -> 1871176.509 | S33: =LOOKUP(S$3, Calculations!$I$4:$QJ$4, Calculations!$I374:$QJ374) -> 1935036.34 | T33: =LOOKUP(T$3, Calculations!$I$4:$QJ$4, Calculations!$I374:$QJ374) -> 2206264.482 | U33: =LOOKUP(U$3, Calculations!$I$4:$QJ$4, Calculations!$I374:$QJ374) -> 2350493.902 | V33: =LOOKUP(V$3, Calculations!$I$4:$QJ$4, Calculations!$I374:$QJ374) -> 2479219.96 | W33: =LOOKUP(W$3, Calculations!$I$4:$QJ$4, Calculations!$I374:$QJ374) -> 2488039.298 | X33: =LOOKUP(X$3, Calculations!$I$4:$QJ$4, Calculations!$I374:$QJ374) -> 2687528 | Y33: =LOOKUP(Y$3, Calculations!$I$4:$QJ$4, Calculations!$I374:$QJ374) -> 2764453.781 | Z33: =LOOKUP(Z$3, Calculations!$I$4:$QJ$4, Calculations!$I374:$QJ374) -> 2822944.989 | AA33: =LOOKUP(AA$3, Calculations!$I$4:$QJ$4, Calculations!$I374:$QJ374) -> 2764983.173 | AB33: =LOOKUP(AB$3, Calculations!$I$4:$QJ$4, Calculations!$I374:$QJ374) -> 2927222.973 | AC33: =LOOKUP(AC$3, Calculations!$I$4:$QJ$4, Calculations!$I374:$QJ374) -> 1578972.142 | AD33: =LOOKUP(AD$3, Calculations!$I$4:$QJ$4, Calculations!$I374:$QJ374) -> 2145241.999 | AE33: =LOOKUP(AE$3, Calculations!$I$4:$QJ$4, Calculations!$I374:$QJ374) -> 2560032.209 | AF33: =LOOKUP(AF$3, Calculations!$I$4:$QJ$4, Calculations!$I374:$QJ374) -> 3096660.099 | AG33: =LOOKUP(AG$3, Calculations!$I$4:$QJ$4, Calculations!$I374:$QJ374) -> 3523033.599 | AH33: =LOOKUP(AH$3, Calculations!$I$4:$QJ$4, Calculations!$I374:$QJ374) -> 7764410.531 | AI33: =LOOKUP(AI$3, Calculations!$I$4:$QJ$4, Calculations!$I374:$QJ374) -> 8686241.374 | AJ33: =LOOKUP(AJ$3, Calculations!$I$4:$QJ$4, Calculations!$I374:$QJ374) -> 7950369.161
C34: =Calculations!C375 -> DSRA | F34: =Calculations!E375 -> EUR | I34: =LOOKUP(I$3, Calculations!$I$4:$QJ$4, Calculations!$I375:$QJ375) -> 0 | J34: =LOOKUP(J$3, Calculations!$I$4:$QJ$4, Calculations!$I375:$QJ375) -> 0 | K34: =LOOKUP(K$3, Calculations!$I$4:$QJ$4, Calculations!$I375:$QJ375) -> 359190.6727 | L34: =LOOKUP(L$3, Calculations!$I$4:$QJ$4, Calculations!$I375:$QJ375) -> 359190.6727 | M34: =LOOKUP(M$3, Calculations!$I$4:$QJ$4, Calculations!$I375:$QJ375) -> 359190.6727 | N34: =LOOKUP(N$3, Calculations!$I$4:$QJ$4, Calculations!$I375:$QJ375) -> 359190.6727 | O34: =LOOKUP(O$3, Calculations!$I$4:$QJ$4, Calculations!$I375:$QJ375) -> 359190.6727 | P34: =LOOKUP(P$3, Calculations!$I$4:$QJ$4, Calculations!$I375:$QJ375) -> 359190.6727 | Q34: =LOOKUP(Q$3, Calculations!$I$4:$QJ$4, Calculations!$I375:$QJ375) -> 359190.6727 | R34: =LOOKUP(R$3, Calculations!$I$4:$QJ$4, Calculations!$I375:$QJ375) -> 359190.6727 | S34: =LOOKUP(S$3, Calculations!$I$4:$QJ$4, Calculations!$I375:$QJ375) -> 359190.6727 | T34: =LOOKUP(T$3, Calculations!$I$4:$QJ$4, Calculations!$I375:$QJ375) -> 359190.6727 | U34: =LOOKUP(U$3, Calculations!$I$4:$QJ$4, Calculations!$I375:$QJ375) -> 359190.6727 | V34: =LOOKUP(V$3, Calculations!$I$4:$QJ$4, Calculations!$I375:$QJ375) -> 359190.6727 | W34: =LOOKUP(W$3, Calculations!$I$4:$QJ$4, Calculations!$I375:$QJ375) -> 359190.6727 | X34: =LOOKUP(X$3, Calculations!$I$4:$QJ$4, Calculations!$I375:$QJ375) -> 359190.6727 | Y34: =LOOKUP(Y$3, Calculations!$I$4:$QJ$4, Calculations!$I375:$QJ375) -> 359190.6727 | Z34: =LOOKUP(Z$3, Calculations!$I$4:$QJ$4, Calculations!$I375:$QJ375) -> 359190.6727 | AA34: =LOOKUP(AA$3, Calculations!$I$4:$QJ$4, Calculations!$I375:$QJ375) -> 359190.6727 | AB34: =LOOKUP(AB$3, Calculations!$I$4:$QJ$4, Calculations!$I375:$QJ375) -> 315054.5723 | AC34: =LOOKUP(AC$3, Calculations!$I$4:$QJ$4, Calculations!$I375:$QJ375) -> 0 | AD34: =LOOKUP(AD$3, Calculations!$I$4:$QJ$4, Calculations!$I375:$QJ375) -> 0 | AE34: =LOOKUP(AE$3, Calculations!$I$4:$QJ$4, Calculations!$I375:$QJ375) -> 0 | AF34: =LOOKUP(AF$3, Calculations!$I$4:$QJ$4, Calculations!$I375:$QJ375) -> 0 | AG34: =LOOKUP(AG$3, Calculations!$I$4:$QJ$4, Calculations!$I375:$QJ375) -> 0 | AH34: =LOOKUP(AH$3, Calculations!$I$4:$QJ$4, Calculations!$I375:$QJ375) -> 0 | AI34: =LOOKUP(AI$3, Calculations!$I$4:$QJ$4, Calculations!$I375:$QJ375) -> 0 | AJ34: =LOOKUP(AJ$3, Calculations!$I$4:$QJ$4, Calculations!$I375:$QJ375) -> 0
C35: =Calculations!C376 -> MMRA | F35: =Calculations!E376 -> EUR | I35: =LOOKUP(I$3, Calculations!$I$4:$QJ$4, Calculations!$I376:$QJ376) -> 0 | J35: =LOOKUP(J$3, Calculations!$I$4:$QJ$4, Calculations!$I376:$QJ376) -> 0 | K35: =LOOKUP(K$3, Calculations!$I$4:$QJ$4, Calculations!$I376:$QJ376) -> 0 | L35: =LOOKUP(L$3, Calculations!$I$4:$QJ$4, Calculations!$I376:$QJ376) -> 0 | M35: =LOOKUP(M$3, Calculations!$I$4:$QJ$4, Calculations!$I376:$QJ376) -> 0 | N35: =LOOKUP(N$3, Calculations!$I$4:$QJ$4, Calculations!$I376:$QJ376) -> 0 | O35: =LOOKUP(O$3, Calculations!$I$4:$QJ$4, Calculations!$I376:$QJ376) -> 0 | P35: =LOOKUP(P$3, Calculations!$I$4:$QJ$4, Calculations!$I376:$QJ376) -> 0 | Q35: =LOOKUP(Q$3, Calculations!$I$4:$QJ$4, Calculations!$I376:$QJ376) -> 0 | R35: =LOOKUP(R$3, Calculations!$I$4:$QJ$4, Calculations!$I376:$QJ376) -> 0 | S35: =LOOKUP(S$3, Calculations!$I$4:$QJ$4, Calculations!$I376:$QJ376) -> 0 | T35: =LOOKUP(T$3, Calculations!$I$4:$QJ$4, Calculations!$I376:$QJ376) -> 0 | U35: =LOOKUP(U$3, Calculations!$I$4:$QJ$4, Calculations!$I376:$QJ376) -> 0 | V35: =LOOKUP(V$3, Calculations!$I$4:$QJ$4, Calculations!$I376:$QJ376) -> 0 | W35: =LOOKUP(W$3, Calculations!$I$4:$QJ$4, Calculations!$I376:$QJ376) -> 0 | X35: =LOOKUP(X$3, Calculations!$I$4:$QJ$4, Calculations!$I376:$QJ376) -> 0 | Y35: =LOOKUP(Y$3, Calculations!$I$4:$QJ$4, Calculations!$I376:$QJ376) -> 0 | Z35: =LOOKUP(Z$3, Calculations!$I$4:$QJ$4, Calculations!$I376:$QJ376) -> 0 | AA35: =LOOKUP(AA$3, Calculations!$I$4:$QJ$4, Calculations!$I376:$QJ376) -> 0 | AB35: =LOOKUP(AB$3, Calculations!$I$4:$QJ$4, Calculations!$I376:$QJ376) -> 0 | AC35: =LOOKUP(AC$3, Calculations!$I$4:$QJ$4, Calculations!$I376:$QJ376) -> 0 | AD35: =LOOKUP(AD$3, Calculations!$I$4:$QJ$4, Calculations!$I376:$QJ376) -> 0 | AE35: =LOOKUP(AE$3, Calculations!$I$4:$QJ$4, Calculations!$I376:$QJ376) -> 0 | AF35: =LOOKUP(AF$3, Calculations!$I$4:$QJ$4, Calculations!$I376:$QJ376) -> 0 | AG35: =LOOKUP(AG$3, Calculations!$I$4:$QJ$4, Calculations!$I376:$QJ376) -> 0 | AH35: =LOOKUP(AH$3, Calculations!$I$4:$QJ$4, Calculations!$I376:$QJ376) -> 0 | AI35: =LOOKUP(AI$3, Calculations!$I$4:$QJ$4, Calculations!$I376:$QJ376) -> 0 | AJ35: =LOOKUP(AJ$3, Calculations!$I$4:$QJ$4, Calculations!$I376:$QJ376) -> 0
C36: =Calculations!C377 -> Accounts Receivable | F36: =Calculations!E377 -> EUR | I36: =LOOKUP(I$3, Calculations!$I$4:$QJ$4, Calculations!$I377:$QJ377) -> 615308.5671 | J36: =LOOKUP(J$3, Calculations!$I$4:$QJ$4, Calculations!$I377:$QJ377) -> 209721.6257 | K36: =LOOKUP(K$3, Calculations!$I$4:$QJ$4, Calculations!$I377:$QJ377) -> 301522.1874 | L36: =LOOKUP(L$3, Calculations!$I$4:$QJ$4, Calculations!$I377:$QJ377) -> 213607.2963 | M36: =LOOKUP(M$3, Calculations!$I$4:$QJ$4, Calculations!$I377:$QJ377) -> 211626.069 | N36: =LOOKUP(N$3, Calculations!$I$4:$QJ$4, Calculations!$I377:$QJ377) -> 209413.8799 | O36: =LOOKUP(O$3, Calculations!$I$4:$QJ$4, Calculations!$I377:$QJ377) -> 293849.4271 | P36: =LOOKUP(P$3, Calculations!$I$4:$QJ$4, Calculations!$I377:$QJ377) -> 205055.3448 | Q36: =LOOKUP(Q$3, Calculations!$I$4:$QJ$4, Calculations!$I377:$QJ377) -> 202908.5627 | R36: =LOOKUP(R$3, Calculations!$I$4:$QJ$4, Calculations!$I377:$QJ377) -> 200783.1502 | S36: =LOOKUP(S$3, Calculations!$I$4:$QJ$4, Calculations!$I377:$QJ377) -> 282045.9192 | T36: =LOOKUP(T$3, Calculations!$I$4:$QJ$4, Calculations!$I377:$QJ377) -> 196595.5855 | U36: =LOOKUP(U$3, Calculations!$I$4:$QJ$4, Calculations!$I377:$QJ377) -> 194533.0143 | V36: =LOOKUP(V$3, Calculations!$I$4:$QJ$4, Calculations!$I377:$QJ377) -> 192490.9745 | W36: =LOOKUP(W$3, Calculations!$I$4:$QJ$4, Calculations!$I377:$QJ377) -> 270566.0828 | X36: =LOOKUP(X$3, Calculations!$I$4:$QJ$4, Calculations!$I377:$QJ377) -> 188467.6737 | Y36: =LOOKUP(Y$3, Calculations!$I$4:$QJ$4, Calculations!$I377:$QJ377) -> 186486.01 | Z36: =LOOKUP(Z$3, Calculations!$I$4:$QJ$4, Calculations!$I377:$QJ377) -> 184524.0725 | AA36: =LOOKUP(AA$3, Calculations!$I$4:$QJ$4, Calculations!$I377:$QJ377) -> 259536.5611 | AB36: =LOOKUP(AB$3, Calculations!$I$4:$QJ$4, Calculations!$I377:$QJ377) -> 180658.592 | AC36: =LOOKUP(AC$3, Calculations!$I$4:$QJ$4, Calculations!$I377:$QJ377) -> 178754.6623 | AD36: =LOOKUP(AD$3, Calculations!$I$4:$QJ$4, Calculations!$I377:$QJ377) -> 176869.6848 | AE36: =LOOKUP(AE$3, Calculations!$I$4:$QJ$4, Calculations!$I377:$QJ377) -> 248939.6898 | AF36: =LOOKUP(AF$3, Calculations!$I$4:$QJ$4, Calculations!$I377:$QJ377) -> 173155.834 | AG36: =LOOKUP(AG$3, Calculations!$I$4:$QJ$4, Calculations!$I377:$QJ377) -> 171326.5889 | AH36: =LOOKUP(AH$3, Calculations!$I$4:$QJ$4, Calculations!$I377:$QJ377) -> 169515.5526 | AI36: =LOOKUP(AI$3, Calculations!$I$4:$QJ$4, Calculations!$I377:$QJ377) -> 238758.4976 | AJ36: =LOOKUP(AJ$3, Calculations!$I$4:$QJ$4, Calculations!$I377:$QJ377) -> 358046.5445
C37: =Calculations!C378 -> Total Current Assets | F37: =Calculations!E378 -> EUR | I37: =SUM(I33:I36) -> 632178.5048 | J37: =SUM(J33:J36) -> 231505.4488 | K37: 851602.5781 | L37: 1134882.375 | M37: 1371510.375 | N37: 1603153.279 | O37: 1794028.689 | P37: 2039158.689 | Q37: 2242531.89 | R37: 2431150.332 | S37: 2576272.932 | T37: 2762050.741 | U37: 2904217.589 | V37: 3030901.607 | W37: 3117796.054 | X37: 3235186.346 | Y37: 3310130.464 | Z37: 3366659.734 | AA37: 3383710.407 | AB37: 3422936.137 | AC37: 1757726.804 | AD37: 2322111.684 | AE37: 2808971.899 | AF37: 3269815.933 | AG37: =SUM(AG33:AG36) -> 3694360.188 | AH37: 7933926.084 | AI37: 8924999.871 | AJ37: 8308415.705
B39: Non-Current Assets
C40: =Calculations!C381 -> Net Property, Plant and Equipment | F40: =Calculations!E381 -> EUR | I40: =LOOKUP(I$3, Calculations!$I$4:$QJ$4, Calculations!$I381:$QJ381) -> 5572821.495 | J40: =LOOKUP(J$3, Calculations!$I$4:$QJ$4, Calculations!$I381:$QJ381) -> 12958494.55 | K40: =LOOKUP(K$3, Calculations!$I$4:$QJ$4, Calculations!$I381:$QJ381) -> 15155906.8 | L40: =LOOKUP(L$3, Calculations!$I$4:$QJ$4, Calculations!$I381:$QJ381) -> 13919330.12 | M40: =LOOKUP(M$3, Calculations!$I$4:$QJ$4, Calculations!$I381:$QJ381) -> 12777874.73 | N40: =LOOKUP(N$3, Calculations!$I$4:$QJ$4, Calculations!$I381:$QJ381) -> 11636419.33 | O40: =LOOKUP(O$3, Calculations!$I$4:$QJ$4, Calculations!$I381:$QJ381) -> 10590085.22 | P40: =LOOKUP(P$3, Calculations!$I$4:$QJ$4, Calculations!$I381:$QJ381) -> 9369558.539 | Q40: =LOOKUP(Q$3, Calculations!$I$4:$QJ$4, Calculations!$I381:$QJ381) -> 8260203.142 | R40: =LOOKUP(R$3, Calculations!$I$4:$QJ$4, Calculations!$I381:$QJ381) -> 7369184.903 | S40: =LOOKUP(S$3, Calculations!$I$4:$QJ$4, Calculations!$I381:$QJ381) -> 6752560.579 | T40: =LOOKUP(T$3, Calculations!$I$4:$QJ$4, Calculations!$I381:$QJ381) -> 6023822.741 | U40: =LOOKUP(U$3, Calculations!$I$4:$QJ$4, Calculations!$I381:$QJ381) -> 5468519.518 | V40: =LOOKUP(V$3, Calculations!$I$4:$QJ$4, Calculations!$I381:$QJ381) -> 5030154.155 | W40: =LOOKUP(W$3, Calculations!$I$4:$QJ$4, Calculations!$I381:$QJ381) -> 4628319.238 | X40: =LOOKUP(X$3, Calculations!$I$4:$QJ$4, Calculations!$I381:$QJ381) -> 4271089.861 | Y40: =LOOKUP(Y$3, Calculations!$I$4:$QJ$4, Calculations!$I381:$QJ381) -> 3950390.932 | Z40: =LOOKUP(Z$3, Calculations!$I$4:$QJ$4, Calculations!$I381:$QJ381) -> 3629692.002 | AA40: =LOOKUP(AA$3, Calculations!$I$4:$QJ$4, Calculations!$I381:$QJ381) -> 3335717.983 | AB40: =LOOKUP(AB$3, Calculations!$I$4:$QJ$4, Calculations!$I381:$QJ381) -> 2988294.143 | AC40: =LOOKUP(AC$3, Calculations!$I$4:$QJ$4, Calculations!$I381:$QJ381) -> 5046356.508 | AD40: =LOOKUP(AD$3, Calculations!$I$4:$QJ$4, Calculations!$I381:$QJ381) -> 4725475.342 | AE40: =LOOKUP(AE$3, Calculations!$I$4:$QJ$4, Calculations!$I381:$QJ381) -> 4431334.273 | AF40: =LOOKUP(AF$3, Calculations!$I$4:$QJ$4, Calculations!$I381:$QJ381) -> 4083713.009 | AG40: =LOOKUP(AG$3, Calculations!$I$4:$QJ$4, Calculations!$I381:$QJ381) -> 3762831.843 | AH40: =LOOKUP(AH$3, Calculations!$I$4:$QJ$4, Calculations!$I381:$QJ381) -> 3441950.677 | AI40: =LOOKUP(AI$3, Calculations!$I$4:$QJ$4, Calculations!$I381:$QJ381) -> 3147809.607 | AJ40: =LOOKUP(AJ$3, Calculations!$I$4:$QJ$4, Calculations!$I381:$QJ381) -> 2960628.927
C41: =Calculations!C382 -> Goodwill (net of amortization) | F41: =Calculations!E382 -> EUR | I41: =LOOKUP(I$3, Calculations!$I$4:$QJ$4, Calculations!$I382:$QJ382) -> 0 | J41: =LOOKUP(J$3, Calculations!$I$4:$QJ$4, Calculations!$I382:$QJ382) -> 0 | K41: =LOOKUP(K$3, Calculations!$I$4:$QJ$4, Calculations!$I382:$QJ382) -> 0 | L41: =LOOKUP(L$3, Calculations!$I$4:$QJ$4, Calculations!$I382:$QJ382) -> 0 | M41: =LOOKUP(M$3, Calculations!$I$4:$QJ$4, Calculations!$I382:$QJ382) -> 0 | N41: =LOOKUP(N$3, Calculations!$I$4:$QJ$4, Calculations!$I382:$QJ382) -> 0 | O41: =LOOKUP(O$3, Calculations!$I$4:$QJ$4, Calculations!$I382:$QJ382) -> 0 | P41: =LOOKUP(P$3, Calculations!$I$4:$QJ$4, Calculations!$I382:$QJ382) -> 0 | Q41: =LOOKUP(Q$3, Calculations!$I$4:$QJ$4, Calculations!$I382:$QJ382) -> 0 | R41: =LOOKUP(R$3, Calculations!$I$4:$QJ$4, Calculations!$I382:$QJ382) -> 0 | S41: =LOOKUP(S$3, Calculations!$I$4:$QJ$4, Calculations!$I382:$QJ382) -> 0 | T41: =LOOKUP(T$3, Calculations!$I$4:$QJ$4, Calculations!$I382:$QJ382) -> 0 | U41: =LOOKUP(U$3, Calculations!$I$4:$QJ$4, Calculations!$I382:$QJ382) -> 0 | V41: =LOOKUP(V$3, Calculations!$I$4:$QJ$4, Calculations!$I382:$QJ382) -> 0 | W41: =LOOKUP(W$3, Calculations!$I$4:$QJ$4, Calculations!$I382:$QJ382) -> 0 | X41: =LOOKUP(X$3, Calculations!$I$4:$QJ$4, Calculations!$I382:$QJ382) -> 0 | Y41: =LOOKUP(Y$3, Calculations!$I$4:$QJ$4, Calculations!$I382:$QJ382) -> 0 | Z41: =LOOKUP(Z$3, Calculations!$I$4:$QJ$4, Calculations!$I382:$QJ382) -> 0 | AA41: =LOOKUP(AA$3, Calculations!$I$4:$QJ$4, Calculations!$I382:$QJ382) -> 0 | AB41: =LOOKUP(AB$3, Calculations!$I$4:$QJ$4, Calculations!$I382:$QJ382) -> 0 | AC41: =LOOKUP(AC$3, Calculations!$I$4:$QJ$4, Calculations!$I382:$QJ382) -> 0 | AD41: =LOOKUP(AD$3, Calculations!$I$4:$QJ$4, Calculations!$I382:$QJ382) -> 0 | AE41: =LOOKUP(AE$3, Calculations!$I$4:$QJ$4, Calculations!$I382:$QJ382) -> 0 | AF41: =LOOKUP(AF$3, Calculations!$I$4:$QJ$4, Calculations!$I382:$QJ382) -> 0 | AG41: =LOOKUP(AG$3, Calculations!$I$4:$QJ$4, Calculations!$I382:$QJ382) -> 0 | AH41: =LOOKUP(AH$3, Calculations!$I$4:$QJ$4, Calculations!$I382:$QJ382) -> 0 | AI41: =LOOKUP(AI$3, Calculations!$I$4:$QJ$4, Calculations!$I382:$QJ382) -> 0 | AJ41: =LOOKUP(AJ$3, Calculations!$I$4:$QJ$4, Calculations!$I382:$QJ382) -> 0
C42: =Calculations!C383 -> Deferred Tax Asset | F42: =Calculations!E383 -> EUR | I42: =LOOKUP(I$3, Calculations!$I$4:$QJ$4, Calculations!$I383:$QJ383) -> 0 | J42: =LOOKUP(J$3, Calculations!$I$4:$QJ$4, Calculations!$I383:$QJ383) -> 0 | K42: =LOOKUP(K$3, Calculations!$I$4:$QJ$4, Calculations!$I383:$QJ383) -> 47143.83681 | L42: =LOOKUP(L$3, Calculations!$I$4:$QJ$4, Calculations!$I383:$QJ383) -> 237315.5781 | M42: =LOOKUP(M$3, Calculations!$I$4:$QJ$4, Calculations!$I383:$QJ383) -> 396238.6652 | N42: =LOOKUP(N$3, Calculations!$I$4:$QJ$4, Calculations!$I383:$QJ383) -> 551441.9406 | O42: =LOOKUP(O$3, Calculations!$I$4:$QJ$4, Calculations!$I383:$QJ383) -> 675206.3247 | P42: =LOOKUP(P$3, Calculations!$I$4:$QJ$4, Calculations!$I383:$QJ383) -> 851212.5176 | Q42: =LOOKUP(Q$3, Calculations!$I$4:$QJ$4, Calculations!$I383:$QJ383) -> 995076.9587 | R42: =LOOKUP(R$3, Calculations!$I$4:$QJ$4, Calculations!$I383:$QJ383) -> 1135116.286 | S42: =LOOKUP(S$3, Calculations!$I$4:$QJ$4, Calculations!$I383:$QJ383) -> 1244359.994 | T42: =LOOKUP(T$3, Calculations!$I$4:$QJ$4, Calculations!$I383:$QJ383) -> 1401812.144 | U42: =LOOKUP(U$3, Calculations!$I$4:$QJ$4, Calculations!$I383:$QJ383) -> 1395910.059 | V42: =LOOKUP(V$3, Calculations!$I$4:$QJ$4, Calculations!$I383:$QJ383) -> 1252440.688 | W42: =LOOKUP(W$3, Calculations!$I$4:$QJ$4, Calculations!$I383:$QJ383) -> 1099572.838 | X42: =LOOKUP(X$3, Calculations!$I$4:$QJ$4, Calculations!$I383:$QJ383) -> 943817.76 | Y42: =LOOKUP(Y$3, Calculations!$I$4:$QJ$4, Calculations!$I383:$QJ383) -> 777217.0225 | Z42: =LOOKUP(Z$3, Calculations!$I$4:$QJ$4, Calculations!$I383:$QJ383) -> 601038.3738 | AA42: =LOOKUP(AA$3, Calculations!$I$4:$QJ$4, Calculations!$I383:$QJ383) -> 415425.4283 | AB42: =LOOKUP(AB$3, Calculations!$I$4:$QJ$4, Calculations!$I383:$QJ383) -> 215192.6499 | AC42: =LOOKUP(AC$3, Calculations!$I$4:$QJ$4, Calculations!$I383:$QJ383) -> 36929.629 | AD42: =LOOKUP(AD$3, Calculations!$I$4:$QJ$4, Calculations!$I383:$QJ383) -> 0 | AE42: =LOOKUP(AE$3, Calculations!$I$4:$QJ$4, Calculations!$I383:$QJ383) -> 0 | AF42: =LOOKUP(AF$3, Calculations!$I$4:$QJ$4, Calculations!$I383:$QJ383) -> 0 | AG42: =LOOKUP(AG$3, Calculations!$I$4:$QJ$4, Calculations!$I383:$QJ383) -> 0 | AH42: =LOOKUP(AH$3, Calculations!$I$4:$QJ$4, Calculations!$I383:$QJ383) -> 1039.168874 | AI42: =LOOKUP(AI$3, Calculations!$I$4:$QJ$4, Calculations!$I383:$QJ383) -> 0 | AJ42: =LOOKUP(AJ$3, Calculations!$I$4:$QJ$4, Calculations!$I383:$QJ383) -> 172129.5652
C43: =Calculations!C384 -> Total Non-Current Assets | F43: =Calculations!E384 -> EUR | I43: =SUM(I40:I42) -> 5572821.495 | J43: =SUM(J40:J42) -> 12958494.55 | K43: 15203050.64 | L43: 14156645.7 | M43: 13174113.39 | N43: 12187861.27 | O43: 11265291.54 | P43: 10220771.06 | Q43: 9255280.101 | R43: 8504301.189 | S43: 7996920.573 | T43: 7425634.885 | U43: 6864429.577 | V43: 6282594.843 | W43: 5727892.076 | X43: 5214907.621 | Y43: 4727607.954 | Z43: 4230730.376 | AA43: 3751143.412 | AB43: 3203486.793 | AC43: 5083286.137 | AD43: 4725475.342 | AE43: 4431334.273 | AF43: 4083713.009 | AG43: =SUM(AG40:AG42) -> 3762831.843 | AH43: 3442989.845 | AI43: 3147809.607 | AJ43: 3132758.492
B45: Total Assets | F45: =Calculations!E386 -> EUR | I45: =I37+I43 -> 6205000 | J45: =J37+J43 -> 13190000 | K45: 16054653.22 | L45: 15291528.08 | M45: 14545623.77 | N45: 13791014.55 | O45: 13059320.23 | P45: 12259929.75 | Q45: 11497811.99 | R45: 10935451.52 | S45: 10573193.5 | T45: 10187685.63 | U45: 9768647.166 | V45: 9313496.45 | W45: 8845688.13 | X45: 8450093.968 | Y45: 8037738.418 | Z45: 7597390.11 | AA45: 7134853.819 | AB45: 6626422.93 | AC45: 6841012.942 | AD45: 7047587.026 | AE45: 7240306.172 | AF45: 7353528.942 | AG45: =AG37+AG43 -> 7457192.031 | AH45: 11376915.93 | AI45: 12072809.48 | AJ45: 11441174.2
B47: Current Liabilities
C48: =Calculations!C389 -> Accounts Payable | F48: =Calculations!E389 -> EUR | I48: =LOOKUP(I$3, Calculations!$I$4:$QJ$4, Calculations!$I389:$QJ389) -> 0 | J48: =LOOKUP(J$3, Calculations!$I$4:$QJ$4, Calculations!$I389:$QJ389) -> 0 | K48: =LOOKUP(K$3, Calculations!$I$4:$QJ$4, Calculations!$I389:$QJ389) -> 2663.851684 | L48: =LOOKUP(L$3, Calculations!$I$4:$QJ$4, Calculations!$I389:$QJ389) -> 2730.447976 | M48: =LOOKUP(M$3, Calculations!$I$4:$QJ$4, Calculations!$I389:$QJ389) -> 2798.709176 | N48: =LOOKUP(N$3, Calculations!$I$4:$QJ$4, Calculations!$I389:$QJ389) -> 2868.676905 | O48: =LOOKUP(O$3, Calculations!$I$4:$QJ$4, Calculations!$I389:$QJ389) -> 2940.393828 | P48: =LOOKUP(P$3, Calculations!$I$4:$QJ$4, Calculations!$I389:$QJ389) -> 3013.903674 | Q48: =LOOKUP(Q$3, Calculations!$I$4:$QJ$4, Calculations!$I389:$QJ389) -> 3089.251265 | R48: =LOOKUP(R$3, Calculations!$I$4:$QJ$4, Calculations!$I389:$QJ389) -> 3166.482547 | S48: =LOOKUP(S$3, Calculations!$I$4:$QJ$4, Calculations!$I389:$QJ389) -> 3245.644611 | T48: =LOOKUP(T$3, Calculations!$I$4:$QJ$4, Calculations!$I389:$QJ389) -> 3326.785726 | U48: =LOOKUP(U$3, Calculations!$I$4:$QJ$4, Calculations!$I389:$QJ389) -> 3409.955369 | V48: =LOOKUP(V$3, Calculations!$I$4:$QJ$4, Calculations!$I389:$QJ389) -> 3495.204253 | W48: =LOOKUP(W$3, Calculations!$I$4:$QJ$4, Calculations!$I389:$QJ389) -> 3582.58436 | X48: =LOOKUP(X$3, Calculations!$I$4:$QJ$4, Calculations!$I389:$QJ389) -> 3672.148969 | Y48: =LOOKUP(Y$3, Calculations!$I$4:$QJ$4, Calculations!$I389:$QJ389) -> 3763.952693 | Z48: =LOOKUP(Z$3, Calculations!$I$4:$QJ$4, Calculations!$I389:$QJ389) -> 3858.05151 | AA48: =LOOKUP(AA$3, Calculations!$I$4:$QJ$4, Calculations!$I389:$QJ389) -> 3954.502798 | AB48: =LOOKUP(AB$3, Calculations!$I$4:$QJ$4, Calculations!$I389:$QJ389) -> 4053.365368 | AC48: =LOOKUP(AC$3, Calculations!$I$4:$QJ$4, Calculations!$I389:$QJ389) -> 4154.699502 | AD48: =LOOKUP(AD$3, Calculations!$I$4:$QJ$4, Calculations!$I389:$QJ389) -> 12618.44442 | AE48: =LOOKUP(AE$3, Calculations!$I$4:$QJ$4, Calculations!$I389:$QJ389) -> 18157.3472 | AF48: =LOOKUP(AF$3, Calculations!$I$4:$QJ$4, Calculations!$I389:$QJ389) -> 14783.00167 | AG48: =LOOKUP(AG$3, Calculations!$I$4:$QJ$4, Calculations!$I389:$QJ389) -> 16104.76875 | AH48: =LOOKUP(AH$3, Calculations!$I$4:$QJ$4, Calculations!$I389:$QJ389) -> 10833.86378 | AI48: =LOOKUP(AI$3, Calculations!$I$4:$QJ$4, Calculations!$I389:$QJ389) -> 15314.89216 | AJ48: =LOOKUP(AJ$3, Calculations!$I$4:$QJ$4, Calculations!$I389:$QJ389) -> 22232.89603
C49: =Calculations!C390 -> Accrued Interest: Subordinated Debt | F49: =Calculations!E390 -> EUR | I49: =LOOKUP(I$3, Calculations!$I$4:$QJ$4, Calculations!$I390:$QJ390) -> 0 | J49: =LOOKUP(J$3, Calculations!$I$4:$QJ$4, Calculations!$I390:$QJ390) -> 0 | K49: =LOOKUP(K$3, Calculations!$I$4:$QJ$4, Calculations!$I390:$QJ390) -> 40041.86867 | L49: =LOOKUP(L$3, Calculations!$I$4:$QJ$4, Calculations!$I390:$QJ390) -> 79079.008 | M49: =LOOKUP(M$3, Calculations!$I$4:$QJ$4, Calculations!$I390:$QJ390) -> 77495.65202 | N49: =LOOKUP(N$3, Calculations!$I$4:$QJ$4, Calculations!$I390:$QJ390) -> 75711.48687 | O49: =LOOKUP(O$3, Calculations!$I$4:$QJ$4, Calculations!$I390:$QJ390) -> 36667.18653 | P49: =LOOKUP(P$3, Calculations!$I$4:$QJ$4, Calculations!$I390:$QJ390) -> 71435.62862 | Q49: =LOOKUP(Q$3, Calculations!$I$4:$QJ$4, Calculations!$I390:$QJ390) -> 68882.90082 | R49: =LOOKUP(R$3, Calculations!$I$4:$QJ$4, Calculations!$I390:$QJ390) -> 66006.42324 | S49: =LOOKUP(S$3, Calculations!$I$4:$QJ$4, Calculations!$I390:$QJ390) -> 31226.43598 | T49: =LOOKUP(T$3, Calculations!$I$4:$QJ$4, Calculations!$I390:$QJ390) -> 59112.77307 | U49: =LOOKUP(U$3, Calculations!$I$4:$QJ$4, Calculations!$I390:$QJ390) -> 54997.19874 | V49: =LOOKUP(V$3, Calculations!$I$4:$QJ$4, Calculations!$I390:$QJ390) -> 50359.66658 | W49: =LOOKUP(W$3, Calculations!$I$4:$QJ$4, Calculations!$I390:$QJ390) -> 22454.71605 | X49: =LOOKUP(X$3, Calculations!$I$4:$QJ$4, Calculations!$I390:$QJ390) -> 39245.54399 | Y49: =LOOKUP(Y$3, Calculations!$I$4:$QJ$4, Calculations!$I390:$QJ390) -> 32610.30774 | Z49: =LOOKUP(Z$3, Calculations!$I$4:$QJ$4, Calculations!$I390:$QJ390) -> 25133.55745 | AA49: =LOOKUP(AA$3, Calculations!$I$4:$QJ$4, Calculations!$I390:$QJ390) -> 8312.720437 | AB49: =LOOKUP(AB$3, Calculations!$I$4:$QJ$4, Calculations!$I390:$QJ390) -> 7215.079178 | AC49: =LOOKUP(AC$3, Calculations!$I$4:$QJ$4, Calculations!$I390:$QJ390) -> -3482.421739 | AD49: =LOOKUP(AD$3, Calculations!$I$4:$QJ$4, Calculations!$I390:$QJ390) -> -15536.63353 | AE49: =LOOKUP(AE$3, Calculations!$I$4:$QJ$4, Calculations!$I390:$QJ390) -> -14487.37368 | AF49: =LOOKUP(AF$3, Calculations!$I$4:$QJ$4, Calculations!$I390:$QJ390) -> -44425.27147 | AG49: =LOOKUP(AG$3, Calculations!$I$4:$QJ$4, Calculations!$I390:$QJ390) -> -61672.06141 | AH49: =LOOKUP(AH$3, Calculations!$I$4:$QJ$4, Calculations!$I390:$QJ390) -> 0 | AI49: =LOOKUP(AI$3, Calculations!$I$4:$QJ$4, Calculations!$I390:$QJ390) -> 0 | AJ49: =LOOKUP(AJ$3, Calculations!$I$4:$QJ$4, Calculations!$I390:$QJ390) -> 0
C50: =Calculations!C391 -> Accrued Interest: Senior Debt | F50: =Calculations!E391 -> EUR | I50: =LOOKUP(I$3, Calculations!$I$4:$QJ$4, Calculations!$I391:$QJ391) -> 0 | J50: =LOOKUP(J$3, Calculations!$I$4:$QJ$4, Calculations!$I391:$QJ391) -> 0 | K50: =LOOKUP(K$3, Calculations!$I$4:$QJ$4, Calculations!$I391:$QJ391) -> 36707.09689 | L50: =LOOKUP(L$3, Calculations!$I$4:$QJ$4, Calculations!$I391:$QJ391) -> 70994.7902 | M50: =LOOKUP(M$3, Calculations!$I$4:$QJ$4, Calculations!$I391:$QJ391) -> 68261.18229 | N50: =LOOKUP(N$3, Calculations!$I$4:$QJ$4, Calculations!$I391:$QJ391) -> 65373.3774 | O50: =LOOKUP(O$3, Calculations!$I$4:$QJ$4, Calculations!$I391:$QJ391) -> 31090.09068 | P50: =LOOKUP(P$3, Calculations!$I$4:$QJ$4, Calculations!$I391:$QJ391) -> 59099.89438 | Q50: =LOOKUP(Q$3, Calculations!$I$4:$QJ$4, Calculations!$I391:$QJ391) -> 55695.32084 | R50: =LOOKUP(R$3, Calculations!$I$4:$QJ$4, Calculations!$I391:$QJ391) -> 52098.70259 | S50: =LOOKUP(S$3, Calculations!$I$4:$QJ$4, Calculations!$I391:$QJ391) -> 24094.3871 | T50: =LOOKUP(T$3, Calculations!$I$4:$QJ$4, Calculations!$I391:$QJ391) -> 44285.38959 | U50: =LOOKUP(U$3, Calculations!$I$4:$QJ$4, Calculations!$I391:$QJ391) -> 40045.16153 | V50: =LOOKUP(V$3, Calculations!$I$4:$QJ$4, Calculations!$I391:$QJ391) -> 35565.75128 | W50: =LOOKUP(W$3, Calculations!$I$4:$QJ$4, Calculations!$I391:$QJ391) -> 15381.58408 | X50: =LOOKUP(X$3, Calculations!$I$4:$QJ$4, Calculations!$I391:$QJ391) -> 25834.65615 | Y50: =LOOKUP(Y$3, Calculations!$I$4:$QJ$4, Calculations!$I391:$QJ391) -> 20553.66169 | Z50: =LOOKUP(Z$3, Calculations!$I$4:$QJ$4, Calculations!$I391:$QJ391) -> 14974.77764 | AA50: =LOOKUP(AA$3, Calculations!$I$4:$QJ$4, Calculations!$I391:$QJ391) -> 4530.218588 | AB50: =LOOKUP(AB$3, Calculations!$I$4:$QJ$4, Calculations!$I391:$QJ391) -> 2855.179649 | AC50: =LOOKUP(AC$3, Calculations!$I$4:$QJ$4, Calculations!$I391:$QJ391) -> 0 | AD50: =LOOKUP(AD$3, Calculations!$I$4:$QJ$4, Calculations!$I391:$QJ391) -> 0 | AE50: =LOOKUP(AE$3, Calculations!$I$4:$QJ$4, Calculations!$I391:$QJ391) -> 0 | AF50: =LOOKUP(AF$3, Calculations!$I$4:$QJ$4, Calculations!$I391:$QJ391) -> 0 | AG50: =LOOKUP(AG$3, Calculations!$I$4:$QJ$4, Calculations!$I391:$QJ391) -> 0 | AH50: =LOOKUP(AH$3, Calculations!$I$4:$QJ$4, Calculations!$I391:$QJ391) -> 0 | AI50: =LOOKUP(AI$3, Calculations!$I$4:$QJ$4, Calculations!$I391:$QJ391) -> 0 | AJ50: =LOOKUP(AJ$3, Calculations!$I$4:$QJ$4, Calculations!$I391:$QJ391) -> 0
C51: =Calculations!C392 -> Income Tax Payable | F51: =Calculations!E392 -> EUR | I51: =LOOKUP(I$3, Calculations!$I$4:$QJ$4, Calculations!$I392:$QJ392) -> 0 | J51: =LOOKUP(J$3, Calculations!$I$4:$QJ$4, Calculations!$I392:$QJ392) -> 0 | K51: =LOOKUP(K$3, Calculations!$I$4:$QJ$4, Calculations!$I392:$QJ392) -> 0 | L51: =LOOKUP(L$3, Calculations!$I$4:$QJ$4, Calculations!$I392:$QJ392) -> 0 | M51: =LOOKUP(M$3, Calculations!$I$4:$QJ$4, Calculations!$I392:$QJ392) -> 0 | N51: =LOOKUP(N$3, Calculations!$I$4:$QJ$4, Calculations!$I392:$QJ392) -> 0 | O51: =LOOKUP(O$3, Calculations!$I$4:$QJ$4, Calculations!$I392:$QJ392) -> 0 | P51: =LOOKUP(P$3, Calculations!$I$4:$QJ$4, Calculations!$I392:$QJ392) -> 0 | Q51: =LOOKUP(Q$3, Calculations!$I$4:$QJ$4, Calculations!$I392:$QJ392) -> 0 | R51: =LOOKUP(R$3, Calculations!$I$4:$QJ$4, Calculations!$I392:$QJ392) -> 0 | S51: =LOOKUP(S$3, Calculations!$I$4:$QJ$4, Calculations!$I392:$QJ392) -> 0 | T51: =LOOKUP(T$3, Calculations!$I$4:$QJ$4, Calculations!$I392:$QJ392) -> 0 | U51: =LOOKUP(U$3, Calculations!$I$4:$QJ$4, Calculations!$I392:$QJ392) -> 0 | V51: =LOOKUP(V$3, Calculations!$I$4:$QJ$4, Calculations!$I392:$QJ392) -> 0 | W51: =LOOKUP(W$3, Calculations!$I$4:$QJ$4, Calculations!$I392:$QJ392) -> 0 | X51: =LOOKUP(X$3, Calculations!$I$4:$QJ$4, Calculations!$I392:$QJ392) -> 0 | Y51: =LOOKUP(Y$3, Calculations!$I$4:$QJ$4, Calculations!$I392:$QJ392) -> 0 | Z51: =LOOKUP(Z$3, Calculations!$I$4:$QJ$4, Calculations!$I392:$QJ392) -> 0 | AA51: =LOOKUP(AA$3, Calculations!$I$4:$QJ$4, Calculations!$I392:$QJ392) -> 0 | AB51: =LOOKUP(AB$3, Calculations!$I$4:$QJ$4, Calculations!$I392:$QJ392) -> 0 | AC51: =LOOKUP(AC$3, Calculations!$I$4:$QJ$4, Calculations!$I392:$QJ392) -> 0 | AD51: =LOOKUP(AD$3, Calculations!$I$4:$QJ$4, Calculations!$I392:$QJ392) -> 910.4626427 | AE51: =LOOKUP(AE$3, Calculations!$I$4:$QJ$4, Calculations!$I392:$QJ392) -> 9261.956289 | AF51: =LOOKUP(AF$3, Calculations!$I$4:$QJ$4, Calculations!$I392:$QJ392) -> 3030.040925 | AG51: =LOOKUP(AG$3, Calculations!$I$4:$QJ$4, Calculations!$I392:$QJ392) -> 4326.510287 | AH51: =LOOKUP(AH$3, Calculations!$I$4:$QJ$4, Calculations!$I392:$QJ392) -> 0 | AI51: =LOOKUP(AI$3, Calculations!$I$4:$QJ$4, Calculations!$I392:$QJ392) -> 5903.014697 | AJ51: =LOOKUP(AJ$3, Calculations!$I$4:$QJ$4, Calculations!$I392:$QJ392) -> 0
C52: =Calculations!C393 -> Current Portion of Subordinated Debt | F52: =Calculations!E393 -> EUR | I52: =LOOKUP(I$3, Calculations!$I$4:$QJ$4, Calculations!$I393:$QJ393) -> 0 | J52: =LOOKUP(J$3, Calculations!$I$4:$QJ$4, Calculations!$I393:$QJ393) -> 0 | K52: =LOOKUP(K$3, Calculations!$I$4:$QJ$4, Calculations!$I393:$QJ393) -> 69907.86248 | L52: =LOOKUP(L$3, Calculations!$I$4:$QJ$4, Calculations!$I393:$QJ393) -> 78773.92925 | M52: =LOOKUP(M$3, Calculations!$I$4:$QJ$4, Calculations!$I393:$QJ393) -> 88764.4352 | N52: =LOOKUP(N$3, Calculations!$I$4:$QJ$4, Calculations!$I393:$QJ393) -> 100021.9874 | O52: =LOOKUP(O$3, Calculations!$I$4:$QJ$4, Calculations!$I393:$QJ393) -> 112707.2789 | P52: =LOOKUP(P$3, Calculations!$I$4:$QJ$4, Calculations!$I393:$QJ393) -> 127001.383 | Q52: =LOOKUP(Q$3, Calculations!$I$4:$QJ$4, Calculations!$I393:$QJ393) -> 143108.3372 | R52: =LOOKUP(R$3, Calculations!$I$4:$QJ$4, Calculations!$I393:$QJ393) -> 161258.0564 | S52: =LOOKUP(S$3, Calculations!$I$4:$QJ$4, Calculations!$I393:$QJ393) -> 181709.6142 | T52: =LOOKUP(T$3, Calculations!$I$4:$QJ$4, Calculations!$I393:$QJ393) -> 204754.9415 | U52: =LOOKUP(U$3, Calculations!$I$4:$QJ$4, Calculations!$I393:$QJ393) -> 230722.9932 | V52: =LOOKUP(V$3, Calculations!$I$4:$QJ$4, Calculations!$I393:$QJ393) -> 259984.4437 | W52: =LOOKUP(W$3, Calculations!$I$4:$QJ$4, Calculations!$I393:$QJ393) -> 292956.9786 | X52: =LOOKUP(X$3, Calculations!$I$4:$QJ$4, Calculations!$I393:$QJ393) -> 330111.2563 | Y52: =LOOKUP(Y$3, Calculations!$I$4:$QJ$4, Calculations!$I393:$QJ393) -> 371977.6263 | Z52: =LOOKUP(Z$3, Calculations!$I$4:$QJ$4, Calculations!$I393:$QJ393) -> 419153.7 | AA52: =LOOKUP(AA$3, Calculations!$I$4:$QJ$4, Calculations!$I393:$QJ393) -> 472312.8806 | AB52: =LOOKUP(AB$3, Calculations!$I$4:$QJ$4, Calculations!$I393:$QJ393) -> 358959.1631 | AC52: =LOOKUP(AC$3, Calculations!$I$4:$QJ$4, Calculations!$I393:$QJ393) -> -173254.8129 | AD52: =LOOKUP(AD$3, Calculations!$I$4:$QJ$4, Calculations!$I393:$QJ393) -> -772966.8423 | AE52: =LOOKUP(AE$3, Calculations!$I$4:$QJ$4, Calculations!$I393:$QJ393) -> -1448737.368 | AF52: =LOOKUP(AF$3, Calculations!$I$4:$QJ$4, Calculations!$I393:$QJ393) -> -2210212.511 | AG52: =LOOKUP(AG$3, Calculations!$I$4:$QJ$4, Calculations!$I393:$QJ393) -> -3068261.762 | AH52: =LOOKUP(AH$3, Calculations!$I$4:$QJ$4, Calculations!$I393:$QJ393) -> 0 | AI52: =LOOKUP(AI$3, Calculations!$I$4:$QJ$4, Calculations!$I393:$QJ393) -> 0 | AJ52: =LOOKUP(AJ$3, Calculations!$I$4:$QJ$4, Calculations!$I393:$QJ393) -> 0
C53: =Calculations!C394 -> Current Portion of Senior Debt | F53: =Calculations!E394 -> EUR | I53: =LOOKUP(I$3, Calculations!$I$4:$QJ$4, Calculations!$I394:$QJ394) -> 175000 | J53: =LOOKUP(J$3, Calculations!$I$4:$QJ$4, Calculations!$I394:$QJ394) -> 31178.86137 | K53: =LOOKUP(K$3, Calculations!$I$4:$QJ$4, Calculations!$I394:$QJ394) -> 281643.0513 | L53: =LOOKUP(L$3, Calculations!$I$4:$QJ$4, Calculations!$I394:$QJ394) -> 297529.9332 | M53: =LOOKUP(M$3, Calculations!$I$4:$QJ$4, Calculations!$I394:$QJ394) -> 314312.9602 | N53: =LOOKUP(N$3, Calculations!$I$4:$QJ$4, Calculations!$I394:$QJ394) -> 332042.6817 | O53: =LOOKUP(O$3, Calculations!$I$4:$QJ$4, Calculations!$I394:$QJ394) -> 350772.499 | P53: =LOOKUP(P$3, Calculations!$I$4:$QJ$4, Calculations!$I394:$QJ394) -> 370558.8251 | Q53: =LOOKUP(Q$3, Calculations!$I$4:$QJ$4, Calculations!$I394:$QJ394) -> 391461.2556 | R53: =LOOKUP(R$3, Calculations!$I$4:$QJ$4, Calculations!$I394:$QJ394) -> 413542.7474 | S53: =LOOKUP(S$3, Calculations!$I$4:$QJ$4, Calculations!$I394:$QJ394) -> 436869.809 | T53: =LOOKUP(T$3, Calculations!$I$4:$QJ$4, Calculations!$I394:$QJ394) -> 461512.7002 | U53: =LOOKUP(U$3, Calculations!$I$4:$QJ$4, Calculations!$I394:$QJ394) -> 487545.6441 | V53: =LOOKUP(V$3, Calculations!$I$4:$QJ$4, Calculations!$I394:$QJ394) -> 515047.0508 | W53: =LOOKUP(W$3, Calculations!$I$4:$QJ$4, Calculations!$I394:$QJ394) -> 544099.7529 | X53: =LOOKUP(X$3, Calculations!$I$4:$QJ$4, Calculations!$I394:$QJ394) -> 574791.2558 | Y53: =LOOKUP(Y$3, Calculations!$I$4:$QJ$4, Calculations!$I394:$QJ394) -> 607214.0007 | Z53: =LOOKUP(Z$3, Calculations!$I$4:$QJ$4, Calculations!$I394:$QJ394) -> 641465.6433 | AA53: =LOOKUP(AA$3, Calculations!$I$4:$QJ$4, Calculations!$I394:$QJ394) -> 677649.3477 | AB53: =LOOKUP(AB$3, Calculations!$I$4:$QJ$4, Calculations!$I394:$QJ394) -> 310761.9806 | AC53: =LOOKUP(AC$3, Calculations!$I$4:$QJ$4, Calculations!$I394:$QJ394) -> 0 | AD53: =LOOKUP(AD$3, Calculations!$I$4:$QJ$4, Calculations!$I394:$QJ394) -> 0 | AE53: =LOOKUP(AE$3, Calculations!$I$4:$QJ$4, Calculations!$I394:$QJ394) -> 0 | AF53: =LOOKUP(AF$3, Calculations!$I$4:$QJ$4, Calculations!$I394:$QJ394) -> 0 | AG53: =LOOKUP(AG$3, Calculations!$I$4:$QJ$4, Calculations!$I394:$QJ394) -> 0 | AH53: =LOOKUP(AH$3, Calculations!$I$4:$QJ$4, Calculations!$I394:$QJ394) -> 0 | AI53: =LOOKUP(AI$3, Calculations!$I$4:$QJ$4, Calculations!$I394:$QJ394) -> 0 | AJ53: =LOOKUP(AJ$3, Calculations!$I$4:$QJ$4, Calculations!$I394:$QJ394) -> 0
C54: =Calculations!C395 -> Total Current Liabilities | F54: =Calculations!E395 -> EUR | I54: =SUM(I48:I53) -> 175000 | J54: =SUM(J48:J53) -> 31178.86137 | K54: 430963.731 | L54: 529108.1086 | M54: 551632.9388 | N54: 576018.2103 | O54: 534177.4489 | P54: 631109.6348 | Q54: 662237.0657 | R54: 696072.4122 | S54: 677145.8909 | T54: 772992.5901 | U54: 816720.953 | V54: 864452.1166 | W54: 878475.616 | X54: 973654.8612 | Y54: 1036119.549 | Z54: 1104585.73 | AA54: 1166759.67 | AB54: 683844.7679 | AC54: -172582.5351 | AD54: -774974.5688 | AE54: -1435805.438 | AF54: -2236824.74 | AG54: =SUM(AG48:AG53) -> -3109502.544 | AH54: 10833.86378 | AI54: 21217.90686 | AJ54: 22232.89603
B56: Non-Current Liabilities
C57: =Calculations!C398 -> Subordinated Debt | F57: =Calculations!E398 -> EUR | I57: =LOOKUP(I$3, Calculations!$I$4:$QJ$4, Calculations!$I398:$QJ398) -> 2010000 | J57: =LOOKUP(J$3, Calculations!$I$4:$QJ$4, Calculations!$I398:$QJ398) -> 4020000 | K57: =LOOKUP(K$3, Calculations!$I$4:$QJ$4, Calculations!$I398:$QJ398) -> 3934279.005 | L57: =LOOKUP(L$3, Calculations!$I$4:$QJ$4, Calculations!$I398:$QJ398) -> 3855505.076 | M57: =LOOKUP(M$3, Calculations!$I$4:$QJ$4, Calculations!$I398:$QJ398) -> 3766740.64 | N57: =LOOKUP(N$3, Calculations!$I$4:$QJ$4, Calculations!$I398:$QJ398) -> 3666718.653 | O57: =LOOKUP(O$3, Calculations!$I$4:$QJ$4, Calculations!$I398:$QJ398) -> 3554011.374 | P57: =LOOKUP(P$3, Calculations!$I$4:$QJ$4, Calculations!$I398:$QJ398) -> 3427009.991 | Q57: =LOOKUP(Q$3, Calculations!$I$4:$QJ$4, Calculations!$I398:$QJ398) -> 3283901.654 | R57: =LOOKUP(R$3, Calculations!$I$4:$QJ$4, Calculations!$I398:$QJ398) -> 3122643.598 | S57: =LOOKUP(S$3, Calculations!$I$4:$QJ$4, Calculations!$I398:$QJ398) -> 2940933.983 | T57: =LOOKUP(T$3, Calculations!$I$4:$QJ$4, Calculations!$I398:$QJ398) -> 2736179.042 | U57: =LOOKUP(U$3, Calculations!$I$4:$QJ$4, Calculations!$I398:$QJ398) -> 2505456.049 | V57: =LOOKUP(V$3, Calculations!$I$4:$QJ$4, Calculations!$I398:$QJ398) -> 2245471.605 | W57: =LOOKUP(W$3, Calculations!$I$4:$QJ$4, Calculations!$I398:$QJ398) -> 1952514.626 | X57: =LOOKUP(X$3, Calculations!$I$4:$QJ$4, Calculations!$I398:$QJ398) -> 1622403.37 | Y57: =LOOKUP(Y$3, Calculations!$I$4:$QJ$4, Calculations!$I398:$QJ398) -> 1250425.744 | Z57: =LOOKUP(Z$3, Calculations!$I$4:$QJ$4, Calculations!$I398:$QJ398) -> 831272.0437 | AA57: =LOOKUP(AA$3, Calculations!$I$4:$QJ$4, Calculations!$I398:$QJ398) -> 358959.1631 | AB57: =LOOKUP(AB$3, Calculations!$I$4:$QJ$4, Calculations!$I398:$QJ398) -> 0 | AC57: =LOOKUP(AC$3, Calculations!$I$4:$QJ$4, Calculations!$I398:$QJ398) -> 0 | AD57: =LOOKUP(AD$3, Calculations!$I$4:$QJ$4, Calculations!$I398:$QJ398) -> 0 | AE57: =LOOKUP(AE$3, Calculations!$I$4:$QJ$4, Calculations!$I398:$QJ398) -> 0 | AF57: =LOOKUP(AF$3, Calculations!$I$4:$QJ$4, Calculations!$I398:$QJ398) -> 0 | AG57: =LOOKUP(AG$3, Calculations!$I$4:$QJ$4, Calculations!$I398:$QJ398) -> 0 | AH57: =LOOKUP(AH$3, Calculations!$I$4:$QJ$4, Calculations!$I398:$QJ398) -> 0 | AI57: =LOOKUP(AI$3, Calculations!$I$4:$QJ$4, Calculations!$I398:$QJ398) -> 0 | AJ57: =LOOKUP(AJ$3, Calculations!$I$4:$QJ$4, Calculations!$I398:$QJ398) -> 0
C58: =Calculations!C399 -> Long-Term Senior Debt | F58: =Calculations!E399 -> EUR | I58: =LOOKUP(I$3, Calculations!$I$4:$QJ$4, Calculations!$I399:$QJ399) -> 0 | J58: =LOOKUP(J$3, Calculations!$I$4:$QJ$4, Calculations!$I399:$QJ399) -> 5118821.139 | K58: =LOOKUP(K$3, Calculations!$I$4:$QJ$4, Calculations!$I399:$QJ399) -> 7727178.087 | L58: =LOOKUP(L$3, Calculations!$I$4:$QJ$4, Calculations!$I399:$QJ399) -> 7429648.154 | M58: =LOOKUP(M$3, Calculations!$I$4:$QJ$4, Calculations!$I399:$QJ399) -> 7115335.194 | N58: =LOOKUP(N$3, Calculations!$I$4:$QJ$4, Calculations!$I399:$QJ399) -> 6783292.512 | O58: =LOOKUP(O$3, Calculations!$I$4:$QJ$4, Calculations!$I399:$QJ399) -> 6432520.013 | P58: =LOOKUP(P$3, Calculations!$I$4:$QJ$4, Calculations!$I399:$QJ399) -> 6061961.188 | Q58: =LOOKUP(Q$3, Calculations!$I$4:$QJ$4, Calculations!$I399:$QJ399) -> 5670499.933 | R58: =LOOKUP(R$3, Calculations!$I$4:$QJ$4, Calculations!$I399:$QJ399) -> 5256957.185 | S58: =LOOKUP(S$3, Calculations!$I$4:$QJ$4, Calculations!$I399:$QJ399) -> 4820087.376 | T58: =LOOKUP(T$3, Calculations!$I$4:$QJ$4, Calculations!$I399:$QJ399) -> 4358574.676 | U58: =LOOKUP(U$3, Calculations!$I$4:$QJ$4, Calculations!$I399:$QJ399) -> 3871029.032 | V58: =LOOKUP(V$3, Calculations!$I$4:$QJ$4, Calculations!$I399:$QJ399) -> 3355981.981 | W58: =LOOKUP(W$3, Calculations!$I$4:$QJ$4, Calculations!$I399:$QJ399) -> 2811882.228 | X58: =LOOKUP(X$3, Calculations!$I$4:$QJ$4, Calculations!$I399:$QJ399) -> 2237090.972 | Y58: =LOOKUP(Y$3, Calculations!$I$4:$QJ$4, Calculations!$I399:$QJ399) -> 1629876.972 | Z58: =LOOKUP(Z$3, Calculations!$I$4:$QJ$4, Calculations!$I399:$QJ399) -> 988411.3284 | AA58: =LOOKUP(AA$3, Calculations!$I$4:$QJ$4, Calculations!$I399:$QJ399) -> 310761.9806 | AB58: =LOOKUP(AB$3, Calculations!$I$4:$QJ$4, Calculations!$I399:$QJ399) -> 0 | AC58: =LOOKUP(AC$3, Calculations!$I$4:$QJ$4, Calculations!$I399:$QJ399) -> 0 | AD58: =LOOKUP(AD$3, Calculations!$I$4:$QJ$4, Calculations!$I399:$QJ399) -> 0 | AE58: =LOOKUP(AE$3, Calculations!$I$4:$QJ$4, Calculations!$I399:$QJ399) -> 0 | AF58: =LOOKUP(AF$3, Calculations!$I$4:$QJ$4, Calculations!$I399:$QJ399) -> 0 | AG58: =LOOKUP(AG$3, Calculations!$I$4:$QJ$4, Calculations!$I399:$QJ399) -> 0 | AH58: =LOOKUP(AH$3, Calculations!$I$4:$QJ$4, Calculations!$I399:$QJ399) -> 0 | AI58: =LOOKUP(AI$3, Calculations!$I$4:$QJ$4, Calculations!$I399:$QJ399) -> 0 | AJ58: =LOOKUP(AJ$3, Calculations!$I$4:$QJ$4, Calculations!$I399:$QJ399) -> 0
C59: =Calculations!C400 -> Total Non-Current Liabilities | F59: =Calculations!E400 -> EUR | I59: =SUM(I57:I58) -> 2010000 | J59: 9138821.139 | K59: 11661457.09 | L59: 11285153.23 | M59: 10882075.83 | N59: 10450011.17 | O59: 9986531.387 | P59: 9488971.179 | Q59: 8954401.587 | R59: 8379600.783 | S59: 7761021.359 | T59: 7094753.718 | U59: 6376485.08 | V59: 5601453.586 | W59: 4764396.854 | X59: 3859494.342 | Y59: 2880302.715 | Z59: 1819683.372 | AA59: 669721.1437 | AB59: 0 | AC59: 0 | AD59: 0 | AE59: 0 | AF59: 0 | AG59: 0 | AH59: 0 | AI59: 0 | AJ59: =SUM(AJ57:AJ58) -> 0
B61: Total Liabilities | F61: =Calculations!E402 -> EUR | I61: =I54+I59 -> 2185000 | J61: 9170000 | K61: 12092420.82 | L61: 11814261.34 | M61: 11433708.77 | N61: 11026029.38 | O61: 10520708.84 | P61: 10120080.81 | Q61: 9616638.652 | R61: 9075673.195 | S61: 8438167.25 | T61: 7867746.308 | U61: 7193206.033 | V61: 6465905.703 | W61: 5642872.47 | X61: 4833149.204 | Y61: 3916422.264 | Z61: 2924269.102 | AA61: 1836480.814 | AB61: 683844.7679 | AC61: -172582.5351 | AD61: -774974.5688 | AE61: -1435805.438 | AF61: -2236824.74 | AG61: -3109502.544 | AH61: 10833.86378 | AI61: 21217.90686 | AJ61: =AJ54+AJ59 -> 22232.89603
B63: Shareholders' Equity
C64: =Calculations!C405 -> Share Capital | F64: =Calculations!E405 -> EUR | I64: =LOOKUP(I$3, Calculations!$I$4:$QJ$4, Calculations!$I405:$QJ405) -> 4020000 | J64: =LOOKUP(J$3, Calculations!$I$4:$QJ$4, Calculations!$I405:$QJ405) -> 4020000 | K64: =LOOKUP(K$3, Calculations!$I$4:$QJ$4, Calculations!$I405:$QJ405) -> 4020000 | L64: =LOOKUP(L$3, Calculations!$I$4:$QJ$4, Calculations!$I405:$QJ405) -> 4020000 | M64: =LOOKUP(M$3, Calculations!$I$4:$QJ$4, Calculations!$I405:$QJ405) -> 4020000 | N64: =LOOKUP(N$3, Calculations!$I$4:$QJ$4, Calculations!$I405:$QJ405) -> 4020000 | O64: =LOOKUP(O$3, Calculations!$I$4:$QJ$4, Calculations!$I405:$QJ405) -> 4020000 | P64: =LOOKUP(P$3, Calculations!$I$4:$QJ$4, Calculations!$I405:$QJ405) -> 4020000 | Q64: =LOOKUP(Q$3, Calculations!$I$4:$QJ$4, Calculations!$I405:$QJ405) -> 4020000 | R64: =LOOKUP(R$3, Calculations!$I$4:$QJ$4, Calculations!$I405:$QJ405) -> 4020000 | S64: =LOOKUP(S$3, Calculations!$I$4:$QJ$4, Calculations!$I405:$QJ405) -> 4020000 | T64: =LOOKUP(T$3, Calculations!$I$4:$QJ$4, Calculations!$I405:$QJ405) -> 4020000 | U64: =LOOKUP(U$3, Calculations!$I$4:$QJ$4, Calculations!$I405:$QJ405) -> 4020000 | V64: =LOOKUP(V$3, Calculations!$I$4:$QJ$4, Calculations!$I405:$QJ405) -> 4020000 | W64: =LOOKUP(W$3, Calculations!$I$4:$QJ$4, Calculations!$I405:$QJ405) -> 4020000 | X64: =LOOKUP(X$3, Calculations!$I$4:$QJ$4, Calculations!$I405:$QJ405) -> 4020000 | Y64: =LOOKUP(Y$3, Calculations!$I$4:$QJ$4, Calculations!$I405:$QJ405) -> 4020000 | Z64: =LOOKUP(Z$3, Calculations!$I$4:$QJ$4, Calculations!$I405:$QJ405) -> 4020000 | AA64: =LOOKUP(AA$3, Calculations!$I$4:$QJ$4, Calculations!$I405:$QJ405) -> 4020000 | AB64: =LOOKUP(AB$3, Calculations!$I$4:$QJ$4, Calculations!$I405:$QJ405) -> 4020000 | AC64: =LOOKUP(AC$3, Calculations!$I$4:$QJ$4, Calculations!$I405:$QJ405) -> 4020000 | AD64: =LOOKUP(AD$3, Calculations!$I$4:$QJ$4, Calculations!$I405:$QJ405) -> 4020000 | AE64: =LOOKUP(AE$3, Calculations!$I$4:$QJ$4, Calculations!$I405:$QJ405) -> 4020000 | AF64: =LOOKUP(AF$3, Calculations!$I$4:$QJ$4, Calculations!$I405:$QJ405) -> 4020000 | AG64: =LOOKUP(AG$3, Calculations!$I$4:$QJ$4, Calculations!$I405:$QJ405) -> 4020000 | AH64: =LOOKUP(AH$3, Calculations!$I$4:$QJ$4, Calculations!$I405:$QJ405) -> 4020000 | AI64: =LOOKUP(AI$3, Calculations!$I$4:$QJ$4, Calculations!$I405:$QJ405) -> 4020000 | AJ64: =LOOKUP(AJ$3, Calculations!$I$4:$QJ$4, Calculations!$I405:$QJ405) -> 4020000
C65: =Calculations!C406 -> Retained Earnings | F65: =Calculations!E406 -> EUR | I65: =LOOKUP(I$3, Calculations!$I$4:$QJ$4, Calculations!$I406:$QJ406) -> 0 | J65: =LOOKUP(J$3, Calculations!$I$4:$QJ$4, Calculations!$I406:$QJ406) -> 0 | K65: =LOOKUP(K$3, Calculations!$I$4:$QJ$4, Calculations!$I406:$QJ406) -> -57768 | L65: =LOOKUP(L$3, Calculations!$I$4:$QJ$4, Calculations!$I406:$QJ406) -> -542733 | M65: =LOOKUP(M$3, Calculations!$I$4:$QJ$4, Calculations!$I406:$QJ406) -> -908085 | N65: =LOOKUP(N$3, Calculations!$I$4:$QJ$4, Calculations!$I406:$QJ406) -> -1255015 | O65: =LOOKUP(O$3, Calculations!$I$4:$QJ$4, Calculations!$I406:$QJ406) -> -1481388 | P65: =LOOKUP(P$3, Calculations!$I$4:$QJ$4, Calculations!$I406:$QJ406) -> -1880151 | Q65: =LOOKUP(Q$3, Calculations!$I$4:$QJ$4, Calculations!$I406:$QJ406) -> -2138828 | R65: =LOOKUP(R$3, Calculations!$I$4:$QJ$4, Calculations!$I406:$QJ406) -> -2160221 | S65: =LOOKUP(S$3, Calculations!$I$4:$QJ$4, Calculations!$I406:$QJ406) -> -1884973 | T65: =LOOKUP(T$3, Calculations!$I$4:$QJ$4, Calculations!$I406:$QJ406) -> -1700061 | U65: =LOOKUP(U$3, Calculations!$I$4:$QJ$4, Calculations!$I406:$QJ406) -> -1444559 | V65: =LOOKUP(V$3, Calculations!$I$4:$QJ$4, Calculations!$I406:$QJ406) -> -1172409 | W65: =LOOKUP(W$3, Calculations!$I$4:$QJ$4, Calculations!$I406:$QJ406) -> -817184 | X65: =LOOKUP(X$3, Calculations!$I$4:$QJ$4, Calculations!$I406:$QJ406) -> -403054 | Y65: =LOOKUP(Y$3, Calculations!$I$4:$QJ$4, Calculations!$I406:$QJ406) -> 101317 | Z65: =LOOKUP(Z$3, Calculations!$I$4:$QJ$4, Calculations!$I406:$QJ406) -> 653121 | AA65: =LOOKUP(AA$3, Calculations!$I$4:$QJ$4, Calculations!$I406:$QJ406) -> 1278373 | AB65: =LOOKUP(AB$3, Calculations!$I$4:$QJ$4, Calculations!$I406:$QJ406) -> 1922579 | AC65: =LOOKUP(AC$3, Calculations!$I$4:$QJ$4, Calculations!$I406:$QJ406) -> 2682833 | AD65: =LOOKUP(AD$3, Calculations!$I$4:$QJ$4, Calculations!$I406:$QJ406) -> 3491799 | AE65: =LOOKUP(AE$3, Calculations!$I$4:$QJ$4, Calculations!$I406:$QJ406) -> 4345349 | AF65: =LOOKUP(AF$3, Calculations!$I$4:$QJ$4, Calculations!$I406:$QJ406) -> 5259591 | AG65: =LOOKUP(AG$3, Calculations!$I$4:$QJ$4, Calculations!$I406:$QJ406) -> 6235931 | AH65: =LOOKUP(AH$3, Calculations!$I$4:$QJ$4, Calculations!$I406:$QJ406) -> 7035318 | AI65: =LOOKUP(AI$3, Calculations!$I$4:$QJ$4, Calculations!$I406:$QJ406) -> 7720827 | AJ65: =LOOKUP(AJ$3, Calculations!$I$4:$QJ$4, Calculations!$I406:$QJ406) -> 7088176
C66: =Calculations!C407 -> Rounding | F66: =Calculations!E407 -> 0 | I66: =LOOKUP(I$3, Calculations!$I$4:$QJ$4, Calculations!$I407:$QJ407) -> 0 | J66: =LOOKUP(J$3, Calculations!$I$4:$QJ$4, Calculations!$I407:$QJ407) -> 0 | K66: =LOOKUP(K$3, Calculations!$I$4:$QJ$4, Calculations!$I407:$QJ407) -> 0.3961579092 | L66: =LOOKUP(L$3, Calculations!$I$4:$QJ$4, Calculations!$I407:$QJ407) -> -0.2607381418 | M66: =LOOKUP(M$3, Calculations!$I$4:$QJ$4, Calculations!$I407:$QJ407) -> -0.004492279142 | N66: =LOOKUP(N$3, Calculations!$I$4:$QJ$4, Calculations!$I407:$QJ407) -> 0.1759285703 | O66: =LOOKUP(O$3, Calculations!$I$4:$QJ$4, Calculations!$I407:$QJ407) -> -0.6041964572 | P66: =LOOKUP(P$3, Calculations!$I$4:$QJ$4, Calculations!$I407:$QJ407) -> -0.06879883818 | Q66: =LOOKUP(Q$3, Calculations!$I$4:$QJ$4, Calculations!$I407:$QJ407) -> 1.338763671 | R66: =LOOKUP(R$3, Calculations!$I$4:$QJ$4, Calculations!$I407:$QJ407) -> -0.674503373 | S66: =LOOKUP(S$3, Calculations!$I$4:$QJ$4, Calculations!$I407:$QJ407) -> -0.7455939539 | T66: =LOOKUP(T$3, Calculations!$I$4:$QJ$4, Calculations!$I407:$QJ407) -> 0.3178565623 | U66: =LOOKUP(U$3, Calculations!$I$4:$QJ$4, Calculations!$I407:$QJ407) -> 0.1326306844 | V66: =LOOKUP(V$3, Calculations!$I$4:$QJ$4, Calculations!$I407:$QJ407) -> -0.2528031329 | W66: =LOOKUP(W$3, Calculations!$I$4:$QJ$4, Calculations!$I407:$QJ407) -> -0.3408209477 | X66: =LOOKUP(X$3, Calculations!$I$4:$QJ$4, Calculations!$I407:$QJ407) -> -1.235910863 | Y66: =LOOKUP(Y$3, Calculations!$I$4:$QJ$4, Calculations!$I407:$QJ407) -> -0.8466264904 | Z66: =LOOKUP(Z$3, Calculations!$I$4:$QJ$4, Calculations!$I407:$QJ407) -> 0.008068878204 | AA66: =LOOKUP(AA$3, Calculations!$I$4:$QJ$4, Calculations!$I407:$QJ407) -> 0.005044484511 | AB66: =LOOKUP(AB$3, Calculations!$I$4:$QJ$4, Calculations!$I407:$QJ407) -> -0.8374967463 | AC66: =LOOKUP(AC$3, Calculations!$I$4:$QJ$4, Calculations!$I407:$QJ407) -> 310762.4767 | AD66: =LOOKUP(AD$3, Calculations!$I$4:$QJ$4, Calculations!$I407:$QJ407) -> 310762.5946 | AE66: =LOOKUP(AE$3, Calculations!$I$4:$QJ$4, Calculations!$I407:$QJ407) -> 310762.61 | AF66: =LOOKUP(AF$3, Calculations!$I$4:$QJ$4, Calculations!$I407:$QJ407) -> 310762.6817 | AG66: =LOOKUP(AG$3, Calculations!$I$4:$QJ$4, Calculations!$I407:$QJ407) -> 310763.5749 | AH66: =LOOKUP(AH$3, Calculations!$I$4:$QJ$4, Calculations!$I407:$QJ407) -> 310764.0656 | AI66: =LOOKUP(AI$3, Calculations!$I$4:$QJ$4, Calculations!$I407:$QJ407) -> 310764.5718 | AJ66: =LOOKUP(AJ$3, Calculations!$I$4:$QJ$4, Calculations!$I407:$QJ407) -> 310765.3015
C67: =Calculations!C408 -> Total Shareholders' Equity | F67: =Calculations!E408 -> EUR | I67: =LOOKUP(I$3, Calculations!$I$4:$QJ$4, Calculations!$I408:$QJ408) -> 4020000 | J67: =LOOKUP(J$3, Calculations!$I$4:$QJ$4, Calculations!$I408:$QJ408) -> 4020000 | K67: =LOOKUP(K$3, Calculations!$I$4:$QJ$4, Calculations!$I408:$QJ408) -> 3962232.396 | L67: =LOOKUP(L$3, Calculations!$I$4:$QJ$4, Calculations!$I408:$QJ408) -> 3477266.739 | M67: =LOOKUP(M$3, Calculations!$I$4:$QJ$4, Calculations!$I408:$QJ408) -> 3111914.996 | N67: =LOOKUP(N$3, Calculations!$I$4:$QJ$4, Calculations!$I408:$QJ408) -> 2764985.176 | O67: =LOOKUP(O$3, Calculations!$I$4:$QJ$4, Calculations!$I408:$QJ408) -> 2538611.396 | P67: =LOOKUP(P$3, Calculations!$I$4:$QJ$4, Calculations!$I408:$QJ408) -> 2139848.931 | Q67: =LOOKUP(Q$3, Calculations!$I$4:$QJ$4, Calculations!$I408:$QJ408) -> 1881173.339 | R67: =LOOKUP(R$3, Calculations!$I$4:$QJ$4, Calculations!$I408:$QJ408) -> 1859778.325 | S67: =LOOKUP(S$3, Calculations!$I$4:$QJ$4, Calculations!$I408:$QJ408) -> 2135026.254 | T67: =LOOKUP(T$3, Calculations!$I$4:$QJ$4, Calculations!$I408:$QJ408) -> 2319939.318 | U67: =LOOKUP(U$3, Calculations!$I$4:$QJ$4, Calculations!$I408:$QJ408) -> 2575441.133 | V67: =LOOKUP(V$3, Calculations!$I$4:$QJ$4, Calculations!$I408:$QJ408) -> 2847590.747 | W67: =LOOKUP(W$3, Calculations!$I$4:$QJ$4, Calculations!$I408:$QJ408) -> 3202815.659 | X67: =LOOKUP(X$3, Calculations!$I$4:$QJ$4, Calculations!$I408:$QJ408) -> 3616944.764 | Y67: =LOOKUP(Y$3, Calculations!$I$4:$QJ$4, Calculations!$I408:$QJ408) -> 4121316.153 | Z67: =LOOKUP(Z$3, Calculations!$I$4:$QJ$4, Calculations!$I408:$QJ408) -> 4673121.008 | AA67: =LOOKUP(AA$3, Calculations!$I$4:$QJ$4, Calculations!$I408:$QJ408) -> 5298373.005 | AB67: =LOOKUP(AB$3, Calculations!$I$4:$QJ$4, Calculations!$I408:$QJ408) -> 5942578.163 | AC67: =LOOKUP(AC$3, Calculations!$I$4:$QJ$4, Calculations!$I408:$QJ408) -> 7013595.477 | AD67: =LOOKUP(AD$3, Calculations!$I$4:$QJ$4, Calculations!$I408:$QJ408) -> 7822561.595 | AE67: =LOOKUP(AE$3, Calculations!$I$4:$QJ$4, Calculations!$I408:$QJ408) -> 8676111.61 | AF67: =LOOKUP(AF$3, Calculations!$I$4:$QJ$4, Calculations!$I408:$QJ408) -> 9590353.682 | AG67: =LOOKUP(AG$3, Calculations!$I$4:$QJ$4, Calculations!$I408:$QJ408) -> 10566694.57 | AH67: =LOOKUP(AH$3, Calculations!$I$4:$QJ$4, Calculations!$I408:$QJ408) -> 11366082.07 | AI67: =LOOKUP(AI$3, Calculations!$I$4:$QJ$4, Calculations!$I408:$QJ408) -> 12051591.57 | AJ67: =LOOKUP(AJ$3, Calculations!$I$4:$QJ$4, Calculations!$I408:$QJ408) -> 11418941.3
B69: Total Liabilities & Shareholders' Equity | F69: =Calculations!E410 -> EUR | I69: =I61+I67 -> 6205000 | J69: =J61+J67 -> 13190000 | K69: 16054653.22 | L69: 15291528.08 | M69: 14545623.77 | N69: 13791014.55 | O69: 13059320.23 | P69: 12259929.75 | Q69: 11497811.99 | R69: 10935451.52 | S69: 10573193.5 | T69: 10187685.63 | U69: 9768647.166 | V69: 9313496.45 | W69: 8845688.13 | X69: 8450093.968 | Y69: 8037738.418 | Z69: 7597390.11 | AA69: 7134853.819 | AB69: 6626422.93 | AC69: 6841012.942 | AD69: 7047587.026 | AE69: 7240306.172 | AF69: 7353528.942 | AG69: =AG61+AG67 -> 7457192.031 | AH69: 11376915.93 | AI69: 12072809.48 | AJ69: 11441174.2
M70: =M45-M69 -> 0 | N70: =N45-N69 -> 0 | O70: =O45-O69 -> 0 | P70: 0 | Q70: 0 | R70: 0 | S70: 0 | T70: 0 | U70: 0 | V70: 0
C71: Balance Check | F71: Check | H71: =IF(COUNTIF(I71:AT71, "NO")>0, "NO", "OK") -> OK | I71: =IF(ROUND(I45-I69, 0)=0, "OK", "NO") -> OK | J71: =IF(ROUND(J45-J69, 0)=0, "OK", "NO") -> OK | K71: OK | L71: OK | M71: OK | N71: OK | O71: OK | P71: OK | Q71: OK | R71: OK | S71: OK | T71: OK | U71: OK | V71: OK | W71: OK | X71: OK | Y71: OK | Z71: OK | AA71: OK | AB71: OK | AC71: OK | AD71: OK | AE71: OK | AF71: OK | AG71: OK | AH71: OK | AI71: OK | AJ71: =IF(ROUND(AJ45-AJ69, 0)=0, "OK", "NO") -> OK
A73: · | B73: Cash Flow Statement | F73: Unit
B75: Operating Activities
C76: =Calculations!C417 -> Net Income | D76: =SUM(K76:AA76)+AB76/2 -> 1590169.071 | E76: =H76-D76 -> 5498010.25 | F76: =Calculations!E417 -> EUR | H76: =SUM(I76:AT76) -> 7088179.321 | I76: =SUMIF(Calculations!$I$8:$QJ$8, I$2, Calculations!$I417:$QJ417) -> 0 | J76: 0 | K76: =SUMIF(Calculations!$I$8:$QJ$8, K$2, Calculations!$I417:$QJ417) -> -167096.8468 | L76: =SUMIF(Calculations!$I$8:$QJ$8, L$2, Calculations!$I417:$QJ417) -> -375636.4139 | M76: =SUMIF(Calculations!$I$8:$QJ$8, M$2, Calculations!$I417:$QJ417) -> -365351.7438 | N76: =SUMIF(Calculations!$I$8:$QJ$8, N$2, Calculations!$I417:$QJ417) -> -346929.8196 | O76: =SUMIF(Calculations!$I$8:$QJ$8, O$2, Calculations!$I417:$QJ417) -> -329866.8145 | P76: =SUMIF(Calculations!$I$8:$QJ$8, P$2, Calculations!$I417:$QJ417) -> -295269.4302 | Q76: =SUMIF(Calculations!$I$8:$QJ$8, Q$2, Calculations!$I417:$QJ417) -> -258675.5924 | R76: =SUMIF(Calculations!$I$8:$QJ$8, R$2, Calculations!$I417:$QJ417) -> -21395.01327 | S76: =SUMIF(Calculations!$I$8:$QJ$8, S$2, Calculations!$I417:$QJ417) -> 217981.8067 | T76: =SUMIF(Calculations!$I$8:$QJ$8, T$2, Calculations!$I417:$QJ417) -> 242179.1857 | U76: =SUMIF(Calculations!$I$8:$QJ$8, U$2, Calculations!$I417:$QJ417) -> 255501.8148 | V76: =SUMIF(Calculations!$I$8:$QJ$8, V$2, Calculations!$I417:$QJ417) -> 272149.6146 | W76: =SUMIF(Calculations!$I$8:$QJ$8, W$2, Calculations!$I417:$QJ417) -> 307038.4625 | X76: =SUMIF(Calculations!$I$8:$QJ$8, X$2, Calculations!$I417:$QJ417) -> 462315.5544 | Y76: =SUMIF(Calculations!$I$8:$QJ$8, Y$2, Calculations!$I417:$QJ417) -> 504371.3893 | Z76: =SUMIF(Calculations!$I$8:$QJ$8, Z$2, Calculations!$I417:$QJ417) -> 551804.8547 | AA76: =SUMIF(Calculations!$I$8:$QJ$8, AA$2, Calculations!$I417:$QJ417) -> 604638.9708 | AB76: =SUMIF(Calculations!$I$8:$QJ$8, AB$2, Calculations!$I417:$QJ417) -> 664818.1837 | AC76: =SUMIF(Calculations!$I$8:$QJ$8, AC$2, Calculations!$I417:$QJ417) -> 760255.3336 | AD76: =SUMIF(Calculations!$I$8:$QJ$8, AD$2, Calculations!$I417:$QJ417) -> 808966.1179 | AE76: =SUMIF(Calculations!$I$8:$QJ$8, AE$2, Calculations!$I417:$QJ417) -> 856031.5577 | AF76: =SUMIF(Calculations!$I$8:$QJ$8, AF$2, Calculations!$I417:$QJ417) -> 911760.5293 | AG76: =SUMIF(Calculations!$I$8:$QJ$8, AG$2, Calculations!$I417:$QJ417) -> 976340.8932 | AH76: =SUMIF(Calculations!$I$8:$QJ$8, AH$2, Calculations!$I417:$QJ417) -> 799387.4906 | AI76: =SUMIF(Calculations!$I$8:$QJ$8, AI$2, Calculations!$I417:$QJ417) -> 672657.7922 | AJ76: =SUMIF(Calculations!$I$8:$QJ$8, AJ$2, Calculations!$I417:$QJ417) -> -619798.5563
C77: =Calculations!C418 -> less: Changes in Net Working Capital | D77: 32105.43149 | E77: -367919.08 | F77: =Calculations!E418 -> EUR | H77: -335813.6485 | I77: =SUMIF(Calculations!$I$8:$QJ$8, I$2, Calculations!$I418:$QJ418) -> -615308.5671 | J77: =SUMIF(Calculations!$I$8:$QJ$8, J$2, Calculations!$I418:$QJ418) -> 405586.9414 | K77: =SUMIF(Calculations!$I$8:$QJ$8, K$2, Calculations!$I418:$QJ418) -> -1799.897074 | L77: =SUMIF(Calculations!$I$8:$QJ$8, L$2, Calculations!$I418:$QJ418) -> 644.6744871 | M77: =SUMIF(Calculations!$I$8:$QJ$8, M$2, Calculations!$I418:$QJ418) -> 2049.488456 | N77: =SUMIF(Calculations!$I$8:$QJ$8, N$2, Calculations!$I418:$QJ418) -> 2282.156835 | O77: =SUMIF(Calculations!$I$8:$QJ$8, O$2, Calculations!$I418:$QJ418) -> 2261.885248 | P77: =SUMIF(Calculations!$I$8:$QJ$8, P$2, Calculations!$I418:$QJ418) -> 2241.876592 | Q77: =SUMIF(Calculations!$I$8:$QJ$8, Q$2, Calculations!$I418:$QJ418) -> 2222.129779 | R77: =SUMIF(Calculations!$I$8:$QJ$8, R$2, Calculations!$I418:$QJ418) -> 2202.643768 | S77: =SUMIF(Calculations!$I$8:$QJ$8, S$2, Calculations!$I418:$QJ418) -> 2183.41757 | T77: =SUMIF(Calculations!$I$8:$QJ$8, T$2, Calculations!$I418:$QJ418) -> 2164.450244 | U77: =SUMIF(Calculations!$I$8:$QJ$8, U$2, Calculations!$I418:$QJ418) -> 2145.740901 | V77: =SUMIF(Calculations!$I$8:$QJ$8, V$2, Calculations!$I418:$QJ418) -> 2127.288702 | W77: =SUMIF(Calculations!$I$8:$QJ$8, W$2, Calculations!$I418:$QJ418) -> 2109.09286 | X77: =SUMIF(Calculations!$I$8:$QJ$8, X$2, Calculations!$I418:$QJ418) -> 2091.15264 | Y77: =SUMIF(Calculations!$I$8:$QJ$8, Y$2, Calculations!$I418:$QJ418) -> 2073.46736 | Z77: =SUMIF(Calculations!$I$8:$QJ$8, Z$2, Calculations!$I418:$QJ418) -> 2056.036391 | AA77: =SUMIF(Calculations!$I$8:$QJ$8, AA$2, Calculations!$I418:$QJ418) -> 2038.859158 | AB77: =SUMIF(Calculations!$I$8:$QJ$8, AB$2, Calculations!$I418:$QJ418) -> 2021.935142 | AC77: =SUMIF(Calculations!$I$8:$QJ$8, AC$2, Calculations!$I418:$QJ418) -> 2005.263877 | AD77: =SUMIF(Calculations!$I$8:$QJ$8, AD$2, Calculations!$I418:$QJ418) -> 11259.18503 | AE77: =SUMIF(Calculations!$I$8:$QJ$8, AE$2, Calculations!$I418:$QJ418) -> 3861.787627 | AF77: =SUMIF(Calculations!$I$8:$QJ$8, AF$2, Calculations!$I418:$QJ418) -> 4136.198762 | AG77: =SUMIF(Calculations!$I$8:$QJ$8, AG$2, Calculations!$I418:$QJ418) -> 4447.48152 | AH77: =SUMIF(Calculations!$I$8:$QJ$8, AH$2, Calculations!$I418:$QJ418) -> -7786.379006 | AI77: =SUMIF(Calculations!$I$8:$QJ$8, AI$2, Calculations!$I418:$QJ418) -> 1680.337235 | AJ77: =SUMIF(Calculations!$I$8:$QJ$8, AJ$2, Calculations!$I418:$QJ418) -> -178812.2969
C78: =Calculations!C419 -> less: Change in Deferred Tax Asset | D78: -314691.9738 | E78: 142562.4087 | F78: =Calculations!E419 -> EUR | H78: -172129.5652 | I78: =SUMIF(Calculations!$I$8:$QJ$8, I$2, Calculations!$I419:$QJ419) -> 0 | J78: 0 | K78: =SUMIF(Calculations!$I$8:$QJ$8, K$2, Calculations!$I419:$QJ419) -> -76315.77884 | L78: =SUMIF(Calculations!$I$8:$QJ$8, L$2, Calculations!$I419:$QJ419) -> -160999.7993 | M78: =SUMIF(Calculations!$I$8:$QJ$8, M$2, Calculations!$I419:$QJ419) -> -158923.087 | N78: =SUMIF(Calculations!$I$8:$QJ$8, N$2, Calculations!$I419:$QJ419) -> -155203.2754 | O78: =SUMIF(Calculations!$I$8:$QJ$8, O$2, Calculations!$I419:$QJ419) -> -151757.8609 | P78: =SUMIF(Calculations!$I$8:$QJ$8, P$2, Calculations!$I419:$QJ419) -> -148012.716 | Q78: =SUMIF(Calculations!$I$8:$QJ$8, Q$2, Calculations!$I419:$QJ419) -> -143864.4411 | R78: =SUMIF(Calculations!$I$8:$QJ$8, R$2, Calculations!$I419:$QJ419) -> -140039.3272 | S78: =SUMIF(Calculations!$I$8:$QJ$8, S$2, Calculations!$I419:$QJ419) -> -135790.9338 | T78: =SUMIF(Calculations!$I$8:$QJ$8, T$2, Calculations!$I419:$QJ419) -> -130904.9246 | U78: =SUMIF(Calculations!$I$8:$QJ$8, U$2, Calculations!$I419:$QJ419) -> 5902.08559 | V78: =SUMIF(Calculations!$I$8:$QJ$8, V$2, Calculations!$I419:$QJ419) -> 143469.3706 | W78: =SUMIF(Calculations!$I$8:$QJ$8, W$2, Calculations!$I419:$QJ419) -> 150514.2342 | X78: =SUMIF(Calculations!$I$8:$QJ$8, X$2, Calculations!$I419:$QJ419) -> 158108.6939 | Y78: =SUMIF(Calculations!$I$8:$QJ$8, Y$2, Calculations!$I419:$QJ419) -> 166600.7375 | Z78: =SUMIF(Calculations!$I$8:$QJ$8, Z$2, Calculations!$I419:$QJ419) -> 176178.6487 | AA78: =SUMIF(Calculations!$I$8:$QJ$8, AA$2, Calculations!$I419:$QJ419) -> 186847.076 | AB78: =SUMIF(Calculations!$I$8:$QJ$8, AB$2, Calculations!$I419:$QJ419) -> 198998.6479 | AC78: =SUMIF(Calculations!$I$8:$QJ$8, AC$2, Calculations!$I419:$QJ419) -> 178263.0209 | AD78: =SUMIF(Calculations!$I$8:$QJ$8, AD$2, Calculations!$I419:$QJ419) -> 36929.629 | AE78: =SUMIF(Calculations!$I$8:$QJ$8, AE$2, Calculations!$I419:$QJ419) -> 0 | AF78: =SUMIF(Calculations!$I$8:$QJ$8, AF$2, Calculations!$I419:$QJ419) -> 0 | AG78: =SUMIF(Calculations!$I$8:$QJ$8, AG$2, Calculations!$I419:$QJ419) -> 0 | AH78: =SUMIF(Calculations!$I$8:$QJ$8, AH$2, Calculations!$I419:$QJ419) -> -1039.168874 | AI78: =SUMIF(Calculations!$I$8:$QJ$8, AI$2, Calculations!$I419:$QJ419) -> -159.4760428 | AJ78: =SUMIF(Calculations!$I$8:$QJ$8, AJ$2, Calculations!$I419:$QJ419) -> -170930.9203
C79: =Calculations!C420 -> add: Depreciation | D79: 12482869.61 | E79: 2566958.212 | F79: =Calculations!E420 -> EUR | H79: 15049827.82 | I79: =SUMIF(Calculations!$I$8:$QJ$8, I$2, Calculations!$I420:$QJ420) -> 0 | J79: =SUMIF(Calculations!$I$8:$QJ$8, J$2, Calculations!$I420:$QJ420) -> 0 | K79: =SUMIF(Calculations!$I$8:$QJ$8, K$2, Calculations!$I420:$QJ420) -> 570727.6983 | L79: =SUMIF(Calculations!$I$8:$QJ$8, L$2, Calculations!$I420:$QJ420) -> 1141455.397 | M79: =SUMIF(Calculations!$I$8:$QJ$8, M$2, Calculations!$I420:$QJ420) -> 1141455.397 | N79: =SUMIF(Calculations!$I$8:$QJ$8, N$2, Calculations!$I420:$QJ420) -> 1141455.397 | O79: =SUMIF(Calculations!$I$8:$QJ$8, O$2, Calculations!$I420:$QJ420) -> 1141455.397 | P79: =SUMIF(Calculations!$I$8:$QJ$8, P$2, Calculations!$I420:$QJ420) -> 1125405.397 | Q79: =SUMIF(Calculations!$I$8:$QJ$8, Q$2, Calculations!$I420:$QJ420) -> 1109355.397 | R79: =SUMIF(Calculations!$I$8:$QJ$8, R$2, Calculations!$I420:$QJ420) -> 891018.2389 | S79: =SUMIF(Calculations!$I$8:$QJ$8, S$2, Calculations!$I420:$QJ420) -> 672681.0811 | T79: =SUMIF(Calculations!$I$8:$QJ$8, T$2, Calculations!$I420:$QJ420) -> 672681.0811 | U79: =SUMIF(Calculations!$I$8:$QJ$8, U$2, Calculations!$I420:$QJ420) -> 555303.2225 | V79: =SUMIF(Calculations!$I$8:$QJ$8, V$2, Calculations!$I420:$QJ420) -> 438365.3638 | W79: =SUMIF(Calculations!$I$8:$QJ$8, W$2, Calculations!$I420:$QJ420) -> 438365.3638 | X79: =SUMIF(Calculations!$I$8:$QJ$8, X$2, Calculations!$I420:$QJ420) -> 320698.9295 | Y79: =SUMIF(Calculations!$I$8:$QJ$8, Y$2, Calculations!$I420:$QJ420) -> 320698.9295 | Z79: =SUMIF(Calculations!$I$8:$QJ$8, Z$2, Calculations!$I420:$QJ420) -> 320698.9295 | AA79: =SUMIF(Calculations!$I$8:$QJ$8, AA$2, Calculations!$I420:$QJ420) -> 320698.9295 | AB79: =SUMIF(Calculations!$I$8:$QJ$8, AB$2, Calculations!$I420:$QJ420) -> 320698.9295 | AC79: =SUMIF(Calculations!$I$8:$QJ$8, AC$2, Calculations!$I420:$QJ420) -> 320881.1663 | AD79: =SUMIF(Calculations!$I$8:$QJ$8, AD$2, Calculations!$I420:$QJ420) -> 320881.1663 | AE79: =SUMIF(Calculations!$I$8:$QJ$8, AE$2, Calculations!$I420:$QJ420) -> 320881.1663 | AF79: =SUMIF(Calculations!$I$8:$QJ$8, AF$2, Calculations!$I420:$QJ420) -> 320881.1663 | AG79: =SUMIF(Calculations!$I$8:$QJ$8, AG$2, Calculations!$I420:$QJ420) -> 320881.1663 | AH79: =SUMIF(Calculations!$I$8:$QJ$8, AH$2, Calculations!$I420:$QJ420) -> 320881.1663 | AI79: =SUMIF(Calculations!$I$8:$QJ$8, AI$2, Calculations!$I420:$QJ420) -> 320881.1663 | AJ79: =SUMIF(Calculations!$I$8:$QJ$8, AJ$2, Calculations!$I420:$QJ420) -> 160440.5832
C80: =Calculations!C421 -> add: Senior Debt Interest Expense | D80: 4648442.38 | E80: 18690.40029 | F80: =Calculations!E421 -> EUR | H80: 4667132.78 | I80: =SUMIF(Calculations!$I$8:$QJ$8, I$2, Calculations!$I421:$QJ421) -> 0 | J80: =SUMIF(Calculations!$I$8:$QJ$8, J$2, Calculations!$I421:$QJ421) -> 0 | K80: =SUMIF(Calculations!$I$8:$QJ$8, K$2, Calculations!$I421:$QJ421) -> 221998.9096 | L80: =SUMIF(Calculations!$I$8:$QJ$8, L$2, Calculations!$I421:$QJ421) -> 434150.6496 | M80: =SUMIF(Calculations!$I$8:$QJ$8, M$2, Calculations!$I421:$QJ421) -> 418117.8042 | N80: =SUMIF(Calculations!$I$8:$QJ$8, N$2, Calculations!$I421:$QJ421) -> 401180.5803 | O80: =SUMIF(Calculations!$I$8:$QJ$8, O$2, Calculations!$I421:$QJ421) -> 383287.9639 | P80: =SUMIF(Calculations!$I$8:$QJ$8, P$2, Calculations!$I421:$QJ421) -> 364386.0632 | Q80: =SUMIF(Calculations!$I$8:$QJ$8, Q$2, Calculations!$I421:$QJ421) -> 344417.9467 | R80: =SUMIF(Calculations!$I$8:$QJ$8, R$2, Calculations!$I421:$QJ421) -> 323323.4715 | S80: =SUMIF(Calculations!$I$8:$QJ$8, S$2, Calculations!$I421:$QJ421) -> 301039.1022 | T80: =SUMIF(Calculations!$I$8:$QJ$8, T$2, Calculations!$I421:$QJ421) -> 277497.7192 | U80: =SUMIF(Calculations!$I$8:$QJ$8, U$2, Calculations!$I421:$QJ421) -> 252628.4171 | V80: =SUMIF(Calculations!$I$8:$QJ$8, V$2, Calculations!$I421:$QJ421) -> 226356.291 | W80: =SUMIF(Calculations!$I$8:$QJ$8, W$2, Calculations!$I421:$QJ421) -> 198602.2104 | X80: =SUMIF(Calculations!$I$8:$QJ$8, X$2, Calculations!$I421:$QJ421) -> 169282.5815 | Y80: =SUMIF(Calculations!$I$8:$QJ$8, Y$2, Calculations!$I421:$QJ421) -> 138309.0951 | Z80: =SUMIF(Calculations!$I$8:$QJ$8, Z$2, Calculations!$I421:$QJ421) -> 105588.4606 | AA80: =SUMIF(Calculations!$I$8:$QJ$8, AA$2, Calculations!$I421:$QJ421) -> 71022.12513 | AB80: =SUMIF(Calculations!$I$8:$QJ$8, AB$2, Calculations!$I421:$QJ421) -> 34505.97662 | AC80: =SUMIF(Calculations!$I$8:$QJ$8, AC$2, Calculations!$I421:$QJ421) -> 1437.411985 | AD80: =SUMIF(Calculations!$I$8:$QJ$8, AD$2, Calculations!$I421:$QJ421) -> 0 | AE80: =SUMIF(Calculations!$I$8:$QJ$8, AE$2, Calculations!$I421:$QJ421) -> 0 | AF80: =SUMIF(Calculations!$I$8:$QJ$8, AF$2, Calculations!$I421:$QJ421) -> 0 | AG80: =SUMIF(Calculations!$I$8:$QJ$8, AG$2, Calculations!$I421:$QJ421) -> 0 | AH80: =SUMIF(Calculations!$I$8:$QJ$8, AH$2, Calculations!$I421:$QJ421) -> 0 | AI80: =SUMIF(Calculations!$I$8:$QJ$8, AI$2, Calculations!$I421:$QJ421) -> 0 | AJ80: =SUMIF(Calculations!$I$8:$QJ$8, AJ$2, Calculations!$I421:$QJ421) -> 0
C81: =Calculations!C422 -> add: Subordinated Debt Interest Expense | D81: 5876312.046 | E81: -831550.5374 | F81: =Calculations!E422 -> EUR | H81: 5044761.508 | I81: =SUMIF(Calculations!$I$8:$QJ$8, I$2, Calculations!$I422:$QJ422) -> 0 | J81: =SUMIF(Calculations!$I$8:$QJ$8, J$2, Calculations!$I422:$QJ422) -> 0 | K81: =SUMIF(Calculations!$I$8:$QJ$8, K$2, Calculations!$I422:$QJ422) -> 243712.2762 | L81: =SUMIF(Calculations!$I$8:$QJ$8, L$2, Calculations!$I422:$QJ422) -> 480819.9208 | M81: =SUMIF(Calculations!$I$8:$QJ$8, M$2, Calculations!$I422:$QJ422) -> 471775.6461 | N81: =SUMIF(Calculations!$I$8:$QJ$8, N$2, Calculations!$I422:$QJ422) -> 461584.3309 | O81: =SUMIF(Calculations!$I$8:$QJ$8, O$2, Calculations!$I422:$QJ422) -> 450100.502 | P81: =SUMIF(Calculations!$I$8:$QJ$8, P$2, Calculations!$I422:$QJ422) -> 437160.236 | Q81: =SUMIF(Calculations!$I$8:$QJ$8, Q$2, Calculations!$I422:$QJ422) -> 422578.8205 | R81: =SUMIF(Calculations!$I$8:$QJ$8, R$2, Calculations!$I422:$QJ422) -> 406148.1165 | S81: =SUMIF(Calculations!$I$8:$QJ$8, S$2, Calculations!$I422:$QJ422) -> 387633.588 | T81: =SUMIF(Calculations!$I$8:$QJ$8, T$2, Calculations!$I422:$QJ422) -> 366770.9538 | U81: =SUMIF(Calculations!$I$8:$QJ$8, U$2, Calculations!$I422:$QJ422) -> 343262.4154 | V81: =SUMIF(Calculations!$I$8:$QJ$8, V$2, Calculations!$I422:$QJ422) -> 316772.4059 | W81: =SUMIF(Calculations!$I$8:$QJ$8, W$2, Calculations!$I422:$QJ422) -> 286922.8002 | X81: =SUMIF(Calculations!$I$8:$QJ$8, X$2, Calculations!$I422:$QJ422) -> 253287.5174 | Y81: =SUMIF(Calculations!$I$8:$QJ$8, Y$2, Calculations!$I422:$QJ422) -> 215386.4387 | Z81: =SUMIF(Calculations!$I$8:$QJ$8, Z$2, Calculations!$I422:$QJ422) -> 172678.5547 | AA81: =SUMIF(Calculations!$I$8:$QJ$8, AA$2, Calculations!$I422:$QJ422) -> 124554.2419 | AB81: =SUMIF(Calculations!$I$8:$QJ$8, AB$2, Calculations!$I422:$QJ422) -> 70326.56177 | AC81: =SUMIF(Calculations!$I$8:$QJ$8, AC$2, Calculations!$I422:$QJ422) -> 9221.45444 | AD81: =SUMIF(Calculations!$I$8:$QJ$8, AD$2, Calculations!$I422:$QJ422) -> -59633.30997 | AE81: =SUMIF(Calculations!$I$8:$QJ$8, AE$2, Calculations!$I422:$QJ422) -> -137220.5819 | AF81: =SUMIF(Calculations!$I$8:$QJ$8, AF$2, Calculations!$I422:$QJ422) -> -224647.862 | AG81: =SUMIF(Calculations!$I$8:$QJ$8, AG$2, Calculations!$I422:$QJ422) -> -323163.1096 | AH81: =SUMIF(Calculations!$I$8:$QJ$8, AH$2, Calculations!$I422:$QJ422) -> -131270.4092 | AI81: =SUMIF(Calculations!$I$8:$QJ$8, AI$2, Calculations!$I422:$QJ422) -> 0 | AJ81: =SUMIF(Calculations!$I$8:$QJ$8, AJ$2, Calculations!$I422:$QJ422) -> 0
C82: =Calculations!C423 -> less: Interest on Reserve Accounts | D82: 0 | E82: 0 | F82: =Calculations!E423 -> EUR | H82: 0 | I82: =SUMIF(Calculations!$I$8:$QJ$8, I$2, Calculations!$I423:$QJ423) -> 0 | J82: =SUMIF(Calculations!$I$8:$QJ$8, J$2, Calculations!$I423:$QJ423) -> 0 | K82: =SUMIF(Calculations!$I$8:$QJ$8, K$2, Calculations!$I423:$QJ423) -> 0 | L82: =SUMIF(Calculations!$I$8:$QJ$8, L$2, Calculations!$I423:$QJ423) -> 0 | M82: =SUMIF(Calculations!$I$8:$QJ$8, M$2, Calculations!$I423:$QJ423) -> 0 | N82: =SUMIF(Calculations!$I$8:$QJ$8, N$2, Calculations!$I423:$QJ423) -> 0 | O82: =SUMIF(Calculations!$I$8:$QJ$8, O$2, Calculations!$I423:$QJ423) -> 0 | P82: =SUMIF(Calculations!$I$8:$QJ$8, P$2, Calculations!$I423:$QJ423) -> 0 | Q82: =SUMIF(Calculations!$I$8:$QJ$8, Q$2, Calculations!$I423:$QJ423) -> 0 | R82: =SUMIF(Calculations!$I$8:$QJ$8, R$2, Calculations!$I423:$QJ423) -> 0 | S82: =SUMIF(Calculations!$I$8:$QJ$8, S$2, Calculations!$I423:$QJ423) -> 0 | T82: =SUMIF(Calculations!$I$8:$QJ$8, T$2, Calculations!$I423:$QJ423) -> 0 | U82: =SUMIF(Calculations!$I$8:$QJ$8, U$2, Calculations!$I423:$QJ423) -> 0 | V82: =SUMIF(Calculations!$I$8:$QJ$8, V$2, Calculations!$I423:$QJ423) -> 0 | W82: =SUMIF(Calculations!$I$8:$QJ$8, W$2, Calculations!$I423:$QJ423) -> 0 | X82: =SUMIF(Calculations!$I$8:$QJ$8, X$2, Calculations!$I423:$QJ423) -> 0 | Y82: =SUMIF(Calculations!$I$8:$QJ$8, Y$2, Calculations!$I423:$QJ423) -> 0 | Z82: =SUMIF(Calculations!$I$8:$QJ$8, Z$2, Calculations!$I423:$QJ423) -> 0 | AA82: =SUMIF(Calculations!$I$8:$QJ$8, AA$2, Calculations!$I423:$QJ423) -> 0 | AB82: =SUMIF(Calculations!$I$8:$QJ$8, AB$2, Calculations!$I423:$QJ423) -> 0 | AC82: =SUMIF(Calculations!$I$8:$QJ$8, AC$2, Calculations!$I423:$QJ423) -> 0 | AD82: =SUMIF(Calculations!$I$8:$QJ$8, AD$2, Calculations!$I423:$QJ423) -> 0 | AE82: =SUMIF(Calculations!$I$8:$QJ$8, AE$2, Calculations!$I423:$QJ423) -> 0 | AF82: =SUMIF(Calculations!$I$8:$QJ$8, AF$2, Calculations!$I423:$QJ423) -> 0 | AG82: =SUMIF(Calculations!$I$8:$QJ$8, AG$2, Calculations!$I423:$QJ423) -> 0 | AH82: =SUMIF(Calculations!$I$8:$QJ$8, AH$2, Calculations!$I423:$QJ423) -> 0 | AI82: =SUMIF(Calculations!$I$8:$QJ$8, AI$2, Calculations!$I423:$QJ423) -> 0 | AJ82: =SUMIF(Calculations!$I$8:$QJ$8, AJ$2, Calculations!$I423:$QJ423) -> 0
C83: =Calculations!C424 -> Cash Flows From Operating Activities | D83: 24315206.57 | E83: 7026751.654 | F83: =Calculations!E424 -> EUR | H83: 31341958.22 | I83: =SUM(I76:I82) -> -615308.5671 | J83: =SUM(J76:J82) -> 405586.9414 | K83: =SUM(K76:K82) -> 791226.3614 | L83: 1520434.428 | M83: 1509123.505 | N83: 1504369.37 | O83: 1495481.072 | P83: 1485911.426 | Q83: 1476034.26 | R83: 1461258.13 | S83: 1445728.062 | T83: 1430388.465 | U83: 1414743.696 | V83: 1399240.335 | W83: 1383552.164 | X83: 1365784.429 | Y83: 1347440.058 | Z83: 1329005.485 | AA83: 1309800.203 | AB83: 1291370.235 | AC83: 1272063.651 | AD83: 1118402.788 | AE83: 1043553.93 | AF83: 1012130.032 | AG83: =SUM(AG76:AG82) -> 978506.4315 | AH83: 980172.6998 | AI83: 995059.8197 | AJ83: -809101.1903
D84: 0 | E84: 0
B85: Investing Activities | D85: 0 | E85: 0
C86: =Calculations!C427 -> Capital Expenditures | D86: -2673018.669 | E86: -15337438.08 | F86: =Calculations!E427 -> EUR | H86: =SUM(I86:AT86) -> -18010456.75 | I86: =SUMIF(Calculations!$I$8:$QJ$8, I$2, Calculations!$I429:$QJ429) -> -5572821.495 | J86: =SUMIF(Calculations!$I$8:$QJ$8, J$2, Calculations!$I429:$QJ429) -> -7385673.056 | K86: =SUMIF(Calculations!$I$8:$QJ$8, K$2, Calculations!$I429:$QJ429) -> -2673018.669 | L86: =SUMIF(Calculations!$I$8:$QJ$8, L$2, Calculations!$I429:$QJ429) -> 0 | M86: =SUMIF(Calculations!$I$8:$QJ$8, M$2, Calculations!$I429:$QJ429) -> 0 | N86: =SUMIF(Calculations!$I$8:$QJ$8, N$2, Calculations!$I429:$QJ429) -> 0 | O86: =SUMIF(Calculations!$I$8:$QJ$8, O$2, Calculations!$I429:$QJ429) -> 0 | P86: =SUMIF(Calculations!$I$8:$QJ$8, P$2, Calculations!$I429:$QJ429) -> 0 | Q86: =SUMIF(Calculations!$I$8:$QJ$8, Q$2, Calculations!$I429:$QJ429) -> 0 | R86: =SUMIF(Calculations!$I$8:$QJ$8, R$2, Calculations!$I429:$QJ429) -> 0 | S86: =SUMIF(Calculations!$I$8:$QJ$8, S$2, Calculations!$I429:$QJ429) -> 0 | T86: =SUMIF(Calculations!$I$8:$QJ$8, T$2, Calculations!$I429:$QJ429) -> 0 | U86: =SUMIF(Calculations!$I$8:$QJ$8, U$2, Calculations!$I429:$QJ429) -> 0 | V86: =SUMIF(Calculations!$I$8:$QJ$8, V$2, Calculations!$I429:$QJ429) -> 0 | W86: =SUMIF(Calculations!$I$8:$QJ$8, W$2, Calculations!$I429:$QJ429) -> 0 | X86: =SUMIF(Calculations!$I$8:$QJ$8, X$2, Calculations!$I429:$QJ429) -> 0 | Y86: =SUMIF(Calculations!$I$8:$QJ$8, Y$2, Calculations!$I429:$QJ429) -> 0 | Z86: =SUMIF(Calculations!$I$8:$QJ$8, Z$2, Calculations!$I429:$QJ429) -> 0 | AA86: =SUMIF(Calculations!$I$8:$QJ$8, AA$2, Calculations!$I429:$QJ429) -> 0 | AB86: =SUMIF(Calculations!$I$8:$QJ$8, AB$2, Calculations!$I429:$QJ429) -> 0 | AC86: =SUMIF(Calculations!$I$8:$QJ$8, AC$2, Calculations!$I429:$QJ429) -> -2378943.532 | AD86: =SUMIF(Calculations!$I$8:$QJ$8, AD$2, Calculations!$I429:$QJ429) -> 0 | AE86: =SUMIF(Calculations!$I$8:$QJ$8, AE$2, Calculations!$I429:$QJ429) -> 0 | AF86: =SUMIF(Calculations!$I$8:$QJ$8, AF$2, Calculations!$I429:$QJ429) -> 0 | AG86: =SUMIF(Calculations!$I$8:$QJ$8, AG$2, Calculations!$I429:$QJ429) -> 0 | AH86: =SUMIF(Calculations!$I$8:$QJ$8, AH$2, Calculations!$I429:$QJ429) -> 0 | AI86: =SUMIF(Calculations!$I$8:$QJ$8, AI$2, Calculations!$I429:$QJ429) -> 0 | AJ86: =SUMIF(Calculations!$I$8:$QJ$8, AJ$2, Calculations!$I429:$QJ429) -> 0
C87: =Calculations!C429 -> Cash Flows From Investing Activities | D87: -2673018.669 | E87: -15337438.08 | F87: =Calculations!E429 -> EUR | H87: =SUM(I87:AT87) -> -18010456.75 | I87: =SUM(I86) -> -5572821.495 | J87: =SUM(J86) -> -7385673.056 | K87: -2673018.669 | L87: 0 | M87: 0 | N87: 0 | O87: 0 | P87: 0 | Q87: 0 | R87: 0 | S87: 0 | T87: 0 | U87: 0 | V87: 0 | W87: 0 | X87: 0 | Y87: 0 | Z87: 0 | AA87: 0 | AB87: 0 | AC87: -2378943.532 | AD87: 0 | AE87: 0 | AF87: 0 | AG87: =SUM(AG86) -> 0 | AH87: 0 | AI87: 0 | AJ87: 0
D88: 0 | E88: 0
B89: Financing Activities | D89: 0 | E89: 0
C90: =Calculations!C432 -> Drawdown of Equity | D90: 0 | E90: 4020000 | F90: =Calculations!E432 -> EUR | H90: =SUM(I90:AT90) -> 4020000 | I90: =SUMIF(Calculations!$I$8:$QJ$8, I$2, Calculations!$I432:$QJ432) -> 4020000 | J90: =SUMIF(Calculations!$I$8:$QJ$8, J$2, Calculations!$I432:$QJ432) -> 0 | K90: =SUMIF(Calculations!$I$8:$QJ$8, K$2, Calculations!$I432:$QJ432) -> 0 | L90: =SUMIF(Calculations!$I$8:$QJ$8, L$2, Calculations!$I432:$QJ432) -> 0 | M90: =SUMIF(Calculations!$I$8:$QJ$8, M$2, Calculations!$I432:$QJ432) -> 0 | N90: =SUMIF(Calculations!$I$8:$QJ$8, N$2, Calculations!$I432:$QJ432) -> 0 | O90: =SUMIF(Calculations!$I$8:$QJ$8, O$2, Calculations!$I432:$QJ432) -> 0 | P90: =SUMIF(Calculations!$I$8:$QJ$8, P$2, Calculations!$I432:$QJ432) -> 0 | Q90: =SUMIF(Calculations!$I$8:$QJ$8, Q$2, Calculations!$I432:$QJ432) -> 0 | R90: =SUMIF(Calculations!$I$8:$QJ$8, R$2, Calculations!$I432:$QJ432) -> 0 | S90: =SUMIF(Calculations!$I$8:$QJ$8, S$2, Calculations!$I432:$QJ432) -> 0 | T90: =SUMIF(Calculations!$I$8:$QJ$8, T$2, Calculations!$I432:$QJ432) -> 0 | U90: =SUMIF(Calculations!$I$8:$QJ$8, U$2, Calculations!$I432:$QJ432) -> 0 | V90: =SUMIF(Calculations!$I$8:$QJ$8, V$2, Calculations!$I432:$QJ432) -> 0 | W90: =SUMIF(Calculations!$I$8:$QJ$8, W$2, Calculations!$I432:$QJ432) -> 0 | X90: =SUMIF(Calculations!$I$8:$QJ$8, X$2, Calculations!$I432:$QJ432) -> 0 | Y90: =SUMIF(Calculations!$I$8:$QJ$8, Y$2, Calculations!$I432:$QJ432) -> 0 | Z90: =SUMIF(Calculations!$I$8:$QJ$8, Z$2, Calculations!$I432:$QJ432) -> 0 | AA90: =SUMIF(Calculations!$I$8:$QJ$8, AA$2, Calculations!$I432:$QJ432) -> 0 | AB90: =SUMIF(Calculations!$I$8:$QJ$8, AB$2, Calculations!$I432:$QJ432) -> 0 | AC90: =SUMIF(Calculations!$I$8:$QJ$8, AC$2, Calculations!$I432:$QJ432) -> 0 | AD90: =SUMIF(Calculations!$I$8:$QJ$8, AD$2, Calculations!$I432:$QJ432) -> 0 | AE90: =SUMIF(Calculations!$I$8:$QJ$8, AE$2, Calculations!$I432:$QJ432) -> 0 | AF90: =SUMIF(Calculations!$I$8:$QJ$8, AF$2, Calculations!$I432:$QJ432) -> 0 | AG90: =SUMIF(Calculations!$I$8:$QJ$8, AG$2, Calculations!$I432:$QJ432) -> 0 | AH90: =SUMIF(Calculations!$I$8:$QJ$8, AH$2, Calculations!$I432:$QJ432) -> 0 | AI90: =SUMIF(Calculations!$I$8:$QJ$8, AI$2, Calculations!$I432:$QJ432) -> 0 | AJ90: =SUMIF(Calculations!$I$8:$QJ$8, AJ$2, Calculations!$I432:$QJ432) -> 0
C91: =Calculations!C433 -> Drawdown of Subordinated Debt | D91: 0 | E91: 4020000 | F91: =Calculations!E433 -> EUR | H91: 4020000 | I91: =SUMIF(Calculations!$I$8:$QJ$8, I$2, Calculations!$I433:$QJ433) -> 2010000 | J91: =SUMIF(Calculations!$I$8:$QJ$8, J$2, Calculations!$I433:$QJ433) -> 2010000 | K91: =SUMIF(Calculations!$I$8:$QJ$8, K$2, Calculations!$I433:$QJ433) -> 0 | L91: =SUMIF(Calculations!$I$8:$QJ$8, L$2, Calculations!$I433:$QJ433) -> 0 | M91: =SUMIF(Calculations!$I$8:$QJ$8, M$2, Calculations!$I433:$QJ433) -> 0 | N91: =SUMIF(Calculations!$I$8:$QJ$8, N$2, Calculations!$I433:$QJ433) -> 0 | O91: =SUMIF(Calculations!$I$8:$QJ$8, O$2, Calculations!$I433:$QJ433) -> 0 | P91: =SUMIF(Calculations!$I$8:$QJ$8, P$2, Calculations!$I433:$QJ433) -> 0 | Q91: =SUMIF(Calculations!$I$8:$QJ$8, Q$2, Calculations!$I433:$QJ433) -> 0 | R91: =SUMIF(Calculations!$I$8:$QJ$8, R$2, Calculations!$I433:$QJ433) -> 0 | S91: =SUMIF(Calculations!$I$8:$QJ$8, S$2, Calculations!$I433:$QJ433) -> 0 | T91: =SUMIF(Calculations!$I$8:$QJ$8, T$2, Calculations!$I433:$QJ433) -> 0 | U91: =SUMIF(Calculations!$I$8:$QJ$8, U$2, Calculations!$I433:$QJ433) -> 0 | V91: =SUMIF(Calculations!$I$8:$QJ$8, V$2, Calculations!$I433:$QJ433) -> 0 | W91: =SUMIF(Calculations!$I$8:$QJ$8, W$2, Calculations!$I433:$QJ433) -> 0 | X91: =SUMIF(Calculations!$I$8:$QJ$8, X$2, Calculations!$I433:$QJ433) -> 0 | Y91: =SUMIF(Calculations!$I$8:$QJ$8, Y$2, Calculations!$I433:$QJ433) -> 0 | Z91: =SUMIF(Calculations!$I$8:$QJ$8, Z$2, Calculations!$I433:$QJ433) -> 0 | AA91: =SUMIF(Calculations!$I$8:$QJ$8, AA$2, Calculations!$I433:$QJ433) -> 0 | AB91: =SUMIF(Calculations!$I$8:$QJ$8, AB$2, Calculations!$I433:$QJ433) -> 0 | AC91: =SUMIF(Calculations!$I$8:$QJ$8, AC$2, Calculations!$I433:$QJ433) -> 0 | AD91: =SUMIF(Calculations!$I$8:$QJ$8, AD$2, Calculations!$I433:$QJ433) -> 0 | AE91: =SUMIF(Calculations!$I$8:$QJ$8, AE$2, Calculations!$I433:$QJ433) -> 0 | AF91: =SUMIF(Calculations!$I$8:$QJ$8, AF$2, Calculations!$I433:$QJ433) -> 0 | AG91: =SUMIF(Calculations!$I$8:$QJ$8, AG$2, Calculations!$I433:$QJ433) -> 0 | AH91: =SUMIF(Calculations!$I$8:$QJ$8, AH$2, Calculations!$I433:$QJ433) -> 0 | AI91: =SUMIF(Calculations!$I$8:$QJ$8, AI$2, Calculations!$I433:$QJ433) -> 0 | AJ91: =SUMIF(Calculations!$I$8:$QJ$8, AJ$2, Calculations!$I433:$QJ433) -> 0
C92: =Calculations!C434 -> Drawdown of Construction Loan | D92: 2890000 | E92: 5150000 | F92: =Calculations!E434 -> EUR | H92: 8040000 | I92: =SUMIF(Calculations!$I$8:$QJ$8, I$2, Calculations!$I434:$QJ434) -> 175000 | J92: =SUMIF(Calculations!$I$8:$QJ$8, J$2, Calculations!$I434:$QJ434) -> 4975000 | K92: =SUMIF(Calculations!$I$8:$QJ$8, K$2, Calculations!$I434:$QJ434) -> 2890000 | L92: =SUMIF(Calculations!$I$8:$QJ$8, L$2, Calculations!$I434:$QJ434) -> 0 | M92: =SUMIF(Calculations!$I$8:$QJ$8, M$2, Calculations!$I434:$QJ434) -> 0 | N92: =SUMIF(Calculations!$I$8:$QJ$8, N$2, Calculations!$I434:$QJ434) -> 0 | O92: =SUMIF(Calculations!$I$8:$QJ$8, O$2, Calculations!$I434:$QJ434) -> 0 | P92: =SUMIF(Calculations!$I$8:$QJ$8, P$2, Calculations!$I434:$QJ434) -> 0 | Q92: =SUMIF(Calculations!$I$8:$QJ$8, Q$2, Calculations!$I434:$QJ434) -> 0 | R92: =SUMIF(Calculations!$I$8:$QJ$8, R$2, Calculations!$I434:$QJ434) -> 0 | S92: =SUMIF(Calculations!$I$8:$QJ$8, S$2, Calculations!$I434:$QJ434) -> 0 | T92: =SUMIF(Calculations!$I$8:$QJ$8, T$2, Calculations!$I434:$QJ434) -> 0 | U92: =SUMIF(Calculations!$I$8:$QJ$8, U$2, Calculations!$I434:$QJ434) -> 0 | V92: =SUMIF(Calculations!$I$8:$QJ$8, V$2, Calculations!$I434:$QJ434) -> 0 | W92: =SUMIF(Calculations!$I$8:$QJ$8, W$2, Calculations!$I434:$QJ434) -> 0 | X92: =SUMIF(Calculations!$I$8:$QJ$8, X$2, Calculations!$I434:$QJ434) -> 0 | Y92: =SUMIF(Calculations!$I$8:$QJ$8, Y$2, Calculations!$I434:$QJ434) -> 0 | Z92: =SUMIF(Calculations!$I$8:$QJ$8, Z$2, Calculations!$I434:$QJ434) -> 0 | AA92: =SUMIF(Calculations!$I$8:$QJ$8, AA$2, Calculations!$I434:$QJ434) -> 0 | AB92: =SUMIF(Calculations!$I$8:$QJ$8, AB$2, Calculations!$I434:$QJ434) -> 0 | AC92: =SUMIF(Calculations!$I$8:$QJ$8, AC$2, Calculations!$I434:$QJ434) -> 0 | AD92: =SUMIF(Calculations!$I$8:$QJ$8, AD$2, Calculations!$I434:$QJ434) -> 0 | AE92: =SUMIF(Calculations!$I$8:$QJ$8, AE$2, Calculations!$I434:$QJ434) -> 0 | AF92: =SUMIF(Calculations!$I$8:$QJ$8, AF$2, Calculations!$I434:$QJ434) -> 0 | AG92: =SUMIF(Calculations!$I$8:$QJ$8, AG$2, Calculations!$I434:$QJ434) -> 0 | AH92: =SUMIF(Calculations!$I$8:$QJ$8, AH$2, Calculations!$I434:$QJ434) -> 0 | AI92: =SUMIF(Calculations!$I$8:$QJ$8, AI$2, Calculations!$I434:$QJ434) -> 0 | AJ92: =SUMIF(Calculations!$I$8:$QJ$8, AJ$2, Calculations!$I434:$QJ434) -> 0
C93: =Calculations!C435 -> Drawdown of Operating Loan | D93: 0 | E93: 0 | F93: =Calculations!E435 -> 0 | H93: 0 | I93: =SUMIF(Calculations!$I$8:$QJ$8, I$2, Calculations!$I435:$QJ435) -> 0 | J93: =SUMIF(Calculations!$I$8:$QJ$8, J$2, Calculations!$I435:$QJ435) -> 0 | K93: =SUMIF(Calculations!$I$8:$QJ$8, K$2, Calculations!$I435:$QJ435) -> 0 | L93: =SUMIF(Calculations!$I$8:$QJ$8, L$2, Calculations!$I435:$QJ435) -> 0 | M93: =SUMIF(Calculations!$I$8:$QJ$8, M$2, Calculations!$I435:$QJ435) -> 0 | N93: =SUMIF(Calculations!$I$8:$QJ$8, N$2, Calculations!$I435:$QJ435) -> 0 | O93: =SUMIF(Calculations!$I$8:$QJ$8, O$2, Calculations!$I435:$QJ435) -> 0 | P93: =SUMIF(Calculations!$I$8:$QJ$8, P$2, Calculations!$I435:$QJ435) -> 0 | Q93: =SUMIF(Calculations!$I$8:$QJ$8, Q$2, Calculations!$I435:$QJ435) -> 0 | R93: =SUMIF(Calculations!$I$8:$QJ$8, R$2, Calculations!$I435:$QJ435) -> 0 | S93: =SUMIF(Calculations!$I$8:$QJ$8, S$2, Calculations!$I435:$QJ435) -> 0 | T93: =SUMIF(Calculations!$I$8:$QJ$8, T$2, Calculations!$I435:$QJ435) -> 0 | U93: =SUMIF(Calculations!$I$8:$QJ$8, U$2, Calculations!$I435:$QJ435) -> 0 | V93: =SUMIF(Calculations!$I$8:$QJ$8, V$2, Calculations!$I435:$QJ435) -> 0 | W93: =SUMIF(Calculations!$I$8:$QJ$8, W$2, Calculations!$I435:$QJ435) -> 0 | X93: =SUMIF(Calculations!$I$8:$QJ$8, X$2, Calculations!$I435:$QJ435) -> 0 | Y93: =SUMIF(Calculations!$I$8:$QJ$8, Y$2, Calculations!$I435:$QJ435) -> 0 | Z93: =SUMIF(Calculations!$I$8:$QJ$8, Z$2, Calculations!$I435:$QJ435) -> 0 | AA93: =SUMIF(Calculations!$I$8:$QJ$8, AA$2, Calculations!$I435:$QJ435) -> 0 | AB93: =SUMIF(Calculations!$I$8:$QJ$8, AB$2, Calculations!$I435:$QJ435) -> 0 | AC93: =SUMIF(Calculations!$I$8:$QJ$8, AC$2, Calculations!$I435:$QJ435) -> 0 | AD93: =SUMIF(Calculations!$I$8:$QJ$8, AD$2, Calculations!$I435:$QJ435) -> 0 | AE93: =SUMIF(Calculations!$I$8:$QJ$8, AE$2, Calculations!$I435:$QJ435) -> 0 | AF93: =SUMIF(Calculations!$I$8:$QJ$8, AF$2, Calculations!$I435:$QJ435) -> 0 | AG93: =SUMIF(Calculations!$I$8:$QJ$8, AG$2, Calculations!$I435:$QJ435) -> 0 | AH93: =SUMIF(Calculations!$I$8:$QJ$8, AH$2, Calculations!$I435:$QJ435) -> 0 | AI93: =SUMIF(Calculations!$I$8:$QJ$8, AI$2, Calculations!$I435:$QJ435) -> 0 | AJ93: =SUMIF(Calculations!$I$8:$QJ$8, AJ$2, Calculations!$I435:$QJ435) -> 0
C94: =Calculations!C436 -> Principal Repayment of Subordinated Debt | D94: -3424884.397 | E94: -595115.6034 | F94: =Calculations!E436 -> EUR | H94: -4020000 | I94: =SUMIF(Calculations!$I$8:$QJ$8, I$2, Calculations!$I436:$QJ436) -> 0 | J94: =SUMIF(Calculations!$I$8:$QJ$8, J$2, Calculations!$I436:$QJ436) -> 0 | K94: =SUMIF(Calculations!$I$8:$QJ$8, K$2, Calculations!$I436:$QJ436) -> -15813.13262 | L94: =SUMIF(Calculations!$I$8:$QJ$8, L$2, Calculations!$I436:$QJ436) -> -69907.86248 | M94: =SUMIF(Calculations!$I$8:$QJ$8, M$2, Calculations!$I436:$QJ436) -> -78773.92925 | N94: =SUMIF(Calculations!$I$8:$QJ$8, N$2, Calculations!$I436:$QJ436) -> -88764.4352 | O94: =SUMIF(Calculations!$I$8:$QJ$8, O$2, Calculations!$I436:$QJ436) -> -100021.9874 | P94: =SUMIF(Calculations!$I$8:$QJ$8, P$2, Calculations!$I436:$QJ436) -> -112707.2789 | Q94: =SUMIF(Calculations!$I$8:$QJ$8, Q$2, Calculations!$I436:$QJ436) -> -127001.383 | R94: =SUMIF(Calculations!$I$8:$QJ$8, R$2, Calculations!$I436:$QJ436) -> -143108.3372 | S94: =SUMIF(Calculations!$I$8:$QJ$8, S$2, Calculations!$I436:$QJ436) -> -161258.0564 | T94: =SUMIF(Calculations!$I$8:$QJ$8, T$2, Calculations!$I436:$QJ436) -> -181709.6142 | U94: =SUMIF(Calculations!$I$8:$QJ$8, U$2, Calculations!$I436:$QJ436) -> -204754.9415 | V94: =SUMIF(Calculations!$I$8:$QJ$8, V$2, Calculations!$I436:$QJ436) -> -230722.9932 | W94: =SUMIF(Calculations!$I$8:$QJ$8, W$2, Calculations!$I436:$QJ436) -> -259984.4437 | X94: =SUMIF(Calculations!$I$8:$QJ$8, X$2, Calculations!$I436:$QJ436) -> -292956.9786 | Y94: =SUMIF(Calculations!$I$8:$QJ$8, Y$2, Calculations!$I436:$QJ436) -> -330111.2563 | Z94: =SUMIF(Calculations!$I$8:$QJ$8, Z$2, Calculations!$I436:$QJ436) -> -371977.6263 | AA94: =SUMIF(Calculations!$I$8:$QJ$8, AA$2, Calculations!$I436:$QJ436) -> -419153.7 | AB94: =SUMIF(Calculations!$I$8:$QJ$8, AB$2, Calculations!$I436:$QJ436) -> -472312.8806 | AC94: =SUMIF(Calculations!$I$8:$QJ$8, AC$2, Calculations!$I436:$QJ436) -> -532213.9759 | AD94: =SUMIF(Calculations!$I$8:$QJ$8, AD$2, Calculations!$I436:$QJ436) -> -599712.0295 | AE94: =SUMIF(Calculations!$I$8:$QJ$8, AE$2, Calculations!$I436:$QJ436) -> -675770.5257 | AF94: =SUMIF(Calculations!$I$8:$QJ$8, AF$2, Calculations!$I436:$QJ436) -> -761475.1429 | AG94: =SUMIF(Calculations!$I$8:$QJ$8, AG$2, Calculations!$I436:$QJ436) -> -858049.2509 | AH94: =SUMIF(Calculations!$I$8:$QJ$8, AH$2, Calculations!$I436:$QJ436) -> 3068261.762 | AI94: =SUMIF(Calculations!$I$8:$QJ$8, AI$2, Calculations!$I436:$QJ436) -> 0 | AJ94: =SUMIF(Calculations!$I$8:$QJ$8, AJ$2, Calculations!$I436:$QJ436) -> 0
C95: =Calculations!C437 -> Principal Repayment of Construction Loan | D95: 0 | E95: 0 | F95: =Calculations!E437 -> EUR | H95: 0 | I95: =SUMIF(Calculations!$I$8:$QJ$8, I$2, Calculations!$I437:$QJ437) -> 0 | J95: =SUMIF(Calculations!$I$8:$QJ$8, J$2, Calculations!$I437:$QJ437) -> 0 | K95: =SUMIF(Calculations!$I$8:$QJ$8, K$2, Calculations!$I437:$QJ437) -> 0 | L95: =SUMIF(Calculations!$I$8:$QJ$8, L$2, Calculations!$I437:$QJ437) -> 0 | M95: =SUMIF(Calculations!$I$8:$QJ$8, M$2, Calculations!$I437:$QJ437) -> 0 | N95: =SUMIF(Calculations!$I$8:$QJ$8, N$2, Calculations!$I437:$QJ437) -> 0 | O95: =SUMIF(Calculations!$I$8:$QJ$8, O$2, Calculations!$I437:$QJ437) -> 0 | P95: =SUMIF(Calculations!$I$8:$QJ$8, P$2, Calculations!$I437:$QJ437) -> 0 | Q95: =SUMIF(Calculations!$I$8:$QJ$8, Q$2, Calculations!$I437:$QJ437) -> 0 | R95: =SUMIF(Calculations!$I$8:$QJ$8, R$2, Calculations!$I437:$QJ437) -> 0 | S95: =SUMIF(Calculations!$I$8:$QJ$8, S$2, Calculations!$I437:$QJ437) -> 0 | T95: =SUMIF(Calculations!$I$8:$QJ$8, T$2, Calculations!$I437:$QJ437) -> 0 | U95: =SUMIF(Calculations!$I$8:$QJ$8, U$2, Calculations!$I437:$QJ437) -> 0 | V95: =SUMIF(Calculations!$I$8:$QJ$8, V$2, Calculations!$I437:$QJ437) -> 0 | W95: =SUMIF(Calculations!$I$8:$QJ$8, W$2, Calculations!$I437:$QJ437) -> 0 | X95: =SUMIF(Calculations!$I$8:$QJ$8, X$2, Calculations!$I437:$QJ437) -> 0 | Y95: =SUMIF(Calculations!$I$8:$QJ$8, Y$2, Calculations!$I437:$QJ437) -> 0 | Z95: =SUMIF(Calculations!$I$8:$QJ$8, Z$2, Calculations!$I437:$QJ437) -> 0 | AA95: =SUMIF(Calculations!$I$8:$QJ$8, AA$2, Calculations!$I437:$QJ437) -> 0 | AB95: =SUMIF(Calculations!$I$8:$QJ$8, AB$2, Calculations!$I437:$QJ437) -> 0 | AC95: =SUMIF(Calculations!$I$8:$QJ$8, AC$2, Calculations!$I437:$QJ437) -> 0 | AD95: =SUMIF(Calculations!$I$8:$QJ$8, AD$2, Calculations!$I437:$QJ437) -> 0 | AE95: =SUMIF(Calculations!$I$8:$QJ$8, AE$2, Calculations!$I437:$QJ437) -> 0 | AF95: =SUMIF(Calculations!$I$8:$QJ$8, AF$2, Calculations!$I437:$QJ437) -> 0 | AG95: =SUMIF(Calculations!$I$8:$QJ$8, AG$2, Calculations!$I437:$QJ437) -> 0 | AH95: =SUMIF(Calculations!$I$8:$QJ$8, AH$2, Calculations!$I437:$QJ437) -> 0 | AI95: =SUMIF(Calculations!$I$8:$QJ$8, AI$2, Calculations!$I437:$QJ437) -> 0 | AJ95: =SUMIF(Calculations!$I$8:$QJ$8, AJ$2, Calculations!$I437:$QJ437) -> 0
C96: =Calculations!C438 -> Principal Repayment of Operating Loan | D96: -7390413.345 | E96: -338824.6739 | F96: =Calculations!E438 -> EUR | H96: -7729238.019 | I96: =SUMIF(Calculations!$I$8:$QJ$8, I$2, Calculations!$I438:$QJ438) -> 0 | J96: =SUMIF(Calculations!$I$8:$QJ$8, J$2, Calculations!$I438:$QJ438) -> 0 | K96: =SUMIF(Calculations!$I$8:$QJ$8, K$2, Calculations!$I438:$QJ438) -> -31178.86137 | L96: =SUMIF(Calculations!$I$8:$QJ$8, L$2, Calculations!$I438:$QJ438) -> -281643.0513 | M96: =SUMIF(Calculations!$I$8:$QJ$8, M$2, Calculations!$I438:$QJ438) -> -297529.9332 | N96: =SUMIF(Calculations!$I$8:$QJ$8, N$2, Calculations!$I438:$QJ438) -> -314312.9602 | O96: =SUMIF(Calculations!$I$8:$QJ$8, O$2, Calculations!$I438:$QJ438) -> -332042.6817 | P96: =SUMIF(Calculations!$I$8:$QJ$8, P$2, Calculations!$I438:$QJ438) -> -350772.499 | Q96: =SUMIF(Calculations!$I$8:$QJ$8, Q$2, Calculations!$I438:$QJ438) -> -370558.8251 | R96: =SUMIF(Calculations!$I$8:$QJ$8, R$2, Calculations!$I438:$QJ438) -> -391461.2556 | S96: =SUMIF(Calculations!$I$8:$QJ$8, S$2, Calculations!$I438:$QJ438) -> -413542.7474 | T96: =SUMIF(Calculations!$I$8:$QJ$8, T$2, Calculations!$I438:$QJ438) -> -436869.809 | U96: =SUMIF(Calculations!$I$8:$QJ$8, U$2, Calculations!$I438:$QJ438) -> -461512.7002 | V96: =SUMIF(Calculations!$I$8:$QJ$8, V$2, Calculations!$I438:$QJ438) -> -487545.6441 | W96: =SUMIF(Calculations!$I$8:$QJ$8, W$2, Calculations!$I438:$QJ438) -> -515047.0508 | X96: =SUMIF(Calculations!$I$8:$QJ$8, X$2, Calculations!$I438:$QJ438) -> -544099.7529 | Y96: =SUMIF(Calculations!$I$8:$QJ$8, Y$2, Calculations!$I438:$QJ438) -> -574791.2558 | Z96: =SUMIF(Calculations!$I$8:$QJ$8, Z$2, Calculations!$I438:$QJ438) -> -607214.0007 | AA96: =SUMIF(Calculations!$I$8:$QJ$8, AA$2, Calculations!$I438:$QJ438) -> -641465.6433 | AB96: =SUMIF(Calculations!$I$8:$QJ$8, AB$2, Calculations!$I438:$QJ438) -> -677649.3477 | AC96: =SUMIF(Calculations!$I$8:$QJ$8, AC$2, Calculations!$I438:$QJ438) -> 0 | AD96: =SUMIF(Calculations!$I$8:$QJ$8, AD$2, Calculations!$I438:$QJ438) -> 0 | AE96: =SUMIF(Calculations!$I$8:$QJ$8, AE$2, Calculations!$I438:$QJ438) -> 0 | AF96: =SUMIF(Calculations!$I$8:$QJ$8, AF$2, Calculations!$I438:$QJ438) -> 0 | AG96: =SUMIF(Calculations!$I$8:$QJ$8, AG$2, Calculations!$I438:$QJ438) -> 0 | AH96: =SUMIF(Calculations!$I$8:$QJ$8, AH$2, Calculations!$I438:$QJ438) -> 0 | AI96: =SUMIF(Calculations!$I$8:$QJ$8, AI$2, Calculations!$I438:$QJ438) -> 0 | AJ96: =SUMIF(Calculations!$I$8:$QJ$8, AJ$2, Calculations!$I438:$QJ438) -> 0
C97: =Calculations!C439 -> Interest Payment on Senior Loan | D97: -4642474.19 | E97: -24658.59046 | F97: =Calculations!E439 -> EUR | H97: -4667132.78 | I97: =SUMIF(Calculations!$I$8:$QJ$8, I$2, Calculations!$I439:$QJ439) -> 0 | J97: =SUMIF(Calculations!$I$8:$QJ$8, J$2, Calculations!$I439:$QJ439) -> 0 | K97: =SUMIF(Calculations!$I$8:$QJ$8, K$2, Calculations!$I439:$QJ439) -> -148416.475 | L97: =SUMIF(Calculations!$I$8:$QJ$8, L$2, Calculations!$I439:$QJ439) -> -436738.2941 | M97: =SUMIF(Calculations!$I$8:$QJ$8, M$2, Calculations!$I439:$QJ439) -> -420851.4122 | N97: =SUMIF(Calculations!$I$8:$QJ$8, N$2, Calculations!$I439:$QJ439) -> -404068.3852 | O97: =SUMIF(Calculations!$I$8:$QJ$8, O$2, Calculations!$I439:$QJ439) -> -386338.6637 | P97: =SUMIF(Calculations!$I$8:$QJ$8, P$2, Calculations!$I439:$QJ439) -> -367608.8464 | Q97: =SUMIF(Calculations!$I$8:$QJ$8, Q$2, Calculations!$I439:$QJ439) -> -347822.5203 | R97: =SUMIF(Calculations!$I$8:$QJ$8, R$2, Calculations!$I439:$QJ439) -> -326920.0898 | S97: =SUMIF(Calculations!$I$8:$QJ$8, S$2, Calculations!$I439:$QJ439) -> -304838.5979 | T97: =SUMIF(Calculations!$I$8:$QJ$8, T$2, Calculations!$I439:$QJ439) -> -281511.5364 | U97: =SUMIF(Calculations!$I$8:$QJ$8, U$2, Calculations!$I439:$QJ439) -> -256868.6452 | V97: =SUMIF(Calculations!$I$8:$QJ$8, V$2, Calculations!$I439:$QJ439) -> -230835.7012 | W97: =SUMIF(Calculations!$I$8:$QJ$8, W$2, Calculations!$I439:$QJ439) -> -203334.2946 | X97: =SUMIF(Calculations!$I$8:$QJ$8, X$2, Calculations!$I439:$QJ439) -> -174281.5925 | Y97: =SUMIF(Calculations!$I$8:$QJ$8, Y$2, Calculations!$I439:$QJ439) -> -143590.0896 | Z97: =SUMIF(Calculations!$I$8:$QJ$8, Z$2, Calculations!$I439:$QJ439) -> -111167.3447 | AA97: =SUMIF(Calculations!$I$8:$QJ$8, AA$2, Calculations!$I439:$QJ439) -> -76915.7021 | AB97: =SUMIF(Calculations!$I$8:$QJ$8, AB$2, Calculations!$I439:$QJ439) -> -40731.99765 | AC97: =SUMIF(Calculations!$I$8:$QJ$8, AC$2, Calculations!$I439:$QJ439) -> -4292.591633 | AD97: =SUMIF(Calculations!$I$8:$QJ$8, AD$2, Calculations!$I439:$QJ439) -> 0 | AE97: =SUMIF(Calculations!$I$8:$QJ$8, AE$2, Calculations!$I439:$QJ439) -> 0 | AF97: =SUMIF(Calculations!$I$8:$QJ$8, AF$2, Calculations!$I439:$QJ439) -> 0 | AG97: =SUMIF(Calculations!$I$8:$QJ$8, AG$2, Calculations!$I439:$QJ439) -> 0 | AH97: =SUMIF(Calculations!$I$8:$QJ$8, AH$2, Calculations!$I439:$QJ439) -> 0 | AI97: =SUMIF(Calculations!$I$8:$QJ$8, AI$2, Calculations!$I439:$QJ439) -> 0 | AJ97: =SUMIF(Calculations!$I$8:$QJ$8, AJ$2, Calculations!$I439:$QJ439) -> 0
C98: =Calculations!C440 -> Interest Payment on Subordinated Debt | D98: -5864350.222 | E98: 819588.7138 | F98: =Calculations!E440 -> EUR | H98: -5044761.508 | I98: =SUMIF(Calculations!$I$8:$QJ$8, I$2, Calculations!$I440:$QJ440) -> 0 | J98: =SUMIF(Calculations!$I$8:$QJ$8, J$2, Calculations!$I440:$QJ440) -> 0 | K98: =SUMIF(Calculations!$I$8:$QJ$8, K$2, Calculations!$I440:$QJ440) -> -163228.1202 | L98: =SUMIF(Calculations!$I$8:$QJ$8, L$2, Calculations!$I440:$QJ440) -> -482225.0688 | M98: =SUMIF(Calculations!$I$8:$QJ$8, M$2, Calculations!$I440:$QJ440) -> -473359.002 | N98: =SUMIF(Calculations!$I$8:$QJ$8, N$2, Calculations!$I440:$QJ440) -> -463368.4961 | O98: =SUMIF(Calculations!$I$8:$QJ$8, O$2, Calculations!$I440:$QJ440) -> -452110.9439 | P98: =SUMIF(Calculations!$I$8:$QJ$8, P$2, Calculations!$I440:$QJ440) -> -439425.6523 | Q98: =SUMIF(Calculations!$I$8:$QJ$8, Q$2, Calculations!$I440:$QJ440) -> -425131.5483 | R98: =SUMIF(Calculations!$I$8:$QJ$8, R$2, Calculations!$I440:$QJ440) -> -409024.5941 | S98: =SUMIF(Calculations!$I$8:$QJ$8, S$2, Calculations!$I440:$QJ440) -> -390874.8749 | T98: =SUMIF(Calculations!$I$8:$QJ$8, T$2, Calculations!$I440:$QJ440) -> -370423.317 | U98: =SUMIF(Calculations!$I$8:$QJ$8, U$2, Calculations!$I440:$QJ440) -> -347377.9897 | V98: =SUMIF(Calculations!$I$8:$QJ$8, V$2, Calculations!$I440:$QJ440) -> -321409.9381 | W98: =SUMIF(Calculations!$I$8:$QJ$8, W$2, Calculations!$I440:$QJ440) -> -292148.4875 | X98: =SUMIF(Calculations!$I$8:$QJ$8, X$2, Calculations!$I440:$QJ440) -> -259175.9526 | Y98: =SUMIF(Calculations!$I$8:$QJ$8, Y$2, Calculations!$I440:$QJ440) -> -222021.675 | Z98: =SUMIF(Calculations!$I$8:$QJ$8, Z$2, Calculations!$I440:$QJ440) -> -180155.305 | AA98: =SUMIF(Calculations!$I$8:$QJ$8, AA$2, Calculations!$I440:$QJ440) -> -132979.2313 | AB98: =SUMIF(Calculations!$I$8:$QJ$8, AB$2, Calculations!$I440:$QJ440) -> -79820.05067 | AC98: =SUMIF(Calculations!$I$8:$QJ$8, AC$2, Calculations!$I440:$QJ440) -> -19918.95536 | AD98: =SUMIF(Calculations!$I$8:$QJ$8, AD$2, Calculations!$I440:$QJ440) -> 47579.09818 | AE98: =SUMIF(Calculations!$I$8:$QJ$8, AE$2, Calculations!$I440:$QJ440) -> 123637.5944 | AF98: =SUMIF(Calculations!$I$8:$QJ$8, AF$2, Calculations!$I440:$QJ440) -> 209342.2117 | AG98: =SUMIF(Calculations!$I$8:$QJ$8, AG$2, Calculations!$I440:$QJ440) -> 305916.3196 | AH98: =SUMIF(Calculations!$I$8:$QJ$8, AH$2, Calculations!$I440:$QJ440) -> 192942.4707 | AI98: =SUMIF(Calculations!$I$8:$QJ$8, AI$2, Calculations!$I440:$QJ440) -> 0 | AJ98: =SUMIF(Calculations!$I$8:$QJ$8, AJ$2, Calculations!$I440:$QJ440) -> 0
C99: =Calculations!C441 -> Dividends | D99: 0 | E99: 0 | F99: =Calculations!E441 -> EUR | H99: 0 | I99: =SUMIF(Calculations!$I$8:$QJ$8, I$2, Calculations!$I441:$QJ441) -> 0 | J99: =SUMIF(Calculations!$I$8:$QJ$8, J$2, Calculations!$I441:$QJ441) -> 0 | K99: =SUMIF(Calculations!$I$8:$QJ$8, K$2, Calculations!$I441:$QJ441) -> 0 | L99: =SUMIF(Calculations!$I$8:$QJ$8, L$2, Calculations!$I441:$QJ441) -> 0 | M99: =SUMIF(Calculations!$I$8:$QJ$8, M$2, Calculations!$I441:$QJ441) -> 0 | N99: =SUMIF(Calculations!$I$8:$QJ$8, N$2, Calculations!$I441:$QJ441) -> 0 | O99: =SUMIF(Calculations!$I$8:$QJ$8, O$2, Calculations!$I441:$QJ441) -> 0 | P99: =SUMIF(Calculations!$I$8:$QJ$8, P$2, Calculations!$I441:$QJ441) -> 0 | Q99: =SUMIF(Calculations!$I$8:$QJ$8, Q$2, Calculations!$I441:$QJ441) -> 0 | R99: =SUMIF(Calculations!$I$8:$QJ$8, R$2, Calculations!$I441:$QJ441) -> 0 | S99: =SUMIF(Calculations!$I$8:$QJ$8, S$2, Calculations!$I441:$QJ441) -> 0 | T99: =SUMIF(Calculations!$I$8:$QJ$8, T$2, Calculations!$I441:$QJ441) -> 0 | U99: =SUMIF(Calculations!$I$8:$QJ$8, U$2, Calculations!$I441:$QJ441) -> 0 | V99: =SUMIF(Calculations!$I$8:$QJ$8, V$2, Calculations!$I441:$QJ441) -> 0 | W99: =SUMIF(Calculations!$I$8:$QJ$8, W$2, Calculations!$I441:$QJ441) -> 0 | X99: =SUMIF(Calculations!$I$8:$QJ$8, X$2, Calculations!$I441:$QJ441) -> 0 | Y99: =SUMIF(Calculations!$I$8:$QJ$8, Y$2, Calculations!$I441:$QJ441) -> 0 | Z99: =SUMIF(Calculations!$I$8:$QJ$8, Z$2, Calculations!$I441:$QJ441) -> 0 | AA99: =SUMIF(Calculations!$I$8:$QJ$8, AA$2, Calculations!$I441:$QJ441) -> 0 | AB99: =SUMIF(Calculations!$I$8:$QJ$8, AB$2, Calculations!$I441:$QJ441) -> 0 | AC99: =SUMIF(Calculations!$I$8:$QJ$8, AC$2, Calculations!$I441:$QJ441) -> 0 | AD99: =SUMIF(Calculations!$I$8:$QJ$8, AD$2, Calculations!$I441:$QJ441) -> 0 | AE99: =SUMIF(Calculations!$I$8:$QJ$8, AE$2, Calculations!$I441:$QJ441) -> 0 | AF99: =SUMIF(Calculations!$I$8:$QJ$8, AF$2, Calculations!$I441:$QJ441) -> 0 | AG99: =SUMIF(Calculations!$I$8:$QJ$8, AG$2, Calculations!$I441:$QJ441) -> 0 | AH99: =SUMIF(Calculations!$I$8:$QJ$8, AH$2, Calculations!$I441:$QJ441) -> 0 | AI99: =SUMIF(Calculations!$I$8:$QJ$8, AI$2, Calculations!$I441:$QJ441) -> 0 | AJ99: =SUMIF(Calculations!$I$8:$QJ$8, AJ$2, Calculations!$I441:$QJ441) -> 0
C100: =Calculations!C442 -> Change in DSRA | D100: -337122.6225 | E100: 337122.6225 | F100: =Calculations!E442 -> EUR | H100: 0 | I100: =SUMIF(Calculations!$I$8:$QJ$8, I$2, Calculations!$I442:$QJ442) -> 0 | J100: =SUMIF(Calculations!$I$8:$QJ$8, J$2, Calculations!$I442:$QJ442) -> 0 | K100: =SUMIF(Calculations!$I$8:$QJ$8, K$2, Calculations!$I442:$QJ442) -> -359190.6727 | L100: =SUMIF(Calculations!$I$8:$QJ$8, L$2, Calculations!$I442:$QJ442) -> 0 | M100: =SUMIF(Calculations!$I$8:$QJ$8, M$2, Calculations!$I442:$QJ442) -> 0 | N100: =SUMIF(Calculations!$I$8:$QJ$8, N$2, Calculations!$I442:$QJ442) -> 0 | O100: =SUMIF(Calculations!$I$8:$QJ$8, O$2, Calculations!$I442:$QJ442) -> 0 | P100: =SUMIF(Calculations!$I$8:$QJ$8, P$2, Calculations!$I442:$QJ442) -> 0 | Q100: =SUMIF(Calculations!$I$8:$QJ$8, Q$2, Calculations!$I442:$QJ442) -> 0 | R100: =SUMIF(Calculations!$I$8:$QJ$8, R$2, Calculations!$I442:$QJ442) -> 0 | S100: =SUMIF(Calculations!$I$8:$QJ$8, S$2, Calculations!$I442:$QJ442) -> 0 | T100: =SUMIF(Calculations!$I$8:$QJ$8, T$2, Calculations!$I442:$QJ442) -> 0 | U100: =SUMIF(Calculations!$I$8:$QJ$8, U$2, Calculations!$I442:$QJ442) -> 0 | V100: =SUMIF(Calculations!$I$8:$QJ$8, V$2, Calculations!$I442:$QJ442) -> 0 | W100: =SUMIF(Calculations!$I$8:$QJ$8, W$2, Calculations!$I442:$QJ442) -> 0 | X100: =SUMIF(Calculations!$I$8:$QJ$8, X$2, Calculations!$I442:$QJ442) -> 0 | Y100: =SUMIF(Calculations!$I$8:$QJ$8, Y$2, Calculations!$I442:$QJ442) -> 0 | Z100: =SUMIF(Calculations!$I$8:$QJ$8, Z$2, Calculations!$I442:$QJ442) -> 0 | AA100: =SUMIF(Calculations!$I$8:$QJ$8, AA$2, Calculations!$I442:$QJ442) -> 0 | AB100: =SUMIF(Calculations!$I$8:$QJ$8, AB$2, Calculations!$I442:$QJ442) -> 44136.10042 | AC100: =SUMIF(Calculations!$I$8:$QJ$8, AC$2, Calculations!$I442:$QJ442) -> 315054.5723 | AD100: =SUMIF(Calculations!$I$8:$QJ$8, AD$2, Calculations!$I442:$QJ442) -> 0 | AE100: =SUMIF(Calculations!$I$8:$QJ$8, AE$2, Calculations!$I442:$QJ442) -> 0 | AF100: =SUMIF(Calculations!$I$8:$QJ$8, AF$2, Calculations!$I442:$QJ442) -> 0 | AG100: =SUMIF(Calculations!$I$8:$QJ$8, AG$2, Calculations!$I442:$QJ442) -> 0 | AH100: =SUMIF(Calculations!$I$8:$QJ$8, AH$2, Calculations!$I442:$QJ442) -> 0 | AI100: =SUMIF(Calculations!$I$8:$QJ$8, AI$2, Calculations!$I442:$QJ442) -> 0 | AJ100: =SUMIF(Calculations!$I$8:$QJ$8, AJ$2, Calculations!$I442:$QJ442) -> 0
C101: =Calculations!C443 -> Change in MMRA | D101: 0 | E101: 0 | F101: =Calculations!E443 -> EUR | H101: 0 | I101: =SUMIF(Calculations!$I$8:$QJ$8, I$2, Calculations!$I443:$QJ443) -> 0 | J101: =SUMIF(Calculations!$I$8:$QJ$8, J$2, Calculations!$I443:$QJ443) -> 0 | K101: =SUMIF(Calculations!$I$8:$QJ$8, K$2, Calculations!$I443:$QJ443) -> 0 | L101: =SUMIF(Calculations!$I$8:$QJ$8, L$2, Calculations!$I443:$QJ443) -> 0 | M101: =SUMIF(Calculations!$I$8:$QJ$8, M$2, Calculations!$I443:$QJ443) -> 0 | N101: =SUMIF(Calculations!$I$8:$QJ$8, N$2, Calculations!$I443:$QJ443) -> 0 | O101: =SUMIF(Calculations!$I$8:$QJ$8, O$2, Calculations!$I443:$QJ443) -> 0 | P101: =SUMIF(Calculations!$I$8:$QJ$8, P$2, Calculations!$I443:$QJ443) -> 0 | Q101: =SUMIF(Calculations!$I$8:$QJ$8, Q$2, Calculations!$I443:$QJ443) -> 0 | R101: =SUMIF(Calculations!$I$8:$QJ$8, R$2, Calculations!$I443:$QJ443) -> 0 | S101: =SUMIF(Calculations!$I$8:$QJ$8, S$2, Calculations!$I443:$QJ443) -> 0 | T101: =SUMIF(Calculations!$I$8:$QJ$8, T$2, Calculations!$I443:$QJ443) -> 0 | U101: =SUMIF(Calculations!$I$8:$QJ$8, U$2, Calculations!$I443:$QJ443) -> 0 | V101: =SUMIF(Calculations!$I$8:$QJ$8, V$2, Calculations!$I443:$QJ443) -> 0 | W101: =SUMIF(Calculations!$I$8:$QJ$8, W$2, Calculations!$I443:$QJ443) -> 0 | X101: =SUMIF(Calculations!$I$8:$QJ$8, X$2, Calculations!$I443:$QJ443) -> 0 | Y101: =SUMIF(Calculations!$I$8:$QJ$8, Y$2, Calculations!$I443:$QJ443) -> 0 | Z101: =SUMIF(Calculations!$I$8:$QJ$8, Z$2, Calculations!$I443:$QJ443) -> 0 | AA101: =SUMIF(Calculations!$I$8:$QJ$8, AA$2, Calculations!$I443:$QJ443) -> 0 | AB101: =SUMIF(Calculations!$I$8:$QJ$8, AB$2, Calculations!$I443:$QJ443) -> 0 | AC101: =SUMIF(Calculations!$I$8:$QJ$8, AC$2, Calculations!$I443:$QJ443) -> 0 | AD101: =SUMIF(Calculations!$I$8:$QJ$8, AD$2, Calculations!$I443:$QJ443) -> 0 | AE101: =SUMIF(Calculations!$I$8:$QJ$8, AE$2, Calculations!$I443:$QJ443) -> 0 | AF101: =SUMIF(Calculations!$I$8:$QJ$8, AF$2, Calculations!$I443:$QJ443) -> 0 | AG101: =SUMIF(Calculations!$I$8:$QJ$8, AG$2, Calculations!$I443:$QJ443) -> 0 | AH101: =SUMIF(Calculations!$I$8:$QJ$8, AH$2, Calculations!$I443:$QJ443) -> 0 | AI101: =SUMIF(Calculations!$I$8:$QJ$8, AI$2, Calculations!$I443:$QJ443) -> 0 | AJ101: =SUMIF(Calculations!$I$8:$QJ$8, AJ$2, Calculations!$I443:$QJ443) -> 0
C102: =Calculations!C444 -> Initial Funding of Working Capital | D102: 0 | E102: 0 | F102: =Calculations!E444 -> EUR | H102: 0 | I102: =SUMIF(Calculations!$I$8:$QJ$8, I$2, Calculations!$I444:$QJ444) -> 0 | J102: =SUMIF(Calculations!$I$8:$QJ$8, J$2, Calculations!$I444:$QJ444) -> 0 | K102: =SUMIF(Calculations!$I$8:$QJ$8, K$2, Calculations!$I444:$QJ444) -> 0 | L102: =SUMIF(Calculations!$I$8:$QJ$8, L$2, Calculations!$I444:$QJ444) -> 0 | M102: =SUMIF(Calculations!$I$8:$QJ$8, M$2, Calculations!$I444:$QJ444) -> 0 | N102: =SUMIF(Calculations!$I$8:$QJ$8, N$2, Calculations!$I444:$QJ444) -> 0 | O102: =SUMIF(Calculations!$I$8:$QJ$8, O$2, Calculations!$I444:$QJ444) -> 0 | P102: =SUMIF(Calculations!$I$8:$QJ$8, P$2, Calculations!$I444:$QJ444) -> 0 | Q102: =SUMIF(Calculations!$I$8:$QJ$8, Q$2, Calculations!$I444:$QJ444) -> 0 | R102: =SUMIF(Calculations!$I$8:$QJ$8, R$2, Calculations!$I444:$QJ444) -> 0 | S102: =SUMIF(Calculations!$I$8:$QJ$8, S$2, Calculations!$I444:$QJ444) -> 0 | T102: =SUMIF(Calculations!$I$8:$QJ$8, T$2, Calculations!$I444:$QJ444) -> 0 | U102: =SUMIF(Calculations!$I$8:$QJ$8, U$2, Calculations!$I444:$QJ444) -> 0 | V102: =SUMIF(Calculations!$I$8:$QJ$8, V$2, Calculations!$I444:$QJ444) -> 0 | W102: =SUMIF(Calculations!$I$8:$QJ$8, W$2, Calculations!$I444:$QJ444) -> 0 | X102: =SUMIF(Calculations!$I$8:$QJ$8, X$2, Calculations!$I444:$QJ444) -> 0 | Y102: =SUMIF(Calculations!$I$8:$QJ$8, Y$2, Calculations!$I444:$QJ444) -> 0 | Z102: =SUMIF(Calculations!$I$8:$QJ$8, Z$2, Calculations!$I444:$QJ444) -> 0 | AA102: =SUMIF(Calculations!$I$8:$QJ$8, AA$2, Calculations!$I444:$QJ444) -> 0 | AB102: =SUMIF(Calculations!$I$8:$QJ$8, AB$2, Calculations!$I444:$QJ444) -> 0 | AC102: =SUMIF(Calculations!$I$8:$QJ$8, AC$2, Calculations!$I444:$QJ444) -> 0 | AD102: =SUMIF(Calculations!$I$8:$QJ$8, AD$2, Calculations!$I444:$QJ444) -> 0 | AE102: =SUMIF(Calculations!$I$8:$QJ$8, AE$2, Calculations!$I444:$QJ444) -> 0 | AF102: =SUMIF(Calculations!$I$8:$QJ$8, AF$2, Calculations!$I444:$QJ444) -> 0 | AG102: =SUMIF(Calculations!$I$8:$QJ$8, AG$2, Calculations!$I444:$QJ444) -> 0 | AH102: =SUMIF(Calculations!$I$8:$QJ$8, AH$2, Calculations!$I444:$QJ444) -> 0 | AI102: =SUMIF(Calculations!$I$8:$QJ$8, AI$2, Calculations!$I444:$QJ444) -> 0 | AJ102: =SUMIF(Calculations!$I$8:$QJ$8, AJ$2, Calculations!$I444:$QJ444) -> 0
C103: =Calculations!C445 -> Interest on Reserve Accounts | D103: 0 | E103: 0 | F103: =Calculations!E445 -> EUR | H103: 0 | I103: =SUMIF(Calculations!$I$8:$QJ$8, I$2, Calculations!$I445:$QJ445) -> 0 | J103: =SUMIF(Calculations!$I$8:$QJ$8, J$2, Calculations!$I445:$QJ445) -> 0 | K103: =SUMIF(Calculations!$I$8:$QJ$8, K$2, Calculations!$I445:$QJ445) -> 0 | L103: =SUMIF(Calculations!$I$8:$QJ$8, L$2, Calculations!$I445:$QJ445) -> 0 | M103: =SUMIF(Calculations!$I$8:$QJ$8, M$2, Calculations!$I445:$QJ445) -> 0 | N103: =SUMIF(Calculations!$I$8:$QJ$8, N$2, Calculations!$I445:$QJ445) -> 0 | O103: =SUMIF(Calculations!$I$8:$QJ$8, O$2, Calculations!$I445:$QJ445) -> 0 | P103: =SUMIF(Calculations!$I$8:$QJ$8, P$2, Calculations!$I445:$QJ445) -> 0 | Q103: =SUMIF(Calculations!$I$8:$QJ$8, Q$2, Calculations!$I445:$QJ445) -> 0 | R103: =SUMIF(Calculations!$I$8:$QJ$8, R$2, Calculations!$I445:$QJ445) -> 0 | S103: =SUMIF(Calculations!$I$8:$QJ$8, S$2, Calculations!$I445:$QJ445) -> 0 | T103: =SUMIF(Calculations!$I$8:$QJ$8, T$2, Calculations!$I445:$QJ445) -> 0 | U103: =SUMIF(Calculations!$I$8:$QJ$8, U$2, Calculations!$I445:$QJ445) -> 0 | V103: =SUMIF(Calculations!$I$8:$QJ$8, V$2, Calculations!$I445:$QJ445) -> 0 | W103: =SUMIF(Calculations!$I$8:$QJ$8, W$2, Calculations!$I445:$QJ445) -> 0 | X103: =SUMIF(Calculations!$I$8:$QJ$8, X$2, Calculations!$I445:$QJ445) -> 0 | Y103: =SUMIF(Calculations!$I$8:$QJ$8, Y$2, Calculations!$I445:$QJ445) -> 0 | Z103: =SUMIF(Calculations!$I$8:$QJ$8, Z$2, Calculations!$I445:$QJ445) -> 0 | AA103: =SUMIF(Calculations!$I$8:$QJ$8, AA$2, Calculations!$I445:$QJ445) -> 0 | AB103: =SUMIF(Calculations!$I$8:$QJ$8, AB$2, Calculations!$I445:$QJ445) -> 0 | AC103: =SUMIF(Calculations!$I$8:$QJ$8, AC$2, Calculations!$I445:$QJ445) -> 0 | AD103: =SUMIF(Calculations!$I$8:$QJ$8, AD$2, Calculations!$I445:$QJ445) -> 0 | AE103: =SUMIF(Calculations!$I$8:$QJ$8, AE$2, Calculations!$I445:$QJ445) -> 0 | AF103: =SUMIF(Calculations!$I$8:$QJ$8, AF$2, Calculations!$I445:$QJ445) -> 0 | AG103: =SUMIF(Calculations!$I$8:$QJ$8, AG$2, Calculations!$I445:$QJ445) -> 0 | AH103: =SUMIF(Calculations!$I$8:$QJ$8, AH$2, Calculations!$I445:$QJ445) -> 0 | AI103: =SUMIF(Calculations!$I$8:$QJ$8, AI$2, Calculations!$I445:$QJ445) -> 0 | AJ103: =SUMIF(Calculations!$I$8:$QJ$8, AJ$2, Calculations!$I445:$QJ445) -> 0
C104: =Calculations!C446 -> Cash Flows From Financing Activities | D104: -18769244.78 | E104: 13388112.47 | F104: =Calculations!E446 -> EUR | H104: -5381132.308 | I104: =SUM(I90:I103) -> 6205000 | J104: 6985000 | K104: 2172172.738 | L104: -1270514.277 | M104: -1270514.277 | N104: -1270514.277 | O104: -1270514.277 | P104: -1270514.277 | Q104: -1270514.277 | R104: -1270514.277 | S104: -1270514.277 | T104: -1270514.277 | U104: -1270514.277 | V104: -1270514.277 | W104: -1270514.277 | X104: -1270514.277 | Y104: -1270514.277 | Z104: -1270514.277 | AA104: -1270514.277 | AB104: -1226378.176 | AC104: -241370.9506 | AD104: -552132.9313 | AE104: -552132.9313 | AF104: -552132.9313 | AG104: -552132.9313 | AH104: 3261204.232 | AI104: 0 | AJ104: =SUM(AJ90:AJ103) -> 0
D105: 0 | E105: 0
B106: Net Movements In Cash | D106: 2872943.121 | E106: 5077426.04 | F106: =Calculations!E448 -> EUR | H106: =SUM(I106:AT106) -> 7950369.161 | I106: =I83+I87+I104 -> 16869.93769 | J106: 4913.88535 | K106: 290380.431 | L106: 249920.1516 | M106: 238609.2279 | N106: 233855.093 | O106: 224966.7955 | P106: 215397.1495 | Q106: 205519.9834 | R106: 190743.8536 | S106: 175213.785 | T106: 159874.1887 | U106: 144229.4196 | V106: 128726.058 | W106: 113037.8873 | X106: 95270.15268 | Y106: 76925.78085 | Z106: 58491.20801 | AA106: 39285.92591 | AB106: 64992.05835 | AC106: -1348250.831 | AD106: 566269.857 | AE106: 491420.9985 | AF106: 459997.1011 | AG106: 426373.5003 | AH106: 4241376.932 | AI106: 995059.8197 | AJ106: =AJ83+AJ87+AJ104 -> -809101.1903
D107: =SUM(K107:AB107) -> 0
B108: Cash Position
C109: =Calculations!C451 -> Beginning of Period | F109: =Calculations!E451 -> EUR | I109: =H110 -> 0 | J109: =I110 -> 16869.93769 | K109: 21783.82304 | L109: 312164.2541 | M109: 562084.4057 | N109: =M110 -> 800693.6336 | O109: 1034548.727 | P109: 1259515.522 | Q109: 1474912.672 | R109: 1680432.655 | S109: 1871176.509 | T109: 2046390.294 | U109: 2206264.482 | V109: 2350493.902 | W109: 2479219.96 | X109: 2592257.847 | Y109: 2687528 | Z109: 2764453.781 | AA109: 2822944.989 | AB109: 2862230.915 | AC109: 2927222.973 | AD109: 1578972.142 | AE109: 2145241.999 | AF109: 2636662.998 | AG109: =AF110 -> 3096660.099 | AH109: 3523033.599 | AI109: 7764410.531 | AJ109: 8759470.351
C110: =Calculations!C452 -> End of Period | F110: =Calculations!E452 -> EUR | H110: 0 | I110: =I106+I109 -> 16869.93769 | J110: =J106+J109 -> 21783.82304 | K110: 312164.2541 | L110: 562084.4057 | M110: 800693.6336 | N110: 1034548.727 | O110: 1259515.522 | P110: 1474912.672 | Q110: 1680432.655 | R110: 1871176.509 | S110: 2046390.294 | T110: 2206264.482 | U110: 2350493.902 | V110: 2479219.96 | W110: 2592257.847 | X110: 2687528 | Y110: 2764453.781 | Z110: 2822944.989 | AA110: 2862230.915 | AB110: 2927222.973 | AC110: 1578972.142 | AD110: 2145241.999 | AE110: 2636662.998 | AF110: 3096660.099 | AG110: =AG106+AG109 -> 3523033.599 | AH110: 7764410.531 | AI110: 8759470.351 | AJ110: 7950369.161
A112: · | B112: Cash Waterfall | F112: Unit
C114: =Calculations!C459 -> Drawdown of Equity | F114: =Calculations!E459 -> EUR | H114: =SUM(I114:AT114) -> 4020000 | I114: =SUMIF(Calculations!$I$8:$QJ$8, I$2, Calculations!$I459:$QJ459) -> 4020000 | J114: =SUMIF(Calculations!$I$8:$QJ$8, J$2, Calculations!$I459:$QJ459) -> 0 | K114: =SUMIF(Calculations!$I$8:$QJ$8, K$2, Calculations!$I459:$QJ459) -> 0 | L114: =SUMIF(Calculations!$I$8:$QJ$8, L$2, Calculations!$I459:$QJ459) -> 0 | M114: =SUMIF(Calculations!$I$8:$QJ$8, M$2, Calculations!$I459:$QJ459) -> 0 | N114: =SUMIF(Calculations!$I$8:$QJ$8, N$2, Calculations!$I459:$QJ459) -> 0 | O114: =SUMIF(Calculations!$I$8:$QJ$8, O$2, Calculations!$I459:$QJ459) -> 0 | P114: =SUMIF(Calculations!$I$8:$QJ$8, P$2, Calculations!$I459:$QJ459) -> 0 | Q114: =SUMIF(Calculations!$I$8:$QJ$8, Q$2, Calculations!$I459:$QJ459) -> 0 | R114: =SUMIF(Calculations!$I$8:$QJ$8, R$2, Calculations!$I459:$QJ459) -> 0 | S114: =SUMIF(Calculations!$I$8:$QJ$8, S$2, Calculations!$I459:$QJ459) -> 0 | T114: =SUMIF(Calculations!$I$8:$QJ$8, T$2, Calculations!$I459:$QJ459) -> 0 | U114: =SUMIF(Calculations!$I$8:$QJ$8, U$2, Calculations!$I459:$QJ459) -> 0 | V114: =SUMIF(Calculations!$I$8:$QJ$8, V$2, Calculations!$I459:$QJ459) -> 0 | W114: =SUMIF(Calculations!$I$8:$QJ$8, W$2, Calculations!$I459:$QJ459) -> 0 | X114: =SUMIF(Calculations!$I$8:$QJ$8, X$2, Calculations!$I459:$QJ459) -> 0 | Y114: =SUMIF(Calculations!$I$8:$QJ$8, Y$2, Calculations!$I459:$QJ459) -> 0 | Z114: =SUMIF(Calculations!$I$8:$QJ$8, Z$2, Calculations!$I459:$QJ459) -> 0 | AA114: =SUMIF(Calculations!$I$8:$QJ$8, AA$2, Calculations!$I459:$QJ459) -> 0 | AB114: =SUMIF(Calculations!$I$8:$QJ$8, AB$2, Calculations!$I459:$QJ459) -> 0 | AC114: =SUMIF(Calculations!$I$8:$QJ$8, AC$2, Calculations!$I459:$QJ459) -> 0 | AD114: =SUMIF(Calculations!$I$8:$QJ$8, AD$2, Calculations!$I459:$QJ459) -> 0 | AE114: =SUMIF(Calculations!$I$8:$QJ$8, AE$2, Calculations!$I459:$QJ459) -> 0 | AF114: =SUMIF(Calculations!$I$8:$QJ$8, AF$2, Calculations!$I459:$QJ459) -> 0 | AG114: =SUMIF(Calculations!$I$8:$QJ$8, AG$2, Calculations!$I459:$QJ459) -> 0 | AH114: =SUMIF(Calculations!$I$8:$QJ$8, AH$2, Calculations!$I459:$QJ459) -> 0 | AI114: =SUMIF(Calculations!$I$8:$QJ$8, AI$2, Calculations!$I459:$QJ459) -> 0 | AJ114: =SUMIF(Calculations!$I$8:$QJ$8, AJ$2, Calculations!$I459:$QJ459) -> 0
C115: =Calculations!C460 -> Interest on Reserve Accounts | F115: =Calculations!E460 -> EUR | H115: 0 | I115: =SUMIF(Calculations!$I$8:$QJ$8, I$2, Calculations!$I460:$QJ460) -> 0 | J115: =SUMIF(Calculations!$I$8:$QJ$8, J$2, Calculations!$I460:$QJ460) -> 0 | K115: =SUMIF(Calculations!$I$8:$QJ$8, K$2, Calculations!$I460:$QJ460) -> 0 | L115: =SUMIF(Calculations!$I$8:$QJ$8, L$2, Calculations!$I460:$QJ460) -> 0 | M115: =SUMIF(Calculations!$I$8:$QJ$8, M$2, Calculations!$I460:$QJ460) -> 0 | N115: =SUMIF(Calculations!$I$8:$QJ$8, N$2, Calculations!$I460:$QJ460) -> 0 | O115: =SUMIF(Calculations!$I$8:$QJ$8, O$2, Calculations!$I460:$QJ460) -> 0 | P115: =SUMIF(Calculations!$I$8:$QJ$8, P$2, Calculations!$I460:$QJ460) -> 0 | Q115: =SUMIF(Calculations!$I$8:$QJ$8, Q$2, Calculations!$I460:$QJ460) -> 0 | R115: =SUMIF(Calculations!$I$8:$QJ$8, R$2, Calculations!$I460:$QJ460) -> 0 | S115: =SUMIF(Calculations!$I$8:$QJ$8, S$2, Calculations!$I460:$QJ460) -> 0 | T115: =SUMIF(Calculations!$I$8:$QJ$8, T$2, Calculations!$I460:$QJ460) -> 0 | U115: =SUMIF(Calculations!$I$8:$QJ$8, U$2, Calculations!$I460:$QJ460) -> 0 | V115: =SUMIF(Calculations!$I$8:$QJ$8, V$2, Calculations!$I460:$QJ460) -> 0 | W115: =SUMIF(Calculations!$I$8:$QJ$8, W$2, Calculations!$I460:$QJ460) -> 0 | X115: =SUMIF(Calculations!$I$8:$QJ$8, X$2, Calculations!$I460:$QJ460) -> 0 | Y115: =SUMIF(Calculations!$I$8:$QJ$8, Y$2, Calculations!$I460:$QJ460) -> 0 | Z115: =SUMIF(Calculations!$I$8:$QJ$8, Z$2, Calculations!$I460:$QJ460) -> 0 | AA115: =SUMIF(Calculations!$I$8:$QJ$8, AA$2, Calculations!$I460:$QJ460) -> 0 | AB115: =SUMIF(Calculations!$I$8:$QJ$8, AB$2, Calculations!$I460:$QJ460) -> 0 | AC115: =SUMIF(Calculations!$I$8:$QJ$8, AC$2, Calculations!$I460:$QJ460) -> 0 | AD115: =SUMIF(Calculations!$I$8:$QJ$8, AD$2, Calculations!$I460:$QJ460) -> 0 | AE115: =SUMIF(Calculations!$I$8:$QJ$8, AE$2, Calculations!$I460:$QJ460) -> 0 | AF115: =SUMIF(Calculations!$I$8:$QJ$8, AF$2, Calculations!$I460:$QJ460) -> 0 | AG115: =SUMIF(Calculations!$I$8:$QJ$8, AG$2, Calculations!$I460:$QJ460) -> 0 | AH115: =SUMIF(Calculations!$I$8:$QJ$8, AH$2, Calculations!$I460:$QJ460) -> 0 | AI115: =SUMIF(Calculations!$I$8:$QJ$8, AI$2, Calculations!$I460:$QJ460) -> 0 | AJ115: =SUMIF(Calculations!$I$8:$QJ$8, AJ$2, Calculations!$I460:$QJ460) -> 0
C116: =Calculations!C461 -> Cash Flow Available for Debt Service | F116: =Calculations!E461 -> EUR | H116: 35361958.22 | I116: =SUMIF(Calculations!$I$8:$QJ$8, I$2, Calculations!$I461:$QJ461) -> 3404691.433 | J116: =SUMIF(Calculations!$I$8:$QJ$8, J$2, Calculations!$I461:$QJ461) -> 405586.9414 | K116: =SUMIF(Calculations!$I$8:$QJ$8, K$2, Calculations!$I461:$QJ461) -> 791226.3614 | L116: =SUMIF(Calculations!$I$8:$QJ$8, L$2, Calculations!$I461:$QJ461) -> 1520434.428 | M116: =SUMIF(Calculations!$I$8:$QJ$8, M$2, Calculations!$I461:$QJ461) -> 1509123.505 | N116: =SUMIF(Calculations!$I$8:$QJ$8, N$2, Calculations!$I461:$QJ461) -> 1504369.37 | O116: =SUMIF(Calculations!$I$8:$QJ$8, O$2, Calculations!$I461:$QJ461) -> 1495481.072 | P116: =SUMIF(Calculations!$I$8:$QJ$8, P$2, Calculations!$I461:$QJ461) -> 1485911.426 | Q116: =SUMIF(Calculations!$I$8:$QJ$8, Q$2, Calculations!$I461:$QJ461) -> 1476034.26 | R116: =SUMIF(Calculations!$I$8:$QJ$8, R$2, Calculations!$I461:$QJ461) -> 1461258.13 | S116: =SUMIF(Calculations!$I$8:$QJ$8, S$2, Calculations!$I461:$QJ461) -> 1445728.062 | T116: =SUMIF(Calculations!$I$8:$QJ$8, T$2, Calculations!$I461:$QJ461) -> 1430388.465 | U116: =SUMIF(Calculations!$I$8:$QJ$8, U$2, Calculations!$I461:$QJ461) -> 1414743.696 | V116: =SUMIF(Calculations!$I$8:$QJ$8, V$2, Calculations!$I461:$QJ461) -> 1399240.335 | W116: =SUMIF(Calculations!$I$8:$QJ$8, W$2, Calculations!$I461:$QJ461) -> 1383552.164 | X116: =SUMIF(Calculations!$I$8:$QJ$8, X$2, Calculations!$I461:$QJ461) -> 1365784.429 | Y116: =SUMIF(Calculations!$I$8:$QJ$8, Y$2, Calculations!$I461:$QJ461) -> 1347440.058 | Z116: =SUMIF(Calculations!$I$8:$QJ$8, Z$2, Calculations!$I461:$QJ461) -> 1329005.485 | AA116: =SUMIF(Calculations!$I$8:$QJ$8, AA$2, Calculations!$I461:$QJ461) -> 1309800.203 | AB116: =SUMIF(Calculations!$I$8:$QJ$8, AB$2, Calculations!$I461:$QJ461) -> 1291370.235 | AC116: =SUMIF(Calculations!$I$8:$QJ$8, AC$2, Calculations!$I461:$QJ461) -> 1272063.651 | AD116: =SUMIF(Calculations!$I$8:$QJ$8, AD$2, Calculations!$I461:$QJ461) -> 1118402.788 | AE116: =SUMIF(Calculations!$I$8:$QJ$8, AE$2, Calculations!$I461:$QJ461) -> 1043553.93 | AF116: =SUMIF(Calculations!$I$8:$QJ$8, AF$2, Calculations!$I461:$QJ461) -> 1012130.032 | AG116: =SUMIF(Calculations!$I$8:$QJ$8, AG$2, Calculations!$I461:$QJ461) -> 978506.4315 | AH116: =SUMIF(Calculations!$I$8:$QJ$8, AH$2, Calculations!$I461:$QJ461) -> 980172.6998 | AI116: =SUMIF(Calculations!$I$8:$QJ$8, AI$2, Calculations!$I461:$QJ461) -> 995059.8197 | AJ116: =SUMIF(Calculations!$I$8:$QJ$8, AJ$2, Calculations!$I461:$QJ461) -> -809101.1903
C117: =Calculations!C462 -> less: Senior Debt Interest Expense | F117: =Calculations!E462 -> EUR | H117: -4667132.78 | I117: =SUMIF(Calculations!$I$8:$QJ$8, I$2, Calculations!$I462:$QJ462) -> 0 | J117: =SUMIF(Calculations!$I$8:$QJ$8, J$2, Calculations!$I462:$QJ462) -> 0 | K117: =SUMIF(Calculations!$I$8:$QJ$8, K$2, Calculations!$I462:$QJ462) -> -148416.475 | L117: =SUMIF(Calculations!$I$8:$QJ$8, L$2, Calculations!$I462:$QJ462) -> -436738.2941 | M117: =SUMIF(Calculations!$I$8:$QJ$8, M$2, Calculations!$I462:$QJ462) -> -420851.4122 | N117: =SUMIF(Calculations!$I$8:$QJ$8, N$2, Calculations!$I462:$QJ462) -> -404068.3852 | O117: =SUMIF(Calculations!$I$8:$QJ$8, O$2, Calculations!$I462:$QJ462) -> -386338.6637 | P117: =SUMIF(Calculations!$I$8:$QJ$8, P$2, Calculations!$I462:$QJ462) -> -367608.8464 | Q117: =SUMIF(Calculations!$I$8:$QJ$8, Q$2, Calculations!$I462:$QJ462) -> -347822.5203 | R117: =SUMIF(Calculations!$I$8:$QJ$8, R$2, Calculations!$I462:$QJ462) -> -326920.0898 | S117: =SUMIF(Calculations!$I$8:$QJ$8, S$2, Calculations!$I462:$QJ462) -> -304838.5979 | T117: =SUMIF(Calculations!$I$8:$QJ$8, T$2, Calculations!$I462:$QJ462) -> -281511.5364 | U117: =SUMIF(Calculations!$I$8:$QJ$8, U$2, Calculations!$I462:$QJ462) -> -256868.6452 | V117: =SUMIF(Calculations!$I$8:$QJ$8, V$2, Calculations!$I462:$QJ462) -> -230835.7012 | W117: =SUMIF(Calculations!$I$8:$QJ$8, W$2, Calculations!$I462:$QJ462) -> -203334.2946 | X117: =SUMIF(Calculations!$I$8:$QJ$8, X$2, Calculations!$I462:$QJ462) -> -174281.5925 | Y117: =SUMIF(Calculations!$I$8:$QJ$8, Y$2, Calculations!$I462:$QJ462) -> -143590.0896 | Z117: =SUMIF(Calculations!$I$8:$QJ$8, Z$2, Calculations!$I462:$QJ462) -> -111167.3447 | AA117: =SUMIF(Calculations!$I$8:$QJ$8, AA$2, Calculations!$I462:$QJ462) -> -76915.7021 | AB117: =SUMIF(Calculations!$I$8:$QJ$8, AB$2, Calculations!$I462:$QJ462) -> -40731.99765 | AC117: =SUMIF(Calculations!$I$8:$QJ$8, AC$2, Calculations!$I462:$QJ462) -> -4292.591633 | AD117: =SUMIF(Calculations!$I$8:$QJ$8, AD$2, Calculations!$I462:$QJ462) -> 0 | AE117: =SUMIF(Calculations!$I$8:$QJ$8, AE$2, Calculations!$I462:$QJ462) -> 0 | AF117: =SUMIF(Calculations!$I$8:$QJ$8, AF$2, Calculations!$I462:$QJ462) -> 0 | AG117: =SUMIF(Calculations!$I$8:$QJ$8, AG$2, Calculations!$I462:$QJ462) -> 0 | AH117: =SUMIF(Calculations!$I$8:$QJ$8, AH$2, Calculations!$I462:$QJ462) -> 0 | AI117: =SUMIF(Calculations!$I$8:$QJ$8, AI$2, Calculations!$I462:$QJ462) -> 0 | AJ117: =SUMIF(Calculations!$I$8:$QJ$8, AJ$2, Calculations!$I462:$QJ462) -> 0
C118: =Calculations!C463 -> add: Drawdown on Senior Debt | F118: =Calculations!E463 -> EUR | H118: 8040000 | I118: =SUMIF(Calculations!$I$8:$QJ$8, I$2, Calculations!$I463:$QJ463) -> 175000 | J118: =SUMIF(Calculations!$I$8:$QJ$8, J$2, Calculations!$I463:$QJ463) -> 4975000 | K118: =SUMIF(Calculations!$I$8:$QJ$8, K$2, Calculations!$I463:$QJ463) -> 2890000 | L118: =SUMIF(Calculations!$I$8:$QJ$8, L$2, Calculations!$I463:$QJ463) -> 0 | M118: =SUMIF(Calculations!$I$8:$QJ$8, M$2, Calculations!$I463:$QJ463) -> 0 | N118: =SUMIF(Calculations!$I$8:$QJ$8, N$2, Calculations!$I463:$QJ463) -> 0 | O118: =SUMIF(Calculations!$I$8:$QJ$8, O$2, Calculations!$I463:$QJ463) -> 0 | P118: =SUMIF(Calculations!$I$8:$QJ$8, P$2, Calculations!$I463:$QJ463) -> 0 | Q118: =SUMIF(Calculations!$I$8:$QJ$8, Q$2, Calculations!$I463:$QJ463) -> 0 | R118: =SUMIF(Calculations!$I$8:$QJ$8, R$2, Calculations!$I463:$QJ463) -> 0 | S118: =SUMIF(Calculations!$I$8:$QJ$8, S$2, Calculations!$I463:$QJ463) -> 0 | T118: =SUMIF(Calculations!$I$8:$QJ$8, T$2, Calculations!$I463:$QJ463) -> 0 | U118: =SUMIF(Calculations!$I$8:$QJ$8, U$2, Calculations!$I463:$QJ463) -> 0 | V118: =SUMIF(Calculations!$I$8:$QJ$8, V$2, Calculations!$I463:$QJ463) -> 0 | W118: =SUMIF(Calculations!$I$8:$QJ$8, W$2, Calculations!$I463:$QJ463) -> 0 | X118: =SUMIF(Calculations!$I$8:$QJ$8, X$2, Calculations!$I463:$QJ463) -> 0 | Y118: =SUMIF(Calculations!$I$8:$QJ$8, Y$2, Calculations!$I463:$QJ463) -> 0 | Z118: =SUMIF(Calculations!$I$8:$QJ$8, Z$2, Calculations!$I463:$QJ463) -> 0 | AA118: =SUMIF(Calculations!$I$8:$QJ$8, AA$2, Calculations!$I463:$QJ463) -> 0 | AB118: =SUMIF(Calculations!$I$8:$QJ$8, AB$2, Calculations!$I463:$QJ463) -> 0 | AC118: =SUMIF(Calculations!$I$8:$QJ$8, AC$2, Calculations!$I463:$QJ463) -> 0 | AD118: =SUMIF(Calculations!$I$8:$QJ$8, AD$2, Calculations!$I463:$QJ463) -> 0 | AE118: =SUMIF(Calculations!$I$8:$QJ$8, AE$2, Calculations!$I463:$QJ463) -> 0 | AF118: =SUMIF(Calculations!$I$8:$QJ$8, AF$2, Calculations!$I463:$QJ463) -> 0 | AG118: =SUMIF(Calculations!$I$8:$QJ$8, AG$2, Calculations!$I463:$QJ463) -> 0 | AH118: =SUMIF(Calculations!$I$8:$QJ$8, AH$2, Calculations!$I463:$QJ463) -> 0 | AI118: =SUMIF(Calculations!$I$8:$QJ$8, AI$2, Calculations!$I463:$QJ463) -> 0 | AJ118: =SUMIF(Calculations!$I$8:$QJ$8, AJ$2, Calculations!$I463:$QJ463) -> 0
C119: =Calculations!C464 -> less: Senior Debt Principal Repayment | F119: =Calculations!E464 -> EUR | H119: -7729238.019 | I119: =SUMIF(Calculations!$I$8:$QJ$8, I$2, Calculations!$I464:$QJ464) -> 0 | J119: =SUMIF(Calculations!$I$8:$QJ$8, J$2, Calculations!$I464:$QJ464) -> 0 | K119: =SUMIF(Calculations!$I$8:$QJ$8, K$2, Calculations!$I464:$QJ464) -> -31178.86137 | L119: =SUMIF(Calculations!$I$8:$QJ$8, L$2, Calculations!$I464:$QJ464) -> -281643.0513 | M119: =SUMIF(Calculations!$I$8:$QJ$8, M$2, Calculations!$I464:$QJ464) -> -297529.9332 | N119: =SUMIF(Calculations!$I$8:$QJ$8, N$2, Calculations!$I464:$QJ464) -> -314312.9602 | O119: =SUMIF(Calculations!$I$8:$QJ$8, O$2, Calculations!$I464:$QJ464) -> -332042.6817 | P119: =SUMIF(Calculations!$I$8:$QJ$8, P$2, Calculations!$I464:$QJ464) -> -350772.499 | Q119: =SUMIF(Calculations!$I$8:$QJ$8, Q$2, Calculations!$I464:$QJ464) -> -370558.8251 | R119: =SUMIF(Calculations!$I$8:$QJ$8, R$2, Calculations!$I464:$QJ464) -> -391461.2556 | S119: =SUMIF(Calculations!$I$8:$QJ$8, S$2, Calculations!$I464:$QJ464) -> -413542.7474 | T119: =SUMIF(Calculations!$I$8:$QJ$8, T$2, Calculations!$I464:$QJ464) -> -436869.809 | U119: =SUMIF(Calculations!$I$8:$QJ$8, U$2, Calculations!$I464:$QJ464) -> -461512.7002 | V119: =SUMIF(Calculations!$I$8:$QJ$8, V$2, Calculations!$I464:$QJ464) -> -487545.6441 | W119: =SUMIF(Calculations!$I$8:$QJ$8, W$2, Calculations!$I464:$QJ464) -> -515047.0508 | X119: =SUMIF(Calculations!$I$8:$QJ$8, X$2, Calculations!$I464:$QJ464) -> -544099.7529 | Y119: =SUMIF(Calculations!$I$8:$QJ$8, Y$2, Calculations!$I464:$QJ464) -> -574791.2558 | Z119: =SUMIF(Calculations!$I$8:$QJ$8, Z$2, Calculations!$I464:$QJ464) -> -607214.0007 | AA119: =SUMIF(Calculations!$I$8:$QJ$8, AA$2, Calculations!$I464:$QJ464) -> -641465.6433 | AB119: =SUMIF(Calculations!$I$8:$QJ$8, AB$2, Calculations!$I464:$QJ464) -> -677649.3477 | AC119: =SUMIF(Calculations!$I$8:$QJ$8, AC$2, Calculations!$I464:$QJ464) -> 0 | AD119: =SUMIF(Calculations!$I$8:$QJ$8, AD$2, Calculations!$I464:$QJ464) -> 0 | AE119: =SUMIF(Calculations!$I$8:$QJ$8, AE$2, Calculations!$I464:$QJ464) -> 0 | AF119: =SUMIF(Calculations!$I$8:$QJ$8, AF$2, Calculations!$I464:$QJ464) -> 0 | AG119: =SUMIF(Calculations!$I$8:$QJ$8, AG$2, Calculations!$I464:$QJ464) -> 0 | AH119: =SUMIF(Calculations!$I$8:$QJ$8, AH$2, Calculations!$I464:$QJ464) -> 0 | AI119: =SUMIF(Calculations!$I$8:$QJ$8, AI$2, Calculations!$I464:$QJ464) -> 0 | AJ119: =SUMIF(Calculations!$I$8:$QJ$8, AJ$2, Calculations!$I464:$QJ464) -> 0
C120: =Calculations!C465 -> Cash Flow Available for Reserve Accounts | F120: =Calculations!E465 -> EUR | H120: 31005587.42 | I120: =SUMIF(Calculations!$I$8:$QJ$8, I$2, Calculations!$I465:$QJ465) -> 3579691.433 | J120: =SUMIF(Calculations!$I$8:$QJ$8, J$2, Calculations!$I465:$QJ465) -> 5380586.941 | K120: =SUMIF(Calculations!$I$8:$QJ$8, K$2, Calculations!$I465:$QJ465) -> 3501631.025 | L120: =SUMIF(Calculations!$I$8:$QJ$8, L$2, Calculations!$I465:$QJ465) -> 802053.0829 | M120: =SUMIF(Calculations!$I$8:$QJ$8, M$2, Calculations!$I465:$QJ465) -> 790742.1592 | N120: =SUMIF(Calculations!$I$8:$QJ$8, N$2, Calculations!$I465:$QJ465) -> 785988.0243 | O120: =SUMIF(Calculations!$I$8:$QJ$8, O$2, Calculations!$I465:$QJ465) -> 777099.7268 | P120: =SUMIF(Calculations!$I$8:$QJ$8, P$2, Calculations!$I465:$QJ465) -> 767530.0808 | Q120: =SUMIF(Calculations!$I$8:$QJ$8, Q$2, Calculations!$I465:$QJ465) -> 757652.9147 | R120: =SUMIF(Calculations!$I$8:$QJ$8, R$2, Calculations!$I465:$QJ465) -> 742876.7849 | S120: =SUMIF(Calculations!$I$8:$QJ$8, S$2, Calculations!$I465:$QJ465) -> 727346.7163 | T120: =SUMIF(Calculations!$I$8:$QJ$8, T$2, Calculations!$I465:$QJ465) -> 712007.12 | U120: =SUMIF(Calculations!$I$8:$QJ$8, U$2, Calculations!$I465:$QJ465) -> 696362.3509 | V120: =SUMIF(Calculations!$I$8:$QJ$8, V$2, Calculations!$I465:$QJ465) -> 680858.9893 | W120: =SUMIF(Calculations!$I$8:$QJ$8, W$2, Calculations!$I465:$QJ465) -> 665170.8186 | X120: =SUMIF(Calculations!$I$8:$QJ$8, X$2, Calculations!$I465:$QJ465) -> 647403.084 | Y120: =SUMIF(Calculations!$I$8:$QJ$8, Y$2, Calculations!$I465:$QJ465) -> 629058.7121 | Z120: =SUMIF(Calculations!$I$8:$QJ$8, Z$2, Calculations!$I465:$QJ465) -> 610624.1393 | AA120: =SUMIF(Calculations!$I$8:$QJ$8, AA$2, Calculations!$I465:$QJ465) -> 591418.8572 | AB120: =SUMIF(Calculations!$I$8:$QJ$8, AB$2, Calculations!$I465:$QJ465) -> 572988.8892 | AC120: =SUMIF(Calculations!$I$8:$QJ$8, AC$2, Calculations!$I465:$QJ465) -> 1267771.059 | AD120: =SUMIF(Calculations!$I$8:$QJ$8, AD$2, Calculations!$I465:$QJ465) -> 1118402.788 | AE120: =SUMIF(Calculations!$I$8:$QJ$8, AE$2, Calculations!$I465:$QJ465) -> 1043553.93 | AF120: =SUMIF(Calculations!$I$8:$QJ$8, AF$2, Calculations!$I465:$QJ465) -> 1012130.032 | AG120: =SUMIF(Calculations!$I$8:$QJ$8, AG$2, Calculations!$I465:$QJ465) -> 978506.4315 | AH120: =SUMIF(Calculations!$I$8:$QJ$8, AH$2, Calculations!$I465:$QJ465) -> 980172.6998 | AI120: =SUMIF(Calculations!$I$8:$QJ$8, AI$2, Calculations!$I465:$QJ465) -> 995059.8197 | AJ120: =SUMIF(Calculations!$I$8:$QJ$8, AJ$2, Calculations!$I465:$QJ465) -> -809101.1903
C121: =Calculations!C466 -> less: Change in DSRA | F121: =Calculations!E466 -> EUR | H121: 0 | I121: =SUMIF(Calculations!$I$8:$QJ$8, I$2, Calculations!$I466:$QJ466) -> 0 | J121: =SUMIF(Calculations!$I$8:$QJ$8, J$2, Calculations!$I466:$QJ466) -> 0 | K121: =SUMIF(Calculations!$I$8:$QJ$8, K$2, Calculations!$I466:$QJ466) -> -359190.6727 | L121: =SUMIF(Calculations!$I$8:$QJ$8, L$2, Calculations!$I466:$QJ466) -> 0 | M121: =SUMIF(Calculations!$I$8:$QJ$8, M$2, Calculations!$I466:$QJ466) -> 0 | N121: =SUMIF(Calculations!$I$8:$QJ$8, N$2, Calculations!$I466:$QJ466) -> 0 | O121: =SUMIF(Calculations!$I$8:$QJ$8, O$2, Calculations!$I466:$QJ466) -> 0 | P121: =SUMIF(Calculations!$I$8:$QJ$8, P$2, Calculations!$I466:$QJ466) -> 0 | Q121: =SUMIF(Calculations!$I$8:$QJ$8, Q$2, Calculations!$I466:$QJ466) -> 0 | R121: =SUMIF(Calculations!$I$8:$QJ$8, R$2, Calculations!$I466:$QJ466) -> 0 | S121: =SUMIF(Calculations!$I$8:$QJ$8, S$2, Calculations!$I466:$QJ466) -> 0 | T121: =SUMIF(Calculations!$I$8:$QJ$8, T$2, Calculations!$I466:$QJ466) -> 0 | U121: =SUMIF(Calculations!$I$8:$QJ$8, U$2, Calculations!$I466:$QJ466) -> 0 | V121: =SUMIF(Calculations!$I$8:$QJ$8, V$2, Calculations!$I466:$QJ466) -> 0 | W121: =SUMIF(Calculations!$I$8:$QJ$8, W$2, Calculations!$I466:$QJ466) -> 0 | X121: =SUMIF(Calculations!$I$8:$QJ$8, X$2, Calculations!$I466:$QJ466) -> 0 | Y121: =SUMIF(Calculations!$I$8:$QJ$8, Y$2, Calculations!$I466:$QJ466) -> 0 | Z121: =SUMIF(Calculations!$I$8:$QJ$8, Z$2, Calculations!$I466:$QJ466) -> 0 | AA121: =SUMIF(Calculations!$I$8:$QJ$8, AA$2, Calculations!$I466:$QJ466) -> 0 | AB121: =SUMIF(Calculations!$I$8:$QJ$8, AB$2, Calculations!$I466:$QJ466) -> 44136.10042 | AC121: =SUMIF(Calculations!$I$8:$QJ$8, AC$2, Calculations!$I466:$QJ466) -> 315054.5723 | AD121: =SUMIF(Calculations!$I$8:$QJ$8, AD$2, Calculations!$I466:$QJ466) -> 0 | AE121: =SUMIF(Calculations!$I$8:$QJ$8, AE$2, Calculations!$I466:$QJ466) -> 0 | AF121: =SUMIF(Calculations!$I$8:$QJ$8, AF$2, Calculations!$I466:$QJ466) -> 0 | AG121: =SUMIF(Calculations!$I$8:$QJ$8, AG$2, Calculations!$I466:$QJ466) -> 0 | AH121: =SUMIF(Calculations!$I$8:$QJ$8, AH$2, Calculations!$I466:$QJ466) -> 0 | AI121: =SUMIF(Calculations!$I$8:$QJ$8, AI$2, Calculations!$I466:$QJ466) -> 0 | AJ121: =SUMIF(Calculations!$I$8:$QJ$8, AJ$2, Calculations!$I466:$QJ466) -> 0
C122: =Calculations!C467 -> less: Change in MMRA | F122: =Calculations!E467 -> EUR | H122: 0 | I122: =SUMIF(Calculations!$I$8:$QJ$8, I$2, Calculations!$I467:$QJ467) -> 0 | J122: =SUMIF(Calculations!$I$8:$QJ$8, J$2, Calculations!$I467:$QJ467) -> 0 | K122: =SUMIF(Calculations!$I$8:$QJ$8, K$2, Calculations!$I467:$QJ467) -> 0 | L122: =SUMIF(Calculations!$I$8:$QJ$8, L$2, Calculations!$I467:$QJ467) -> 0 | M122: =SUMIF(Calculations!$I$8:$QJ$8, M$2, Calculations!$I467:$QJ467) -> 0 | N122: =SUMIF(Calculations!$I$8:$QJ$8, N$2, Calculations!$I467:$QJ467) -> 0 | O122: =SUMIF(Calculations!$I$8:$QJ$8, O$2, Calculations!$I467:$QJ467) -> 0 | P122: =SUMIF(Calculations!$I$8:$QJ$8, P$2, Calculations!$I467:$QJ467) -> 0 | Q122: =SUMIF(Calculations!$I$8:$QJ$8, Q$2, Calculations!$I467:$QJ467) -> 0 | R122: =SUMIF(Calculations!$I$8:$QJ$8, R$2, Calculations!$I467:$QJ467) -> 0 | S122: =SUMIF(Calculations!$I$8:$QJ$8, S$2, Calculations!$I467:$QJ467) -> 0 | T122: =SUMIF(Calculations!$I$8:$QJ$8, T$2, Calculations!$I467:$QJ467) -> 0 | U122: =SUMIF(Calculations!$I$8:$QJ$8, U$2, Calculations!$I467:$QJ467) -> 0 | V122: =SUMIF(Calculations!$I$8:$QJ$8, V$2, Calculations!$I467:$QJ467) -> 0 | W122: =SUMIF(Calculations!$I$8:$QJ$8, W$2, Calculations!$I467:$QJ467) -> 0 | X122: =SUMIF(Calculations!$I$8:$QJ$8, X$2, Calculations!$I467:$QJ467) -> 0 | Y122: =SUMIF(Calculations!$I$8:$QJ$8, Y$2, Calculations!$I467:$QJ467) -> 0 | Z122: =SUMIF(Calculations!$I$8:$QJ$8, Z$2, Calculations!$I467:$QJ467) -> 0 | AA122: =SUMIF(Calculations!$I$8:$QJ$8, AA$2, Calculations!$I467:$QJ467) -> 0 | AB122: =SUMIF(Calculations!$I$8:$QJ$8, AB$2, Calculations!$I467:$QJ467) -> 0 | AC122: =SUMIF(Calculations!$I$8:$QJ$8, AC$2, Calculations!$I467:$QJ467) -> 0 | AD122: =SUMIF(Calculations!$I$8:$QJ$8, AD$2, Calculations!$I467:$QJ467) -> 0 | AE122: =SUMIF(Calculations!$I$8:$QJ$8, AE$2, Calculations!$I467:$QJ467) -> 0 | AF122: =SUMIF(Calculations!$I$8:$QJ$8, AF$2, Calculations!$I467:$QJ467) -> 0 | AG122: =SUMIF(Calculations!$I$8:$QJ$8, AG$2, Calculations!$I467:$QJ467) -> 0 | AH122: =SUMIF(Calculations!$I$8:$QJ$8, AH$2, Calculations!$I467:$QJ467) -> 0 | AI122: =SUMIF(Calculations!$I$8:$QJ$8, AI$2, Calculations!$I467:$QJ467) -> 0 | AJ122: =SUMIF(Calculations!$I$8:$QJ$8, AJ$2, Calculations!$I467:$QJ467) -> 0
C123: =Calculations!C468 -> Cash Flow Available for Subordinated Debt | F123: =Calculations!E468 -> EUR | H123: 31005587.42 | I123: =SUMIF(Calculations!$I$8:$QJ$8, I$2, Calculations!$I468:$QJ468) -> 3579691.433 | J123: =SUMIF(Calculations!$I$8:$QJ$8, J$2, Calculations!$I468:$QJ468) -> 5380586.941 | K123: =SUMIF(Calculations!$I$8:$QJ$8, K$2, Calculations!$I468:$QJ468) -> 3142440.352 | L123: =SUMIF(Calculations!$I$8:$QJ$8, L$2, Calculations!$I468:$QJ468) -> 802053.0829 | M123: =SUMIF(Calculations!$I$8:$QJ$8, M$2, Calculations!$I468:$QJ468) -> 790742.1592 | N123: =SUMIF(Calculations!$I$8:$QJ$8, N$2, Calculations!$I468:$QJ468) -> 785988.0243 | O123: =SUMIF(Calculations!$I$8:$QJ$8, O$2, Calculations!$I468:$QJ468) -> 777099.7268 | P123: =SUMIF(Calculations!$I$8:$QJ$8, P$2, Calculations!$I468:$QJ468) -> 767530.0808 | Q123: =SUMIF(Calculations!$I$8:$QJ$8, Q$2, Calculations!$I468:$QJ468) -> 757652.9147 | R123: =SUMIF(Calculations!$I$8:$QJ$8, R$2, Calculations!$I468:$QJ468) -> 742876.7849 | S123: =SUMIF(Calculations!$I$8:$QJ$8, S$2, Calculations!$I468:$QJ468) -> 727346.7163 | T123: =SUMIF(Calculations!$I$8:$QJ$8, T$2, Calculations!$I468:$QJ468) -> 712007.12 | U123: =SUMIF(Calculations!$I$8:$QJ$8, U$2, Calculations!$I468:$QJ468) -> 696362.3509 | V123: =SUMIF(Calculations!$I$8:$QJ$8, V$2, Calculations!$I468:$QJ468) -> 680858.9893 | W123: =SUMIF(Calculations!$I$8:$QJ$8, W$2, Calculations!$I468:$QJ468) -> 665170.8186 | X123: =SUMIF(Calculations!$I$8:$QJ$8, X$2, Calculations!$I468:$QJ468) -> 647403.084 | Y123: =SUMIF(Calculations!$I$8:$QJ$8, Y$2, Calculations!$I468:$QJ468) -> 629058.7121 | Z123: =SUMIF(Calculations!$I$8:$QJ$8, Z$2, Calculations!$I468:$QJ468) -> 610624.1393 | AA123: =SUMIF(Calculations!$I$8:$QJ$8, AA$2, Calculations!$I468:$QJ468) -> 591418.8572 | AB123: =SUMIF(Calculations!$I$8:$QJ$8, AB$2, Calculations!$I468:$QJ468) -> 617124.9896 | AC123: =SUMIF(Calculations!$I$8:$QJ$8, AC$2, Calculations!$I468:$QJ468) -> 1582825.632 | AD123: =SUMIF(Calculations!$I$8:$QJ$8, AD$2, Calculations!$I468:$QJ468) -> 1118402.788 | AE123: =SUMIF(Calculations!$I$8:$QJ$8, AE$2, Calculations!$I468:$QJ468) -> 1043553.93 | AF123: =SUMIF(Calculations!$I$8:$QJ$8, AF$2, Calculations!$I468:$QJ468) -> 1012130.032 | AG123: =SUMIF(Calculations!$I$8:$QJ$8, AG$2, Calculations!$I468:$QJ468) -> 978506.4315 | AH123: =SUMIF(Calculations!$I$8:$QJ$8, AH$2, Calculations!$I468:$QJ468) -> 980172.6998 | AI123: =SUMIF(Calculations!$I$8:$QJ$8, AI$2, Calculations!$I468:$QJ468) -> 995059.8197 | AJ123: =SUMIF(Calculations!$I$8:$QJ$8, AJ$2, Calculations!$I468:$QJ468) -> -809101.1903
C124: =Calculations!C469 -> less: Subordinated Debt Interest Expense | F124: =Calculations!E469 -> EUR | H124: -5044761.508 | I124: =SUMIF(Calculations!$I$8:$QJ$8, I$2, Calculations!$I469:$QJ469) -> 0 | J124: =SUMIF(Calculations!$I$8:$QJ$8, J$2, Calculations!$I469:$QJ469) -> 0 | K124: =SUMIF(Calculations!$I$8:$QJ$8, K$2, Calculations!$I469:$QJ469) -> -163228.1202 | L124: =SUMIF(Calculations!$I$8:$QJ$8, L$2, Calculations!$I469:$QJ469) -> -482225.0688 | M124: =SUMIF(Calculations!$I$8:$QJ$8, M$2, Calculations!$I469:$QJ469) -> -473359.002 | N124: =SUMIF(Calculations!$I$8:$QJ$8, N$2, Calculations!$I469:$QJ469) -> -463368.4961 | O124: =SUMIF(Calculations!$I$8:$QJ$8, O$2, Calculations!$I469:$QJ469) -> -452110.9439 | P124: =SUMIF(Calculations!$I$8:$QJ$8, P$2, Calculations!$I469:$QJ469) -> -439425.6523 | Q124: =SUMIF(Calculations!$I$8:$QJ$8, Q$2, Calculations!$I469:$QJ469) -> -425131.5483 | R124: =SUMIF(Calculations!$I$8:$QJ$8, R$2, Calculations!$I469:$QJ469) -> -409024.5941 | S124: =SUMIF(Calculations!$I$8:$QJ$8, S$2, Calculations!$I469:$QJ469) -> -390874.8749 | T124: =SUMIF(Calculations!$I$8:$QJ$8, T$2, Calculations!$I469:$QJ469) -> -370423.317 | U124: =SUMIF(Calculations!$I$8:$QJ$8, U$2, Calculations!$I469:$QJ469) -> -347377.9897 | V124: =SUMIF(Calculations!$I$8:$QJ$8, V$2, Calculations!$I469:$QJ469) -> -321409.9381 | W124: =SUMIF(Calculations!$I$8:$QJ$8, W$2, Calculations!$I469:$QJ469) -> -292148.4875 | X124: =SUMIF(Calculations!$I$8:$QJ$8, X$2, Calculations!$I469:$QJ469) -> -259175.9526 | Y124: =SUMIF(Calculations!$I$8:$QJ$8, Y$2, Calculations!$I469:$QJ469) -> -222021.675 | Z124: =SUMIF(Calculations!$I$8:$QJ$8, Z$2, Calculations!$I469:$QJ469) -> -180155.305 | AA124: =SUMIF(Calculations!$I$8:$QJ$8, AA$2, Calculations!$I469:$QJ469) -> -132979.2313 | AB124: =SUMIF(Calculations!$I$8:$QJ$8, AB$2, Calculations!$I469:$QJ469) -> -79820.05067 | AC124: =SUMIF(Calculations!$I$8:$QJ$8, AC$2, Calculations!$I469:$QJ469) -> -19918.95536 | AD124: =SUMIF(Calculations!$I$8:$QJ$8, AD$2, Calculations!$I469:$QJ469) -> 47579.09818 | AE124: =SUMIF(Calculations!$I$8:$QJ$8, AE$2, Calculations!$I469:$QJ469) -> 123637.5944 | AF124: =SUMIF(Calculations!$I$8:$QJ$8, AF$2, Calculations!$I469:$QJ469) -> 209342.2117 | AG124: =SUMIF(Calculations!$I$8:$QJ$8, AG$2, Calculations!$I469:$QJ469) -> 305916.3196 | AH124: =SUMIF(Calculations!$I$8:$QJ$8, AH$2, Calculations!$I469:$QJ469) -> 192942.4707 | AI124: =SUMIF(Calculations!$I$8:$QJ$8, AI$2, Calculations!$I469:$QJ469) -> 0 | AJ124: =SUMIF(Calculations!$I$8:$QJ$8, AJ$2, Calculations!$I469:$QJ469) -> 0
C125: =Calculations!C470 -> add: Drawdown on Subordinated Debt | F125: =Calculations!E470 -> EUR | H125: 4020000 | I125: =SUMIF(Calculations!$I$8:$QJ$8, I$2, Calculations!$I470:$QJ470) -> 2010000 | J125: =SUMIF(Calculations!$I$8:$QJ$8, J$2, Calculations!$I470:$QJ470) -> 2010000 | K125: =SUMIF(Calculations!$I$8:$QJ$8, K$2, Calculations!$I470:$QJ470) -> 0 | L125: =SUMIF(Calculations!$I$8:$QJ$8, L$2, Calculations!$I470:$QJ470) -> 0 | M125: =SUMIF(Calculations!$I$8:$QJ$8, M$2, Calculations!$I470:$QJ470) -> 0 | N125: =SUMIF(Calculations!$I$8:$QJ$8, N$2, Calculations!$I470:$QJ470) -> 0 | O125: =SUMIF(Calculations!$I$8:$QJ$8, O$2, Calculations!$I470:$QJ470) -> 0 | P125: =SUMIF(Calculations!$I$8:$QJ$8, P$2, Calculations!$I470:$QJ470) -> 0 | Q125: =SUMIF(Calculations!$I$8:$QJ$8, Q$2, Calculations!$I470:$QJ470) -> 0 | R125: =SUMIF(Calculations!$I$8:$QJ$8, R$2, Calculations!$I470:$QJ470) -> 0 | S125: =SUMIF(Calculations!$I$8:$QJ$8, S$2, Calculations!$I470:$QJ470) -> 0 | T125: =SUMIF(Calculations!$I$8:$QJ$8, T$2, Calculations!$I470:$QJ470) -> 0 | U125: =SUMIF(Calculations!$I$8:$QJ$8, U$2, Calculations!$I470:$QJ470) -> 0 | V125: =SUMIF(Calculations!$I$8:$QJ$8, V$2, Calculations!$I470:$QJ470) -> 0 | W125: =SUMIF(Calculations!$I$8:$QJ$8, W$2, Calculations!$I470:$QJ470) -> 0 | X125: =SUMIF(Calculations!$I$8:$QJ$8, X$2, Calculations!$I470:$QJ470) -> 0 | Y125: =SUMIF(Calculations!$I$8:$QJ$8, Y$2, Calculations!$I470:$QJ470) -> 0 | Z125: =SUMIF(Calculations!$I$8:$QJ$8, Z$2, Calculations!$I470:$QJ470) -> 0 | AA125: =SUMIF(Calculations!$I$8:$QJ$8, AA$2, Calculations!$I470:$QJ470) -> 0 | AB125: =SUMIF(Calculations!$I$8:$QJ$8, AB$2, Calculations!$I470:$QJ470) -> 0 | AC125: =SUMIF(Calculations!$I$8:$QJ$8, AC$2, Calculations!$I470:$QJ470) -> 0 | AD125: =SUMIF(Calculations!$I$8:$QJ$8, AD$2, Calculations!$I470:$QJ470) -> 0 | AE125: =SUMIF(Calculations!$I$8:$QJ$8, AE$2, Calculations!$I470:$QJ470) -> 0 | AF125: =SUMIF(Calculations!$I$8:$QJ$8, AF$2, Calculations!$I470:$QJ470) -> 0 | AG125: =SUMIF(Calculations!$I$8:$QJ$8, AG$2, Calculations!$I470:$QJ470) -> 0 | AH125: =SUMIF(Calculations!$I$8:$QJ$8, AH$2, Calculations!$I470:$QJ470) -> 0 | AI125: =SUMIF(Calculations!$I$8:$QJ$8, AI$2, Calculations!$I470:$QJ470) -> 0 | AJ125: =SUMIF(Calculations!$I$8:$QJ$8, AJ$2, Calculations!$I470:$QJ470) -> 0
C126: =Calculations!C471 -> less: Subordinated Debt Principal Repayment | F126: =Calculations!E471 -> EUR | H126: -4020000 | I126: =SUMIF(Calculations!$I$8:$QJ$8, I$2, Calculations!$I471:$QJ471) -> 0 | J126: =SUMIF(Calculations!$I$8:$QJ$8, J$2, Calculations!$I471:$QJ471) -> 0 | K126: =SUMIF(Calculations!$I$8:$QJ$8, K$2, Calculations!$I471:$QJ471) -> -15813.13262 | L126: =SUMIF(Calculations!$I$8:$QJ$8, L$2, Calculations!$I471:$QJ471) -> -69907.86248 | M126: =SUMIF(Calculations!$I$8:$QJ$8, M$2, Calculations!$I471:$QJ471) -> -78773.92925 | N126: =SUMIF(Calculations!$I$8:$QJ$8, N$2, Calculations!$I471:$QJ471) -> -88764.4352 | O126: =SUMIF(Calculations!$I$8:$QJ$8, O$2, Calculations!$I471:$QJ471) -> -100021.9874 | P126: =SUMIF(Calculations!$I$8:$QJ$8, P$2, Calculations!$I471:$QJ471) -> -112707.2789 | Q126: =SUMIF(Calculations!$I$8:$QJ$8, Q$2, Calculations!$I471:$QJ471) -> -127001.383 | R126: =SUMIF(Calculations!$I$8:$QJ$8, R$2, Calculations!$I471:$QJ471) -> -143108.3372 | S126: =SUMIF(Calculations!$I$8:$QJ$8, S$2, Calculations!$I471:$QJ471) -> -161258.0564 | T126: =SUMIF(Calculations!$I$8:$QJ$8, T$2, Calculations!$I471:$QJ471) -> -181709.6142 | U126: =SUMIF(Calculations!$I$8:$QJ$8, U$2, Calculations!$I471:$QJ471) -> -204754.9415 | V126: =SUMIF(Calculations!$I$8:$QJ$8, V$2, Calculations!$I471:$QJ471) -> -230722.9932 | W126: =SUMIF(Calculations!$I$8:$QJ$8, W$2, Calculations!$I471:$QJ471) -> -259984.4437 | X126: =SUMIF(Calculations!$I$8:$QJ$8, X$2, Calculations!$I471:$QJ471) -> -292956.9786 | Y126: =SUMIF(Calculations!$I$8:$QJ$8, Y$2, Calculations!$I471:$QJ471) -> -330111.2563 | Z126: =SUMIF(Calculations!$I$8:$QJ$8, Z$2, Calculations!$I471:$QJ471) -> -371977.6263 | AA126: =SUMIF(Calculations!$I$8:$QJ$8, AA$2, Calculations!$I471:$QJ471) -> -419153.7 | AB126: =SUMIF(Calculations!$I$8:$QJ$8, AB$2, Calculations!$I471:$QJ471) -> -472312.8806 | AC126: =SUMIF(Calculations!$I$8:$QJ$8, AC$2, Calculations!$I471:$QJ471) -> -532213.9759 | AD126: =SUMIF(Calculations!$I$8:$QJ$8, AD$2, Calculations!$I471:$QJ471) -> -599712.0295 | AE126: =SUMIF(Calculations!$I$8:$QJ$8, AE$2, Calculations!$I471:$QJ471) -> -675770.5257 | AF126: =SUMIF(Calculations!$I$8:$QJ$8, AF$2, Calculations!$I471:$QJ471) -> -761475.1429 | AG126: =SUMIF(Calculations!$I$8:$QJ$8, AG$2, Calculations!$I471:$QJ471) -> -858049.2509 | AH126: =SUMIF(Calculations!$I$8:$QJ$8, AH$2, Calculations!$I471:$QJ471) -> 3068261.762 | AI126: =SUMIF(Calculations!$I$8:$QJ$8, AI$2, Calculations!$I471:$QJ471) -> 0 | AJ126: =SUMIF(Calculations!$I$8:$QJ$8, AJ$2, Calculations!$I471:$QJ471) -> 0
C127: =Calculations!C472 -> less: Capital Investment | F127: =Calculations!E472 -> EUR | H127: -18010456.75 | I127: =SUMIF(Calculations!$I$8:$QJ$8, I$2, Calculations!$I472:$QJ472) -> -5572821.495 | J127: =SUMIF(Calculations!$I$8:$QJ$8, J$2, Calculations!$I472:$QJ472) -> -7385673.056 | K127: =SUMIF(Calculations!$I$8:$QJ$8, K$2, Calculations!$I472:$QJ472) -> -2673018.669 | L127: =SUMIF(Calculations!$I$8:$QJ$8, L$2, Calculations!$I472:$QJ472) -> 0 | M127: =SUMIF(Calculations!$I$8:$QJ$8, M$2, Calculations!$I472:$QJ472) -> 0 | N127: =SUMIF(Calculations!$I$8:$QJ$8, N$2, Calculations!$I472:$QJ472) -> 0 | O127: =SUMIF(Calculations!$I$8:$QJ$8, O$2, Calculations!$I472:$QJ472) -> 0 | P127: =SUMIF(Calculations!$I$8:$QJ$8, P$2, Calculations!$I472:$QJ472) -> 0 | Q127: =SUMIF(Calculations!$I$8:$QJ$8, Q$2, Calculations!$I472:$QJ472) -> 0 | R127: =SUMIF(Calculations!$I$8:$QJ$8, R$2, Calculations!$I472:$QJ472) -> 0 | S127: =SUMIF(Calculations!$I$8:$QJ$8, S$2, Calculations!$I472:$QJ472) -> 0 | T127: =SUMIF(Calculations!$I$8:$QJ$8, T$2, Calculations!$I472:$QJ472) -> 0 | U127: =SUMIF(Calculations!$I$8:$QJ$8, U$2, Calculations!$I472:$QJ472) -> 0 | V127: =SUMIF(Calculations!$I$8:$QJ$8, V$2, Calculations!$I472:$QJ472) -> 0 | W127: =SUMIF(Calculations!$I$8:$QJ$8, W$2, Calculations!$I472:$QJ472) -> 0 | X127: =SUMIF(Calculations!$I$8:$QJ$8, X$2, Calculations!$I472:$QJ472) -> 0 | Y127: =SUMIF(Calculations!$I$8:$QJ$8, Y$2, Calculations!$I472:$QJ472) -> 0 | Z127: =SUMIF(Calculations!$I$8:$QJ$8, Z$2, Calculations!$I472:$QJ472) -> 0 | AA127: =SUMIF(Calculations!$I$8:$QJ$8, AA$2, Calculations!$I472:$QJ472) -> 0 | AB127: =SUMIF(Calculations!$I$8:$QJ$8, AB$2, Calculations!$I472:$QJ472) -> 0 | AC127: =SUMIF(Calculations!$I$8:$QJ$8, AC$2, Calculations!$I472:$QJ472) -> -2378943.532 | AD127: =SUMIF(Calculations!$I$8:$QJ$8, AD$2, Calculations!$I472:$QJ472) -> 0 | AE127: =SUMIF(Calculations!$I$8:$QJ$8, AE$2, Calculations!$I472:$QJ472) -> 0 | AF127: =SUMIF(Calculations!$I$8:$QJ$8, AF$2, Calculations!$I472:$QJ472) -> 0 | AG127: =SUMIF(Calculations!$I$8:$QJ$8, AG$2, Calculations!$I472:$QJ472) -> 0 | AH127: =SUMIF(Calculations!$I$8:$QJ$8, AH$2, Calculations!$I472:$QJ472) -> 0 | AI127: =SUMIF(Calculations!$I$8:$QJ$8, AI$2, Calculations!$I472:$QJ472) -> 0 | AJ127: =SUMIF(Calculations!$I$8:$QJ$8, AJ$2, Calculations!$I472:$QJ472) -> 0
C128: =Calculations!C473 -> Cash Flow Available for Dividends | F128: =Calculations!E473 -> EUR | H128: 7950369.161 | I128: =SUMIF(Calculations!$I$8:$QJ$8, I$2, Calculations!$I473:$QJ473) -> 16869.93769 | J128: =SUMIF(Calculations!$I$8:$QJ$8, J$2, Calculations!$I473:$QJ473) -> 4913.88535 | K128: =SUMIF(Calculations!$I$8:$QJ$8, K$2, Calculations!$I473:$QJ473) -> 290380.431 | L128: =SUMIF(Calculations!$I$8:$QJ$8, L$2, Calculations!$I473:$QJ473) -> 249920.1516 | M128: =SUMIF(Calculations!$I$8:$QJ$8, M$2, Calculations!$I473:$QJ473) -> 238609.2279 | N128: =SUMIF(Calculations!$I$8:$QJ$8, N$2, Calculations!$I473:$QJ473) -> 233855.093 | O128: =SUMIF(Calculations!$I$8:$QJ$8, O$2, Calculations!$I473:$QJ473) -> 224966.7955 | P128: =SUMIF(Calculations!$I$8:$QJ$8, P$2, Calculations!$I473:$QJ473) -> 215397.1495 | Q128: =SUMIF(Calculations!$I$8:$QJ$8, Q$2, Calculations!$I473:$QJ473) -> 205519.9834 | R128: =SUMIF(Calculations!$I$8:$QJ$8, R$2, Calculations!$I473:$QJ473) -> 190743.8536 | S128: =SUMIF(Calculations!$I$8:$QJ$8, S$2, Calculations!$I473:$QJ473) -> 175213.785 | T128: =SUMIF(Calculations!$I$8:$QJ$8, T$2, Calculations!$I473:$QJ473) -> 159874.1887 | U128: =SUMIF(Calculations!$I$8:$QJ$8, U$2, Calculations!$I473:$QJ473) -> 144229.4196 | V128: =SUMIF(Calculations!$I$8:$QJ$8, V$2, Calculations!$I473:$QJ473) -> 128726.058 | W128: =SUMIF(Calculations!$I$8:$QJ$8, W$2, Calculations!$I473:$QJ473) -> 113037.8873 | X128: =SUMIF(Calculations!$I$8:$QJ$8, X$2, Calculations!$I473:$QJ473) -> 95270.15268 | Y128: =SUMIF(Calculations!$I$8:$QJ$8, Y$2, Calculations!$I473:$QJ473) -> 76925.78085 | Z128: =SUMIF(Calculations!$I$8:$QJ$8, Z$2, Calculations!$I473:$QJ473) -> 58491.20801 | AA128: =SUMIF(Calculations!$I$8:$QJ$8, AA$2, Calculations!$I473:$QJ473) -> 39285.92591 | AB128: =SUMIF(Calculations!$I$8:$QJ$8, AB$2, Calculations!$I473:$QJ473) -> 64992.05835 | AC128: =SUMIF(Calculations!$I$8:$QJ$8, AC$2, Calculations!$I473:$QJ473) -> -1348250.831 | AD128: =SUMIF(Calculations!$I$8:$QJ$8, AD$2, Calculations!$I473:$QJ473) -> 566269.857 | AE128: =SUMIF(Calculations!$I$8:$QJ$8, AE$2, Calculations!$I473:$QJ473) -> 491420.9985 | AF128: =SUMIF(Calculations!$I$8:$QJ$8, AF$2, Calculations!$I473:$QJ473) -> 459997.1011 | AG128: =SUMIF(Calculations!$I$8:$QJ$8, AG$2, Calculations!$I473:$QJ473) -> 426373.5003 | AH128: =SUMIF(Calculations!$I$8:$QJ$8, AH$2, Calculations!$I473:$QJ473) -> 4241376.932 | AI128: =SUMIF(Calculations!$I$8:$QJ$8, AI$2, Calculations!$I473:$QJ473) -> 995059.8197 | AJ128: =SUMIF(Calculations!$I$8:$QJ$8, AJ$2, Calculations!$I473:$QJ473) -> -809101.1903
C129: =Calculations!C474 -> Dividend | F129: =Calculations!E474 -> EUR | H129: 0 | I129: =SUMIF(Calculations!$I$8:$QJ$8, I$2, Calculations!$I474:$QJ474) -> 0 | J129: =SUMIF(Calculations!$I$8:$QJ$8, J$2, Calculations!$I474:$QJ474) -> 0 | K129: =SUMIF(Calculations!$I$8:$QJ$8, K$2, Calculations!$I474:$QJ474) -> 0 | L129: =SUMIF(Calculations!$I$8:$QJ$8, L$2, Calculations!$I474:$QJ474) -> 0 | M129: =SUMIF(Calculations!$I$8:$QJ$8, M$2, Calculations!$I474:$QJ474) -> 0 | N129: =SUMIF(Calculations!$I$8:$QJ$8, N$2, Calculations!$I474:$QJ474) -> 0 | O129: =SUMIF(Calculations!$I$8:$QJ$8, O$2, Calculations!$I474:$QJ474) -> 0 | P129: =SUMIF(Calculations!$I$8:$QJ$8, P$2, Calculations!$I474:$QJ474) -> 0 | Q129: =SUMIF(Calculations!$I$8:$QJ$8, Q$2, Calculations!$I474:$QJ474) -> 0 | R129: =SUMIF(Calculations!$I$8:$QJ$8, R$2, Calculations!$I474:$QJ474) -> 0 | S129: =SUMIF(Calculations!$I$8:$QJ$8, S$2, Calculations!$I474:$QJ474) -> 0 | T129: =SUMIF(Calculations!$I$8:$QJ$8, T$2, Calculations!$I474:$QJ474) -> 0 | U129: =SUMIF(Calculations!$I$8:$QJ$8, U$2, Calculations!$I474:$QJ474) -> 0 | V129: =SUMIF(Calculations!$I$8:$QJ$8, V$2, Calculations!$I474:$QJ474) -> 0 | W129: =SUMIF(Calculations!$I$8:$QJ$8, W$2, Calculations!$I474:$QJ474) -> 0 | X129: =SUMIF(Calculations!$I$8:$QJ$8, X$2, Calculations!$I474:$QJ474) -> 0 | Y129: =SUMIF(Calculations!$I$8:$QJ$8, Y$2, Calculations!$I474:$QJ474) -> 0 | Z129: =SUMIF(Calculations!$I$8:$QJ$8, Z$2, Calculations!$I474:$QJ474) -> 0 | AA129: =SUMIF(Calculations!$I$8:$QJ$8, AA$2, Calculations!$I474:$QJ474) -> 0 | AB129: =SUMIF(Calculations!$I$8:$QJ$8, AB$2, Calculations!$I474:$QJ474) -> 0 | AC129: =SUMIF(Calculations!$I$8:$QJ$8, AC$2, Calculations!$I474:$QJ474) -> 0 | AD129: =SUMIF(Calculations!$I$8:$QJ$8, AD$2, Calculations!$I474:$QJ474) -> 0 | AE129: =SUMIF(Calculations!$I$8:$QJ$8, AE$2, Calculations!$I474:$QJ474) -> 0 | AF129: =SUMIF(Calculations!$I$8:$QJ$8, AF$2, Calculations!$I474:$QJ474) -> 0 | AG129: =SUMIF(Calculations!$I$8:$QJ$8, AG$2, Calculations!$I474:$QJ474) -> 0 | AH129: =SUMIF(Calculations!$I$8:$QJ$8, AH$2, Calculations!$I474:$QJ474) -> 0 | AI129: =SUMIF(Calculations!$I$8:$QJ$8, AI$2, Calculations!$I474:$QJ474) -> 0 | AJ129: =SUMIF(Calculations!$I$8:$QJ$8, AJ$2, Calculations!$I474:$QJ474) -> 0
C130: =Calculations!C475 -> Net Movements in Cash | F130: =Calculations!E475 -> EUR | H130: 7950369.161 | I130: =SUMIF(Calculations!$I$8:$QJ$8, I$2, Calculations!$I475:$QJ475) -> 16869.93769 | J130: =SUMIF(Calculations!$I$8:$QJ$8, J$2, Calculations!$I475:$QJ475) -> 4913.88535 | K130: =SUMIF(Calculations!$I$8:$QJ$8, K$2, Calculations!$I475:$QJ475) -> 290380.431 | L130: =SUMIF(Calculations!$I$8:$QJ$8, L$2, Calculations!$I475:$QJ475) -> 249920.1516 | M130: =SUMIF(Calculations!$I$8:$QJ$8, M$2, Calculations!$I475:$QJ475) -> 238609.2279 | N130: =SUMIF(Calculations!$I$8:$QJ$8, N$2, Calculations!$I475:$QJ475) -> 233855.093 | O130: =SUMIF(Calculations!$I$8:$QJ$8, O$2, Calculations!$I475:$QJ475) -> 224966.7955 | P130: =SUMIF(Calculations!$I$8:$QJ$8, P$2, Calculations!$I475:$QJ475) -> 215397.1495 | Q130: =SUMIF(Calculations!$I$8:$QJ$8, Q$2, Calculations!$I475:$QJ475) -> 205519.9834 | R130: =SUMIF(Calculations!$I$8:$QJ$8, R$2, Calculations!$I475:$QJ475) -> 190743.8536 | S130: =SUMIF(Calculations!$I$8:$QJ$8, S$2, Calculations!$I475:$QJ475) -> 175213.785 | T130: =SUMIF(Calculations!$I$8:$QJ$8, T$2, Calculations!$I475:$QJ475) -> 159874.1887 | U130: =SUMIF(Calculations!$I$8:$QJ$8, U$2, Calculations!$I475:$QJ475) -> 144229.4196 | V130: =SUMIF(Calculations!$I$8:$QJ$8, V$2, Calculations!$I475:$QJ475) -> 128726.058 | W130: =SUMIF(Calculations!$I$8:$QJ$8, W$2, Calculations!$I475:$QJ475) -> 113037.8873 | X130: =SUMIF(Calculations!$I$8:$QJ$8, X$2, Calculations!$I475:$QJ475) -> 95270.15268 | Y130: =SUMIF(Calculations!$I$8:$QJ$8, Y$2, Calculations!$I475:$QJ475) -> 76925.78085 | Z130: =SUMIF(Calculations!$I$8:$QJ$8, Z$2, Calculations!$I475:$QJ475) -> 58491.20801 | AA130: =SUMIF(Calculations!$I$8:$QJ$8, AA$2, Calculations!$I475:$QJ475) -> 39285.92591 | AB130: =SUMIF(Calculations!$I$8:$QJ$8, AB$2, Calculations!$I475:$QJ475) -> 64992.05835 | AC130: =SUMIF(Calculations!$I$8:$QJ$8, AC$2, Calculations!$I475:$QJ475) -> -1348250.831 | AD130: =SUMIF(Calculations!$I$8:$QJ$8, AD$2, Calculations!$I475:$QJ475) -> 566269.857 | AE130: =SUMIF(Calculations!$I$8:$QJ$8, AE$2, Calculations!$I475:$QJ475) -> 491420.9985 | AF130: =SUMIF(Calculations!$I$8:$QJ$8, AF$2, Calculations!$I475:$QJ475) -> 459997.1011 | AG130: =SUMIF(Calculations!$I$8:$QJ$8, AG$2, Calculations!$I475:$QJ475) -> 426373.5003 | AH130: =SUMIF(Calculations!$I$8:$QJ$8, AH$2, Calculations!$I475:$QJ475) -> 4241376.932 | AI130: =SUMIF(Calculations!$I$8:$QJ$8, AI$2, Calculations!$I475:$QJ475) -> 995059.8197 | AJ130: =SUMIF(Calculations!$I$8:$QJ$8, AJ$2, Calculations!$I475:$QJ475) -> -809101.1903
C132: =Calculations!C477 -> Beginning Cash Balance | F132: =Calculations!E477 -> EUR | I132: =H133 -> 0 | J132: =I133 -> 16869.93769 | K132: 21783.82304 | L132: 312164.2541 | M132: 562084.4057 | N132: =M133 -> 800693.6336 | O132: 1034548.727 | P132: 1259515.522 | Q132: 1474912.672 | R132: 1680432.655 | S132: 1871176.509 | T132: 2046390.294 | U132: 2206264.482 | V132: 2350493.902 | W132: 2479219.96 | X132: 2592257.847 | Y132: 2687528 | Z132: 2764453.781 | AA132: 2822944.989 | AB132: 2862230.915 | AC132: 2927222.973 | AD132: 1578972.142 | AE132: 2145241.999 | AF132: 2636662.998 | AG132: =AF133 -> 3096660.099 | AH132: 3523033.599 | AI132: 7764410.531 | AJ132: 8759470.351
C133: =Calculations!C478 -> Closing Cash Balance | F133: =Calculations!E478 -> EUR | H133: 0 | I133: =I130+I132 -> 16869.93769 | J133: =J130+J132 -> 21783.82304 | K133: =K130+K132 -> 312164.2541 | L133: 562084.4057 | M133: 800693.6336 | N133: 1034548.727 | O133: 1259515.522 | P133: 1474912.672 | Q133: 1680432.655 | R133: 1871176.509 | S133: 2046390.294 | T133: 2206264.482 | U133: 2350493.902 | V133: 2479219.96 | W133: 2592257.847 | X133: 2687528 | Y133: 2764453.781 | Z133: 2822944.989 | AA133: 2862230.915 | AB133: 2927222.973 | AC133: 1578972.142 | AD133: 2145241.999 | AE133: 2636662.998 | AF133: 3096660.099 | AG133: =AG130+AG132 -> 3523033.599 | AH133: 7764410.531 | AI133: 8759470.351 | AJ133: 7950369.161
C135: Annual = Monthly Check | F135: Check | G135: =IF(ROUND($H$28-Calculations!$H$369+$H$106-Calculations!$H$448, 0)=0, "OK", "NO") -> OK

Sheet QFS
A1: =Inputs!$D$6&" - Quarterly Financial Statements" -> Força Açoreana, S.A.: Azores PV & BESS (Pico) - Quarterly Financial Statements | FD1: c
C3: Year | H3: 2026 | I3: =H3 -> 2026 | J3: 2027 | K3: =J3 -> 2027 | L3: =H3+1 -> 2027 | M3: =I3+1 -> 2027 | N3: 2028 | O3: 2028 | P3: =L3+1 -> 2028 | Q3: =M3+1 -> 2028 | R3: =N3+1 -> 2029 | S3: =O3+1 -> 2029 | T3: =P3+1 -> 2029 | U3: =Q3+1 -> 2029 | V3: =R3+1 -> 2030 | W3: =S3+1 -> 2030 | X3: =T3+1 -> 2030 | Y3: =U3+1 -> 2030 | Z3: =V3+1 -> 2031 | AA3: =W3+1 -> 2031 | AB3: =X3+1 -> 2031 | AC3: =Y3+1 -> 2031 | AD3: =Z3+1 -> 2032 | AE3: =AA3+1 -> 2032 | AF3: =AB3+1 -> 2032 | AG3: =AC3+1 -> 2032 | AH3: =AD3+1 -> 2033 | AI3: =AE3+1 -> 2033 | AJ3: =AF3+1 -> 2033 | AK3: =AG3+1 -> 2033 | AL3: =AH3+1 -> 2034 | AM3: =AI3+1 -> 2034 | AN3: =AJ3+1 -> 2034 | AO3: =AK3+1 -> 2034 | AP3: =AL3+1 -> 2035 | AQ3: =AM3+1 -> 2035 | AR3: =AN3+1 -> 2035 | AS3: =AO3+1 -> 2035 | AT3: =AP3+1 -> 2036 | AU3: =AQ3+1 -> 2036 | AV3: =AR3+1 -> 2036 | AW3: =AS3+1 -> 2036 | AX3: =AT3+1 -> 2037 | AY3: =AU3+1 -> 2037 | AZ3: =AV3+1 -> 2037 | BA3: =AW3+1 -> 2037 | BB3: =AX3+1 -> 2038 | BC3: =AY3+1 -> 2038 | BD3: =AZ3+1 -> 2038 | BE3: =BA3+1 -> 2038 | BF3: =BB3+1 -> 2039 | BG3: =BC3+1 -> 2039 | BH3: =BD3+1 -> 2039 | BI3: =BE3+1 -> 2039 | BJ3: =BF3+1 -> 2040 | BK3: =BG3+1 -> 2040 | BL3: =BH3+1 -> 2040 | BM3: =BI3+1 -> 2040 | BN3: =BJ3+1 -> 2041 | BO3: =BK3+1 -> 2041 | BP3: =BL3+1 -> 2041 | BQ3: =BM3+1 -> 2041 | BR3: =BN3+1 -> 2042 | BS3: =BO3+1 -> 2042 | BT3: =BP3+1 -> 2042 | BU3: =BQ3+1 -> 2042 | BV3: =BR3+1 -> 2043 | BW3: =BS3+1 -> 2043 | BX3: =BT3+1 -> 2043 | BY3: =BU3+1 -> 2043 | BZ3: =BV3+1 -> 2044 | CA3: =BW3+1 -> 2044 | CB3: =BX3+1 -> 2044 | CC3: =BY3+1 -> 2044 | CD3: =BZ3+1 -> 2045 | CE3: =CA3+1 -> 2045 | CF3: =CB3+1 -> 2045 | CG3: =CC3+1 -> 2045 | CH3: =CD3+1 -> 2046 | CI3: =CE3+1 -> 2046 | CJ3: =CF3+1 -> 2046 | CK3: =CG3+1 -> 2046 | CL3: =CH3+1 -> 2047 | CM3: =CI3+1 -> 2047 | CN3: =CJ3+1 -> 2047 | CO3: =CK3+1 -> 2047 | CP3: =CL3+1 -> 2048 | CQ3: =CM3+1 -> 2048 | CR3: =CN3+1 -> 2048 | CS3: =CO3+1 -> 2048 | CT3: =CP3+1 -> 2049 | CU3: =CQ3+1 -> 2049 | CV3: =CR3+1 -> 2049 | CW3: =CS3+1 -> 2049 | CX3: =CT3+1 -> 2050 | CY3: =CU3+1 -> 2050 | CZ3: =CV3+1 -> 2050 | DA3: =CW3+1 -> 2050 | DB3: =CX3+1 -> 2051 | DC3: =CY3+1 -> 2051 | DD3: =CZ3+1 -> 2051 | DE3: =DA3+1 -> 2051 | DF3: =DB3+1 -> 2052 | DG3: =DC3+1 -> 2052 | DH3: =DD3+1 -> 2052 | DI3: =DE3+1 -> 2052 | DJ3: =DF3+1 -> 2053 | DK3: =DG3+1 -> 2053
C4: Quarter | H4: 3 | I4: =IF(H4=4, 1, H4+1) -> 4 | J4: =IF(I4=4, 1, I4+1) -> 1 | K4: =IF(J4=4, 1, J4+1) -> 2 | L4: =IF(K4=4, 1, K4+1) -> 3 | M4: =IF(L4=4, 1, L4+1) -> 4 | N4: =IF(M4=4, 1, M4+1) -> 1 | O4: 2 | P4: 3 | Q4: 4 | R4: 1 | S4: 2 | T4: 3 | U4: 4 | V4: 1 | W4: 2 | X4: 3 | Y4: 4 | Z4: 1 | AA4: 2 | AB4: 3 | AC4: 4 | AD4: 1 | AE4: 2 | AF4: 3 | AG4: 4 | AH4: 1 | AI4: 2 | AJ4: 3 | AK4: 4 | AL4: 1 | AM4: 2 | AN4: 3 | AO4: 4 | AP4: 1 | AQ4: 2 | AR4: 3 | AS4: 4 | AT4: 1 | AU4: 2 | AV4: 3 | AW4: 4 | AX4: 1 | AY4: 2 | AZ4: 3 | BA4: 4 | BB4: 1 | BC4: 2 | BD4: 3 | BE4: 4 | BF4: 1 | BG4: 2 | BH4: 3 | BI4: 4 | BJ4: 1 | BK4: 2 | BL4: 3 | BM4: 4 | BN4: 1 | BO4: 2 | BP4: 3 | BQ4: 4 | BR4: 1 | BS4: 2 | BT4: 3 | BU4: 4 | BV4: 1 | BW4: 2 | BX4: 3 | BY4: 4 | BZ4: =IF(BY4=4, 1, BY4+1) -> 1 | CA4: 2 | CB4: 3 | CC4: 4 | CD4: 1 | CE4: 2 | CF4: 3 | CG4: 4 | CH4: 1 | CI4: 2 | CJ4: 3 | CK4: 4 | CL4: 1 | CM4: 2 | CN4: 3 | CO4: 4 | CP4: 1 | CQ4: 2 | CR4: 3 | CS4: 4 | CT4: 1 | CU4: 2 | CV4: 3 | CW4: 4 | CX4: 1 | CY4: 2 | CZ4: 3 | DA4: 4 | DB4: 1 | DC4: 2 | DD4: =IF(DC4=4, 1, DC4+1) -> 3 | DE4: 4 | DF4: 1 | DG4: 2 | DH4: 3 | DI4: 4 | DJ4: 1 | DK4: 2
C5: Period End | H5: =EOMONTH(DATE(H3, H4*3, 1), 0) -> 2026-09-30 | I5: =EOMONTH(DATE(I3, I4*3, 1), 0) -> 2026-12-31 | J5: =EOMONTH(DATE(J3, J4*3, 1), 0) -> 2027-03-31 | K5: 2027-06-30 | L5: 2027-09-30 | M5: 2027-12-31 | N5: 2028-03-31 | O5: 2028-06-30 | P5: 2028-09-30 | Q5: 2028-12-31 | R5: 2029-03-31 | S5: 2029-06-30 | T5: 2029-09-30 | U5: 2029-12-31 | V5: 2030-03-31 | W5: 2030-06-30 | X5: 2030-09-30 | Y5: 2030-12-31 | Z5: 2031-03-31 | AA5: 2031-06-30 | AB5: 2031-09-30 | AC5: 2031-12-31 | AD5: 2032-03-31 | AE5: 2032-06-30 | AF5: 2032-09-30 | AG5: 2032-12-31 | AH5: 2033-03-31 | AI5: 2033-06-30 | AJ5: 2033-09-30 | AK5: 2033-12-31 | AL5: 2034-03-31 | AM5: 2034-06-30 | AN5: 2034-09-30 | AO5: 2034-12-31 | AP5: 2035-03-31 | AQ5: 2035-06-30 | AR5: 2035-09-30 | AS5: 2035-12-31 | AT5: 2036-03-31 | AU5: 2036-06-30 | AV5: 2036-09-30 | AW5: 2036-12-31 | AX5: 2037-03-31 | AY5: 2037-06-30 | AZ5: 2037-09-30 | BA5: 2037-12-31 | BB5: 2038-03-31 | BC5: 2038-06-30 | BD5: 2038-09-30 | BE5: 2038-12-31 | BF5: 2039-03-31 | BG5: 2039-06-30 | BH5: 2039-09-30 | BI5: 2039-12-31 | BJ5: 2040-03-31 | BK5: 2040-06-30 | BL5: 2040-09-30 | BM5: 2040-12-31 | BN5: 2041-03-31 | BO5: 2041-06-30 | BP5: 2041-09-30 | BQ5: 2041-12-31 | BR5: 2042-03-31 | BS5: 2042-06-30 | BT5: 2042-09-30 | BU5: 2042-12-31 | BV5: =EOMONTH(DATE(BV3, BV4*3, 1), 0) -> 2043-03-31 | BW5: 2043-06-30 | BX5: 2043-09-30 | BY5: 2043-12-31 | BZ5: 2044-03-31 | CA5: 2044-06-30 | CB5: 2044-09-30 | CC5: 2044-12-31 | CD5: 2045-03-31 | CE5: 2045-06-30 | CF5: 2045-09-30 | CG5: 2045-12-31 | CH5: 2046-03-31 | CI5: 2046-06-30 | CJ5: 2046-09-30 | CK5: 2046-12-31 | CL5: 2047-03-31 | CM5: 2047-06-30 | CN5: 2047-09-30 | CO5: 2047-12-31 | CP5: 2048-03-31 | CQ5: 2048-06-30 | CR5: 2048-09-30 | CS5: 2048-12-31 | CT5: 2049-03-31 | CU5: 2049-06-30 | CV5: 2049-09-30 | CW5: 2049-12-31 | CX5: 2050-03-31 | CY5: 2050-06-30 | CZ5: 2050-09-30 | DA5: 2050-12-31 | DB5: 2051-03-31 | DC5: 2051-06-30 | DD5: =EOMONTH(DATE(DD3, DD4*3, 1), 0) -> 2051-09-30 | DE5: 2051-12-31 | DF5: 2052-03-31 | DG5: 2052-06-30 | DH5: 2052-09-30 | DI5: 2052-12-31 | DJ5: 2053-03-31 | DK5: 2053-06-30
A6: · | B6: Income Statement | E6: Unit
A7: =Summary!$C$49 -> NO
C8: Revenues | AG8: .
C9: =Calculations!C352 -> Production Sold | E9: EUR | G9: =SUM(H9:FC9) -> 44827175.39 | H9: =SUMIFS(Calculations!$I229:$QJ229, Calculations!$I$8:$QJ$8, H$3, Calculations!$I$10:$QJ$10, H$4) -> 0 | I9: =SUMIFS(Calculations!$I229:$QJ229, Calculations!$I$8:$QJ$8, I$3, Calculations!$I$10:$QJ$10, I$4) -> 0 | J9: =SUMIFS(Calculations!$I229:$QJ229, Calculations!$I$8:$QJ$8, J$3, Calculations!$I$10:$QJ$10, J$4) -> 0 | K9: =SUMIFS(Calculations!$I229:$QJ229, Calculations!$I$8:$QJ$8, K$3, Calculations!$I$10:$QJ$10, K$4) -> 0 | L9: =SUMIFS(Calculations!$I229:$QJ229, Calculations!$I$8:$QJ$8, L$3, Calculations!$I$10:$QJ$10, L$4) -> 0 | M9: =SUMIFS(Calculations!$I229:$QJ229, Calculations!$I$8:$QJ$8, M$3, Calculations!$I$10:$QJ$10, M$4) -> 0 | N9: =SUMIFS(Calculations!$I229:$QJ229, Calculations!$I$8:$QJ$8, N$3, Calculations!$I$10:$QJ$10, N$4) -> 0 | O9: =SUMIFS(Calculations!$I229:$QJ229, Calculations!$I$8:$QJ$8, O$3, Calculations!$I$10:$QJ$10, O$4) -> 0 | P9: =SUMIFS(Calculations!$I229:$QJ229, Calculations!$I$8:$QJ$8, P$3, Calculations!$I$10:$QJ$10, P$4) -> 578827.3287 | Q9: =SUMIFS(Calculations!$I229:$QJ229, Calculations!$I$8:$QJ$8, Q$3, Calculations!$I$10:$QJ$10, Q$4) -> 364492.3076 | R9: =SUMIFS(Calculations!$I229:$QJ229, Calculations!$I$8:$QJ$8, R$3, Calculations!$I$10:$QJ$10, R$4) -> 298223.4173 | S9: =SUMIFS(Calculations!$I229:$QJ229, Calculations!$I$8:$QJ$8, S$3, Calculations!$I$10:$QJ$10, S$4) -> 463869.9219 | T9: =SUMIFS(Calculations!$I229:$QJ229, Calculations!$I$8:$QJ$8, T$3, Calculations!$I$10:$QJ$10, T$4) -> 584615.602 | U9: =SUMIFS(Calculations!$I229:$QJ229, Calculations!$I$8:$QJ$8, U$3, Calculations!$I$10:$QJ$10, U$4) -> 367534.3378 | V9: =SUMIFS(Calculations!$I229:$QJ229, Calculations!$I$8:$QJ$8, V$3, Calculations!$I$10:$QJ$10, V$4) -> 301205.6515 | W9: =SUMIFS(Calculations!$I229:$QJ229, Calculations!$I$8:$QJ$8, W$3, Calculations!$I$10:$QJ$10, W$4) -> 468508.6211 | X9: =SUMIFS(Calculations!$I229:$QJ229, Calculations!$I$8:$QJ$8, X$3, Calculations!$I$10:$QJ$10, X$4) -> 590461.758 | Y9: =SUMIFS(Calculations!$I229:$QJ229, Calculations!$I$8:$QJ$8, Y$3, Calculations!$I$10:$QJ$10, Y$4) -> 368296.775 | Z9: =SUMIFS(Calculations!$I229:$QJ229, Calculations!$I$8:$QJ$8, Z$3, Calculations!$I$10:$QJ$10, Z$4) -> 304217.708 | AA9: =SUMIFS(Calculations!$I229:$QJ229, Calculations!$I$8:$QJ$8, AA$3, Calculations!$I$10:$QJ$10, AA$4) -> 473193.7073 | AB9: =SUMIFS(Calculations!$I229:$QJ229, Calculations!$I$8:$QJ$8, AB$3, Calculations!$I$10:$QJ$10, AB$4) -> 596366.3756 | AC9: =SUMIFS(Calculations!$I229:$QJ229, Calculations!$I$8:$QJ$8, AC$3, Calculations!$I$10:$QJ$10, AC$4) -> 367715.3144 | AD9: =SUMIFS(Calculations!$I229:$QJ229, Calculations!$I$8:$QJ$8, AD$3, Calculations!$I$10:$QJ$10, AD$4) -> 307259.8851 | AE9: =SUMIFS(Calculations!$I229:$QJ229, Calculations!$I$8:$QJ$8, AE$3, Calculations!$I$10:$QJ$10, AE$4) -> 477925.6444 | AF9: =SUMIFS(Calculations!$I229:$QJ229, Calculations!$I$8:$QJ$8, AF$3, Calculations!$I$10:$QJ$10, AF$4) -> 602330.0394 | AG9: =SUMIFS(Calculations!$I229:$QJ229, Calculations!$I$8:$QJ$8, AG$3, Calculations!$I$10:$QJ$10, AG$4) -> 367171.3786 | AH9: =SUMIFS(Calculations!$I229:$QJ229, Calculations!$I$8:$QJ$8, AH$3, Calculations!$I$10:$QJ$10, AH$4) -> 310332.4839 | AI9: =SUMIFS(Calculations!$I229:$QJ229, Calculations!$I$8:$QJ$8, AI$3, Calculations!$I$10:$QJ$10, AI$4) -> 482704.9009 | AJ9: =SUMIFS(Calculations!$I229:$QJ229, Calculations!$I$8:$QJ$8, AJ$3, Calculations!$I$10:$QJ$10, AJ$4) -> 608353.3398 | AK9: =SUMIFS(Calculations!$I229:$QJ229, Calculations!$I$8:$QJ$8, AK$3, Calculations!$I$10:$QJ$10, AK$4) -> 364165.5942 | AL9: =SUMIFS(Calculations!$I229:$QJ229, Calculations!$I$8:$QJ$8, AL$3, Calculations!$I$10:$QJ$10, AL$4) -> 313435.8088 | AM9: =SUMIFS(Calculations!$I229:$QJ229, Calculations!$I$8:$QJ$8, AM$3, Calculations!$I$10:$QJ$10, AM$4) -> 487531.9499 | AN9: =SUMIFS(Calculations!$I229:$QJ229, Calculations!$I$8:$QJ$8, AN$3, Calculations!$I$10:$QJ$10, AN$4) -> 614436.8732 | AO9: =SUMIFS(Calculations!$I229:$QJ229, Calculations!$I$8:$QJ$8, AO$3, Calculations!$I$10:$QJ$10, AO$4) -> 360406.3287 | AP9: =SUMIFS(Calculations!$I229:$QJ229, Calculations!$I$8:$QJ$8, AP$3, Calculations!$I$10:$QJ$10, AP$4) -> 316570.1669 | AQ9: =SUMIFS(Calculations!$I229:$QJ229, Calculations!$I$8:$QJ$8, AQ$3, Calculations!$I$10:$QJ$10, AQ$4) -> 492407.2694 | AR9: =SUMIFS(Calculations!$I229:$QJ229, Calculations!$I$8:$QJ$8, AR$3, Calculations!$I$10:$QJ$10, AR$4) -> 620581.2419 | AS9: =SUMIFS(Calculations!$I229:$QJ229, Calculations!$I$8:$QJ$8, AS$3, Calculations!$I$10:$QJ$10, AS$4) -> 356684.4841 | AT9: =SUMIFS(Calculations!$I229:$QJ229, Calculations!$I$8:$QJ$8, AT$3, Calculations!$I$10:$QJ$10, AT$4) -> 319735.8685 | AU9: =SUMIFS(Calculations!$I229:$QJ229, Calculations!$I$8:$QJ$8, AU$3, Calculations!$I$10:$QJ$10, AU$4) -> 497331.3421 | AV9: =SUMIFS(Calculations!$I229:$QJ229, Calculations!$I$8:$QJ$8, AV$3, Calculations!$I$10:$QJ$10, AV$4) -> 626787.0543 | AW9: =SUMIFS(Calculations!$I229:$QJ229, Calculations!$I$8:$QJ$8, AW$3, Calculations!$I$10:$QJ$10, AW$4) -> 352999.6878 | AX9: =SUMIFS(Calculations!$I229:$QJ229, Calculations!$I$8:$QJ$8, AX$3, Calculations!$I$10:$QJ$10, AX$4) -> 322933.2272 | AY9: =SUMIFS(Calculations!$I229:$QJ229, Calculations!$I$8:$QJ$8, AY$3, Calculations!$I$10:$QJ$10, AY$4) -> 502304.6555 | AZ9: =SUMIFS(Calculations!$I229:$QJ229, Calculations!$I$8:$QJ$8, AZ$3, Calculations!$I$10:$QJ$10, AZ$4) -> 629723.68 | BA9: =SUMIFS(Calculations!$I229:$QJ229, Calculations!$I$8:$QJ$8, BA$3, Calculations!$I$10:$QJ$10, BA$4) -> 349351.5711 | BB9: =SUMIFS(Calculations!$I229:$QJ229, Calculations!$I$8:$QJ$8, BB$3, Calculations!$I$10:$QJ$10, BB$4) -> 326162.5595 | BC9: =SUMIFS(Calculations!$I229:$QJ229, Calculations!$I$8:$QJ$8, BC$3, Calculations!$I$10:$QJ$10, BC$4) -> 507327.702 | BD9: =SUMIFS(Calculations!$I229:$QJ229, Calculations!$I$8:$QJ$8, BD$3, Calculations!$I$10:$QJ$10, BD$4) -> 632008.7979 | BE9: =SUMIFS(Calculations!$I229:$QJ229, Calculations!$I$8:$QJ$8, BE$3, Calculations!$I$10:$QJ$10, BE$4) -> 345739.7688 | BF9: =SUMIFS(Calculations!$I229:$QJ229, Calculations!$I$8:$QJ$8, BF$3, Calculations!$I$10:$QJ$10, BF$4) -> 329424.1851 | BG9: =SUMIFS(Calculations!$I229:$QJ229, Calculations!$I$8:$QJ$8, BG$3, Calculations!$I$10:$QJ$10, BG$4) -> 512400.979 | BH9: =SUMIFS(Calculations!$I229:$QJ229, Calculations!$I$8:$QJ$8, BH$3, Calculations!$I$10:$QJ$10, BH$4) -> 634357.1425 | BI9: =SUMIFS(Calculations!$I229:$QJ229, Calculations!$I$8:$QJ$8, BI$3, Calculations!$I$10:$QJ$10, BI$4) -> 342163.9194 | BJ9: =SUMIFS(Calculations!$I229:$QJ229, Calculations!$I$8:$QJ$8, BJ$3, Calculations!$I$10:$QJ$10, BJ$4) -> 332718.4269 | BK9: =SUMIFS(Calculations!$I229:$QJ229, Calculations!$I$8:$QJ$8, BK$3, Calculations!$I$10:$QJ$10, BK$4) -> 517524.9888 | BL9: =SUMIFS(Calculations!$I229:$QJ229, Calculations!$I$8:$QJ$8, BL$3, Calculations!$I$10:$QJ$10, BL$4) -> 636768.9442 | BM9: =SUMIFS(Calculations!$I229:$QJ229, Calculations!$I$8:$QJ$8, BM$3, Calculations!$I$10:$QJ$10, BM$4) -> 338623.6651 | BN9: =SUMIFS(Calculations!$I229:$QJ229, Calculations!$I$8:$QJ$8, BN$3, Calculations!$I$10:$QJ$10, BN$4) -> 336045.6112 | BO9: =SUMIFS(Calculations!$I229:$QJ229, Calculations!$I$8:$QJ$8, BO$3, Calculations!$I$10:$QJ$10, BO$4) -> 522700.2387 | BP9: =SUMIFS(Calculations!$I229:$QJ229, Calculations!$I$8:$QJ$8, BP$3, Calculations!$I$10:$QJ$10, BP$4) -> 635224.4043 | BQ9: =SUMIFS(Calculations!$I229:$QJ229, Calculations!$I$8:$QJ$8, BQ$3, Calculations!$I$10:$QJ$10, BQ$4) -> 335118.6515 | BR9: =SUMIFS(Calculations!$I229:$QJ229, Calculations!$I$8:$QJ$8, BR$3, Calculations!$I$10:$QJ$10, BR$4) -> 339406.0673 | BS9: =SUMIFS(Calculations!$I229:$QJ229, Calculations!$I$8:$QJ$8, BS$3, Calculations!$I$10:$QJ$10, BS$4) -> 527927.2411 | BT9: =SUMIFS(Calculations!$I229:$QJ229, Calculations!$I$8:$QJ$8, BT$3, Calculations!$I$10:$QJ$10, BT$4) -> 633103.9944 | BU9: =SUMIFS(Calculations!$I229:$QJ229, Calculations!$I$8:$QJ$8, BU$3, Calculations!$I$10:$QJ$10, BU$4) -> 331648.5278 | BV9: =SUMIFS(Calculations!$I229:$QJ229, Calculations!$I$8:$QJ$8, BV$3, Calculations!$I$10:$QJ$10, BV$4) -> 342800.128 | BW9: =SUMIFS(Calculations!$I229:$QJ229, Calculations!$I$8:$QJ$8, BW$3, Calculations!$I$10:$QJ$10, BW$4) -> 533206.5135 | BX9: =SUMIFS(Calculations!$I229:$QJ229, Calculations!$I$8:$QJ$8, BX$3, Calculations!$I$10:$QJ$10, BX$4) -> 629820.7143 | BY9: =SUMIFS(Calculations!$I229:$QJ229, Calculations!$I$8:$QJ$8, BY$3, Calculations!$I$10:$QJ$10, BY$4) -> 328212.9468 | BZ9: =SUMIFS(Calculations!$I229:$QJ229, Calculations!$I$8:$QJ$8, BZ$3, Calculations!$I$10:$QJ$10, BZ$4) -> 346228.1293 | CA9: =SUMIFS(Calculations!$I229:$QJ229, Calculations!$I$8:$QJ$8, CA$3, Calculations!$I$10:$QJ$10, CA$4) -> 538538.5787 | CB9: =SUMIFS(Calculations!$I229:$QJ229, Calculations!$I$8:$QJ$8, CB$3, Calculations!$I$10:$QJ$10, CB$4) -> 623417.0398 | CC9: =SUMIFS(Calculations!$I229:$QJ229, Calculations!$I$8:$QJ$8, CC$3, Calculations!$I$10:$QJ$10, CC$4) -> 324811.5646 | CD9: =SUMIFS(Calculations!$I229:$QJ229, Calculations!$I$8:$QJ$8, CD$3, Calculations!$I$10:$QJ$10, CD$4) -> 349690.4106 | CE9: =SUMIFS(Calculations!$I229:$QJ229, Calculations!$I$8:$QJ$8, CE$3, Calculations!$I$10:$QJ$10, CE$4) -> 543923.9644 | CF9: =SUMIFS(Calculations!$I229:$QJ229, Calculations!$I$8:$QJ$8, CF$3, Calculations!$I$10:$QJ$10, CF$4) -> 617077.1093 | CG9: =SUMIFS(Calculations!$I229:$QJ229, Calculations!$I$8:$QJ$8, CG$3, Calculations!$I$10:$QJ$10, CG$4) -> 321444.0407 | CH9: =SUMIFS(Calculations!$I229:$QJ229, Calculations!$I$8:$QJ$8, CH$3, Calculations!$I$10:$QJ$10, CH$4) -> 353187.3147 | CI9: =SUMIFS(Calculations!$I229:$QJ229, Calculations!$I$8:$QJ$8, CI$3, Calculations!$I$10:$QJ$10, CI$4) -> 545625.4993 | CJ9: =SUMIFS(Calculations!$I229:$QJ229, Calculations!$I$8:$QJ$8, CJ$3, Calculations!$I$10:$QJ$10, CJ$4) -> 610800.2883 | CK9: =SUMIFS(Calculations!$I229:$QJ229, Calculations!$I$8:$QJ$8, CK$3, Calculations!$I$10:$QJ$10, CK$4) -> 318110.0381 | CL9: =SUMIFS(Calculations!$I229:$QJ229, Calculations!$I$8:$QJ$8, CL$3, Calculations!$I$10:$QJ$10, CL$4) -> 355066.7571 | CM9: =SUMIFS(Calculations!$I229:$QJ229, Calculations!$I$8:$QJ$8, CM$3, Calculations!$I$10:$QJ$10, CM$4) -> 545885.3102 | CN9: =SUMIFS(Calculations!$I229:$QJ229, Calculations!$I$8:$QJ$8, CN$3, Calculations!$I$10:$QJ$10, CN$4) -> 604585.9487 | CO9: =SUMIFS(Calculations!$I229:$QJ229, Calculations!$I$8:$QJ$8, CO$3, Calculations!$I$10:$QJ$10, CO$4) -> 314809.2232 | CP9: =SUMIFS(Calculations!$I229:$QJ229, Calculations!$I$8:$QJ$8, CP$3, Calculations!$I$10:$QJ$10, CP$4) -> 353710.7845 | CQ9: =SUMIFS(Calculations!$I229:$QJ229, Calculations!$I$8:$QJ$8, CQ$3, Calculations!$I$10:$QJ$10, CQ$4) -> 543540.0186 | CR9: =SUMIFS(Calculations!$I229:$QJ229, Calculations!$I$8:$QJ$8, CR$3, Calculations!$I$10:$QJ$10, CR$4) -> 598433.4684 | CS9: =SUMIFS(Calculations!$I229:$QJ229, Calculations!$I$8:$QJ$8, CS$3, Calculations!$I$10:$QJ$10, CS$4) -> 311541.2656 | CT9: =SUMIFS(Calculations!$I229:$QJ229, Calculations!$I$8:$QJ$8, CT$3, Calculations!$I$10:$QJ$10, CT$4) -> 351314.8769 | CU9: =SUMIFS(Calculations!$I229:$QJ229, Calculations!$I$8:$QJ$8, CU$3, Calculations!$I$10:$QJ$10, CU$4) -> 541249.849 | CV9: =SUMIFS(Calculations!$I229:$QJ229, Calculations!$I$8:$QJ$8, CV$3, Calculations!$I$10:$QJ$10, CV$4) -> 592342.2317 | CW9: =SUMIFS(Calculations!$I229:$QJ229, Calculations!$I$8:$QJ$8, CW$3, Calculations!$I$10:$QJ$10, CW$4) -> 308305.8381 | CX9: =SUMIFS(Calculations!$I229:$QJ229, Calculations!$I$8:$QJ$8, CX$3, Calculations!$I$10:$QJ$10, CX$4) -> 347686.4498 | CY9: =SUMIFS(Calculations!$I229:$QJ229, Calculations!$I$8:$QJ$8, CY$3, Calculations!$I$10:$QJ$10, CY$4) -> 539014.5704 | CZ9: =SUMIFS(Calculations!$I229:$QJ229, Calculations!$I$8:$QJ$8, CZ$3, Calculations!$I$10:$QJ$10, CZ$4) -> 586311.629 | DA9: =SUMIFS(Calculations!$I229:$QJ229, Calculations!$I$8:$QJ$8, DA$3, Calculations!$I$10:$QJ$10, DA$4) -> 305102.6171 | DB9: =SUMIFS(Calculations!$I229:$QJ229, Calculations!$I$8:$QJ$8, DB$3, Calculations!$I$10:$QJ$10, DB$4) -> 344094.1412 | DC9: =SUMIFS(Calculations!$I229:$QJ229, Calculations!$I$8:$QJ$8, DC$3, Calculations!$I$10:$QJ$10, DC$4) -> 536833.9575 | DD9: =SUMIFS(Calculations!$I229:$QJ229, Calculations!$I$8:$QJ$8, DD$3, Calculations!$I$10:$QJ$10, DD$4) -> 580341.0566 | DE9: =SUMIFS(Calculations!$I229:$QJ229, Calculations!$I$8:$QJ$8, DE$3, Calculations!$I$10:$QJ$10, DE$4) -> 301931.2819 | DF9: =SUMIFS(Calculations!$I229:$QJ229, Calculations!$I$8:$QJ$8, DF$3, Calculations!$I$10:$QJ$10, DF$4) -> 340390.993 | DG9: =SUMIFS(Calculations!$I229:$QJ229, Calculations!$I$8:$QJ$8, DG$3, Calculations!$I$10:$QJ$10, DG$4) -> 534707.7901 | DH9: =SUMIFS(Calculations!$I229:$QJ229, Calculations!$I$8:$QJ$8, DH$3, Calculations!$I$10:$QJ$10, DH$4) -> 574429.9171 | DI9: =SUMIFS(Calculations!$I229:$QJ229, Calculations!$I$8:$QJ$8, DI$3, Calculations!$I$10:$QJ$10, DI$4) -> 298791.515 | DJ9: =SUMIFS(Calculations!$I229:$QJ229, Calculations!$I$8:$QJ$8, DJ$3, Calculations!$I$10:$QJ$10, DJ$4) -> 337016.4446 | DK9: =SUMIFS(Calculations!$I229:$QJ229, Calculations!$I$8:$QJ$8, DK$3, Calculations!$I$10:$QJ$10, DK$4) -> 525454.0523
C10: Storage | E10: EUR | G10: 10144285.34 | H10: =SUMIFS(Calculations!$I230:$QJ230, Calculations!$I$8:$QJ$8, H$3, Calculations!$I$10:$QJ$10, H$4) -> 0 | I10: =SUMIFS(Calculations!$I230:$QJ230, Calculations!$I$8:$QJ$8, I$3, Calculations!$I$10:$QJ$10, I$4) -> 0 | J10: =SUMIFS(Calculations!$I230:$QJ230, Calculations!$I$8:$QJ$8, J$3, Calculations!$I$10:$QJ$10, J$4) -> 0 | K10: =SUMIFS(Calculations!$I230:$QJ230, Calculations!$I$8:$QJ$8, K$3, Calculations!$I$10:$QJ$10, K$4) -> 0 | L10: =SUMIFS(Calculations!$I230:$QJ230, Calculations!$I$8:$QJ$8, L$3, Calculations!$I$10:$QJ$10, L$4) -> 0 | M10: =SUMIFS(Calculations!$I230:$QJ230, Calculations!$I$8:$QJ$8, M$3, Calculations!$I$10:$QJ$10, M$4) -> 0 | N10: =SUMIFS(Calculations!$I230:$QJ230, Calculations!$I$8:$QJ$8, N$3, Calculations!$I$10:$QJ$10, N$4) -> 0 | O10: =SUMIFS(Calculations!$I230:$QJ230, Calculations!$I$8:$QJ$8, O$3, Calculations!$I$10:$QJ$10, O$4) -> 0 | P10: =SUMIFS(Calculations!$I230:$QJ230, Calculations!$I$8:$QJ$8, P$3, Calculations!$I$10:$QJ$10, P$4) -> 123583.6131 | Q10: =SUMIFS(Calculations!$I230:$QJ230, Calculations!$I$8:$QJ$8, Q$3, Calculations!$I$10:$QJ$10, Q$4) -> 114572.257 | R10: =SUMIFS(Calculations!$I230:$QJ230, Calculations!$I$8:$QJ$8, R$3, Calculations!$I$10:$QJ$10, R$4) -> 119491.6919 | S10: =SUMIFS(Calculations!$I230:$QJ230, Calculations!$I$8:$QJ$8, S$3, Calculations!$I$10:$QJ$10, S$4) -> 123096.3512 | T10: =SUMIFS(Calculations!$I230:$QJ230, Calculations!$I$8:$QJ$8, T$3, Calculations!$I$10:$QJ$10, T$4) -> 122167.6739 | U10: =SUMIFS(Calculations!$I230:$QJ230, Calculations!$I$8:$QJ$8, U$3, Calculations!$I$10:$QJ$10, U$4) -> 113023.0506 | V10: =SUMIFS(Calculations!$I230:$QJ230, Calculations!$I$8:$QJ$8, V$3, Calculations!$I$10:$QJ$10, V$4) -> 118054.2321 | W10: =SUMIFS(Calculations!$I230:$QJ230, Calculations!$I$8:$QJ$8, W$3, Calculations!$I$10:$QJ$10, W$4) -> 121851.8399 | X10: =SUMIFS(Calculations!$I230:$QJ230, Calculations!$I$8:$QJ$8, X$3, Calculations!$I$10:$QJ$10, X$4) -> 119698.9688 | Y10: =SUMIFS(Calculations!$I230:$QJ230, Calculations!$I$8:$QJ$8, Y$3, Calculations!$I$10:$QJ$10, Y$4) -> 111482.3534 | Z10: =SUMIFS(Calculations!$I230:$QJ230, Calculations!$I$8:$QJ$8, Z$3, Calculations!$I$10:$QJ$10, Z$4) -> 115660.6537 | AA10: =SUMIFS(Calculations!$I230:$QJ230, Calculations!$I$8:$QJ$8, AA$3, Calculations!$I$10:$QJ$10, AA$4) -> 120619.7168 | AB10: =SUMIFS(Calculations!$I230:$QJ230, Calculations!$I$8:$QJ$8, AB$3, Calculations!$I$10:$QJ$10, AB$4) -> 117916.2318 | AC10: =SUMIFS(Calculations!$I230:$QJ230, Calculations!$I$8:$QJ$8, AC$3, Calculations!$I$10:$QJ$10, AC$4) -> 110039.5369 | AD10: =SUMIFS(Calculations!$I230:$QJ230, Calculations!$I$8:$QJ$8, AD$3, Calculations!$I$10:$QJ$10, AD$4) -> 115175.8498 | AE10: =SUMIFS(Calculations!$I230:$QJ230, Calculations!$I$8:$QJ$8, AE$3, Calculations!$I$10:$QJ$10, AE$4) -> 119399.8586 | AF10: =SUMIFS(Calculations!$I230:$QJ230, Calculations!$I$8:$QJ$8, AF$3, Calculations!$I$10:$QJ$10, AF$4) -> 115187.7023 | AG10: =SUMIFS(Calculations!$I230:$QJ230, Calculations!$I$8:$QJ$8, AG$3, Calculations!$I$10:$QJ$10, AG$4) -> 108609.1223 | AH10: =SUMIFS(Calculations!$I230:$QJ230, Calculations!$I$8:$QJ$8, AH$3, Calculations!$I$10:$QJ$10, AH$4) -> 112342.0013 | AI10: =SUMIFS(Calculations!$I230:$QJ230, Calculations!$I$8:$QJ$8, AI$3, Calculations!$I$10:$QJ$10, AI$4) -> 118192.1432 | AJ10: =SUMIFS(Calculations!$I230:$QJ230, Calculations!$I$8:$QJ$8, AJ$3, Calculations!$I$10:$QJ$10, AJ$4) -> 113156.1212 | AK10: =SUMIFS(Calculations!$I230:$QJ230, Calculations!$I$8:$QJ$8, AK$3, Calculations!$I$10:$QJ$10, AK$4) -> 107345.3501 | AL10: =SUMIFS(Calculations!$I230:$QJ230, Calculations!$I$8:$QJ$8, AL$3, Calculations!$I$10:$QJ$10, AL$4) -> 110701.7573 | AM10: =SUMIFS(Calculations!$I230:$QJ230, Calculations!$I$8:$QJ$8, AM$3, Calculations!$I$10:$QJ$10, AM$4) -> 116996.4498 | AN10: =SUMIFS(Calculations!$I230:$QJ230, Calculations!$I$8:$QJ$8, AN$3, Calculations!$I$10:$QJ$10, AN$4) -> 111137.3388 | AO10: =SUMIFS(Calculations!$I230:$QJ230, Calculations!$I$8:$QJ$8, AO$3, Calculations!$I$10:$QJ$10, AO$4) -> 106142.5488 | AP10: =SUMIFS(Calculations!$I230:$QJ230, Calculations!$I$8:$QJ$8, AP$3, Calculations!$I$10:$QJ$10, AP$4) -> 109074.0155 | AQ10: =SUMIFS(Calculations!$I230:$QJ230, Calculations!$I$8:$QJ$8, AQ$3, Calculations!$I$10:$QJ$10, AQ$4) -> 113474.3808 | AR10: =SUMIFS(Calculations!$I230:$QJ230, Calculations!$I$8:$QJ$8, AR$3, Calculations!$I$10:$QJ$10, AR$4) -> 109131.1535 | AS10: =SUMIFS(Calculations!$I230:$QJ230, Calculations!$I$8:$QJ$8, AS$3, Calculations!$I$10:$QJ$10, AS$4) -> 104951.7205 | AT10: =SUMIFS(Calculations!$I230:$QJ230, Calculations!$I$8:$QJ$8, AT$3, Calculations!$I$10:$QJ$10, AT$4) -> 108587.1215 | AU10: =SUMIFS(Calculations!$I230:$QJ230, Calculations!$I$8:$QJ$8, AU$3, Calculations!$I$10:$QJ$10, AU$4) -> 111811.2458 | AV10: =SUMIFS(Calculations!$I230:$QJ230, Calculations!$I$8:$QJ$8, AV$3, Calculations!$I$10:$QJ$10, AV$4) -> 107137.3649 | AW10: =SUMIFS(Calculations!$I230:$QJ230, Calculations!$I$8:$QJ$8, AW$3, Calculations!$I$10:$QJ$10, AW$4) -> 103772.7461 | AX10: =SUMIFS(Calculations!$I230:$QJ230, Calculations!$I$8:$QJ$8, AX$3, Calculations!$I$10:$QJ$10, AX$4) -> 105855.3896 | AY10: =SUMIFS(Calculations!$I230:$QJ230, Calculations!$I$8:$QJ$8, AY$3, Calculations!$I$10:$QJ$10, AY$4) -> 110160.3387 | AZ10: =SUMIFS(Calculations!$I230:$QJ230, Calculations!$I$8:$QJ$8, AZ$3, Calculations!$I$10:$QJ$10, AZ$4) -> 105361.5459 | BA10: =SUMIFS(Calculations!$I230:$QJ230, Calculations!$I$8:$QJ$8, BA$3, Calculations!$I$10:$QJ$10, BA$4) -> 102605.5075 | BB10: =SUMIFS(Calculations!$I230:$QJ230, Calculations!$I$8:$QJ$8, BB$3, Calculations!$I$10:$QJ$10, BB$4) -> 104264.1837 | BC10: =SUMIFS(Calculations!$I230:$QJ230, Calculations!$I$8:$QJ$8, BC$3, Calculations!$I$10:$QJ$10, BC$4) -> 108521.4946 | BD10: =SUMIFS(Calculations!$I230:$QJ230, Calculations!$I$8:$QJ$8, BD$3, Calculations!$I$10:$QJ$10, BD$4) -> 103641.8422 | BE10: =SUMIFS(Calculations!$I230:$QJ230, Calculations!$I$8:$QJ$8, BE$3, Calculations!$I$10:$QJ$10, BE$4) -> 101449.888 | BF10: =SUMIFS(Calculations!$I230:$QJ230, Calculations!$I$8:$QJ$8, BF$3, Calculations!$I$10:$QJ$10, BF$4) -> 102684.8367 | BG10: =SUMIFS(Calculations!$I230:$QJ230, Calculations!$I$8:$QJ$8, BG$3, Calculations!$I$10:$QJ$10, BG$4) -> 106894.5496 | BH10: =SUMIFS(Calculations!$I230:$QJ230, Calculations!$I$8:$QJ$8, BH$3, Calculations!$I$10:$QJ$10, BH$4) -> 101933.9462 | BI10: =SUMIFS(Calculations!$I230:$QJ230, Calculations!$I$8:$QJ$8, BI$3, Calculations!$I$10:$QJ$10, BI$4) -> 100305.7719 | BJ10: =SUMIFS(Calculations!$I230:$QJ230, Calculations!$I$8:$QJ$8, BJ$3, Calculations!$I$10:$QJ$10, BJ$4) -> 102195.3255 | BK10: =SUMIFS(Calculations!$I230:$QJ230, Calculations!$I$8:$QJ$8, BK$3, Calculations!$I$10:$QJ$10, BK$4) -> 105279.3411 | BL10: =SUMIFS(Calculations!$I230:$QJ230, Calculations!$I$8:$QJ$8, BL$3, Calculations!$I$10:$QJ$10, BL$4) -> 100237.6875 | BM10: =SUMIFS(Calculations!$I230:$QJ230, Calculations!$I$8:$QJ$8, BM$3, Calculations!$I$10:$QJ$10, BM$4) -> 99173.04461 | BN10: =SUMIFS(Calculations!$I230:$QJ230, Calculations!$I$8:$QJ$8, BN$3, Calculations!$I$10:$QJ$10, BN$4) -> 99561.0892 | BO10: =SUMIFS(Calculations!$I230:$QJ230, Calculations!$I$8:$QJ$8, BO$3, Calculations!$I$10:$QJ$10, BO$4) -> 102392.9266 | BP10: =SUMIFS(Calculations!$I230:$QJ230, Calculations!$I$8:$QJ$8, BP$3, Calculations!$I$10:$QJ$10, BP$4) -> 98801.21532 | BQ10: =SUMIFS(Calculations!$I230:$QJ230, Calculations!$I$8:$QJ$8, BQ$3, Calculations!$I$10:$QJ$10, BQ$4) -> 98051.59283 | BR10: =SUMIFS(Calculations!$I230:$QJ230, Calculations!$I$8:$QJ$8, BR$3, Calculations!$I$10:$QJ$10, BR$4) -> 98016.3765 | BS10: =SUMIFS(Calculations!$I230:$QJ230, Calculations!$I$8:$QJ$8, BS$3, Calculations!$I$10:$QJ$10, BS$4) -> 100588.4082 | BT10: =SUMIFS(Calculations!$I230:$QJ230, Calculations!$I$8:$QJ$8, BT$3, Calculations!$I$10:$QJ$10, BT$4) -> 97415.56359 | BU10: =SUMIFS(Calculations!$I230:$QJ230, Calculations!$I$8:$QJ$8, BU$3, Calculations!$I$10:$QJ$10, BU$4) -> 96941.30432 | BV10: =SUMIFS(Calculations!$I230:$QJ230, Calculations!$I$8:$QJ$8, BV$3, Calculations!$I$10:$QJ$10, BV$4) -> 96482.89828 | BW10: =SUMIFS(Calculations!$I230:$QJ230, Calculations!$I$8:$QJ$8, BW$3, Calculations!$I$10:$QJ$10, BW$4) -> 98795.40981 | BX10: =SUMIFS(Calculations!$I230:$QJ230, Calculations!$I$8:$QJ$8, BX$3, Calculations!$I$10:$QJ$10, BX$4) -> 96116.83971 | BY10: =SUMIFS(Calculations!$I230:$QJ230, Calculations!$I$8:$QJ$8, BY$3, Calculations!$I$10:$QJ$10, BY$4) -> 95842.06794 | BZ10: =SUMIFS(Calculations!$I230:$QJ230, Calculations!$I$8:$QJ$8, BZ$3, Calculations!$I$10:$QJ$10, BZ$4) -> 95990.23876 | CA10: =SUMIFS(Calculations!$I230:$QJ230, Calculations!$I$8:$QJ$8, CA$3, Calculations!$I$10:$QJ$10, CA$4) -> 97013.75229 | CB10: =SUMIFS(Calculations!$I230:$QJ230, Calculations!$I$8:$QJ$8, CB$3, Calculations!$I$10:$QJ$10, CB$4) -> 95025.8103 | CC10: =SUMIFS(Calculations!$I230:$QJ230, Calculations!$I$8:$QJ$8, CC$3, Calculations!$I$10:$QJ$10, CC$4) -> 94753.77368 | CD10: =SUMIFS(Calculations!$I230:$QJ230, Calculations!$I$8:$QJ$8, CD$3, Calculations!$I$10:$QJ$10, CD$4) -> 93449.0334 | CE10: =SUMIFS(Calculations!$I230:$QJ230, Calculations!$I$8:$QJ$8, CE$3, Calculations!$I$10:$QJ$10, CE$4) -> 95243.2577 | CF10: =SUMIFS(Calculations!$I230:$QJ230, Calculations!$I$8:$QJ$8, CF$3, Calculations!$I$10:$QJ$10, CF$4) -> 93945.64131 | CG10: =SUMIFS(Calculations!$I230:$QJ230, Calculations!$I$8:$QJ$8, CG$3, Calculations!$I$10:$QJ$10, CG$4) -> 93676.31263 | CH10: =SUMIFS(Calculations!$I230:$QJ230, Calculations!$I$8:$QJ$8, CH$3, Calculations!$I$10:$QJ$10, CH$4) -> 91948.34355 | CI10: =SUMIFS(Calculations!$I230:$QJ230, Calculations!$I$8:$QJ$8, CI$3, Calculations!$I$10:$QJ$10, CI$4) -> 93714.62841 | CJ10: =SUMIFS(Calculations!$I230:$QJ230, Calculations!$I$8:$QJ$8, CJ$3, Calculations!$I$10:$QJ$10, CJ$4) -> 92876.22464 | CK10: =SUMIFS(Calculations!$I230:$QJ230, Calculations!$I$8:$QJ$8, CK$3, Calculations!$I$10:$QJ$10, CK$4) -> 92609.57694 | CL10: =SUMIFS(Calculations!$I230:$QJ230, Calculations!$I$8:$QJ$8, CL$3, Calculations!$I$10:$QJ$10, CL$4) -> 90560.35296 | CM10: =SUMIFS(Calculations!$I230:$QJ230, Calculations!$I$8:$QJ$8, CM$3, Calculations!$I$10:$QJ$10, CM$4) -> 92289.22506 | CN10: =SUMIFS(Calculations!$I230:$QJ230, Calculations!$I$8:$QJ$8, CN$3, Calculations!$I$10:$QJ$10, CN$4) -> 91817.45326 | CO10: =SUMIFS(Calculations!$I230:$QJ230, Calculations!$I$8:$QJ$8, CO$3, Calculations!$I$10:$QJ$10, CO$4) -> 91553.45985 | CP10: =SUMIFS(Calculations!$I230:$QJ230, Calculations!$I$8:$QJ$8, CP$3, Calculations!$I$10:$QJ$10, CP$4) -> 90368.11443 | CQ10: =SUMIFS(Calculations!$I230:$QJ230, Calculations!$I$8:$QJ$8, CQ$3, Calculations!$I$10:$QJ$10, CQ$4) -> 91038.76885 | CR10: =SUMIFS(Calculations!$I230:$QJ230, Calculations!$I$8:$QJ$8, CR$3, Calculations!$I$10:$QJ$10, CR$4) -> 90769.2212 | CS10: =SUMIFS(Calculations!$I230:$QJ230, Calculations!$I$8:$QJ$8, CS$3, Calculations!$I$10:$QJ$10, CS$4) -> 90507.85566 | CT10: =SUMIFS(Calculations!$I230:$QJ230, Calculations!$I$8:$QJ$8, CT$3, Calculations!$I$10:$QJ$10, CT$4) -> 88286.1706 | CU10: =SUMIFS(Calculations!$I230:$QJ230, Calculations!$I$8:$QJ$8, CU$3, Calculations!$I$10:$QJ$10, CU$4) -> 89798.79722 | CV10: =SUMIFS(Calculations!$I230:$QJ230, Calculations!$I$8:$QJ$8, CV$3, Calculations!$I$10:$QJ$10, CV$4) -> 89731.42355 | CW10: =SUMIFS(Calculations!$I230:$QJ230, Calculations!$I$8:$QJ$8, CW$3, Calculations!$I$10:$QJ$10, CW$4) -> 89472.65972 | CX10: =SUMIFS(Calculations!$I230:$QJ230, Calculations!$I$8:$QJ$8, CX$3, Calculations!$I$10:$QJ$10, CX$4) -> 87276.00853 | CY10: =SUMIFS(Calculations!$I230:$QJ230, Calculations!$I$8:$QJ$8, CY$3, Calculations!$I$10:$QJ$10, CY$4) -> 88569.18617 | CZ10: =SUMIFS(Calculations!$I230:$QJ230, Calculations!$I$8:$QJ$8, CZ$3, Calculations!$I$10:$QJ$10, CZ$4) -> 88703.95645 | DA10: =SUMIFS(Calculations!$I230:$QJ230, Calculations!$I$8:$QJ$8, DA$3, Calculations!$I$10:$QJ$10, DA$4) -> 88447.76842 | DB10: =SUMIFS(Calculations!$I230:$QJ230, Calculations!$I$8:$QJ$8, DB$3, Calculations!$I$10:$QJ$10, DB$4) -> 86275.90192 | DC10: =SUMIFS(Calculations!$I230:$QJ230, Calculations!$I$8:$QJ$8, DC$3, Calculations!$I$10:$QJ$10, DC$4) -> 87349.81275 | DD10: =SUMIFS(Calculations!$I230:$QJ230, Calculations!$I$8:$QJ$8, DD$3, Calculations!$I$10:$QJ$10, DD$4) -> 87686.71705 | DE10: =SUMIFS(Calculations!$I230:$QJ230, Calculations!$I$8:$QJ$8, DE$3, Calculations!$I$10:$QJ$10, DE$4) -> 87433.07919 | DF10: =SUMIFS(Calculations!$I230:$QJ230, Calculations!$I$8:$QJ$8, DF$3, Calculations!$I$10:$QJ$10, DF$4) -> 86233.36985 | DG10: =SUMIFS(Calculations!$I230:$QJ230, Calculations!$I$8:$QJ$8, DG$3, Calculations!$I$10:$QJ$10, DG$4) -> 86140.55503 | DH10: =SUMIFS(Calculations!$I230:$QJ230, Calculations!$I$8:$QJ$8, DH$3, Calculations!$I$10:$QJ$10, DH$4) -> 86679.60355 | DI10: =SUMIFS(Calculations!$I230:$QJ230, Calculations!$I$8:$QJ$8, DI$3, Calculations!$I$10:$QJ$10, DI$4) -> 86428.49048 | DJ10: =SUMIFS(Calculations!$I230:$QJ230, Calculations!$I$8:$QJ$8, DJ$3, Calculations!$I$10:$QJ$10, DJ$4) -> 84305.45565 | DK10: =SUMIFS(Calculations!$I230:$QJ230, Calculations!$I$8:$QJ$8, DK$3, Calculations!$I$10:$QJ$10, DK$4) -> 83160.79375
C11: less: Purchased from EDA | E11: EUR | G11: -6413601.207 | H11: =SUMIFS(Calculations!$I354:$QJ354, Calculations!$I$8:$QJ$8, H$3, Calculations!$I$10:$QJ$10, H$4) -> 0 | I11: =SUMIFS(Calculations!$I354:$QJ354, Calculations!$I$8:$QJ$8, I$3, Calculations!$I$10:$QJ$10, I$4) -> 0 | J11: =SUMIFS(Calculations!$I354:$QJ354, Calculations!$I$8:$QJ$8, J$3, Calculations!$I$10:$QJ$10, J$4) -> 0 | K11: =SUMIFS(Calculations!$I354:$QJ354, Calculations!$I$8:$QJ$8, K$3, Calculations!$I$10:$QJ$10, K$4) -> 0 | L11: =SUMIFS(Calculations!$I354:$QJ354, Calculations!$I$8:$QJ$8, L$3, Calculations!$I$10:$QJ$10, L$4) -> 0 | M11: =SUMIFS(Calculations!$I354:$QJ354, Calculations!$I$8:$QJ$8, M$3, Calculations!$I$10:$QJ$10, M$4) -> 0 | N11: =SUMIFS(Calculations!$I354:$QJ354, Calculations!$I$8:$QJ$8, N$3, Calculations!$I$10:$QJ$10, N$4) -> 0 | O11: =SUMIFS(Calculations!$I354:$QJ354, Calculations!$I$8:$QJ$8, O$3, Calculations!$I$10:$QJ$10, O$4) -> 0 | P11: =SUMIFS(Calculations!$I354:$QJ354, Calculations!$I$8:$QJ$8, P$3, Calculations!$I$10:$QJ$10, P$4) -> -12116.33904 | Q11: =SUMIFS(Calculations!$I354:$QJ354, Calculations!$I$8:$QJ$8, Q$3, Calculations!$I$10:$QJ$10, Q$4) -> -97255.0962 | R11: =SUMIFS(Calculations!$I354:$QJ354, Calculations!$I$8:$QJ$8, R$3, Calculations!$I$10:$QJ$10, R$4) -> -11136.42072 | S11: =SUMIFS(Calculations!$I354:$QJ354, Calculations!$I$8:$QJ$8, S$3, Calculations!$I$10:$QJ$10, S$4) -> 0 | T11: =SUMIFS(Calculations!$I354:$QJ354, Calculations!$I$8:$QJ$8, T$3, Calculations!$I$10:$QJ$10, T$4) -> -13535.61375 | U11: =SUMIFS(Calculations!$I354:$QJ354, Calculations!$I$8:$QJ$8, U$3, Calculations!$I$10:$QJ$10, U$4) -> -99532.22614 | V11: =SUMIFS(Calculations!$I354:$QJ354, Calculations!$I$8:$QJ$8, V$3, Calculations!$I$10:$QJ$10, V$4) -> -12854.47044 | W11: =SUMIFS(Calculations!$I354:$QJ354, Calculations!$I$8:$QJ$8, W$3, Calculations!$I$10:$QJ$10, W$4) -> 0 | X11: =SUMIFS(Calculations!$I354:$QJ354, Calculations!$I$8:$QJ$8, X$3, Calculations!$I$10:$QJ$10, X$4) -> -16792.27087 | Y11: =SUMIFS(Calculations!$I354:$QJ354, Calculations!$I$8:$QJ$8, Y$3, Calculations!$I$10:$QJ$10, Y$4) -> -101871.1666 | Z11: =SUMIFS(Calculations!$I354:$QJ354, Calculations!$I$8:$QJ$8, Z$3, Calculations!$I$10:$QJ$10, Z$4) -> -14962.22946 | AA11: =SUMIFS(Calculations!$I354:$QJ354, Calculations!$I$8:$QJ$8, AA$3, Calculations!$I$10:$QJ$10, AA$4) -> 0 | AB11: =SUMIFS(Calculations!$I354:$QJ354, Calculations!$I$8:$QJ$8, AB$3, Calculations!$I$10:$QJ$10, AB$4) -> -22610.67302 | AC11: =SUMIFS(Calculations!$I354:$QJ354, Calculations!$I$8:$QJ$8, AC$3, Calculations!$I$10:$QJ$10, AC$4) -> -103177.9847 | AD11: =SUMIFS(Calculations!$I354:$QJ354, Calculations!$I$8:$QJ$8, AD$3, Calculations!$I$10:$QJ$10, AD$4) -> -20650.92562 | AE11: =SUMIFS(Calculations!$I354:$QJ354, Calculations!$I$8:$QJ$8, AE$3, Calculations!$I$10:$QJ$10, AE$4) -> 0 | AF11: =SUMIFS(Calculations!$I354:$QJ354, Calculations!$I$8:$QJ$8, AF$3, Calculations!$I$10:$QJ$10, AF$4) -> -28134.1412 | AG11: =SUMIFS(Calculations!$I354:$QJ354, Calculations!$I$8:$QJ$8, AG$3, Calculations!$I$10:$QJ$10, AG$4) -> -104495.754 | AH11: =SUMIFS(Calculations!$I354:$QJ354, Calculations!$I$8:$QJ$8, AH$3, Calculations!$I$10:$QJ$10, AH$4) -> -23816.40722 | AI11: =SUMIFS(Calculations!$I354:$QJ354, Calculations!$I$8:$QJ$8, AI$3, Calculations!$I$10:$QJ$10, AI$4) -> 0 | AJ11: =SUMIFS(Calculations!$I354:$QJ354, Calculations!$I$8:$QJ$8, AJ$3, Calculations!$I$10:$QJ$10, AJ$4) -> -36919.94132 | AK11: =SUMIFS(Calculations!$I354:$QJ354, Calculations!$I$8:$QJ$8, AK$3, Calculations!$I$10:$QJ$10, AK$4) -> -103937.7568 | AL11: =SUMIFS(Calculations!$I354:$QJ354, Calculations!$I$8:$QJ$8, AL$3, Calculations!$I$10:$QJ$10, AL$4) -> -28246.59004 | AM11: =SUMIFS(Calculations!$I354:$QJ354, Calculations!$I$8:$QJ$8, AM$3, Calculations!$I$10:$QJ$10, AM$4) -> 0 | AN11: =SUMIFS(Calculations!$I354:$QJ354, Calculations!$I$8:$QJ$8, AN$3, Calculations!$I$10:$QJ$10, AN$4) -> -45709.02242 | AO11: =SUMIFS(Calculations!$I354:$QJ354, Calculations!$I$8:$QJ$8, AO$3, Calculations!$I$10:$QJ$10, AO$4) -> -102793.8886 | AP11: =SUMIFS(Calculations!$I354:$QJ354, Calculations!$I$8:$QJ$8, AP$3, Calculations!$I$10:$QJ$10, AP$4) -> -32679.42326 | AQ11: =SUMIFS(Calculations!$I354:$QJ354, Calculations!$I$8:$QJ$8, AQ$3, Calculations!$I$10:$QJ$10, AQ$4) -> -2814.764981 | AR11: =SUMIFS(Calculations!$I354:$QJ354, Calculations!$I$8:$QJ$8, AR$3, Calculations!$I$10:$QJ$10, AR$4) -> -54502.25923 | AS11: =SUMIFS(Calculations!$I354:$QJ354, Calculations!$I$8:$QJ$8, AS$3, Calculations!$I$10:$QJ$10, AS$4) -> -101661.4069 | AT11: =SUMIFS(Calculations!$I354:$QJ354, Calculations!$I$8:$QJ$8, AT$3, Calculations!$I$10:$QJ$10, AT$4) -> -38327.97863 | AU11: =SUMIFS(Calculations!$I354:$QJ354, Calculations!$I$8:$QJ$8, AU$3, Calculations!$I$10:$QJ$10, AU$4) -> -8070.404913 | AV11: =SUMIFS(Calculations!$I354:$QJ354, Calculations!$I$8:$QJ$8, AV$3, Calculations!$I$10:$QJ$10, AV$4) -> -63300.52682 | AW11: =SUMIFS(Calculations!$I354:$QJ354, Calculations!$I$8:$QJ$8, AW$3, Calculations!$I$10:$QJ$10, AW$4) -> -100540.1983 | AX11: =SUMIFS(Calculations!$I354:$QJ354, Calculations!$I$8:$QJ$8, AX$3, Calculations!$I$10:$QJ$10, AX$4) -> -41554.80561 | AY11: =SUMIFS(Calculations!$I354:$QJ354, Calculations!$I$8:$QJ$8, AY$3, Calculations!$I$10:$QJ$10, AY$4) -> -13326.61754 | AZ11: =SUMIFS(Calculations!$I354:$QJ354, Calculations!$I$8:$QJ$8, AZ$3, Calculations!$I$10:$QJ$10, AZ$4) -> -69589.7927 | BA11: =SUMIFS(Calculations!$I354:$QJ354, Calculations!$I$8:$QJ$8, BA$3, Calculations!$I$10:$QJ$10, BA$4) -> -99430.15043 | BB11: =SUMIFS(Calculations!$I354:$QJ354, Calculations!$I$8:$QJ$8, BB$3, Calculations!$I$10:$QJ$10, BB$4) -> -45998.23787 | BC11: =SUMIFS(Calculations!$I354:$QJ354, Calculations!$I$8:$QJ$8, BC$3, Calculations!$I$10:$QJ$10, BC$4) -> -18583.92606 | BD11: =SUMIFS(Calculations!$I354:$QJ354, Calculations!$I$8:$QJ$8, BD$3, Calculations!$I$10:$QJ$10, BD$4) -> -75346.6691 | BE11: =SUMIFS(Calculations!$I354:$QJ354, Calculations!$I$8:$QJ$8, BE$3, Calculations!$I$10:$QJ$10, BE$4) -> -98331.15234 | BF11: =SUMIFS(Calculations!$I354:$QJ354, Calculations!$I$8:$QJ$8, BF$3, Calculations!$I$10:$QJ$10, BF$4) -> -50446.08686 | BG11: =SUMIFS(Calculations!$I354:$QJ354, Calculations!$I$8:$QJ$8, BG$3, Calculations!$I$10:$QJ$10, BG$4) -> -23842.85372 | BH11: =SUMIFS(Calculations!$I354:$QJ354, Calculations!$I$8:$QJ$8, BH$3, Calculations!$I$10:$QJ$10, BH$4) -> -81111.14517 | BI11: =SUMIFS(Calculations!$I354:$QJ354, Calculations!$I$8:$QJ$8, BI$3, Calculations!$I$10:$QJ$10, BI$4) -> -97243.09401 | BJ11: =SUMIFS(Calculations!$I354:$QJ354, Calculations!$I$8:$QJ$8, BJ$3, Calculations!$I$10:$QJ$10, BJ$4) -> -56063.52059 | BK11: =SUMIFS(Calculations!$I354:$QJ354, Calculations!$I$8:$QJ$8, BK$3, Calculations!$I$10:$QJ$10, BK$4) -> -29103.92395 | BL11: =SUMIFS(Calculations!$I354:$QJ354, Calculations!$I$8:$QJ$8, BL$3, Calculations!$I$10:$QJ$10, BL$4) -> -86883.79431 | BM11: =SUMIFS(Calculations!$I354:$QJ354, Calculations!$I$8:$QJ$8, BM$3, Calculations!$I$10:$QJ$10, BM$4) -> -96165.86653 | BN11: =SUMIFS(Calculations!$I354:$QJ354, Calculations!$I$8:$QJ$8, BN$3, Calculations!$I$10:$QJ$10, BN$4) -> -59356.80556 | BO11: =SUMIFS(Calculations!$I354:$QJ354, Calculations!$I$8:$QJ$8, BO$3, Calculations!$I$10:$QJ$10, BO$4) -> -35268.72489 | BP11: =SUMIFS(Calculations!$I354:$QJ354, Calculations!$I$8:$QJ$8, BP$3, Calculations!$I$10:$QJ$10, BP$4) -> -89630.28334 | BQ11: =SUMIFS(Calculations!$I354:$QJ354, Calculations!$I$8:$QJ$8, BQ$3, Calculations!$I$10:$QJ$10, BQ$4) -> -95099.36208 | BR11: =SUMIFS(Calculations!$I354:$QJ354, Calculations!$I$8:$QJ$8, BR$3, Calculations!$I$10:$QJ$10, BR$4) -> -63820.56172 | BS11: =SUMIFS(Calculations!$I354:$QJ354, Calculations!$I$8:$QJ$8, BS$3, Calculations!$I$10:$QJ$10, BS$4) -> -42784.01561 | BT11: =SUMIFS(Calculations!$I354:$QJ354, Calculations!$I$8:$QJ$8, BT$3, Calculations!$I$10:$QJ$10, BT$4) -> -91903.07545 | BU11: =SUMIFS(Calculations!$I354:$QJ354, Calculations!$I$8:$QJ$8, BU$3, Calculations!$I$10:$QJ$10, BU$4) -> -94043.47394 | BV11: =SUMIFS(Calculations!$I354:$QJ354, Calculations!$I$8:$QJ$8, BV$3, Calculations!$I$10:$QJ$10, BV$4) -> -68290.5076 | BW11: =SUMIFS(Calculations!$I354:$QJ354, Calculations!$I$8:$QJ$8, BW$3, Calculations!$I$10:$QJ$10, BW$4) -> -50303.23859 | BX11: =SUMIFS(Calculations!$I354:$QJ354, Calculations!$I$8:$QJ$8, BX$3, Calculations!$I$10:$QJ$10, BX$4) -> -93259.4053 | BY11: =SUMIFS(Calculations!$I354:$QJ354, Calculations!$I$8:$QJ$8, BY$3, Calculations!$I$10:$QJ$10, BY$4) -> -92998.09642 | BZ11: =SUMIFS(Calculations!$I354:$QJ354, Calculations!$I$8:$QJ$8, BZ$3, Calculations!$I$10:$QJ$10, BZ$4) -> -73885.7873 | CA11: =SUMIFS(Calculations!$I354:$QJ354, Calculations!$I$8:$QJ$8, CA$3, Calculations!$I$10:$QJ$10, CA$4) -> -57827.14211 | CB11: =SUMIFS(Calculations!$I354:$QJ354, Calculations!$I$8:$QJ$8, CB$3, Calculations!$I$10:$QJ$10, CB$4) -> -92221.83263 | CC11: =SUMIFS(Calculations!$I354:$QJ354, Calculations!$I$8:$QJ$8, CC$3, Calculations!$I$10:$QJ$10, CC$4) -> -91963.12489 | CD11: =SUMIFS(Calculations!$I354:$QJ354, Calculations!$I$8:$QJ$8, CD$3, Calculations!$I$10:$QJ$10, CD$4) -> -77250.74765 | CE11: =SUMIFS(Calculations!$I354:$QJ354, Calculations!$I$8:$QJ$8, CE$3, Calculations!$I$10:$QJ$10, CE$4) -> -65356.47485 | CF11: =SUMIFS(Calculations!$I354:$QJ354, Calculations!$I$8:$QJ$8, CF$3, Calculations!$I$10:$QJ$10, CF$4) -> -91194.58826 | CG11: =SUMIFS(Calculations!$I354:$QJ354, Calculations!$I$8:$QJ$8, CG$3, Calculations!$I$10:$QJ$10, CG$4) -> -90938.45577 | CH11: =SUMIFS(Calculations!$I354:$QJ354, Calculations!$I$8:$QJ$8, CH$3, Calculations!$I$10:$QJ$10, CH$4) -> -81741.933 | CI11: =SUMIFS(Calculations!$I354:$QJ354, Calculations!$I$8:$QJ$8, CI$3, Calculations!$I$10:$QJ$10, CI$4) -> -70070.22293 | CJ11: =SUMIFS(Calculations!$I354:$QJ354, Calculations!$I$8:$QJ$8, CJ$3, Calculations!$I$10:$QJ$10, CJ$4) -> -90177.56938 | CK11: =SUMIFS(Calculations!$I354:$QJ354, Calculations!$I$8:$QJ$8, CK$3, Calculations!$I$10:$QJ$10, CK$4) -> -89923.98651 | CL11: =SUMIFS(Calculations!$I354:$QJ354, Calculations!$I$8:$QJ$8, CL$3, Calculations!$I$10:$QJ$10, CL$4) -> -84993.59554 | CM11: =SUMIFS(Calculations!$I354:$QJ354, Calculations!$I$8:$QJ$8, CM$3, Calculations!$I$10:$QJ$10, CM$4) -> -73661.41298 | CN11: =SUMIFS(Calculations!$I354:$QJ354, Calculations!$I$8:$QJ$8, CN$3, Calculations!$I$10:$QJ$10, CN$4) -> -89170.67421 | CO11: =SUMIFS(Calculations!$I354:$QJ354, Calculations!$I$8:$QJ$8, CO$3, Calculations!$I$10:$QJ$10, CO$4) -> -88919.61558 | CP11: =SUMIFS(Calculations!$I354:$QJ354, Calculations!$I$8:$QJ$8, CP$3, Calculations!$I$10:$QJ$10, CP$4) -> -86858.93116 | CQ11: =SUMIFS(Calculations!$I354:$QJ354, Calculations!$I$8:$QJ$8, CQ$3, Calculations!$I$10:$QJ$10, CQ$4) -> -75252.09758 | CR11: =SUMIFS(Calculations!$I354:$QJ354, Calculations!$I$8:$QJ$8, CR$3, Calculations!$I$10:$QJ$10, CR$4) -> -88173.80197 | CS11: =SUMIFS(Calculations!$I354:$QJ354, Calculations!$I$8:$QJ$8, CS$3, Calculations!$I$10:$QJ$10, CS$4) -> -87925.24244 | CT11: =SUMIFS(Calculations!$I354:$QJ354, Calculations!$I$8:$QJ$8, CT$3, Calculations!$I$10:$QJ$10, CT$4) -> -85772.15232 | CU11: =SUMIFS(Calculations!$I354:$QJ354, Calculations!$I$8:$QJ$8, CU$3, Calculations!$I$10:$QJ$10, CU$4) -> -76850.93739 | CV11: =SUMIFS(Calculations!$I354:$QJ354, Calculations!$I$8:$QJ$8, CV$3, Calculations!$I$10:$QJ$10, CV$4) -> -87186.85288 | CW11: =SUMIFS(Calculations!$I354:$QJ354, Calculations!$I$8:$QJ$8, CW$3, Calculations!$I$10:$QJ$10, CW$4) -> -86940.76759 | CX11: =SUMIFS(Calculations!$I354:$QJ354, Calculations!$I$8:$QJ$8, CX$3, Calculations!$I$10:$QJ$10, CX$4) -> -84811.48477 | CY11: =SUMIFS(Calculations!$I354:$QJ354, Calculations!$I$8:$QJ$8, CY$3, Calculations!$I$10:$QJ$10, CY$4) -> -78458.09113 | CZ11: =SUMIFS(Calculations!$I354:$QJ354, Calculations!$I$8:$QJ$8, CZ$3, Calculations!$I$10:$QJ$10, CZ$4) -> -86209.72818 | DA11: =SUMIFS(Calculations!$I354:$QJ354, Calculations!$I$8:$QJ$8, DA$3, Calculations!$I$10:$QJ$10, DA$4) -> -85966.0925 | DB11: =SUMIFS(Calculations!$I354:$QJ354, Calculations!$I$8:$QJ$8, DB$3, Calculations!$I$10:$QJ$10, DB$4) -> -83860.37998 | DC11: =SUMIFS(Calculations!$I354:$QJ354, Calculations!$I$8:$QJ$8, DC$3, Calculations!$I$10:$QJ$10, DC$4) -> -80073.71832 | DD11: =SUMIFS(Calculations!$I354:$QJ354, Calculations!$I$8:$QJ$8, DD$3, Calculations!$I$10:$QJ$10, DD$4) -> -85242.33006 | DE11: =SUMIFS(Calculations!$I354:$QJ354, Calculations!$I$8:$QJ$8, DE$3, Calculations!$I$10:$QJ$10, DE$4) -> -85001.1196 | DF11: =SUMIFS(Calculations!$I354:$QJ354, Calculations!$I$8:$QJ$8, DF$3, Calculations!$I$10:$QJ$10, DF$4) -> -83840.06189 | DG11: =SUMIFS(Calculations!$I354:$QJ354, Calculations!$I$8:$QJ$8, DG$3, Calculations!$I$10:$QJ$10, DG$4) -> -81697.97935 | DH11: =SUMIFS(Calculations!$I354:$QJ354, Calculations!$I$8:$QJ$8, DH$3, Calculations!$I$10:$QJ$10, DH$4) -> -84284.56171 | DI11: =SUMIFS(Calculations!$I354:$QJ354, Calculations!$I$8:$QJ$8, DI$3, Calculations!$I$10:$QJ$10, DI$4) -> -84045.75233 | DJ11: =SUMIFS(Calculations!$I354:$QJ354, Calculations!$I$8:$QJ$8, DJ$3, Calculations!$I$10:$QJ$10, DJ$4) -> -81986.4789 | DK11: =SUMIFS(Calculations!$I354:$QJ354, Calculations!$I$8:$QJ$8, DK$3, Calculations!$I$10:$QJ$10, DK$4) -> -81640.41283
C12: Total Revenues | G12: 48557859.52 | H12: =+H9+H10+H11 -> 0 | I12: =+I9+I10+I11 -> 0 | J12: 0 | K12: 0 | L12: 0 | M12: 0 | N12: 0 | O12: 0 | P12: 690294.6027 | Q12: 381809.4684 | R12: 406578.6885 | S12: 586966.2731 | T12: 693247.6622 | U12: 381025.1623 | V12: 406405.4132 | W12: 590360.461 | X12: 693368.456 | Y12: 377907.9618 | Z12: 404916.1323 | AA12: 593813.4241 | AB12: 691671.9344 | AC12: 374576.8666 | AD12: 401784.8092 | AE12: 597325.503 | AF12: 689383.6005 | AG12: 371284.747 | AH12: 398858.0781 | AI12: 600897.0441 | AJ12: 684589.5196 | AK12: 367573.1875 | AL12: 395890.976 | AM12: 604528.3997 | AN12: 679865.1895 | AO12: 363754.9889 | AP12: 392964.7591 | AQ12: 603066.8851 | AR12: 675210.1361 | AS12: 359974.7977 | AT12: 389995.0115 | AU12: 601072.1829 | AV12: 670623.8924 | AW12: 356232.2357 | AX12: 387233.8112 | AY12: 599138.3766 | AZ12: 665495.4332 | BA12: 352526.9282 | BB12: 384428.5053 | BC12: 597265.2705 | BD12: 660303.9709 | BE12: 348858.5045 | BF12: 381662.9349 | BG12: 595452.6749 | BH12: 655179.9435 | BI12: 345226.5973 | BJ12: 378850.2319 | BK12: 593700.406 | BL12: 650122.8374 | BM12: 341630.8432 | BN12: 376249.8948 | BO12: 589824.4405 | BP12: 644395.3363 | BQ12: 338070.8822 | BR12: 373601.8821 | BS12: 585731.6337 | BT12: 638616.4825 | BU12: =+BU9+BU10+BU11 -> 334546.3582 | BV12: 370992.5187 | BW12: 581698.6847 | BX12: 632678.1487 | BY12: 331056.9183 | BZ12: 368332.5807 | CA12: 577725.1888 | CB12: 626221.0174 | CC12: 327602.2134 | CD12: 365888.6963 | CE12: 573810.7473 | CF12: 619828.1623 | CG12: 324181.8975 | CH12: 363393.7252 | CI12: 569269.9048 | CJ12: 613498.9436 | CK12: 320795.6285 | CL12: 360633.5145 | CM12: 564513.1222 | CN12: 607232.7277 | CO12: 317443.0675 | CP12: 357219.9678 | CQ12: 559326.6898 | CR12: 601028.8876 | CS12: 314123.8788 | CT12: 353828.8952 | CU12: 554197.7088 | CV12: 594886.8024 | CW12: 310837.7303 | CX12: 350150.9736 | CY12: 549125.6655 | CZ12: 588805.8572 | DA12: 307584.293 | DB12: 346509.6631 | DC12: 544110.0519 | DD12: 582785.4436 | DE12: 304363.2415 | DF12: 342784.3009 | DG12: 539150.3658 | DH12: 576824.9589 | DI12: 301174.2532 | DJ12: 339335.4214 | DK12: 526974.4332
C13: =Calculations!C356 -> less: Operating Expenses | E13: =Calculations!E356 -> EUR | G13: -15746426.54 | H13: =SUMIFS(Calculations!$I356:$QJ356, Calculations!$I$8:$QJ$8, H$3, Calculations!$I$10:$QJ$10, H$4) -> 0 | I13: =SUMIFS(Calculations!$I356:$QJ356, Calculations!$I$8:$QJ$8, I$3, Calculations!$I$10:$QJ$10, I$4) -> 0 | J13: =SUMIFS(Calculations!$I356:$QJ356, Calculations!$I$8:$QJ$8, J$3, Calculations!$I$10:$QJ$10, J$4) -> 0 | K13: =SUMIFS(Calculations!$I356:$QJ356, Calculations!$I$8:$QJ$8, K$3, Calculations!$I$10:$QJ$10, K$4) -> 0 | L13: =SUMIFS(Calculations!$I356:$QJ356, Calculations!$I$8:$QJ$8, L$3, Calculations!$I$10:$QJ$10, L$4) -> 0 | M13: =SUMIFS(Calculations!$I356:$QJ356, Calculations!$I$8:$QJ$8, M$3, Calculations!$I$10:$QJ$10, M$4) -> 0 | N13: =SUMIFS(Calculations!$I356:$QJ356, Calculations!$I$8:$QJ$8, N$3, Calculations!$I$10:$QJ$10, N$4) -> 0 | O13: =SUMIFS(Calculations!$I356:$QJ356, Calculations!$I$8:$QJ$8, O$3, Calculations!$I$10:$QJ$10, O$4) -> 0 | P13: =SUMIFS(Calculations!$I356:$QJ356, Calculations!$I$8:$QJ$8, P$3, Calculations!$I$10:$QJ$10, P$4) -> -137748.7577 | Q13: =SUMIFS(Calculations!$I356:$QJ356, Calculations!$I$8:$QJ$8, Q$3, Calculations!$I$10:$QJ$10, Q$4) -> -141329.055 | R13: =SUMIFS(Calculations!$I356:$QJ356, Calculations!$I$8:$QJ$8, R$3, Calculations!$I$10:$QJ$10, R$4) -> -131512.297 | S13: =SUMIFS(Calculations!$I356:$QJ356, Calculations!$I$8:$QJ$8, S$3, Calculations!$I$10:$QJ$10, S$4) -> -135358.6199 | T13: =SUMIFS(Calculations!$I356:$QJ356, Calculations!$I$8:$QJ$8, T$3, Calculations!$I$10:$QJ$10, T$4) -> -143700.7827 | U13: =SUMIFS(Calculations!$I356:$QJ356, Calculations!$I$8:$QJ$8, U$3, Calculations!$I$10:$QJ$10, U$4) -> -137456.3327 | V13: =SUMIFS(Calculations!$I356:$QJ356, Calculations!$I$8:$QJ$8, V$3, Calculations!$I$10:$QJ$10, V$4) -> -137486.7953 | W13: =SUMIFS(Calculations!$I356:$QJ356, Calculations!$I$8:$QJ$8, W$3, Calculations!$I$10:$QJ$10, W$4) -> -141404.4675 | X13: =SUMIFS(Calculations!$I356:$QJ356, Calculations!$I$8:$QJ$8, X$3, Calculations!$I$10:$QJ$10, X$4) -> -144193.1115 | Y13: =SUMIFS(Calculations!$I356:$QJ356, Calculations!$I$8:$QJ$8, Y$3, Calculations!$I$10:$QJ$10, Y$4) -> -137883.9016 | Z13: =SUMIFS(Calculations!$I356:$QJ356, Calculations!$I$8:$QJ$8, Z$3, Calculations!$I$10:$QJ$10, Z$4) -> -137946.9226 | AA13: =SUMIFS(Calculations!$I356:$QJ356, Calculations!$I$8:$QJ$8, AA$3, Calculations!$I$10:$QJ$10, AA$4) -> -141963.4396 | AB13: =SUMIFS(Calculations!$I356:$QJ356, Calculations!$I$8:$QJ$8, AB$3, Calculations!$I$10:$QJ$10, AB$4) -> -144661.3418 | AC13: =SUMIFS(Calculations!$I356:$QJ356, Calculations!$I$8:$QJ$8, AC$3, Calculations!$I$10:$QJ$10, AC$4) -> -138319.4404 | AD13: =SUMIFS(Calculations!$I356:$QJ356, Calculations!$I$8:$QJ$8, AD$3, Calculations!$I$10:$QJ$10, AD$4) -> -139000.0281 | AE13: =SUMIFS(Calculations!$I356:$QJ356, Calculations!$I$8:$QJ$8, AE$3, Calculations!$I$10:$QJ$10, AE$4) -> -142910.842 | AF13: =SUMIFS(Calculations!$I356:$QJ356, Calculations!$I$8:$QJ$8, AF$3, Calculations!$I$10:$QJ$10, AF$4) -> -145505.2899 | AG13: =SUMIFS(Calculations!$I356:$QJ356, Calculations!$I$8:$QJ$8, AG$3, Calculations!$I$10:$QJ$10, AG$4) -> -139143.3128 | AH13: =SUMIFS(Calculations!$I356:$QJ356, Calculations!$I$8:$QJ$8, AH$3, Calculations!$I$10:$QJ$10, AH$4) -> -139217.637 | AI13: =SUMIFS(Calculations!$I356:$QJ356, Calculations!$I$8:$QJ$8, AI$3, Calculations!$I$10:$QJ$10, AI$4) -> -143496.9875 | AJ13: =SUMIFS(Calculations!$I356:$QJ356, Calculations!$I$8:$QJ$8, AJ$3, Calculations!$I$10:$QJ$10, AJ$4) -> -145936.9909 | AK13: =SUMIFS(Calculations!$I356:$QJ356, Calculations!$I$8:$QJ$8, AK$3, Calculations!$I$10:$QJ$10, AK$4) -> -139596.6642 | AL13: =SUMIFS(Calculations!$I356:$QJ356, Calculations!$I$8:$QJ$8, AL$3, Calculations!$I$10:$QJ$10, AL$4) -> -139685.8776 | AM13: =SUMIFS(Calculations!$I356:$QJ356, Calculations!$I$8:$QJ$8, AM$3, Calculations!$I$10:$QJ$10, AM$4) -> -144097.1973 | AN13: =SUMIFS(Calculations!$I356:$QJ356, Calculations!$I$8:$QJ$8, AN$3, Calculations!$I$10:$QJ$10, AN$4) -> -146383.2765 | AO13: =SUMIFS(Calculations!$I356:$QJ356, Calculations!$I$8:$QJ$8, AO$3, Calculations!$I$10:$QJ$10, AO$4) -> -140061.0724 | AP13: =SUMIFS(Calculations!$I356:$QJ356, Calculations!$I$8:$QJ$8, AP$3, Calculations!$I$10:$QJ$10, AP$4) -> -140168.1255 | AQ13: =SUMIFS(Calculations!$I356:$QJ356, Calculations!$I$8:$QJ$8, AQ$3, Calculations!$I$10:$QJ$10, AQ$4) -> -144608.7392 | AR13: =SUMIFS(Calculations!$I356:$QJ356, Calculations!$I$8:$QJ$8, AR$3, Calculations!$I$10:$QJ$10, AR$4) -> -146844.4669 | AS13: =SUMIFS(Calculations!$I356:$QJ356, Calculations!$I$8:$QJ$8, AS$3, Calculations!$I$10:$QJ$10, AS$4) -> -140539.7601 | AT13: =SUMIFS(Calculations!$I356:$QJ356, Calculations!$I$8:$QJ$8, AT$3, Calculations!$I$10:$QJ$10, AT$4) -> -140901.5932 | AU13: =SUMIFS(Calculations!$I356:$QJ356, Calculations!$I$8:$QJ$8, AU$3, Calculations!$I$10:$QJ$10, AU$4) -> -145123.1366 | AV13: =SUMIFS(Calculations!$I356:$QJ356, Calculations!$I$8:$QJ$8, AV$3, Calculations!$I$10:$QJ$10, AV$4) -> -147320.8908 | AW13: =SUMIFS(Calculations!$I356:$QJ356, Calculations!$I$8:$QJ$8, AW$3, Calculations!$I$10:$QJ$10, AW$4) -> -141033.0577 | AX13: =SUMIFS(Calculations!$I356:$QJ356, Calculations!$I$8:$QJ$8, AX$3, Calculations!$I$10:$QJ$10, AX$4) -> -141175.9468 | AY13: =SUMIFS(Calculations!$I356:$QJ356, Calculations!$I$8:$QJ$8, AY$3, Calculations!$I$10:$QJ$10, AY$4) -> -145652.6093 | AZ13: =SUMIFS(Calculations!$I356:$QJ356, Calculations!$I$8:$QJ$8, AZ$3, Calculations!$I$10:$QJ$10, AZ$4) -> -147800.6741 | BA13: =SUMIFS(Calculations!$I356:$QJ356, Calculations!$I$8:$QJ$8, BA$3, Calculations!$I$10:$QJ$10, BA$4) -> -141541.304 | BB13: =SUMIFS(Calculations!$I356:$QJ356, Calculations!$I$8:$QJ$8, BB$3, Calculations!$I$10:$QJ$10, BB$4) -> -141702.1932 | BC13: =SUMIFS(Calculations!$I356:$QJ356, Calculations!$I$8:$QJ$8, BC$3, Calculations!$I$10:$QJ$10, BC$4) -> -146197.4997 | BD13: =SUMIFS(Calculations!$I356:$QJ356, Calculations!$I$8:$QJ$8, BD$3, Calculations!$I$10:$QJ$10, BD$4) -> -148293.7562 | BE13: =SUMIFS(Calculations!$I356:$QJ356, Calculations!$I$8:$QJ$8, BE$3, Calculations!$I$10:$QJ$10, BE$4) -> -142064.8469 | BF13: =SUMIFS(Calculations!$I356:$QJ356, Calculations!$I$8:$QJ$8, BF$3, Calculations!$I$10:$QJ$10, BF$4) -> -142243.7931 | BG13: =SUMIFS(Calculations!$I356:$QJ356, Calculations!$I$8:$QJ$8, BG$3, Calculations!$I$10:$QJ$10, BG$4) -> -146758.1591 | BH13: =SUMIFS(Calculations!$I356:$QJ356, Calculations!$I$8:$QJ$8, BH$3, Calculations!$I$10:$QJ$10, BH$4) -> -148803.1097 | BI13: =SUMIFS(Calculations!$I356:$QJ356, Calculations!$I$8:$QJ$8, BI$3, Calculations!$I$10:$QJ$10, BI$4) -> -142604.0428 | BJ13: =SUMIFS(Calculations!$I356:$QJ356, Calculations!$I$8:$QJ$8, BJ$3, Calculations!$I$10:$QJ$10, BJ$4) -> -143037.9443 | BK13: =SUMIFS(Calculations!$I356:$QJ356, Calculations!$I$8:$QJ$8, BK$3, Calculations!$I$10:$QJ$10, BK$4) -> -147334.9478 | BL13: =SUMIFS(Calculations!$I356:$QJ356, Calculations!$I$8:$QJ$8, BL$3, Calculations!$I$10:$QJ$10, BL$4) -> -149329.0976 | BM13: =SUMIFS(Calculations!$I356:$QJ356, Calculations!$I$8:$QJ$8, BM$3, Calculations!$I$10:$QJ$10, BM$4) -> -143159.2577 | BN13: =SUMIFS(Calculations!$I356:$QJ356, Calculations!$I$8:$QJ$8, BN$3, Calculations!$I$10:$QJ$10, BN$4) -> -143374.4963 | BO13: =SUMIFS(Calculations!$I356:$QJ356, Calculations!$I$8:$QJ$8, BO$3, Calculations!$I$10:$QJ$10, BO$4) -> -147884.5584 | BP13: =SUMIFS(Calculations!$I356:$QJ356, Calculations!$I$8:$QJ$8, BP$3, Calculations!$I$10:$QJ$10, BP$4) -> -149857.3557 | BQ13: =SUMIFS(Calculations!$I356:$QJ356, Calculations!$I$8:$QJ$8, BQ$3, Calculations!$I$10:$QJ$10, BQ$4) -> -143730.8667 | BR13: =SUMIFS(Calculations!$I356:$QJ356, Calculations!$I$8:$QJ$8, BR$3, Calculations!$I$10:$QJ$10, BR$4) -> -143964.3443 | BS13: =SUMIFS(Calculations!$I356:$QJ356, Calculations!$I$8:$QJ$8, BS$3, Calculations!$I$10:$QJ$10, BS$4) -> -148445.5105 | BT13: =SUMIFS(Calculations!$I356:$QJ356, Calculations!$I$8:$QJ$8, BT$3, Calculations!$I$10:$QJ$10, BT$4) -> -150400.6571 | BU13: =SUMIFS(Calculations!$I356:$QJ356, Calculations!$I$8:$QJ$8, BU$3, Calculations!$I$10:$QJ$10, BU$4) -> -144319.2546 | BV13: =SUMIFS(Calculations!$I356:$QJ356, Calculations!$I$8:$QJ$8, BV$3, Calculations!$I$10:$QJ$10, BV$4) -> -144571.0354 | BW13: =SUMIFS(Calculations!$I356:$QJ356, Calculations!$I$8:$QJ$8, BW$3, Calculations!$I$10:$QJ$10, BW$4) -> -149023.7299 | BX13: =SUMIFS(Calculations!$I356:$QJ356, Calculations!$I$8:$QJ$8, BX$3, Calculations!$I$10:$QJ$10, BX$4) -> -150957.2408 | BY13: =SUMIFS(Calculations!$I356:$QJ356, Calculations!$I$8:$QJ$8, BY$3, Calculations!$I$10:$QJ$10, BY$4) -> -144924.8161 | BZ13: =SUMIFS(Calculations!$I356:$QJ356, Calculations!$I$8:$QJ$8, BZ$3, Calculations!$I$10:$QJ$10, BZ$4) -> -145431.7582 | CA13: =SUMIFS(Calculations!$I356:$QJ356, Calculations!$I$8:$QJ$8, CA$3, Calculations!$I$10:$QJ$10, CA$4) -> -149619.6104 | CB13: =SUMIFS(Calculations!$I356:$QJ356, Calculations!$I$8:$QJ$8, CB$3, Calculations!$I$10:$QJ$10, CB$4) -> -151520.3322 | CC13: =SUMIFS(Calculations!$I356:$QJ356, Calculations!$I$8:$QJ$8, CC$3, Calculations!$I$10:$QJ$10, CC$4) -> -145547.9562 | CD13: =SUMIFS(Calculations!$I356:$QJ356, Calculations!$I$8:$QJ$8, CD$3, Calculations!$I$10:$QJ$10, CD$4) -> -145836.5434 | CE13: =SUMIFS(Calculations!$I356:$QJ356, Calculations!$I$8:$QJ$8, CE$3, Calculations!$I$10:$QJ$10, CE$4) -> -150233.5556 | CF13: =SUMIFS(Calculations!$I356:$QJ356, Calculations!$I$8:$QJ$8, CF$3, Calculations!$I$10:$QJ$10, CF$4) -> -152102.0151 | CG13: =SUMIFS(Calculations!$I356:$QJ356, Calculations!$I$8:$QJ$8, CG$3, Calculations!$I$10:$QJ$10, CG$4) -> -146189.0898 | CH13: =SUMIFS(Calculations!$I356:$QJ356, Calculations!$I$8:$QJ$8, CH$3, Calculations!$I$10:$QJ$10, CH$4) -> -146496.184 | CI13: =SUMIFS(Calculations!$I356:$QJ356, Calculations!$I$8:$QJ$8, CI$3, Calculations!$I$10:$QJ$10, CI$4) -> -150852.2788 | CJ13: =SUMIFS(Calculations!$I356:$QJ356, Calculations!$I$8:$QJ$8, CJ$3, Calculations!$I$10:$QJ$10, CJ$4) -> -152702.7092 | CK13: =SUMIFS(Calculations!$I356:$QJ356, Calculations!$I$8:$QJ$8, CK$3, Calculations!$I$10:$QJ$10, CK$4) -> -146848.6429 | CL13: =SUMIFS(Calculations!$I356:$QJ356, Calculations!$I$8:$QJ$8, CL$3, Calculations!$I$10:$QJ$10, CL$4) -> -147168.2582 | CM13: =SUMIFS(Calculations!$I356:$QJ356, Calculations!$I$8:$QJ$8, CM$3, Calculations!$I$10:$QJ$10, CM$4) -> -151484.4216 | CN13: =SUMIFS(Calculations!$I356:$QJ356, Calculations!$I$8:$QJ$8, CN$3, Calculations!$I$10:$QJ$10, CN$4) -> -153322.8453 | CO13: =SUMIFS(Calculations!$I356:$QJ356, Calculations!$I$8:$QJ$8, CO$3, Calculations!$I$10:$QJ$10, CO$4) -> -147527.0521 | CP13: =SUMIFS(Calculations!$I356:$QJ356, Calculations!$I$8:$QJ$8, CP$3, Calculations!$I$10:$QJ$10, CP$4) -> -148084.0189 | CQ13: =SUMIFS(Calculations!$I356:$QJ356, Calculations!$I$8:$QJ$8, CQ$3, Calculations!$I$10:$QJ$10, CQ$4) -> -152126.1534 | CR13: =SUMIFS(Calculations!$I356:$QJ356, Calculations!$I$8:$QJ$8, CR$3, Calculations!$I$10:$QJ$10, CR$4) -> -153962.8655 | CS13: =SUMIFS(Calculations!$I356:$QJ356, Calculations!$I$8:$QJ$8, CS$3, Calculations!$I$10:$QJ$10, CS$4) -> -148224.7653 | CT13: =SUMIFS(Calculations!$I356:$QJ356, Calculations!$I$8:$QJ$8, CT$3, Calculations!$I$10:$QJ$10, CT$4) -> -148541.7232 | CU13: =SUMIFS(Calculations!$I356:$QJ356, Calculations!$I$8:$QJ$8, CU$3, Calculations!$I$10:$QJ$10, CU$4) -> -152787.6707 | CV13: =SUMIFS(Calculations!$I356:$QJ356, Calculations!$I$8:$QJ$8, CV$3, Calculations!$I$10:$QJ$10, CV$4) -> -154623.2232 | CW13: =SUMIFS(Calculations!$I356:$QJ356, Calculations!$I$8:$QJ$8, CW$3, Calculations!$I$10:$QJ$10, CW$4) -> -148942.2417 | CX13: =SUMIFS(Calculations!$I356:$QJ356, Calculations!$I$8:$QJ$8, CX$3, Calculations!$I$10:$QJ$10, CX$4) -> -149251.3642 | CY13: =SUMIFS(Calculations!$I356:$QJ356, Calculations!$I$8:$QJ$8, CY$3, Calculations!$I$10:$QJ$10, CY$4) -> -153469.4292 | CZ13: =SUMIFS(Calculations!$I356:$QJ356, Calculations!$I$8:$QJ$8, CZ$3, Calculations!$I$10:$QJ$10, CZ$4) -> -155304.3836 | DA13: =SUMIFS(Calculations!$I356:$QJ356, Calculations!$I$8:$QJ$8, DA$3, Calculations!$I$10:$QJ$10, DA$4) -> -149679.9523 | DB13: =SUMIFS(Calculations!$I356:$QJ356, Calculations!$I$8:$QJ$8, DB$3, Calculations!$I$10:$QJ$10, DB$4) -> -149981.3173 | DC13: =SUMIFS(Calculations!$I356:$QJ356, Calculations!$I$8:$QJ$8, DC$3, Calculations!$I$10:$QJ$10, DC$4) -> -154171.8963 | DD13: =SUMIFS(Calculations!$I356:$QJ356, Calculations!$I$8:$QJ$8, DD$3, Calculations!$I$10:$QJ$10, DD$4) -> -156006.8242 | DE13: =SUMIFS(Calculations!$I356:$QJ356, Calculations!$I$8:$QJ$8, DE$3, Calculations!$I$10:$QJ$10, DE$4) -> -150438.3801 | DF13: =SUMIFS(Calculations!$I356:$QJ356, Calculations!$I$8:$QJ$8, DF$3, Calculations!$I$10:$QJ$10, DF$4) -> -150968.2301 | DG13: =SUMIFS(Calculations!$I356:$QJ356, Calculations!$I$8:$QJ$8, DG$3, Calculations!$I$10:$QJ$10, DG$4) -> -154895.5514 | DH13: =SUMIFS(Calculations!$I356:$QJ356, Calculations!$I$8:$QJ$8, DH$3, Calculations!$I$10:$QJ$10, DH$4) -> -156731.0345 | DI13: =SUMIFS(Calculations!$I356:$QJ356, Calculations!$I$8:$QJ$8, DI$3, Calculations!$I$10:$QJ$10, DI$4) -> -151218.0204 | DJ13: =SUMIFS(Calculations!$I356:$QJ356, Calculations!$I$8:$QJ$8, DJ$3, Calculations!$I$10:$QJ$10, DJ$4) -> -151504.1014 | DK13: =SUMIFS(Calculations!$I356:$QJ356, Calculations!$I$8:$QJ$8, DK$3, Calculations!$I$10:$QJ$10, DK$4) -> -1290936.882
C14: =Calculations!C357 -> EBITDA | G14: 32811432.98 | H14: =SUM(H12:H13) -> 0 | I14: 0 | J14: 0 | K14: 0 | L14: 0 | M14: 0 | N14: 0 | O14: 0 | P14: 552545.8451 | Q14: 240480.4134 | R14: 275066.3915 | S14: 451607.6532 | T14: 549546.8795 | U14: 243568.8296 | V14: 268918.6179 | W14: 448955.9935 | X14: 549175.3445 | Y14: 240024.0602 | Z14: 266969.2097 | AA14: 451849.9844 | AB14: 547010.5926 | AC14: 236257.4262 | AD14: 262784.7811 | AE14: 454414.661 | AF14: 543878.3106 | AG14: 232141.4342 | AH14: 259640.441 | AI14: 457400.0565 | AJ14: 538652.5287 | AK14: 227976.5233 | AL14: 256205.0984 | AM14: 460431.2024 | AN14: =SUM(AN12:AN13) -> 533481.913 | AO14: 223693.9164 | AP14: 252796.6337 | AQ14: 458458.146 | AR14: 528365.6692 | AS14: 219435.0376 | AT14: 249093.4183 | AU14: 455949.0463 | AV14: 523303.0016 | AW14: 215199.178 | AX14: 246057.8645 | AY14: 453485.7674 | AZ14: 517694.7591 | BA14: 210985.6242 | BB14: 242726.3122 | BC14: 451067.7709 | BD14: 512010.2147 | BE14: 206793.6576 | BF14: 239419.1419 | BG14: 448694.5158 | BH14: 506376.8338 | BI14: 202622.5545 | BJ14: 235812.2876 | BK14: 446365.4582 | BL14: 500793.7399 | BM14: 198471.5855 | BN14: 232875.3985 | BO14: 441939.882 | BP14: 494537.9805 | BQ14: 194340.0156 | BR14: 229637.5378 | BS14: 437286.1232 | BT14: =SUM(BT12:BT13) -> 488215.8254 | BU14: 190227.1036 | BV14: 226421.4833 | BW14: 432674.9548 | BX14: 481720.908 | BY14: 186132.1022 | BZ14: 222900.8225 | CA14: 428105.5785 | CB14: 474700.6852 | CC14: 182054.2572 | CD14: 220052.1529 | CE14: 423577.1916 | CF14: 467726.1472 | CG14: 177992.8077 | CH14: 216897.5412 | CI14: 418417.626 | CJ14: 460796.2343 | CK14: 173946.9856 | CL14: 213465.2563 | CM14: 413028.7006 | CN14: 453909.8824 | CO14: 169916.0153 | CP14: 209135.9488 | CQ14: 407200.5364 | CR14: 447066.0221 | CS14: 165899.1135 | CT14: 205287.172 | CU14: 401410.0381 | CV14: 440263.5792 | CW14: 161895.4885 | CX14: 200899.6094 | CY14: 395656.2362 | CZ14: =SUM(CZ12:CZ13) -> 433501.4736 | DA14: 157904.3407 | DB14: 196528.3458 | DC14: 389938.1556 | DD14: 426778.6194 | DE14: 153924.8613 | DF14: 191816.0708 | DG14: 384254.8144 | DH14: 420093.9244 | DI14: 149956.2328 | DJ14: 187831.32 | DK14: -763962.4484
C16: =Calculations!C359 -> less: Depreciation and Amortization | E16: =Calculations!E359 -> EUR | G16: =SUM(H16:FC16) -> -15049827.82 | H16: =SUMIFS(Calculations!$I359:$QJ359, Calculations!$I$8:$QJ$8, H$3, Calculations!$I$10:$QJ$10, H$4) -> 0 | I16: =SUMIFS(Calculations!$I359:$QJ359, Calculations!$I$8:$QJ$8, I$3, Calculations!$I$10:$QJ$10, I$4) -> 0 | J16: =SUMIFS(Calculations!$I359:$QJ359, Calculations!$I$8:$QJ$8, J$3, Calculations!$I$10:$QJ$10, J$4) -> 0 | K16: =SUMIFS(Calculations!$I359:$QJ359, Calculations!$I$8:$QJ$8, K$3, Calculations!$I$10:$QJ$10, K$4) -> 0 | L16: =SUMIFS(Calculations!$I359:$QJ359, Calculations!$I$8:$QJ$8, L$3, Calculations!$I$10:$QJ$10, L$4) -> 0 | M16: =SUMIFS(Calculations!$I359:$QJ359, Calculations!$I$8:$QJ$8, M$3, Calculations!$I$10:$QJ$10, M$4) -> 0 | N16: =SUMIFS(Calculations!$I359:$QJ359, Calculations!$I$8:$QJ$8, N$3, Calculations!$I$10:$QJ$10, N$4) -> 0 | O16: =SUMIFS(Calculations!$I359:$QJ359, Calculations!$I$8:$QJ$8, O$3, Calculations!$I$10:$QJ$10, O$4) -> 0 | P16: =SUMIFS(Calculations!$I359:$QJ359, Calculations!$I$8:$QJ$8, P$3, Calculations!$I$10:$QJ$10, P$4) -> -285363.8491 | Q16: =SUMIFS(Calculations!$I359:$QJ359, Calculations!$I$8:$QJ$8, Q$3, Calculations!$I$10:$QJ$10, Q$4) -> -285363.8491 | R16: =SUMIFS(Calculations!$I359:$QJ359, Calculations!$I$8:$QJ$8, R$3, Calculations!$I$10:$QJ$10, R$4) -> -285363.8491 | S16: =SUMIFS(Calculations!$I359:$QJ359, Calculations!$I$8:$QJ$8, S$3, Calculations!$I$10:$QJ$10, S$4) -> -285363.8491 | T16: =SUMIFS(Calculations!$I359:$QJ359, Calculations!$I$8:$QJ$8, T$3, Calculations!$I$10:$QJ$10, T$4) -> -285363.8491 | U16: =SUMIFS(Calculations!$I359:$QJ359, Calculations!$I$8:$QJ$8, U$3, Calculations!$I$10:$QJ$10, U$4) -> -285363.8491 | V16: =SUMIFS(Calculations!$I359:$QJ359, Calculations!$I$8:$QJ$8, V$3, Calculations!$I$10:$QJ$10, V$4) -> -285363.8491 | W16: =SUMIFS(Calculations!$I359:$QJ359, Calculations!$I$8:$QJ$8, W$3, Calculations!$I$10:$QJ$10, W$4) -> -285363.8491 | X16: =SUMIFS(Calculations!$I359:$QJ359, Calculations!$I$8:$QJ$8, X$3, Calculations!$I$10:$QJ$10, X$4) -> -285363.8491 | Y16: =SUMIFS(Calculations!$I359:$QJ359, Calculations!$I$8:$QJ$8, Y$3, Calculations!$I$10:$QJ$10, Y$4) -> -285363.8491 | Z16: =SUMIFS(Calculations!$I359:$QJ359, Calculations!$I$8:$QJ$8, Z$3, Calculations!$I$10:$QJ$10, Z$4) -> -285363.8491 | AA16: =SUMIFS(Calculations!$I359:$QJ359, Calculations!$I$8:$QJ$8, AA$3, Calculations!$I$10:$QJ$10, AA$4) -> -285363.8491 | AB16: =SUMIFS(Calculations!$I359:$QJ359, Calculations!$I$8:$QJ$8, AB$3, Calculations!$I$10:$QJ$10, AB$4) -> -285363.8491 | AC16: =SUMIFS(Calculations!$I359:$QJ359, Calculations!$I$8:$QJ$8, AC$3, Calculations!$I$10:$QJ$10, AC$4) -> -285363.8491 | AD16: =SUMIFS(Calculations!$I359:$QJ359, Calculations!$I$8:$QJ$8, AD$3, Calculations!$I$10:$QJ$10, AD$4) -> -285363.8491 | AE16: =SUMIFS(Calculations!$I359:$QJ359, Calculations!$I$8:$QJ$8, AE$3, Calculations!$I$10:$QJ$10, AE$4) -> -285363.8491 | AF16: =SUMIFS(Calculations!$I359:$QJ359, Calculations!$I$8:$QJ$8, AF$3, Calculations!$I$10:$QJ$10, AF$4) -> -285363.8491 | AG16: =SUMIFS(Calculations!$I359:$QJ359, Calculations!$I$8:$QJ$8, AG$3, Calculations!$I$10:$QJ$10, AG$4) -> -285363.8491 | AH16: =SUMIFS(Calculations!$I359:$QJ359, Calculations!$I$8:$QJ$8, AH$3, Calculations!$I$10:$QJ$10, AH$4) -> -285363.8491 | AI16: =SUMIFS(Calculations!$I359:$QJ359, Calculations!$I$8:$QJ$8, AI$3, Calculations!$I$10:$QJ$10, AI$4) -> -285363.8491 | AJ16: =SUMIFS(Calculations!$I359:$QJ359, Calculations!$I$8:$QJ$8, AJ$3, Calculations!$I$10:$QJ$10, AJ$4) -> -277338.8491 | AK16: =SUMIFS(Calculations!$I359:$QJ359, Calculations!$I$8:$QJ$8, AK$3, Calculations!$I$10:$QJ$10, AK$4) -> -277338.8491 | AL16: =SUMIFS(Calculations!$I359:$QJ359, Calculations!$I$8:$QJ$8, AL$3, Calculations!$I$10:$QJ$10, AL$4) -> -277338.8491 | AM16: =SUMIFS(Calculations!$I359:$QJ359, Calculations!$I$8:$QJ$8, AM$3, Calculations!$I$10:$QJ$10, AM$4) -> -277338.8491 | AN16: =SUMIFS(Calculations!$I359:$QJ359, Calculations!$I$8:$QJ$8, AN$3, Calculations!$I$10:$QJ$10, AN$4) -> -277338.8491 | AO16: =SUMIFS(Calculations!$I359:$QJ359, Calculations!$I$8:$QJ$8, AO$3, Calculations!$I$10:$QJ$10, AO$4) -> -277338.8491 | AP16: =SUMIFS(Calculations!$I359:$QJ359, Calculations!$I$8:$QJ$8, AP$3, Calculations!$I$10:$QJ$10, AP$4) -> -277338.8491 | AQ16: =SUMIFS(Calculations!$I359:$QJ359, Calculations!$I$8:$QJ$8, AQ$3, Calculations!$I$10:$QJ$10, AQ$4) -> -277338.8491 | AR16: =SUMIFS(Calculations!$I359:$QJ359, Calculations!$I$8:$QJ$8, AR$3, Calculations!$I$10:$QJ$10, AR$4) -> -168170.2703 | AS16: =SUMIFS(Calculations!$I359:$QJ359, Calculations!$I$8:$QJ$8, AS$3, Calculations!$I$10:$QJ$10, AS$4) -> -168170.2703 | AT16: =SUMIFS(Calculations!$I359:$QJ359, Calculations!$I$8:$QJ$8, AT$3, Calculations!$I$10:$QJ$10, AT$4) -> -168170.2703 | AU16: =SUMIFS(Calculations!$I359:$QJ359, Calculations!$I$8:$QJ$8, AU$3, Calculations!$I$10:$QJ$10, AU$4) -> -168170.2703 | AV16: =SUMIFS(Calculations!$I359:$QJ359, Calculations!$I$8:$QJ$8, AV$3, Calculations!$I$10:$QJ$10, AV$4) -> -168170.2703 | AW16: =SUMIFS(Calculations!$I359:$QJ359, Calculations!$I$8:$QJ$8, AW$3, Calculations!$I$10:$QJ$10, AW$4) -> -168170.2703 | AX16: =SUMIFS(Calculations!$I359:$QJ359, Calculations!$I$8:$QJ$8, AX$3, Calculations!$I$10:$QJ$10, AX$4) -> -168170.2703 | AY16: =SUMIFS(Calculations!$I359:$QJ359, Calculations!$I$8:$QJ$8, AY$3, Calculations!$I$10:$QJ$10, AY$4) -> -168170.2703 | AZ16: =SUMIFS(Calculations!$I359:$QJ359, Calculations!$I$8:$QJ$8, AZ$3, Calculations!$I$10:$QJ$10, AZ$4) -> -168170.2703 | BA16: =SUMIFS(Calculations!$I359:$QJ359, Calculations!$I$8:$QJ$8, BA$3, Calculations!$I$10:$QJ$10, BA$4) -> -168170.2703 | BB16: =SUMIFS(Calculations!$I359:$QJ359, Calculations!$I$8:$QJ$8, BB$3, Calculations!$I$10:$QJ$10, BB$4) -> -168060.2703 | BC16: =SUMIFS(Calculations!$I359:$QJ359, Calculations!$I$8:$QJ$8, BC$3, Calculations!$I$10:$QJ$10, BC$4) -> -168060.2703 | BD16: =SUMIFS(Calculations!$I359:$QJ359, Calculations!$I$8:$QJ$8, BD$3, Calculations!$I$10:$QJ$10, BD$4) -> -109591.341 | BE16: =SUMIFS(Calculations!$I359:$QJ359, Calculations!$I$8:$QJ$8, BE$3, Calculations!$I$10:$QJ$10, BE$4) -> -109591.341 | BF16: =SUMIFS(Calculations!$I359:$QJ359, Calculations!$I$8:$QJ$8, BF$3, Calculations!$I$10:$QJ$10, BF$4) -> -109591.341 | BG16: =SUMIFS(Calculations!$I359:$QJ359, Calculations!$I$8:$QJ$8, BG$3, Calculations!$I$10:$QJ$10, BG$4) -> -109591.341 | BH16: =SUMIFS(Calculations!$I359:$QJ359, Calculations!$I$8:$QJ$8, BH$3, Calculations!$I$10:$QJ$10, BH$4) -> -109591.341 | BI16: =SUMIFS(Calculations!$I359:$QJ359, Calculations!$I$8:$QJ$8, BI$3, Calculations!$I$10:$QJ$10, BI$4) -> -109591.341 | BJ16: =SUMIFS(Calculations!$I359:$QJ359, Calculations!$I$8:$QJ$8, BJ$3, Calculations!$I$10:$QJ$10, BJ$4) -> -109591.341 | BK16: =SUMIFS(Calculations!$I359:$QJ359, Calculations!$I$8:$QJ$8, BK$3, Calculations!$I$10:$QJ$10, BK$4) -> -109591.341 | BL16: =SUMIFS(Calculations!$I359:$QJ359, Calculations!$I$8:$QJ$8, BL$3, Calculations!$I$10:$QJ$10, BL$4) -> -109591.341 | BM16: =SUMIFS(Calculations!$I359:$QJ359, Calculations!$I$8:$QJ$8, BM$3, Calculations!$I$10:$QJ$10, BM$4) -> -109591.341 | BN16: =SUMIFS(Calculations!$I359:$QJ359, Calculations!$I$8:$QJ$8, BN$3, Calculations!$I$10:$QJ$10, BN$4) -> -80174.73239 | BO16: =SUMIFS(Calculations!$I359:$QJ359, Calculations!$I$8:$QJ$8, BO$3, Calculations!$I$10:$QJ$10, BO$4) -> -80174.73239 | BP16: =SUMIFS(Calculations!$I359:$QJ359, Calculations!$I$8:$QJ$8, BP$3, Calculations!$I$10:$QJ$10, BP$4) -> -80174.73239 | BQ16: =SUMIFS(Calculations!$I359:$QJ359, Calculations!$I$8:$QJ$8, BQ$3, Calculations!$I$10:$QJ$10, BQ$4) -> -80174.73239 | BR16: =SUMIFS(Calculations!$I359:$QJ359, Calculations!$I$8:$QJ$8, BR$3, Calculations!$I$10:$QJ$10, BR$4) -> -80174.73239 | BS16: =SUMIFS(Calculations!$I359:$QJ359, Calculations!$I$8:$QJ$8, BS$3, Calculations!$I$10:$QJ$10, BS$4) -> -80174.73239 | BT16: =SUMIFS(Calculations!$I359:$QJ359, Calculations!$I$8:$QJ$8, BT$3, Calculations!$I$10:$QJ$10, BT$4) -> -80174.73239 | BU16: =SUMIFS(Calculations!$I359:$QJ359, Calculations!$I$8:$QJ$8, BU$3, Calculations!$I$10:$QJ$10, BU$4) -> -80174.73239 | BV16: =SUMIFS(Calculations!$I359:$QJ359, Calculations!$I$8:$QJ$8, BV$3, Calculations!$I$10:$QJ$10, BV$4) -> -80174.73239 | BW16: =SUMIFS(Calculations!$I359:$QJ359, Calculations!$I$8:$QJ$8, BW$3, Calculations!$I$10:$QJ$10, BW$4) -> -80174.73239 | BX16: =SUMIFS(Calculations!$I359:$QJ359, Calculations!$I$8:$QJ$8, BX$3, Calculations!$I$10:$QJ$10, BX$4) -> -80174.73239 | BY16: =SUMIFS(Calculations!$I359:$QJ359, Calculations!$I$8:$QJ$8, BY$3, Calculations!$I$10:$QJ$10, BY$4) -> -80174.73239 | BZ16: =SUMIFS(Calculations!$I359:$QJ359, Calculations!$I$8:$QJ$8, BZ$3, Calculations!$I$10:$QJ$10, BZ$4) -> -80174.73239 | CA16: =SUMIFS(Calculations!$I359:$QJ359, Calculations!$I$8:$QJ$8, CA$3, Calculations!$I$10:$QJ$10, CA$4) -> -80174.73239 | CB16: =SUMIFS(Calculations!$I359:$QJ359, Calculations!$I$8:$QJ$8, CB$3, Calculations!$I$10:$QJ$10, CB$4) -> -80174.73239 | CC16: =SUMIFS(Calculations!$I359:$QJ359, Calculations!$I$8:$QJ$8, CC$3, Calculations!$I$10:$QJ$10, CC$4) -> -80174.73239 | CD16: =SUMIFS(Calculations!$I359:$QJ359, Calculations!$I$8:$QJ$8, CD$3, Calculations!$I$10:$QJ$10, CD$4) -> -80174.73239 | CE16: =SUMIFS(Calculations!$I359:$QJ359, Calculations!$I$8:$QJ$8, CE$3, Calculations!$I$10:$QJ$10, CE$4) -> -80174.73239 | CF16: =SUMIFS(Calculations!$I359:$QJ359, Calculations!$I$8:$QJ$8, CF$3, Calculations!$I$10:$QJ$10, CF$4) -> -80174.73239 | CG16: =SUMIFS(Calculations!$I359:$QJ359, Calculations!$I$8:$QJ$8, CG$3, Calculations!$I$10:$QJ$10, CG$4) -> -80174.73239 | CH16: =SUMIFS(Calculations!$I359:$QJ359, Calculations!$I$8:$QJ$8, CH$3, Calculations!$I$10:$QJ$10, CH$4) -> -80220.29158 | CI16: =SUMIFS(Calculations!$I359:$QJ359, Calculations!$I$8:$QJ$8, CI$3, Calculations!$I$10:$QJ$10, CI$4) -> -80220.29158 | CJ16: =SUMIFS(Calculations!$I359:$QJ359, Calculations!$I$8:$QJ$8, CJ$3, Calculations!$I$10:$QJ$10, CJ$4) -> -80220.29158 | CK16: =SUMIFS(Calculations!$I359:$QJ359, Calculations!$I$8:$QJ$8, CK$3, Calculations!$I$10:$QJ$10, CK$4) -> -80220.29158 | CL16: =SUMIFS(Calculations!$I359:$QJ359, Calculations!$I$8:$QJ$8, CL$3, Calculations!$I$10:$QJ$10, CL$4) -> -80220.29158 | CM16: =SUMIFS(Calculations!$I359:$QJ359, Calculations!$I$8:$QJ$8, CM$3, Calculations!$I$10:$QJ$10, CM$4) -> -80220.29158 | CN16: =SUMIFS(Calculations!$I359:$QJ359, Calculations!$I$8:$QJ$8, CN$3, Calculations!$I$10:$QJ$10, CN$4) -> -80220.29158 | CO16: =SUMIFS(Calculations!$I359:$QJ359, Calculations!$I$8:$QJ$8, CO$3, Calculations!$I$10:$QJ$10, CO$4) -> -80220.29158 | CP16: =SUMIFS(Calculations!$I359:$QJ359, Calculations!$I$8:$QJ$8, CP$3, Calculations!$I$10:$QJ$10, CP$4) -> -80220.29158 | CQ16: =SUMIFS(Calculations!$I359:$QJ359, Calculations!$I$8:$QJ$8, CQ$3, Calculations!$I$10:$QJ$10, CQ$4) -> -80220.29158 | CR16: =SUMIFS(Calculations!$I359:$QJ359, Calculations!$I$8:$QJ$8, CR$3, Calculations!$I$10:$QJ$10, CR$4) -> -80220.29158 | CS16: =SUMIFS(Calculations!$I359:$QJ359, Calculations!$I$8:$QJ$8, CS$3, Calculations!$I$10:$QJ$10, CS$4) -> -80220.29158 | CT16: =SUMIFS(Calculations!$I359:$QJ359, Calculations!$I$8:$QJ$8, CT$3, Calculations!$I$10:$QJ$10, CT$4) -> -80220.29158 | CU16: =SUMIFS(Calculations!$I359:$QJ359, Calculations!$I$8:$QJ$8, CU$3, Calculations!$I$10:$QJ$10, CU$4) -> -80220.29158 | CV16: =SUMIFS(Calculations!$I359:$QJ359, Calculations!$I$8:$QJ$8, CV$3, Calculations!$I$10:$QJ$10, CV$4) -> -80220.29158 | CW16: =SUMIFS(Calculations!$I359:$QJ359, Calculations!$I$8:$QJ$8, CW$3, Calculations!$I$10:$QJ$10, CW$4) -> -80220.29158 | CX16: =SUMIFS(Calculations!$I359:$QJ359, Calculations!$I$8:$QJ$8, CX$3, Calculations!$I$10:$QJ$10, CX$4) -> -80220.29158 | CY16: =SUMIFS(Calculations!$I359:$QJ359, Calculations!$I$8:$QJ$8, CY$3, Calculations!$I$10:$QJ$10, CY$4) -> -80220.29158 | CZ16: =SUMIFS(Calculations!$I359:$QJ359, Calculations!$I$8:$QJ$8, CZ$3, Calculations!$I$10:$QJ$10, CZ$4) -> -80220.29158 | DA16: =SUMIFS(Calculations!$I359:$QJ359, Calculations!$I$8:$QJ$8, DA$3, Calculations!$I$10:$QJ$10, DA$4) -> -80220.29158 | DB16: =SUMIFS(Calculations!$I359:$QJ359, Calculations!$I$8:$QJ$8, DB$3, Calculations!$I$10:$QJ$10, DB$4) -> -80220.29158 | DC16: =SUMIFS(Calculations!$I359:$QJ359, Calculations!$I$8:$QJ$8, DC$3, Calculations!$I$10:$QJ$10, DC$4) -> -80220.29158 | DD16: =SUMIFS(Calculations!$I359:$QJ359, Calculations!$I$8:$QJ$8, DD$3, Calculations!$I$10:$QJ$10, DD$4) -> -80220.29158 | DE16: =SUMIFS(Calculations!$I359:$QJ359, Calculations!$I$8:$QJ$8, DE$3, Calculations!$I$10:$QJ$10, DE$4) -> -80220.29158 | DF16: =SUMIFS(Calculations!$I359:$QJ359, Calculations!$I$8:$QJ$8, DF$3, Calculations!$I$10:$QJ$10, DF$4) -> -80220.29158 | DG16: =SUMIFS(Calculations!$I359:$QJ359, Calculations!$I$8:$QJ$8, DG$3, Calculations!$I$10:$QJ$10, DG$4) -> -80220.29158 | DH16: =SUMIFS(Calculations!$I359:$QJ359, Calculations!$I$8:$QJ$8, DH$3, Calculations!$I$10:$QJ$10, DH$4) -> -80220.29158 | DI16: =SUMIFS(Calculations!$I359:$QJ359, Calculations!$I$8:$QJ$8, DI$3, Calculations!$I$10:$QJ$10, DI$4) -> -80220.29158 | DJ16: =SUMIFS(Calculations!$I359:$QJ359, Calculations!$I$8:$QJ$8, DJ$3, Calculations!$I$10:$QJ$10, DJ$4) -> -80220.29158 | DK16: =SUMIFS(Calculations!$I359:$QJ359, Calculations!$I$8:$QJ$8, DK$3, Calculations!$I$10:$QJ$10, DK$4) -> -80220.29158
C17: =Calculations!C360 -> EBIT | E17: =Calculations!E360 -> EUR | G17: =SUM(H17:FC17) -> 17761605.16 | H17: =H14+H16 -> 0 | I17: =I14+I16 -> 0 | J17: 0 | K17: 0 | L17: 0 | M17: 0 | N17: 0 | O17: 0 | P17: 267181.9959 | Q17: -44883.43571 | R17: -10297.45762 | S17: 166243.804 | T17: 264183.0303 | U17: -41795.01959 | V17: -16445.23126 | W17: 163592.1444 | X17: 263811.4954 | Y17: -45339.78895 | Z17: -18394.6395 | AA17: 166486.1353 | AB17: 261646.7434 | AC17: -49106.42299 | AD17: -22579.06801 | AE17: 169050.8119 | AF17: 258514.4614 | AG17: -53222.41499 | AH17: -25723.4081 | AI17: 172036.2074 | AJ17: 261313.6796 | AK17: -49362.32585 | AL17: -21133.75075 | AM17: 183092.3533 | AN17: 256143.0639 | AO17: -53644.93271 | AP17: -24542.21546 | AQ17: 181119.2968 | AR17: 360195.399 | AS17: 51264.76732 | AT17: 80923.14798 | AU17: 287778.776 | AV17: 355132.7313 | AW17: 47028.90774 | AX17: 77887.59418 | AY17: 285315.4971 | AZ17: 349524.4888 | BA17: 42815.35392 | BB17: 74666.04189 | BC17: 283007.5006 | BD17: 402418.8738 | BE17: 97202.31665 | BF17: 129827.8009 | BG17: 339103.1749 | BH17: 396785.4929 | BI17: 93031.21351 | BJ17: 126220.9466 | BK17: 336774.1173 | BL17: 391202.3989 | BM17: 88880.24452 | BN17: 152700.6662 | BO17: 361765.1497 | BP17: 414363.2482 | BQ17: 114165.2832 | BR17: 149462.8055 | BS17: 357111.3909 | BT17: 408041.093 | BU17: =BU14+BU16 -> 110052.3712 | BV17: 146246.7509 | BW17: 352500.2224 | BX17: 401546.1756 | BY17: 105957.3698 | BZ17: 142726.0902 | CA17: 347930.8461 | CB17: 394525.9528 | CC17: 101879.5248 | CD17: 139877.4205 | CE17: 343402.4593 | CF17: 387551.4148 | CG17: 97818.07533 | CH17: 136677.2497 | CI17: 338197.3344 | CJ17: 380575.9428 | CK17: 93726.69404 | CL17: 133244.9647 | CM17: 332808.4091 | CN17: 373689.5908 | CO17: 89695.72375 | CP17: 128915.6572 | CQ17: 326980.2449 | CR17: 366845.7305 | CS17: 85678.82188 | CT17: 125066.8804 | CU17: 321189.7465 | CV17: 360043.2876 | CW17: 81675.19696 | CX17: 120679.3178 | CY17: 315435.9447 | CZ17: 353281.182 | DA17: 77684.04912 | DB17: 116308.0542 | DC17: 309717.864 | DD17: =DD14+DD16 -> 346558.3278 | DE17: 73704.56975 | DF17: 111595.7792 | DG17: 304034.5228 | DH17: 339873.6328 | DI17: 69735.94118 | DJ17: 107611.0284 | DK17: -844182.74
C19: =Calculations!C362 -> less: Senior Debt Interest Expense | E19: =Calculations!E362 -> EUR | G19: =SUM(H19:FC19) -> -4667132.78 | H19: =SUMIFS(Calculations!$I362:$QJ362, Calculations!$I$8:$QJ$8, H$3, Calculations!$I$10:$QJ$10, H$4) -> 0 | I19: =SUMIFS(Calculations!$I362:$QJ362, Calculations!$I$8:$QJ$8, I$3, Calculations!$I$10:$QJ$10, I$4) -> 0 | J19: =SUMIFS(Calculations!$I362:$QJ362, Calculations!$I$8:$QJ$8, J$3, Calculations!$I$10:$QJ$10, J$4) -> 0 | K19: =SUMIFS(Calculations!$I362:$QJ362, Calculations!$I$8:$QJ$8, K$3, Calculations!$I$10:$QJ$10, K$4) -> 0 | L19: =SUMIFS(Calculations!$I362:$QJ362, Calculations!$I$8:$QJ$8, L$3, Calculations!$I$10:$QJ$10, L$4) -> 0 | M19: =SUMIFS(Calculations!$I362:$QJ362, Calculations!$I$8:$QJ$8, M$3, Calculations!$I$10:$QJ$10, M$4) -> 0 | N19: =SUMIFS(Calculations!$I362:$QJ362, Calculations!$I$8:$QJ$8, N$3, Calculations!$I$10:$QJ$10, N$4) -> 0 | O19: =SUMIFS(Calculations!$I362:$QJ362, Calculations!$I$8:$QJ$8, O$3, Calculations!$I$10:$QJ$10, O$4) -> 0 | P19: =SUMIFS(Calculations!$I362:$QJ362, Calculations!$I$8:$QJ$8, P$3, Calculations!$I$10:$QJ$10, P$4) -> -111057.4616 | Q19: =SUMIFS(Calculations!$I362:$QJ362, Calculations!$I$8:$QJ$8, Q$3, Calculations!$I$10:$QJ$10, Q$4) -> -110941.448 | R19: =SUMIFS(Calculations!$I362:$QJ362, Calculations!$I$8:$QJ$8, R$3, Calculations!$I$10:$QJ$10, R$4) -> -109993.1238 | S19: =SUMIFS(Calculations!$I362:$QJ362, Calculations!$I$8:$QJ$8, S$3, Calculations!$I$10:$QJ$10, S$4) -> -109031.7003 | T19: =SUMIFS(Calculations!$I362:$QJ362, Calculations!$I$8:$QJ$8, T$3, Calculations!$I$10:$QJ$10, T$4) -> -108056.9965 | U19: =SUMIFS(Calculations!$I362:$QJ362, Calculations!$I$8:$QJ$8, U$3, Calculations!$I$10:$QJ$10, U$4) -> -107068.829 | V19: =SUMIFS(Calculations!$I362:$QJ362, Calculations!$I$8:$QJ$8, V$3, Calculations!$I$10:$QJ$10, V$4) -> -106067.0119 | W19: =SUMIFS(Calculations!$I362:$QJ362, Calculations!$I$8:$QJ$8, W$3, Calculations!$I$10:$QJ$10, W$4) -> -105051.3566 | X19: =SUMIFS(Calculations!$I362:$QJ362, Calculations!$I$8:$QJ$8, X$3, Calculations!$I$10:$QJ$10, X$4) -> -104021.6718 | Y19: =SUMIFS(Calculations!$I362:$QJ362, Calculations!$I$8:$QJ$8, Y$3, Calculations!$I$10:$QJ$10, Y$4) -> -102977.764 | Z19: =SUMIFS(Calculations!$I362:$QJ362, Calculations!$I$8:$QJ$8, Z$3, Calculations!$I$10:$QJ$10, Z$4) -> -101919.4364 | AA19: =SUMIFS(Calculations!$I362:$QJ362, Calculations!$I$8:$QJ$8, AA$3, Calculations!$I$10:$QJ$10, AA$4) -> -100846.4901 | AB19: =SUMIFS(Calculations!$I362:$QJ362, Calculations!$I$8:$QJ$8, AB$3, Calculations!$I$10:$QJ$10, AB$4) -> -99758.72311 | AC19: =SUMIFS(Calculations!$I362:$QJ362, Calculations!$I$8:$QJ$8, AC$3, Calculations!$I$10:$QJ$10, AC$4) -> -98655.93062 | AD19: =SUMIFS(Calculations!$I362:$QJ362, Calculations!$I$8:$QJ$8, AD$3, Calculations!$I$10:$QJ$10, AD$4) -> -97537.90513 | AE19: =SUMIFS(Calculations!$I362:$QJ362, Calculations!$I$8:$QJ$8, AE$3, Calculations!$I$10:$QJ$10, AE$4) -> -96404.43623 | AF19: =SUMIFS(Calculations!$I362:$QJ362, Calculations!$I$8:$QJ$8, AF$3, Calculations!$I$10:$QJ$10, AF$4) -> -95255.31058 | AG19: =SUMIFS(Calculations!$I362:$QJ362, Calculations!$I$8:$QJ$8, AG$3, Calculations!$I$10:$QJ$10, AG$4) -> -94090.31193 | AH19: =SUMIFS(Calculations!$I362:$QJ362, Calculations!$I$8:$QJ$8, AH$3, Calculations!$I$10:$QJ$10, AH$4) -> -92909.22101 | AI19: =SUMIFS(Calculations!$I362:$QJ362, Calculations!$I$8:$QJ$8, AI$3, Calculations!$I$10:$QJ$10, AI$4) -> -91711.81555 | AJ19: =SUMIFS(Calculations!$I362:$QJ362, Calculations!$I$8:$QJ$8, AJ$3, Calculations!$I$10:$QJ$10, AJ$4) -> -90497.87018 | AK19: =SUMIFS(Calculations!$I362:$QJ362, Calculations!$I$8:$QJ$8, AK$3, Calculations!$I$10:$QJ$10, AK$4) -> -89267.15645 | AL19: =SUMIFS(Calculations!$I362:$QJ362, Calculations!$I$8:$QJ$8, AL$3, Calculations!$I$10:$QJ$10, AL$4) -> -88019.44272 | AM19: =SUMIFS(Calculations!$I362:$QJ362, Calculations!$I$8:$QJ$8, AM$3, Calculations!$I$10:$QJ$10, AM$4) -> -86754.49418 | AN19: =SUMIFS(Calculations!$I362:$QJ362, Calculations!$I$8:$QJ$8, AN$3, Calculations!$I$10:$QJ$10, AN$4) -> -85472.07275 | AO19: =SUMIFS(Calculations!$I362:$QJ362, Calculations!$I$8:$QJ$8, AO$3, Calculations!$I$10:$QJ$10, AO$4) -> -84171.93709 | AP19: =SUMIFS(Calculations!$I362:$QJ362, Calculations!$I$8:$QJ$8, AP$3, Calculations!$I$10:$QJ$10, AP$4) -> -82853.8425 | AQ19: =SUMIFS(Calculations!$I362:$QJ362, Calculations!$I$8:$QJ$8, AQ$3, Calculations!$I$10:$QJ$10, AQ$4) -> -81517.54091 | AR19: =SUMIFS(Calculations!$I362:$QJ362, Calculations!$I$8:$QJ$8, AR$3, Calculations!$I$10:$QJ$10, AR$4) -> -80162.78084 | AS19: =SUMIFS(Calculations!$I362:$QJ362, Calculations!$I$8:$QJ$8, AS$3, Calculations!$I$10:$QJ$10, AS$4) -> -78789.3073 | AT19: =SUMIFS(Calculations!$I362:$QJ362, Calculations!$I$8:$QJ$8, AT$3, Calculations!$I$10:$QJ$10, AT$4) -> -77396.86182 | AU19: =SUMIFS(Calculations!$I362:$QJ362, Calculations!$I$8:$QJ$8, AU$3, Calculations!$I$10:$QJ$10, AU$4) -> -75985.18232 | AV19: =SUMIFS(Calculations!$I362:$QJ362, Calculations!$I$8:$QJ$8, AV$3, Calculations!$I$10:$QJ$10, AV$4) -> -74554.00313 | AW19: =SUMIFS(Calculations!$I362:$QJ362, Calculations!$I$8:$QJ$8, AW$3, Calculations!$I$10:$QJ$10, AW$4) -> -73103.05489 | AX19: =SUMIFS(Calculations!$I362:$QJ362, Calculations!$I$8:$QJ$8, AX$3, Calculations!$I$10:$QJ$10, AX$4) -> -71632.06454 | AY19: =SUMIFS(Calculations!$I362:$QJ362, Calculations!$I$8:$QJ$8, AY$3, Calculations!$I$10:$QJ$10, AY$4) -> -70140.75522 | AZ19: =SUMIFS(Calculations!$I362:$QJ362, Calculations!$I$8:$QJ$8, AZ$3, Calculations!$I$10:$QJ$10, AZ$4) -> -68628.84627 | BA19: =SUMIFS(Calculations!$I362:$QJ362, Calculations!$I$8:$QJ$8, BA$3, Calculations!$I$10:$QJ$10, BA$4) -> -67096.05315 | BB19: =SUMIFS(Calculations!$I362:$QJ362, Calculations!$I$8:$QJ$8, BB$3, Calculations!$I$10:$QJ$10, BB$4) -> -65542.08737 | BC19: =SUMIFS(Calculations!$I362:$QJ362, Calculations!$I$8:$QJ$8, BC$3, Calculations!$I$10:$QJ$10, BC$4) -> -63966.65649 | BD19: =SUMIFS(Calculations!$I362:$QJ362, Calculations!$I$8:$QJ$8, BD$3, Calculations!$I$10:$QJ$10, BD$4) -> -62369.46399 | BE19: =SUMIFS(Calculations!$I362:$QJ362, Calculations!$I$8:$QJ$8, BE$3, Calculations!$I$10:$QJ$10, BE$4) -> -60750.20929 | BF19: =SUMIFS(Calculations!$I362:$QJ362, Calculations!$I$8:$QJ$8, BF$3, Calculations!$I$10:$QJ$10, BF$4) -> -59108.58763 | BG19: =SUMIFS(Calculations!$I362:$QJ362, Calculations!$I$8:$QJ$8, BG$3, Calculations!$I$10:$QJ$10, BG$4) -> -57444.29006 | BH19: =SUMIFS(Calculations!$I362:$QJ362, Calculations!$I$8:$QJ$8, BH$3, Calculations!$I$10:$QJ$10, BH$4) -> -55757.00335 | BI19: =SUMIFS(Calculations!$I362:$QJ362, Calculations!$I$8:$QJ$8, BI$3, Calculations!$I$10:$QJ$10, BI$4) -> -54046.40995 | BJ19: =SUMIFS(Calculations!$I362:$QJ362, Calculations!$I$8:$QJ$8, BJ$3, Calculations!$I$10:$QJ$10, BJ$4) -> -52312.18793 | BK19: =SUMIFS(Calculations!$I362:$QJ362, Calculations!$I$8:$QJ$8, BK$3, Calculations!$I$10:$QJ$10, BK$4) -> -50554.01089 | BL19: =SUMIFS(Calculations!$I362:$QJ362, Calculations!$I$8:$QJ$8, BL$3, Calculations!$I$10:$QJ$10, BL$4) -> -48771.54795 | BM19: =SUMIFS(Calculations!$I362:$QJ362, Calculations!$I$8:$QJ$8, BM$3, Calculations!$I$10:$QJ$10, BM$4) -> -46964.46364 | BN19: =SUMIFS(Calculations!$I362:$QJ362, Calculations!$I$8:$QJ$8, BN$3, Calculations!$I$10:$QJ$10, BN$4) -> -45132.41786 | BO19: =SUMIFS(Calculations!$I362:$QJ362, Calculations!$I$8:$QJ$8, BO$3, Calculations!$I$10:$QJ$10, BO$4) -> -43275.06582 | BP19: =SUMIFS(Calculations!$I362:$QJ362, Calculations!$I$8:$QJ$8, BP$3, Calculations!$I$10:$QJ$10, BP$4) -> -41392.05796 | BQ19: =SUMIFS(Calculations!$I362:$QJ362, Calculations!$I$8:$QJ$8, BQ$3, Calculations!$I$10:$QJ$10, BQ$4) -> -39483.03989 | BR19: =SUMIFS(Calculations!$I362:$QJ362, Calculations!$I$8:$QJ$8, BR$3, Calculations!$I$10:$QJ$10, BR$4) -> -37547.65233 | BS19: =SUMIFS(Calculations!$I362:$QJ362, Calculations!$I$8:$QJ$8, BS$3, Calculations!$I$10:$QJ$10, BS$4) -> -35585.53103 | BT19: =SUMIFS(Calculations!$I362:$QJ362, Calculations!$I$8:$QJ$8, BT$3, Calculations!$I$10:$QJ$10, BT$4) -> -33596.30673 | BU19: =SUMIFS(Calculations!$I362:$QJ362, Calculations!$I$8:$QJ$8, BU$3, Calculations!$I$10:$QJ$10, BU$4) -> -31579.60503 | BV19: =SUMIFS(Calculations!$I362:$QJ362, Calculations!$I$8:$QJ$8, BV$3, Calculations!$I$10:$QJ$10, BV$4) -> -29535.0464 | BW19: =SUMIFS(Calculations!$I362:$QJ362, Calculations!$I$8:$QJ$8, BW$3, Calculations!$I$10:$QJ$10, BW$4) -> -27462.24604 | BX19: =SUMIFS(Calculations!$I362:$QJ362, Calculations!$I$8:$QJ$8, BX$3, Calculations!$I$10:$QJ$10, BX$4) -> -25360.81385 | BY19: =SUMIFS(Calculations!$I362:$QJ362, Calculations!$I$8:$QJ$8, BY$3, Calculations!$I$10:$QJ$10, BY$4) -> -23230.35433 | BZ19: =SUMIFS(Calculations!$I362:$QJ362, Calculations!$I$8:$QJ$8, BZ$3, Calculations!$I$10:$QJ$10, BZ$4) -> -21070.46652 | CA19: =SUMIFS(Calculations!$I362:$QJ362, Calculations!$I$8:$QJ$8, CA$3, Calculations!$I$10:$QJ$10, CA$4) -> -18880.74393 | CB19: =SUMIFS(Calculations!$I362:$QJ362, Calculations!$I$8:$QJ$8, CB$3, Calculations!$I$10:$QJ$10, CB$4) -> -16660.77444 | CC19: =SUMIFS(Calculations!$I362:$QJ362, Calculations!$I$8:$QJ$8, CC$3, Calculations!$I$10:$QJ$10, CC$4) -> -14410.14025 | CD19: =SUMIFS(Calculations!$I362:$QJ362, Calculations!$I$8:$QJ$8, CD$3, Calculations!$I$10:$QJ$10, CD$4) -> -12128.41779 | CE19: =SUMIFS(Calculations!$I362:$QJ362, Calculations!$I$8:$QJ$8, CE$3, Calculations!$I$10:$QJ$10, CE$4) -> -9815.177634 | CF19: =SUMIFS(Calculations!$I362:$QJ362, Calculations!$I$8:$QJ$8, CF$3, Calculations!$I$10:$QJ$10, CF$4) -> -7469.984418 | CG19: =SUMIFS(Calculations!$I362:$QJ362, Calculations!$I$8:$QJ$8, CG$3, Calculations!$I$10:$QJ$10, CG$4) -> -5092.396773 | CH19: =SUMIFS(Calculations!$I362:$QJ362, Calculations!$I$8:$QJ$8, CH$3, Calculations!$I$10:$QJ$10, CH$4) -> -1437.411985 | CI19: =SUMIFS(Calculations!$I362:$QJ362, Calculations!$I$8:$QJ$8, CI$3, Calculations!$I$10:$QJ$10, CI$4) -> 0 | CJ19: =SUMIFS(Calculations!$I362:$QJ362, Calculations!$I$8:$QJ$8, CJ$3, Calculations!$I$10:$QJ$10, CJ$4) -> 0 | CK19: =SUMIFS(Calculations!$I362:$QJ362, Calculations!$I$8:$QJ$8, CK$3, Calculations!$I$10:$QJ$10, CK$4) -> 0 | CL19: =SUMIFS(Calculations!$I362:$QJ362, Calculations!$I$8:$QJ$8, CL$3, Calculations!$I$10:$QJ$10, CL$4) -> 0 | CM19: =SUMIFS(Calculations!$I362:$QJ362, Calculations!$I$8:$QJ$8, CM$3, Calculations!$I$10:$QJ$10, CM$4) -> 0 | CN19: =SUMIFS(Calculations!$I362:$QJ362, Calculations!$I$8:$QJ$8, CN$3, Calculations!$I$10:$QJ$10, CN$4) -> 0 | CO19: =SUMIFS(Calculations!$I362:$QJ362, Calculations!$I$8:$QJ$8, CO$3, Calculations!$I$10:$QJ$10, CO$4) -> 0 | CP19: =SUMIFS(Calculations!$I362:$QJ362, Calculations!$I$8:$QJ$8, CP$3, Calculations!$I$10:$QJ$10, CP$4) -> 0 | CQ19: =SUMIFS(Calculations!$I362:$QJ362, Calculations!$I$8:$QJ$8, CQ$3, Calculations!$I$10:$QJ$10, CQ$4) -> 0 | CR19: =SUMIFS(Calculations!$I362:$QJ362, Calculations!$I$8:$QJ$8, CR$3, Calculations!$I$10:$QJ$10, CR$4) -> 0 | CS19: =SUMIFS(Calculations!$I362:$QJ362, Calculations!$I$8:$QJ$8, CS$3, Calculations!$I$10:$QJ$10, CS$4) -> 0 | CT19: =SUMIFS(Calculations!$I362:$QJ362, Calculations!$I$8:$QJ$8, CT$3, Calculations!$I$10:$QJ$10, CT$4) -> 0 | CU19: =SUMIFS(Calculations!$I362:$QJ362, Calculations!$I$8:$QJ$8, CU$3, Calculations!$I$10:$QJ$10, CU$4) -> 0 | CV19: =SUMIFS(Calculations!$I362:$QJ362, Calculations!$I$8:$QJ$8, CV$3, Calculations!$I$10:$QJ$10, CV$4) -> 0 | CW19: =SUMIFS(Calculations!$I362:$QJ362, Calculations!$I$8:$QJ$8, CW$3, Calculations!$I$10:$QJ$10, CW$4) -> 0 | CX19: =SUMIFS(Calculations!$I362:$QJ362, Calculations!$I$8:$QJ$8, CX$3, Calculations!$I$10:$QJ$10, CX$4) -> 0 | CY19: =SUMIFS(Calculations!$I362:$QJ362, Calculations!$I$8:$QJ$8, CY$3, Calculations!$I$10:$QJ$10, CY$4) -> 0 | CZ19: =SUMIFS(Calculations!$I362:$QJ362, Calculations!$I$8:$QJ$8, CZ$3, Calculations!$I$10:$QJ$10, CZ$4) -> 0 | DA19: =SUMIFS(Calculations!$I362:$QJ362, Calculations!$I$8:$QJ$8, DA$3, Calculations!$I$10:$QJ$10, DA$4) -> 0 | DB19: =SUMIFS(Calculations!$I362:$QJ362, Calculations!$I$8:$QJ$8, DB$3, Calculations!$I$10:$QJ$10, DB$4) -> 0 | DC19: =SUMIFS(Calculations!$I362:$QJ362, Calculations!$I$8:$QJ$8, DC$3, Calculations!$I$10:$QJ$10, DC$4) -> 0 | DD19: =SUMIFS(Calculations!$I362:$QJ362, Calculations!$I$8:$QJ$8, DD$3, Calculations!$I$10:$QJ$10, DD$4) -> 0 | DE19: =SUMIFS(Calculations!$I362:$QJ362, Calculations!$I$8:$QJ$8, DE$3, Calculations!$I$10:$QJ$10, DE$4) -> 0 | DF19: =SUMIFS(Calculations!$I362:$QJ362, Calculations!$I$8:$QJ$8, DF$3, Calculations!$I$10:$QJ$10, DF$4) -> 0 | DG19: =SUMIFS(Calculations!$I362:$QJ362, Calculations!$I$8:$QJ$8, DG$3, Calculations!$I$10:$QJ$10, DG$4) -> 0 | DH19: =SUMIFS(Calculations!$I362:$QJ362, Calculations!$I$8:$QJ$8, DH$3, Calculations!$I$10:$QJ$10, DH$4) -> 0 | DI19: =SUMIFS(Calculations!$I362:$QJ362, Calculations!$I$8:$QJ$8, DI$3, Calculations!$I$10:$QJ$10, DI$4) -> 0 | DJ19: =SUMIFS(Calculations!$I362:$QJ362, Calculations!$I$8:$QJ$8, DJ$3, Calculations!$I$10:$QJ$10, DJ$4) -> 0 | DK19: =SUMIFS(Calculations!$I362:$QJ362, Calculations!$I$8:$QJ$8, DK$3, Calculations!$I$10:$QJ$10, DK$4) -> 0
C20: =Calculations!C363 -> less: Subordinated Debt Interest Expense | E20: =Calculations!E363 -> EUR | G20: =SUM(H20:FC20) -> -5044761.508 | H20: =SUMIFS(Calculations!$I363:$QJ363, Calculations!$I$8:$QJ$8, H$3, Calculations!$I$10:$QJ$10, H$4) -> 0 | I20: =SUMIFS(Calculations!$I363:$QJ363, Calculations!$I$8:$QJ$8, I$3, Calculations!$I$10:$QJ$10, I$4) -> 0 | J20: =SUMIFS(Calculations!$I363:$QJ363, Calculations!$I$8:$QJ$8, J$3, Calculations!$I$10:$QJ$10, J$4) -> 0 | K20: =SUMIFS(Calculations!$I363:$QJ363, Calculations!$I$8:$QJ$8, K$3, Calculations!$I$10:$QJ$10, K$4) -> 0 | L20: =SUMIFS(Calculations!$I363:$QJ363, Calculations!$I$8:$QJ$8, L$3, Calculations!$I$10:$QJ$10, L$4) -> 0 | M20: =SUMIFS(Calculations!$I363:$QJ363, Calculations!$I$8:$QJ$8, M$3, Calculations!$I$10:$QJ$10, M$4) -> 0 | N20: =SUMIFS(Calculations!$I363:$QJ363, Calculations!$I$8:$QJ$8, N$3, Calculations!$I$10:$QJ$10, N$4) -> 0 | O20: =SUMIFS(Calculations!$I363:$QJ363, Calculations!$I$8:$QJ$8, O$3, Calculations!$I$10:$QJ$10, O$4) -> 0 | P20: =SUMIFS(Calculations!$I363:$QJ363, Calculations!$I$8:$QJ$8, P$3, Calculations!$I$10:$QJ$10, P$4) -> -121810.02 | Q20: =SUMIFS(Calculations!$I363:$QJ363, Calculations!$I$8:$QJ$8, Q$3, Calculations!$I$10:$QJ$10, Q$4) -> -121902.2562 | R20: =SUMIFS(Calculations!$I363:$QJ363, Calculations!$I$8:$QJ$8, R$3, Calculations!$I$10:$QJ$10, R$4) -> -120995.1487 | S20: =SUMIFS(Calculations!$I363:$QJ363, Calculations!$I$8:$QJ$8, S$3, Calculations!$I$10:$QJ$10, S$4) -> -120478.8777 | T20: =SUMIFS(Calculations!$I363:$QJ363, Calculations!$I$8:$QJ$8, T$3, Calculations!$I$10:$QJ$10, T$4) -> -119946.9632 | U20: =SUMIFS(Calculations!$I363:$QJ363, Calculations!$I$8:$QJ$8, U$3, Calculations!$I$10:$QJ$10, U$4) -> -119398.9311 | V20: =SUMIFS(Calculations!$I363:$QJ363, Calculations!$I$8:$QJ$8, V$3, Calculations!$I$10:$QJ$10, V$4) -> -118834.2932 | W20: =SUMIFS(Calculations!$I363:$QJ363, Calculations!$I$8:$QJ$8, W$3, Calculations!$I$10:$QJ$10, W$4) -> -118252.5461 | X20: =SUMIFS(Calculations!$I363:$QJ363, Calculations!$I$8:$QJ$8, X$3, Calculations!$I$10:$QJ$10, X$4) -> -117653.1715 | Y20: =SUMIFS(Calculations!$I363:$QJ363, Calculations!$I$8:$QJ$8, Y$3, Calculations!$I$10:$QJ$10, Y$4) -> -117035.6353 | Z20: =SUMIFS(Calculations!$I363:$QJ363, Calculations!$I$8:$QJ$8, Z$3, Calculations!$I$10:$QJ$10, Z$4) -> -116399.3871 | AA20: =SUMIFS(Calculations!$I363:$QJ363, Calculations!$I$8:$QJ$8, AA$3, Calculations!$I$10:$QJ$10, AA$4) -> -115743.8599 | AB20: =SUMIFS(Calculations!$I363:$QJ363, Calculations!$I$8:$QJ$8, AB$3, Calculations!$I$10:$QJ$10, AB$4) -> -115068.4696 | AC20: =SUMIFS(Calculations!$I363:$QJ363, Calculations!$I$8:$QJ$8, AC$3, Calculations!$I$10:$QJ$10, AC$4) -> -114372.6143 | AD20: =SUMIFS(Calculations!$I363:$QJ363, Calculations!$I$8:$QJ$8, AD$3, Calculations!$I$10:$QJ$10, AD$4) -> -113655.6739 | AE20: =SUMIFS(Calculations!$I363:$QJ363, Calculations!$I$8:$QJ$8, AE$3, Calculations!$I$10:$QJ$10, AE$4) -> -112917.0095 | AF20: =SUMIFS(Calculations!$I363:$QJ363, Calculations!$I$8:$QJ$8, AF$3, Calculations!$I$10:$QJ$10, AF$4) -> -112155.9628 | AG20: =SUMIFS(Calculations!$I363:$QJ363, Calculations!$I$8:$QJ$8, AG$3, Calculations!$I$10:$QJ$10, AG$4) -> -111371.8557 | AH20: =SUMIFS(Calculations!$I363:$QJ363, Calculations!$I$8:$QJ$8, AH$3, Calculations!$I$10:$QJ$10, AH$4) -> -110563.9893 | AI20: =SUMIFS(Calculations!$I363:$QJ363, Calculations!$I$8:$QJ$8, AI$3, Calculations!$I$10:$QJ$10, AI$4) -> -109731.6437 | AJ20: =SUMIFS(Calculations!$I363:$QJ363, Calculations!$I$8:$QJ$8, AJ$3, Calculations!$I$10:$QJ$10, AJ$4) -> -108874.0773 | AK20: =SUMIFS(Calculations!$I363:$QJ363, Calculations!$I$8:$QJ$8, AK$3, Calculations!$I$10:$QJ$10, AK$4) -> -107990.5257 | AL20: =SUMIFS(Calculations!$I363:$QJ363, Calculations!$I$8:$QJ$8, AL$3, Calculations!$I$10:$QJ$10, AL$4) -> -107080.2017 | AM20: =SUMIFS(Calculations!$I363:$QJ363, Calculations!$I$8:$QJ$8, AM$3, Calculations!$I$10:$QJ$10, AM$4) -> -106142.2939 | AN20: =SUMIFS(Calculations!$I363:$QJ363, Calculations!$I$8:$QJ$8, AN$3, Calculations!$I$10:$QJ$10, AN$4) -> -105175.9665 | AO20: =SUMIFS(Calculations!$I363:$QJ363, Calculations!$I$8:$QJ$8, AO$3, Calculations!$I$10:$QJ$10, AO$4) -> -104180.3585 | AP20: =SUMIFS(Calculations!$I363:$QJ363, Calculations!$I$8:$QJ$8, AP$3, Calculations!$I$10:$QJ$10, AP$4) -> -103154.5825 | AQ20: =SUMIFS(Calculations!$I363:$QJ363, Calculations!$I$8:$QJ$8, AQ$3, Calculations!$I$10:$QJ$10, AQ$4) -> -102097.7246 | AR20: =SUMIFS(Calculations!$I363:$QJ363, Calculations!$I$8:$QJ$8, AR$3, Calculations!$I$10:$QJ$10, AR$4) -> -101008.8427 | AS20: =SUMIFS(Calculations!$I363:$QJ363, Calculations!$I$8:$QJ$8, AS$3, Calculations!$I$10:$QJ$10, AS$4) -> -99886.96668 | AT20: =SUMIFS(Calculations!$I363:$QJ363, Calculations!$I$8:$QJ$8, AT$3, Calculations!$I$10:$QJ$10, AT$4) -> -98731.09667 | AU20: =SUMIFS(Calculations!$I363:$QJ363, Calculations!$I$8:$QJ$8, AU$3, Calculations!$I$10:$QJ$10, AU$4) -> -97540.20264 | AV20: =SUMIFS(Calculations!$I363:$QJ363, Calculations!$I$8:$QJ$8, AV$3, Calculations!$I$10:$QJ$10, AV$4) -> -96313.22333 | AW20: =SUMIFS(Calculations!$I363:$QJ363, Calculations!$I$8:$QJ$8, AW$3, Calculations!$I$10:$QJ$10, AW$4) -> -95049.06533 | AX20: =SUMIFS(Calculations!$I363:$QJ363, Calculations!$I$8:$QJ$8, AX$3, Calculations!$I$10:$QJ$10, AX$4) -> -93746.60207 | AY20: =SUMIFS(Calculations!$I363:$QJ363, Calculations!$I$8:$QJ$8, AY$3, Calculations!$I$10:$QJ$10, AY$4) -> -92404.67287 | AZ20: =SUMIFS(Calculations!$I363:$QJ363, Calculations!$I$8:$QJ$8, AZ$3, Calculations!$I$10:$QJ$10, AZ$4) -> -91022.08187 | BA20: =SUMIFS(Calculations!$I363:$QJ363, Calculations!$I$8:$QJ$8, BA$3, Calculations!$I$10:$QJ$10, BA$4) -> -89597.59699 | BB20: =SUMIFS(Calculations!$I363:$QJ363, Calculations!$I$8:$QJ$8, BB$3, Calculations!$I$10:$QJ$10, BB$4) -> -88129.94879 | BC20: =SUMIFS(Calculations!$I363:$QJ363, Calculations!$I$8:$QJ$8, BC$3, Calculations!$I$10:$QJ$10, BC$4) -> -86617.82938 | BD20: =SUMIFS(Calculations!$I363:$QJ363, Calculations!$I$8:$QJ$8, BD$3, Calculations!$I$10:$QJ$10, BD$4) -> -85059.89124 | BE20: =SUMIFS(Calculations!$I363:$QJ363, Calculations!$I$8:$QJ$8, BE$3, Calculations!$I$10:$QJ$10, BE$4) -> -83454.74601 | BF20: =SUMIFS(Calculations!$I363:$QJ363, Calculations!$I$8:$QJ$8, BF$3, Calculations!$I$10:$QJ$10, BF$4) -> -81800.96328 | BG20: =SUMIFS(Calculations!$I363:$QJ363, Calculations!$I$8:$QJ$8, BG$3, Calculations!$I$10:$QJ$10, BG$4) -> -80097.06929 | BH20: =SUMIFS(Calculations!$I363:$QJ363, Calculations!$I$8:$QJ$8, BH$3, Calculations!$I$10:$QJ$10, BH$4) -> -78341.54559 | BI20: =SUMIFS(Calculations!$I363:$QJ363, Calculations!$I$8:$QJ$8, BI$3, Calculations!$I$10:$QJ$10, BI$4) -> -76532.82778 | BJ20: =SUMIFS(Calculations!$I363:$QJ363, Calculations!$I$8:$QJ$8, BJ$3, Calculations!$I$10:$QJ$10, BJ$4) -> -74669.30401 | BK20: =SUMIFS(Calculations!$I363:$QJ363, Calculations!$I$8:$QJ$8, BK$3, Calculations!$I$10:$QJ$10, BK$4) -> -72749.3136 | BL20: =SUMIFS(Calculations!$I363:$QJ363, Calculations!$I$8:$QJ$8, BL$3, Calculations!$I$10:$QJ$10, BL$4) -> -70771.14556 | BM20: =SUMIFS(Calculations!$I363:$QJ363, Calculations!$I$8:$QJ$8, BM$3, Calculations!$I$10:$QJ$10, BM$4) -> -68733.03706 | BN20: =SUMIFS(Calculations!$I363:$QJ363, Calculations!$I$8:$QJ$8, BN$3, Calculations!$I$10:$QJ$10, BN$4) -> -66633.17183 | BO20: =SUMIFS(Calculations!$I363:$QJ363, Calculations!$I$8:$QJ$8, BO$3, Calculations!$I$10:$QJ$10, BO$4) -> -64469.67858 | BP20: =SUMIFS(Calculations!$I363:$QJ363, Calculations!$I$8:$QJ$8, BP$3, Calculations!$I$10:$QJ$10, BP$4) -> -62240.62932 | BQ20: =SUMIFS(Calculations!$I363:$QJ363, Calculations!$I$8:$QJ$8, BQ$3, Calculations!$I$10:$QJ$10, BQ$4) -> -59944.03764 | BR20: =SUMIFS(Calculations!$I363:$QJ363, Calculations!$I$8:$QJ$8, BR$3, Calculations!$I$10:$QJ$10, BR$4) -> -57577.85694 | BS20: =SUMIFS(Calculations!$I363:$QJ363, Calculations!$I$8:$QJ$8, BS$3, Calculations!$I$10:$QJ$10, BS$4) -> -55139.97859 | BT20: =SUMIFS(Calculations!$I363:$QJ363, Calculations!$I$8:$QJ$8, BT$3, Calculations!$I$10:$QJ$10, BT$4) -> -52628.2301 | BU20: =SUMIFS(Calculations!$I363:$QJ363, Calculations!$I$8:$QJ$8, BU$3, Calculations!$I$10:$QJ$10, BU$4) -> -50040.37311 | BV20: =SUMIFS(Calculations!$I363:$QJ363, Calculations!$I$8:$QJ$8, BV$3, Calculations!$I$10:$QJ$10, BV$4) -> -47374.10147 | BW20: =SUMIFS(Calculations!$I363:$QJ363, Calculations!$I$8:$QJ$8, BW$3, Calculations!$I$10:$QJ$10, BW$4) -> -44627.03913 | BX20: =SUMIFS(Calculations!$I363:$QJ363, Calculations!$I$8:$QJ$8, BX$3, Calculations!$I$10:$QJ$10, BX$4) -> -41796.73805 | BY20: =SUMIFS(Calculations!$I363:$QJ363, Calculations!$I$8:$QJ$8, BY$3, Calculations!$I$10:$QJ$10, BY$4) -> -38880.67603 | BZ20: =SUMIFS(Calculations!$I363:$QJ363, Calculations!$I$8:$QJ$8, BZ$3, Calculations!$I$10:$QJ$10, BZ$4) -> -35876.2544 | CA20: =SUMIFS(Calculations!$I363:$QJ363, Calculations!$I$8:$QJ$8, CA$3, Calculations!$I$10:$QJ$10, CA$4) -> -32780.7958 | CB20: =SUMIFS(Calculations!$I363:$QJ363, Calculations!$I$8:$QJ$8, CB$3, Calculations!$I$10:$QJ$10, CB$4) -> -29591.54171 | CC20: =SUMIFS(Calculations!$I363:$QJ363, Calculations!$I$8:$QJ$8, CC$3, Calculations!$I$10:$QJ$10, CC$4) -> -26305.65002 | CD20: =SUMIFS(Calculations!$I363:$QJ363, Calculations!$I$8:$QJ$8, CD$3, Calculations!$I$10:$QJ$10, CD$4) -> -22920.19254 | CE20: =SUMIFS(Calculations!$I363:$QJ363, Calculations!$I$8:$QJ$8, CE$3, Calculations!$I$10:$QJ$10, CE$4) -> -19432.1523 | CF20: =SUMIFS(Calculations!$I363:$QJ363, Calculations!$I$8:$QJ$8, CF$3, Calculations!$I$10:$QJ$10, CF$4) -> -15838.42096 | CG20: =SUMIFS(Calculations!$I363:$QJ363, Calculations!$I$8:$QJ$8, CG$3, Calculations!$I$10:$QJ$10, CG$4) -> -12135.79597 | CH20: =SUMIFS(Calculations!$I363:$QJ363, Calculations!$I$8:$QJ$8, CH$3, Calculations!$I$10:$QJ$10, CH$4) -> -8320.977734 | CI20: =SUMIFS(Calculations!$I363:$QJ363, Calculations!$I$8:$QJ$8, CI$3, Calculations!$I$10:$QJ$10, CI$4) -> -4390.566693 | CJ20: =SUMIFS(Calculations!$I363:$QJ363, Calculations!$I$8:$QJ$8, CJ$3, Calculations!$I$10:$QJ$10, CJ$4) -> -341.0602668 | CK20: =SUMIFS(Calculations!$I363:$QJ363, Calculations!$I$8:$QJ$8, CK$3, Calculations!$I$10:$QJ$10, CK$4) -> 3831.150254 | CL20: =SUMIFS(Calculations!$I363:$QJ363, Calculations!$I$8:$QJ$8, CL$3, Calculations!$I$10:$QJ$10, CL$4) -> 8129.782925 | CM20: =SUMIFS(Calculations!$I363:$QJ363, Calculations!$I$8:$QJ$8, CM$3, Calculations!$I$10:$QJ$10, CM$4) -> 12558.66847 | CN20: =SUMIFS(Calculations!$I363:$QJ363, Calculations!$I$8:$QJ$8, CN$3, Calculations!$I$10:$QJ$10, CN$4) -> 17121.75367 | CO20: =SUMIFS(Calculations!$I363:$QJ363, Calculations!$I$8:$QJ$8, CO$3, Calculations!$I$10:$QJ$10, CO$4) -> 21823.10491 | CP20: =SUMIFS(Calculations!$I363:$QJ363, Calculations!$I$8:$QJ$8, CP$3, Calculations!$I$10:$QJ$10, CP$4) -> 26666.9118 | CQ20: =SUMIFS(Calculations!$I363:$QJ363, Calculations!$I$8:$QJ$8, CQ$3, Calculations!$I$10:$QJ$10, CQ$4) -> 31657.49088 | CR20: =SUMIFS(Calculations!$I363:$QJ363, Calculations!$I$8:$QJ$8, CR$3, Calculations!$I$10:$QJ$10, CR$4) -> 36799.2895 | CS20: =SUMIFS(Calculations!$I363:$QJ363, Calculations!$I$8:$QJ$8, CS$3, Calculations!$I$10:$QJ$10, CS$4) -> 42096.88976 | CT20: =SUMIFS(Calculations!$I363:$QJ363, Calculations!$I$8:$QJ$8, CT$3, Calculations!$I$10:$QJ$10, CT$4) -> 47555.01261 | CU20: =SUMIFS(Calculations!$I363:$QJ363, Calculations!$I$8:$QJ$8, CU$3, Calculations!$I$10:$QJ$10, CU$4) -> 53178.52203 | CV20: =SUMIFS(Calculations!$I363:$QJ363, Calculations!$I$8:$QJ$8, CV$3, Calculations!$I$10:$QJ$10, CV$4) -> 58972.42941 | CW20: =SUMIFS(Calculations!$I363:$QJ363, Calculations!$I$8:$QJ$8, CW$3, Calculations!$I$10:$QJ$10, CW$4) -> 64941.89799 | CX20: =SUMIFS(Calculations!$I363:$QJ363, Calculations!$I$8:$QJ$8, CX$3, Calculations!$I$10:$QJ$10, CX$4) -> 71092.24742 | CY20: =SUMIFS(Calculations!$I363:$QJ363, Calculations!$I$8:$QJ$8, CY$3, Calculations!$I$10:$QJ$10, CY$4) -> 77428.9586 | CZ20: =SUMIFS(Calculations!$I363:$QJ363, Calculations!$I$8:$QJ$8, CZ$3, Calculations!$I$10:$QJ$10, CZ$4) -> 83957.67846 | DA20: =SUMIFS(Calculations!$I363:$QJ363, Calculations!$I$8:$QJ$8, DA$3, Calculations!$I$10:$QJ$10, DA$4) -> 90684.22507 | DB20: =SUMIFS(Calculations!$I363:$QJ363, Calculations!$I$8:$QJ$8, DB$3, Calculations!$I$10:$QJ$10, DB$4) -> 97614.59276 | DC20: =SUMIFS(Calculations!$I363:$QJ363, Calculations!$I$8:$QJ$8, DC$3, Calculations!$I$10:$QJ$10, DC$4) -> 33655.81649 | DD20: =SUMIFS(Calculations!$I363:$QJ363, Calculations!$I$8:$QJ$8, DD$3, Calculations!$I$10:$QJ$10, DD$4) -> 0 | DE20: =SUMIFS(Calculations!$I363:$QJ363, Calculations!$I$8:$QJ$8, DE$3, Calculations!$I$10:$QJ$10, DE$4) -> 0 | DF20: =SUMIFS(Calculations!$I363:$QJ363, Calculations!$I$8:$QJ$8, DF$3, Calculations!$I$10:$QJ$10, DF$4) -> 0 | DG20: =SUMIFS(Calculations!$I363:$QJ363, Calculations!$I$8:$QJ$8, DG$3, Calculations!$I$10:$QJ$10, DG$4) -> 0 | DH20: =SUMIFS(Calculations!$I363:$QJ363, Calculations!$I$8:$QJ$8, DH$3, Calculations!$I$10:$QJ$10, DH$4) -> 0 | DI20: =SUMIFS(Calculations!$I363:$QJ363, Calculations!$I$8:$QJ$8, DI$3, Calculations!$I$10:$QJ$10, DI$4) -> 0 | DJ20: =SUMIFS(Calculations!$I363:$QJ363, Calculations!$I$8:$QJ$8, DJ$3, Calculations!$I$10:$QJ$10, DJ$4) -> 0 | DK20: =SUMIFS(Calculations!$I363:$QJ363, Calculations!$I$8:$QJ$8, DK$3, Calculations!$I$10:$QJ$10, DK$4) -> 0
